Workbook

Sheet CV Rotina <2A - procedência
E1: AO NASCER | I1: MENOR DE 1 ANO | U1: 1 ANO | AB1: MENOR DE 1 ANO
A2: Regional | B2: Município | C2: ¹População < 1 ano e 1 ano anual | D2: ²População < 1 ano e 1 ano proporcional | E2: Doses Aplicadas HB < 30 dias | F2: Cobertura Vacinal HB até 30 dias | G2: Doses Aplicadas BCG | H2: Cobertura Vacinal BCG | I2: Doses Aplicadas Pentavalente | J2: Cobertura Vacinal Pentavalente | K2: Doses Aplicadas Poliomielite | L2: Cobertura Vacinal Poliomielite | M2: Doses Aplicadas Pneumo 10 | N2: Cobertura Vacinal Pneumo 10 | O2: Doses Aplicadas Rotavírus | P2: Cobertura Vacinal Rotavírus | Q2: Doses Aplicadas Meningo C | R2: Cobertura Vacinal Meningo C | S2: Doses Aplicadas Febre Amarela | T2: Cobertura Vacinal Febre Amarela | U2: Doses Aplicadas Hepatite A | V2: Cobertura Vacinal Hepatite A | W2: Doses Aplicadas de Tríplice Viral | X2: Cobertura Vacinal Tríplice Viral | Y2: Doses Aplicadas Varicela | Z2: Cobertura Varicela | AB2: Doses Aplicadas COVID-19 | AC2: Cobertura Vacinal COVID-19 | AE2: VACINAS QUE ATINGIRAM A META DE CV | AF2: HOMOGENEIDADE ENTRE AS 10 VACINAS | AG2: VACINAS DO PQA-VS QUE ATINGIRAM A META DE CV | AH2: HOMOGENEIDADE ENTRE AS VACINAS DO PQA-VS
A3: Metropolitana | B3: Afonso Cláudio | C3: 364 | D3: 32 | E3: 30 | F3: =E3/D3 -> 0.9375 | G3: 23 | H3: =G3/D3 -> 0.71875 | I3: 34 | J3: =I3/D3 -> 1.0625 | K3: 34 | L3: =K3/D3 -> 1.0625 | M3: 30 | N3: =M3/D3 -> 0.9375 | O3: 31 | P3: =O3/D3 -> 0.96875 | Q3: 32 | R3: =Q3/D3 -> 1 | S3: 33 | T3: =S3/D3 -> 1.03125 | U3: 43 | V3: =U3/D3 -> 1.34375 | W3: 28 | X3: =W3/D3 -> 0.875 | Y3: 47 | Z3: =Y3/D3 -> 1.46875 | AB3: 0 | AC3: =AB3/D3 -> 0 | AE3: =cálculos1!O3 -> 7 | AF3: =AE3*0.1 -> 0.7 | AG3: =cálculos1!P3 -> 2 | AH3: =AG3*0.25 -> 0.5 | AJ3: LEGENDA / HOMOGENEIDADE PQA-VS
A4: Norte | B4: Água Doce do Norte | C4: 197 | D4: 26 | E4: 6 | F4: =E4/D4 -> 0.2307692308 | G4: 6 | H4: 0.2307692308 | I4: 19 | J4: 0.7307692308 | K4: 19 | L4: 0.7307692308 | M4: 8 | N4: 0.3076923077 | O4: 7 | P4: 0.2692307692 | Q4: 23 | R4: 0.8846153846 | S4: 16 | T4: 0.6153846154 | U4: 15 | V4: 0.5769230769 | W4: 16 | X4: 0.6153846154 | Y4: 7 | Z4: 0.2692307692 | AB4: 0 | AC4: =AB4/D4 -> 0 | AE4: =cálculos1!O4 -> 0 | AF4: =AE4*0.1 -> 0 | AG4: =cálculos1!P4 -> 0 | AH4: =AG4*0.25 -> 0 | AJ4: PERCENTUAL | AK4: Nº DE MUNICÍPIOS
A5: Central | B5: Águia Branca | C5: 146 | D5: 11 | E5: 3 | F5: 0.2727272727 | G5: 2 | H5: 0.1818181818 | I5: 18 | J5: 1.636363636 | K5: 18 | L5: 1.636363636 | M5: 8 | N5: 0.7272727273 | O5: 7 | P5: 0.6363636364 | Q5: 17 | R5: 1.545454545 | S5: 24 | T5: 2.181818182 | U5: 19 | V5: 1.727272727 | W5: 14 | X5: 1.272727273 | Y5: 20 | Z5: 1.818181818 | AB5: 0 | AC5: 0 | AE5: =cálculos1!O5 -> 7 | AF5: 0.7 | AG5: =cálculos1!P5 -> 3 | AH5: 0.75 | AJ5: 0 | AK5: =COUNTIF($AH$3:$AH$80,"=0") -> 7
A6: Sul | B6: Alegre | C6: 291 | D6: 21 | E6: 8 | F6: 0.380952381 | G6: 9 | H6: 0.4285714286 | I6: 30 | J6: 1.428571429 | K6: 23 | L6: 1.095238095 | M6: 21 | N6: 1 | O6: 23 | P6: 1.095238095 | Q6: 26 | R6: 1.238095238 | S6: 23 | T6: 1.095238095 | U6: 35 | V6: 1.666666667 | W6: 30 | X6: 1.428571429 | Y6: 33 | Z6: 1.571428571 | AB6: 0 | AC6: 0 | AE6: =cálculos1!O6 -> 9 | AF6: 0.9 | AG6: =cálculos1!P6 -> 4 | AH6: 1 | AJ6: 0.25 | AK6: =COUNTIF($AH$3:$AH$80,"=0,25") -> 9
A7: Sul | B7: Alfredo Chaves | C7: 116 | D7: 14 | E7: 2 | F7: 0.1428571429 | G7: 3 | H7: 0.2142857143 | I7: 11 | J7: 0.7857142857 | K7: 10 | L7: 0.7142857143 | M7: 4 | N7: 0.2857142857 | O7: 6 | P7: 0.4285714286 | Q7: 9 | R7: 0.6428571429 | S7: 16 | T7: 1.142857143 | U7: 26 | V7: 1.857142857 | W7: 16 | X7: 1.142857143 | Y7: 21 | Z7: 1.5 | AB7: 0 | AC7: 0 | AE7: =cálculos1!O7 -> 4 | AF7: 0.4 | AG7: =cálculos1!P7 -> 1 | AH7: 0.25 | AJ7: 0.5 | AK7: =COUNTIF($AH$3:$AH$80,"=0,5") -> 17
A8: Central | B8: Alto Rio Novo | C8: 86 | D8: 6 | E8: 3 | F8: 0.5 | G8: 0 | H8: 0 | I8: 9 | J8: 1.5 | K8: 9 | L8: 1.5 | M8: 12 | N8: 2 | O8: 12 | P8: 2 | Q8: 10 | R8: 1.666666667 | S8: 14 | T8: 2.333333333 | U8: 9 | V8: 1.5 | W8: 7 | X8: 1.166666667 | Y8: 16 | Z8: 2.666666667 | AB8: 0 | AC8: 0 | AE8: =cálculos1!O8 -> 9 | AF8: 0.9 | AG8: =cálculos1!P8 -> 4 | AH8: 1 | AJ8: 0.75 | AK8: =COUNTIF($AH$3:$AH$80,"=0,75") -> 19
A9: Sul | B9: Anchieta | C9: 349 | D9: 34 | E9: 2 | F9: 0.05882352941 | G9: 13 | H9: 0.3823529412 | I9: 34 | J9: 1 | K9: 29 | L9: 0.8529411765 | M9: 33 | N9: 0.9705882353 | O9: 32 | P9: 0.9411764706 | Q9: 32 | R9: 0.9411764706 | S9: 33 | T9: 0.9705882353 | U9: 36 | V9: 1.058823529 | W9: 22 | X9: 0.6470588235 | Y9: 24 | Z9: 0.7058823529 | AB9: 4 | AC9: 0.1176470588 | AE9: =cálculos1!O9 -> 5 | AF9: 0.5 | AG9: =cálculos1!P9 -> 2 | AH9: 0.5 | AJ9: 1 | AK9: =COUNTIF($AH$3:$AH$80,"=1,0") -> 26
A10: Sul | B10: Apiacá | C10: 56 | D10: 4 | E10: 0 | F10: 0 | G10: 11 | H10: 2.75 | I10: 8 | J10: 2 | K10: 8 | L10: 2 | M10: 4 | N10: 1 | O10: 4 | P10: 1 | Q10: 3 | R10: 0.75 | S10: 7 | T10: 1.75 | U10: 1 | V10: 0.25 | W10: 8 | X10: 2 | Y10: 1 | Z10: 0.25 | AB10: 0 | AC10: 0 | AE10: =cálculos1!O10 -> 7 | AF10: 0.7 | AG10: =cálculos1!P10 -> 4 | AH10: 1
A11: Metropolitana | B11: Aracruz | C11: 1384 | D11: 106 | E11: 108 | F11: 1.018867925 | G11: 113 | H11: 1.066037736 | I11: 130 | J11: 1.226415094 | K11: 128 | L11: 1.20754717 | M11: 116 | N11: 1.094339623 | O11: 123 | P11: 1.160377358 | Q11: 122 | R11: 1.150943396 | S11: 113 | T11: 1.066037736 | U11: 159 | V11: 1.5 | W11: 146 | X11: 1.377358491 | Y11: 158 | Z11: 1.490566038 | AB11: 17 | AC11: 0.1603773585 | AE11: =cálculos1!O11 -> 10 | AF11: 1 | AG11: =cálculos1!P11 -> 4 | AH11: 1
A12: Sul | B12: Atilio Vivacqua | C12: 148 | D12: 15 | E12: 1 | F12: 0.06666666667 | G12: 1 | H12: 0.06666666667 | I12: 17 | J12: 1.133333333 | K12: 17 | L12: 1.133333333 | M12: 18 | N12: 1.2 | O12: 18 | P12: 1.2 | Q12: 17 | R12: 1.133333333 | S12: 9 | T12: 0.6 | U12: 11 | V12: 0.7333333333 | W12: 14 | X12: 0.9333333333 | Y12: 8 | Z12: 0.5333333333 | AB12: 2 | AC12: 0.1333333333 | AE12: =cálculos1!O12 -> 5 | AF12: 0.5 | AG12: =cálculos1!P12 -> 3 | AH12: 0.75 | AJ12: LEGENDA / HOMOGENEIDADE 10 VACINAS
A13: Central | B13: Baixo Guandu | C13: 332 | D13: 27 | E13: 5 | F13: 0.1851851852 | G13: 13 | H13: 0.4814814815 | I13: 32 | J13: 1.185185185 | K13: 32 | L13: 1.185185185 | M13: 26 | N13: 0.962962963 | O13: 27 | P13: 1 | Q13: 30 | R13: 1.111111111 | S13: 40 | T13: 1.481481481 | U13: 46 | V13: 1.703703704 | W13: 32 | X13: 1.185185185 | Y13: 30 | Z13: 1.111111111 | AB13: 0 | AC13: 0 | AE13: =cálculos1!O13 -> 9 | AF13: 0.9 | AG13: =cálculos1!P13 -> 4 | AH13: 1 | AJ13: PERCENTUAL | AK13: Nº DE MUNICÍPIOS
A14: Norte | B14: Barra de São Francisco | C14: 571 | D14: 46 | E14: 17 | F14: 0.3695652174 | G14: 21 | H14: 0.4565217391 | I14: 62 | J14: 1.347826087 | K14: 62 | L14: 1.347826087 | M14: 43 | N14: 0.9347826087 | O14: 42 | P14: 0.9130434783 | Q14: 40 | R14: 0.8695652174 | S14: 45 | T14: 0.9782608696 | U14: 35 | V14: 0.7608695652 | W14: 41 | X14: 0.8913043478 | Y14: 46 | Z14: 1 | AB14: 0 | AC14: 0 | AE14: =cálculos1!O14 -> 5 | AF14: 0.5 | AG14: =cálculos1!P14 -> 2 | AH14: 0.5 | AJ14: 0 | AK14: =COUNTIF($AF$3:$AF$80,"=0") -> 5
A15: Norte | B15: Boa Esperança | C15: 202 | D15: 16 | E15: 0 | F15: 0 | G15: 7 | H15: 0.4375 | I15: 16 | J15: 1 | K15: 16 | L15: 1 | M15: 17 | N15: 1.0625 | O15: 18 | P15: 1.125 | Q15: 21 | R15: 1.3125 | S15: 21 | T15: 1.3125 | U15: 20 | V15: 1.25 | W15: 17 | X15: 1.0625 | Y15: 20 | Z15: 1.25 | AB15: 0 | AC15: 0 | AE15: =cálculos1!O15 -> 9 | AF15: 0.9 | AG15: =cálculos1!P15 -> 4 | AH15: 1 | AJ15: 0.1 | AK15: =COUNTIFS($AF$3:$AF$80,">=0,10",$AF$3:$AF$80,"<0,20") -> 3
A16: Sul | B16: Bom Jesus do Norte | C16: 68 | D16: 10 | E16: 3 | F16: 0.3 | G16: 13 | H16: 1.3 | I16: 11 | J16: 1.1 | K16: 11 | L16: 1.1 | M16: 9 | N16: 0.9 | O16: 8 | P16: 0.8 | Q16: 7 | R16: 0.7 | S16: 13 | T16: 1.3 | U16: 13 | V16: 1.3 | W16: 9 | X16: 0.9 | Y16: 2 | Z16: 0.2 | AB16: 0 | AC16: 0 | AE16: =cálculos1!O16 -> 5 | AF16: 0.5 | AG16: =cálculos1!P16 -> 2 | AH16: 0.5 | AJ16: 0.2 | AK16: =COUNTIFS($AF$3:$AF$80,">=0,20",$AF$3:$AF$80,"<0,30") -> 1
A17: Metropolitana | B17: Brejetuba | C17: 203 | D17: 22 | E17: 2 | F17: 0.09090909091 | G17: 15 | H17: 0.6818181818 | I17: 14 | J17: 0.6363636364 | K17: 14 | L17: 0.6363636364 | M17: 22 | N17: 1 | O17: 23 | P17: 1.045454545 | Q17: 17 | R17: 0.7727272727 | S17: 9 | T17: 0.4090909091 | U17: 13 | V17: 0.5909090909 | W17: 25 | X17: 1.136363636 | Y17: 2 | Z17: 0.09090909091 | AB17: 0 | AC17: 0 | AE17: =cálculos1!O17 -> 3 | AF17: 0.3 | AG17: =cálculos1!P17 -> 2 | AH17: 0.5 | AJ17: 0.3 | AK17: =COUNTIFS($AF$3:$AF$80,">=0,30",$AF$3:$AF$80,"<0,40") -> 3
A18: Sul | B18: Cachoeiro de Itapemirim | C18: 2318 | D18: 199 | E18: 425 | F18: 2.135678392 | G18: 418 | H18: 2.100502513 | I18: 236 | J18: 1.185929648 | K18: 233 | L18: 1.170854271 | M18: 201 | N18: 1.010050251 | O18: 205 | P18: 1.030150754 | Q18: 230 | R18: 1.155778894 | S18: 175 | T18: 0.8793969849 | U18: 280 | V18: 1.407035176 | W18: 235 | X18: 1.180904523 | Y18: 227 | Z18: 1.140703518 | AB18: 9 | AC18: 0.04522613065 | AE18: =cálculos1!O18 -> 9 | AF18: 0.9 | AG18: =cálculos1!P18 -> 4 | AH18: 1 | AJ18: 0.4 | AK18: =COUNTIFS($AF$3:$AF$80,">=0,40",$AF$3:$AF$80,"<0,50") -> 11
A19: Metropolitana | B19: Cariacica | C19: 4755 | D19: 397 | E19: 257 | F19: 0.6473551637 | G19: 254 | H19: 0.6397984887 | I19: 438 | J19: 1.103274559 | K19: 432 | L19: 1.088161209 | M19: 455 | N19: 1.146095718 | O19: 451 | P19: 1.136020151 | Q19: 436 | R19: 1.098236776 | S19: 356 | T19: 0.8967254408 | U19: 485 | V19: 1.221662469 | W19: 449 | X19: 1.130982368 | Y19: 356 | Z19: 0.8967254408 | AB19: 43 | AC19: 0.1083123426 | AE19: =cálculos1!O19 -> 7 | AF19: 0.7 | AG19: =cálculos1!P19 -> 4 | AH19: 1 | AJ19: 0.5 | AK19: =COUNTIFS($AF$3:$AF$80,">=0,50",$AF$3:$AF$80,"<0,60") -> 11
A20: Sul | B20: Castelo | C20: 421 | D20: 39 | E20: 20 | F20: 0.5128205128 | G20: 20 | H20: 0.5128205128 | I20: 34 | J20: 0.8717948718 | K20: 34 | L20: 0.8717948718 | M20: 29 | N20: 0.7435897436 | O20: 30 | P20: 0.7692307692 | Q20: 36 | R20: 0.9230769231 | S20: 36 | T20: 0.9230769231 | U20: 39 | V20: 1 | W20: 35 | X20: 0.8974358974 | Y20: 17 | Z20: 0.4358974359 | AB20: 2 | AC20: 0.05128205128 | AE20: =cálculos1!O20 -> 1 | AF20: 0.1 | AG20: =cálculos1!P20 -> 0 | AH20: 0 | AJ20: 0.6 | AK20: =COUNTIFS($AF$3:$AF$80,">=0,60",$AF$3:$AF$80,"<0,70") -> 7
A21: Central | B21: Colatina | C21: 1493 | D21: 136 | E21: 277 | F21: 2.036764706 | G21: 265 | H21: 1.948529412 | I21: 139 | J21: 1.022058824 | K21: 140 | L21: 1.029411765 | M21: 116 | N21: 0.8529411765 | O21: 122 | P21: 0.8970588235 | Q21: 167 | R21: 1.227941176 | S21: 101 | T21: 0.7426470588 | U21: 130 | V21: 0.9558823529 | W21: 138 | X21: 1.014705882 | Y21: 109 | Z21: 0.8014705882 | AB21: 4 | AC21: 0.02941176471 | AE21: =cálculos1!O21 -> 6 | AF21: 0.6 | AG21: =cálculos1!P21 -> 3 | AH21: 0.75 | AJ21: 0.7 | AK21: =COUNTIFS($AF$3:$AF$80,">=0,70",$AF$3:$AF$80,"<0,80") -> 12
A22: Norte | B22: Conceição da Barra | C22: 374 | D22: 25 | E22: 1 | F22: 0.04 | G22: 3 | H22: 0.12 | I22: 40 | J22: 1.6 | K22: 40 | L22: 1.6 | M22: 26 | N22: 1.04 | O22: 24 | P22: 0.96 | Q22: 37 | R22: 1.48 | S22: 40 | T22: 1.6 | U22: 28 | V22: 1.12 | W22: 49 | X22: 1.96 | Y22: 39 | Z22: 1.56 | AB22: 0 | AC22: 0 | AE22: =cálculos1!O22 -> 9 | AF22: 0.9 | AG22: =cálculos1!P22 -> 4 | AH22: 1 | AJ22: 0.8 | AK22: =COUNTIFS($AF$3:$AF$80,">=0,80",$AF$3:$AF$80,"<0,90") -> 12
A23: Metropolitana | B23: Conceição do Castelo | C23: 161 | D23: 19 | E23: 0 | F23: 0 | G23: 0 | H23: 0 | I23: 12 | J23: 0.6315789474 | K23: 13 | L23: 0.6842105263 | M23: 15 | N23: 0.7894736842 | O23: 15 | P23: 0.7894736842 | Q23: 8 | R23: 0.4210526316 | S23: 13 | T23: 0.6842105263 | U23: 13 | V23: 0.6842105263 | W23: 9 | X23: 0.4736842105 | Y23: 13 | Z23: 0.6842105263 | AB23: 0 | AC23: 0 | AE23: =cálculos1!O23 -> 0 | AF23: 0 | AG23: =cálculos1!P23 -> 0 | AH23: 0 | AJ23: 0.9 | AK23: =COUNTIFS($AF$3:$AF$80,">=0,90",$AF$3:$AF$80,"<1,0") -> 10
A24: Sul | B24: Divino de São Lourenço | C24: 55 | D24: 8 | E24: 2 | F24: 0.25 | G24: 2 | H24: 0.25 | I24: 3 | J24: 0.375 | K24: 3 | L24: 0.375 | M24: 0 | N24: 0 | O24: 0 | P24: 0 | Q24: 5 | R24: 0.625 | S24: 6 | T24: 0.75 | U24: 6 | V24: 0.75 | W24: 8 | X24: 1 | Y24: 6 | Z24: 0.75 | AB24: 0 | AC24: 0 | AE24: =cálculos1!O24 -> 1 | AF24: 0.1 | AG24: =cálculos1!P24 -> 1 | AH24: 0.25 | AJ24: 1 | AK24: =COUNTIF($AF$3:$AF$80,">=1,0") -> 3
A25: Metropolitana | B25: Domingos Martins | C25: 419 | D25: 34 | E25: 5 | F25: 0.1470588235 | G25: 10 | H25: 0.2941176471 | I25: 38 | J25: 1.117647059 | K25: 38 | L25: 1.117647059 | M25: 34 | N25: 1 | O25: 39 | P25: 1.147058824 | Q25: 38 | R25: 1.117647059 | S25: 26 | T25: 0.7647058824 | U25: 39 | V25: 1.147058824 | W25: 34 | X25: 1 | Y25: 47 | Z25: 1.382352941 | AB25: 4 | AC25: 0.1176470588 | AE25: =cálculos1!O25 -> 8 | AF25: 0.8 | AG25: =cálculos1!P25 -> 4 | AH25: 1
A26: Sul | B26: Dores do Rio Preto | C26: 89 | D26: 7 | E26: 2 | F26: 0.2857142857 | G26: 4 | H26: 0.5714285714 | I26: 14 | J26: 2 | K26: 14 | L26: 2 | M26: 7 | N26: 1 | O26: 8 | P26: 1.142857143 | Q26: 3 | R26: 0.4285714286 | S26: 9 | T26: 1.285714286 | U26: 11 | V26: 1.571428571 | W26: 5 | X26: 0.7142857143 | Y26: 6 | Z26: 0.8571428571 | AB26: 0 | AC26: 0 | AE26: =cálculos1!O26 -> 6 | AF26: 0.6 | AG26: =cálculos1!P26 -> 3 | AH26: 0.75
A27: Norte | B27: Ecoporanga | C27: 263 | D27: 22 | E27: 6 | F27: 0.2727272727 | G27: 2 | H27: 0.09090909091 | I27: 27 | J27: 1.227272727 | K27: 26 | L27: 1.181818182 | M27: 18 | N27: 0.8181818182 | O27: 16 | P27: 0.7272727273 | Q27: 19 | R27: 0.8636363636 | S27: 22 | T27: 1 | U27: 17 | V27: 0.7727272727 | W27: 17 | X27: 0.7727272727 | Y27: 12 | Z27: 0.5454545455 | AB27: 1 | AC27: 0.04545454545 | AE27: =cálculos1!O27 -> 3 | AF27: 0.3 | AG27: =cálculos1!P27 -> 2 | AH27: 0.5
A28: Metropolitana | B28: Fundão | C28: 218 | D28: 22 | E28: 4 | F28: 0.1818181818 | G28: 6 | H28: 0.2727272727 | I28: 27 | J28: 1.227272727 | K28: 27 | L28: 1.227272727 | M28: 21 | N28: 0.9545454545 | O28: 20 | P28: 0.9090909091 | Q28: 17 | R28: 0.7727272727 | S28: 15 | T28: 0.6818181818 | U28: 18 | V28: 0.8181818182 | W28: 17 | X28: 0.7727272727 | Y28: 18 | Z28: 0.8181818182 | AB28: 0 | AC28: 0 | AE28: =cálculos1!O28 -> 4 | AF28: 0.4 | AG28: =cálculos1!P28 -> 3 | AH28: 0.75
A29: Central | B29: Governador Lindenberg | C29: 116 | D29: 12 | E29: 2 | F29: 0.1666666667 | G29: 2 | H29: 0.1666666667 | I29: 10 | J29: 0.8333333333 | K29: 11 | L29: 0.9166666667 | M29: 8 | N29: 0.6666666667 | O29: 9 | P29: 0.75 | Q29: 7 | R29: 0.5833333333 | S29: 10 | T29: 0.8333333333 | U29: 9 | V29: 0.75 | W29: 13 | X29: 1.083333333 | Y29: 0 | Z29: 0 | AB29: 0 | AC29: 0 | AE29: =cálculos1!O29 -> 1 | AF29: 0.1 | AG29: =cálculos1!P29 -> 1 | AH29: 0.25
A30: Sul | B30: Guaçuí | C30: 394 | D30: 37 | E30: 34 | F30: 0.9189189189 | G30: 28 | H30: 0.7567567568 | I30: 30 | J30: 0.8108108108 | K30: 30 | L30: 0.8108108108 | M30: 34 | N30: 0.9189189189 | O30: 33 | P30: 0.8918918919 | Q30: 33 | R30: 0.8918918919 | S30: 38 | T30: 1.027027027 | U30: 33 | V30: 0.8918918919 | W30: 39 | X30: 1.054054054 | Y30: 18 | Z30: 0.4864864865 | AB30: 5 | AC30: 0.1351351351 | AE30: =cálculos1!O30 -> 2 | AF30: 0.2 | AG30: =cálculos1!P30 -> 1 | AH30: 0.25
A31: Metropolitana | B31: Guarapari | C31: 1723 | D31: 132 | E31: 90 | F31: 0.6818181818 | G31: 125 | H31: 0.946969697 | I31: 141 | J31: 1.068181818 | K31: 140 | L31: 1.060606061 | M31: 166 | N31: 1.257575758 | O31: 159 | P31: 1.204545455 | Q31: 133 | R31: 1.007575758 | S31: 112 | T31: 0.8484848485 | U31: 175 | V31: 1.325757576 | W31: 115 | X31: 0.8712121212 | Y31: 166 | Z31: 1.257575758 | AB31: 11 | AC31: 0.08333333333 | AE31: =cálculos1!O31 -> 8 | AF31: 0.8 | AG31: =cálculos1!P31 -> 3 | AH31: 0.75
A32: Metropolitana | B32: Ibatiba | C32: 345 | D32: 31 | E32: 16 | F32: 0.5161290323 | G32: 28 | H32: 0.9032258065 | I32: 31 | J32: 1 | K32: 32 | L32: 1.032258065 | M32: 42 | N32: 1.35483871 | O32: 41 | P32: 1.322580645 | Q32: 45 | R32: 1.451612903 | S32: 27 | T32: 0.8709677419 | U32: 42 | V32: 1.35483871 | W32: 24 | X32: 0.7741935484 | Y32: 34 | Z32: 1.096774194 | AB32: 2 | AC32: 0.06451612903 | AE32: =cálculos1!O32 -> 8 | AF32: 0.8 | AG32: =cálculos1!P32 -> 3 | AH32: 0.75
A33: Metropolitana | B33: Ibiraçu | C33: 161 | D33: 17 | E33: 3 | F33: 0.1764705882 | G33: 2 | H33: 0.1176470588 | I33: 11 | J33: 0.6470588235 | K33: 11 | L33: 0.6470588235 | M33: 12 | N33: 0.7058823529 | O33: 12 | P33: 0.7058823529 | Q33: 13 | R33: 0.7647058824 | S33: 13 | T33: 0.7647058824 | U33: 13 | V33: 0.7647058824 | W33: 10 | X33: 0.5882352941 | Y33: 10 | Z33: 0.5882352941 | AB33: 0 | AC33: 0 | AE33: =cálculos1!O33 -> 0 | AF33: 0 | AG33: =cálculos1!P33 -> 0 | AH33: 0
A34: Sul | B34: Ibitirama | C34: 149 | D34: 13 | E34: 3 | F34: 0.2307692308 | G34: 7 | H34: 0.5384615385 | I34: 14 | J34: 1.076923077 | K34: 10 | L34: 0.7692307692 | M34: 23 | N34: 1.769230769 | O34: 24 | P34: 1.846153846 | Q34: 15 | R34: 1.153846154 | S34: 12 | T34: 0.9230769231 | U34: 14 | V34: 1.076923077 | W34: 10 | X34: 0.7692307692 | Y34: 13 | Z34: 1 | AB34: 1 | AC34: 0.07692307692 | AE34: =cálculos1!O34 -> 6 | AF34: 0.6 | AG34: =cálculos1!P34 -> 2 | AH34: 0.5
A35: Sul | B35: Iconha | C35: 120 | D35: 9 | E35: 1 | F35: 0.1111111111 | G35: 7 | H35: =G35/D35 -> 0.7777777778 | I35: 8 | J35: =I35/D35 -> 0.8888888889 | K35: 8 | L35: =K35/D35 -> 0.8888888889 | M35: 8 | N35: =M35/D35 -> 0.8888888889 | O35: 9 | P35: =O35/D35 -> 1 | Q35: 11 | R35: =Q35/D35 -> 1.222222222 | S35: 5 | T35: =S35/D35 -> 0.5555555556 | U35: 17 | V35: =U35/D35 -> 1.888888889 | W35: 13 | X35: =W35/D35 -> 1.444444444 | Y35: 11 | Z35: =Y35/D35 -> 1.222222222 | AB35: 0 | AC35: 0 | AE35: =cálculos1!O35 -> 5 | AF35: 0.5 | AG35: =cálculos1!P35 -> 1 | AH35: 0.25
A36: Sul | B36: Irupi | C36: 157 | D36: 19 | E36: 4 | F36: 0.2105263158 | G36: 8 | H36: 0.4210526316 | I36: 20 | J36: 1.052631579 | K36: 20 | L36: 1.052631579 | M36: 17 | N36: 0.8947368421 | O36: 18 | P36: 0.9473684211 | Q36: 29 | R36: 1.526315789 | S36: 17 | T36: 0.8947368421 | U36: 15 | V36: 0.7894736842 | W36: 15 | X36: 0.7894736842 | Y36: 17 | Z36: 0.8947368421 | AB36: 2 | AC36: 0.1052631579 | AE36: =cálculos1!O36 -> 4 | AF36: 0.4 | AG36: =cálculos1!P36 -> 2 | AH36: 0.5
A37: Metropolitana | B37: Itaguaçu | C37: 137 | D37: 7 | E37: 1 | F37: 0.1428571429 | G37: 2 | H37: 0.2857142857 | I37: 16 | J37: 2.285714286 | K37: 16 | L37: 2.285714286 | M37: 16 | N37: 2.285714286 | O37: 17 | P37: 2.428571429 | Q37: 12 | R37: 1.714285714 | S37: 23 | T37: 3.285714286 | U37: 12 | V37: 1.714285714 | W37: 13 | X37: 1.857142857 | Y37: 8 | Z37: 1.142857143 | AB37: 3 | AC37: 0.4285714286 | AE37: =cálculos1!O37 -> 9 | AF37: 0.9 | AG37: =cálculos1!P37 -> 4 | AH37: 1
A38: Sul | B38: Itapemirim | C38: 498 | D38: 40 | E38: 70 | F38: 1.75 | G38: 10 | H38: 0.25 | I38: 27 | J38: 0.675 | K38: 24 | L38: 0.6 | M38: 24 | N38: 0.6 | O38: 15 | P38: 0.375 | Q38: 29 | R38: 0.725 | S38: 12 | T38: 0.3 | U38: 27 | V38: 0.675 | W38: 19 | X38: 0.475 | Y38: 23 | Z38: 0.575 | AB38: 0 | AC38: 0 | AE38: =cálculos1!O38 -> 0 | AF38: 0 | AG38: =cálculos1!P38 -> 0 | AH38: 0
A39: Metropolitana | B39: Itarana | C39: 137 | D39: 12 | E39: 0 | F39: 0 | G39: 0 | H39: 0 | I39: 12 | J39: 1 | K39: 11 | L39: 0.9166666667 | M39: 3 | N39: 0.25 | O39: 5 | P39: 0.4166666667 | Q39: 11 | R39: 0.9166666667 | S39: 18 | T39: 1.5 | U39: 12 | V39: 1 | W39: 9 | X39: 0.75 | Y39: 13 | Z39: 1.083333333 | AB39: 1 | AC39: 0.08333333333 | AE39: =cálculos1!O39 -> 4 | AF39: 0.4 | AG39: =cálculos1!P39 -> 1 | AH39: 0.25
A40: Sul | B40: Iúna | C40: 427 | D40: 33 | E40: 24 | F40: 0.7272727273 | G40: 30 | H40: 0.9090909091 | I40: 41 | J40: 1.242424242 | K40: 36 | L40: 1.090909091 | M40: 31 | N40: 0.9393939394 | O40: 34 | P40: 1.03030303 | Q40: 44 | R40: 1.333333333 | S40: 48 | T40: 1.454545455 | U40: 44 | V40: 1.333333333 | W40: 36 | X40: 1.090909091 | Y40: 19 | Z40: 0.5757575758 | AB40: 0 | AC40: 0 | AE40: =cálculos1!O40 -> 8 | AF40: 0.8 | AG40: =cálculos1!P40 -> 3 | AH40: 0.75
A41: Norte | B41: Jaguaré | C41: 468 | D41: 35 | E41: 30 | F41: 0.8571428571 | G41: 31 | H41: 0.8857142857 | I41: 40 | J41: 1.142857143 | K41: 37 | L41: 1.057142857 | M41: 45 | N41: 1.285714286 | O41: 46 | P41: 1.314285714 | Q41: 48 | R41: 1.371428571 | S41: 31 | T41: 0.8857142857 | U41: 48 | V41: 1.371428571 | W41: 37 | X41: 1.057142857 | Y41: 19 | Z41: 0.5428571429 | AB41: 0 | AC41: 0 | AE41: =cálculos1!O41 -> 7 | AF41: 0.7 | AG41: =cálculos1!P41 -> 4 | AH41: 1
A42: Sul | B42: Jerônimo Monteiro | C42: 143 | D42: 10 | E42: 0 | F42: 0 | G42: 0 | H42: 0 | I42: 10 | J42: 1 | K42: 11 | L42: 1.1 | M42: 10 | N42: 1 | O42: 11 | P42: 1.1 | Q42: 10 | R42: 1 | S42: 11 | T42: 1.1 | U42: 19 | V42: 1.9 | W42: 13 | X42: 1.3 | Y42: 3 | Z42: 0.3 | AB42: 2 | AC42: 0.2 | AE42: =cálculos1!O42 -> 8 | AF42: 0.8 | AG42: =cálculos1!P42 -> 4 | AH42: 1
A43: Metropolitana | B43: João Neiva | C43: 156 | D43: 10 | E43: 1 | F43: 0.1 | G43: 0 | H43: 0 | I43: 19 | J43: 1.9 | K43: 17 | L43: 1.7 | M43: 10 | N43: 1 | O43: 13 | P43: 1.3 | Q43: 15 | R43: 1.5 | S43: 15 | T43: 1.5 | U43: 15 | V43: 1.5 | W43: 12 | X43: 1.2 | Y43: 13 | Z43: 1.3 | AB43: 1 | AC43: 0.1 | AE43: =cálculos1!O43 -> 9 | AF43: 0.9 | AG43: =cálculos1!P43 -> 4 | AH43: 1
A44: Metropolitana | B44: Laranja da Terra | C44: 98 | D44: 4 | E44: 0 | F44: 0 | G44: 4 | H44: 1 | I44: 9 | J44: 2.25 | K44: 10 | L44: 2.5 | M44: 13 | N44: 3.25 | O44: 13 | P44: 3.25 | Q44: 11 | R44: 2.75 | S44: 10 | T44: 2.5 | U44: 6 | V44: 1.5 | W44: 7 | X44: 1.75 | Y44: 14 | Z44: 3.5 | AB44: 1 | AC44: 0.25 | AE44: =cálculos1!O44 -> 10 | AF44: 1 | AG44: =cálculos1!P44 -> 4 | AH44: 1
A45: Central | B45: Linhares | C45: 2598 | D45: 201 | E45: 256 | F45: 1.273631841 | G45: 257 | H45: 1.278606965 | I45: 233 | J45: 1.15920398 | K45: 231 | L45: 1.149253731 | M45: 212 | N45: 1.054726368 | O45: 208 | P45: 1.034825871 | Q45: 232 | R45: 1.154228856 | S45: 161 | T45: 0.8009950249 | U45: 181 | V45: 0.9004975124 | W45: 198 | X45: 0.9850746269 | Y45: 134 | Z45: 0.6666666667 | AB45: 0 | AC45: 0 | AE45: =cálculos1!O45 -> 7 | AF45: 0.7 | AG45: =cálculos1!P45 -> 4 | AH45: 1
A46: Central | B46: Mantenópolis | C46: 139 | D46: 14 | E46: 3 | F46: 0.2142857143 | G46: 4 | H46: 0.2857142857 | I46: 17 | J46: 1.214285714 | K46: 17 | L46: 1.214285714 | M46: 9 | N46: 0.6428571429 | O46: 10 | P46: 0.7142857143 | Q46: 19 | R46: 1.357142857 | S46: 24 | T46: 1.714285714 | U46: 7 | V46: 0.5 | W46: 14 | X46: 1 | Y46: 17 | Z46: 1.214285714 | AB46: 0 | AC46: 0 | AE46: =cálculos1!O46 -> 6 | AF46: 0.6 | AG46: =cálculos1!P46 -> 3 | AH46: 0.75
A47: Sul | B47: Marataízes | C47: 567 | D47: 53 | E47: 3 | F47: 0.05660377358 | G47: 31 | H47: 0.5849056604 | I47: 56 | J47: 1.056603774 | K47: 47 | L47: 0.8867924528 | M47: 58 | N47: 1.094339623 | O47: 66 | P47: 1.245283019 | Q47: 50 | R47: 0.9433962264 | S47: 40 | T47: 0.7547169811 | U47: 45 | V47: 0.8490566038 | W47: 41 | X47: 0.7735849057 | Y47: 34 | Z47: 0.641509434 | AB47: 0 | AC47: 0 | AE47: =cálculos1!O47 -> 3 | AF47: 0.3 | AG47: =cálculos1!P47 -> 2 | AH47: 0.5
A48: Metropolitana | B48: Marechal Floriano | C48: 201 | D48: 17 | E48: 3 | F48: 0.1764705882 | G48: 2 | H48: 0.1176470588 | I48: 15 | J48: 0.8823529412 | K48: 15 | L48: 0.8823529412 | M48: 13 | N48: 0.7647058824 | O48: 14 | P48: 0.8235294118 | Q48: 15 | R48: 0.8823529412 | S48: 18 | T48: 1.058823529 | U48: 28 | V48: 1.647058824 | W48: 20 | X48: 1.176470588 | Y48: 31 | Z48: 1.823529412 | AB48: 6 | AC48: 0.3529411765 | AE48: =cálculos1!O48 -> 4 | AF48: 0.4 | AG48: =cálculos1!P48 -> 1 | AH48: 0.25
A49: Central | B49: Marilândia | C49: 147 | D49: 11 | E49: 3 | F49: 0.2727272727 | G49: 5 | H49: 0.4545454545 | I49: 10 | J49: 0.9090909091 | K49: 10 | L49: 0.9090909091 | M49: 16 | N49: 1.454545455 | O49: 17 | P49: 1.545454545 | Q49: 10 | R49: 0.9090909091 | S49: 20 | T49: 1.818181818 | U49: 11 | V49: 1 | W49: 16 | X49: 1.454545455 | Y49: 12 | Z49: 1.090909091 | AB49: 0 | AC49: 0 | AE49: =cálculos1!O49 -> 6 | AF49: 0.6 | AG49: =cálculos1!P49 -> 2 | AH49: 0.5
A50: Sul | B50: Mimoso do Sul | C50: 254 | D50: 17 | E50: 4 | F50: 0.2352941176 | G50: 6 | H50: 0.3529411765 | I50: 22 | J50: 1.294117647 | K50: 16 | L50: 0.9411764706 | M50: 26 | N50: 1.529411765 | O50: 30 | P50: 1.764705882 | Q50: 14 | R50: 0.8235294118 | S50: 22 | T50: 1.294117647 | U50: 16 | V50: 0.9411764706 | W50: 13 | X50: 0.7647058824 | Y50: 25 | Z50: 1.470588235 | AB50: 0 | AC50: 0 | AE50: =cálculos1!O50 -> 5 | AF50: 0.5 | AG50: =cálculos1!P50 -> 2 | AH50: 0.5
A51: Norte | B51: Montanha | C51: 209 | D51: 18 | E51: 7 | F51: 0.3888888889 | G51: 7 | H51: 0.3888888889 | I51: 23 | J51: 1.277777778 | K51: 23 | L51: 1.277777778 | M51: 31 | N51: 1.722222222 | O51: 36 | P51: 2 | Q51: 26 | R51: 1.444444444 | S51: 17 | T51: 0.9444444444 | U51: 25 | V51: 1.388888889 | W51: 22 | X51: 1.222222222 | Y51: 36 | Z51: 2 | AB51: 1 | AC51: 0.05555555556 | AE51: =cálculos1!O51 -> 8 | AF51: 0.8 | AG51: =cálculos1!P51 -> 4 | AH51: 1
A52: Norte | B52: Mucurici | C52: 66 | D52: 3 | E52: 1 | F52: 0.3333333333 | G52: 1 | H52: 0.3333333333 | I52: 9 | J52: 3 | K52: 10 | L52: 3.333333333 | M52: 7 | N52: 2.333333333 | O52: 7 | P52: 2.333333333 | Q52: 9 | R52: 3 | S52: 7 | T52: 2.333333333 | U52: 13 | V52: 4.333333333 | W52: 5 | X52: 1.666666667 | Y52: 16 | Z52: 5.333333333 | AB52: 1 | AC52: 0.3333333333 | AE52: =cálculos1!O52 -> 9 | AF52: 0.9 | AG52: =cálculos1!P52 -> 4 | AH52: 1
A53: Sul | B53: Muniz Freire | C53: 203 | D53: 17 | E53: 5 | F53: 0.2941176471 | G53: 11 | H53: 0.6470588235 | I53: 24 | J53: 1.411764706 | K53: 23 | L53: 1.352941176 | M53: 17 | N53: 1 | O53: 18 | P53: 1.058823529 | Q53: 24 | R53: 1.411764706 | S53: 27 | T53: 1.588235294 | U53: 20 | V53: 1.176470588 | W53: 18 | X53: 1.058823529 | Y53: 5 | Z53: 0.2941176471 | AB53: 1 | AC53: 0.05882352941 | AE53: =cálculos1!O53 -> 8 | AF53: 0.8 | AG53: =cálculos1!P53 -> 4 | AH53: 1
A54: Sul | B54: Muqui | C54: 139 | D54: 13 | E54: 3 | F54: 0.2307692308 | G54: 3 | H54: 0.2307692308 | I54: 19 | J54: 1.461538462 | K54: 19 | L54: 1.461538462 | M54: 11 | N54: 0.8461538462 | O54: 10 | P54: 0.7692307692 | Q54: 8 | R54: 0.6153846154 | S54: 15 | T54: 1.153846154 | U54: 16 | V54: 1.230769231 | W54: 14 | X54: 1.076923077 | Y54: 0 | Z54: 0 | AB54: 3 | AC54: 0.2307692308 | AE54: =cálculos1!O54 -> 5 | AF54: 0.5 | AG54: =cálculos1!P54 -> 3 | AH54: 0.75
A55: Norte | B55: Nova Venécia | C55: 643 | D55: 56 | E55: 44 | F55: 0.7857142857 | G55: 30 | H55: 0.5357142857 | I55: 55 | J55: 0.9821428571 | K55: 54 | L55: 0.9642857143 | M55: 64 | N55: 1.142857143 | O55: 63 | P55: 1.125 | Q55: 52 | R55: 0.9285714286 | S55: 56 | T55: 1 | U55: 15 | V55: 0.2678571429 | W55: 37 | X55: 0.6607142857 | Y55: 61 | Z55: 1.089285714 | AB55: 2 | AC55: 0.03571428571 | AE55: =cálculos1!O55 -> 6 | AF55: 0.6 | AG55: =cálculos1!P55 -> 3 | AH55: 0.75
A56: Central | B56: Pancas | C56: 197 | D56: 14 | E56: 9 | F56: 0.6428571429 | G56: 7 | H56: 0.5 | I56: 20 | J56: 1.428571429 | K56: 20 | L56: 1.428571429 | M56: 14 | N56: 1 | O56: 10 | P56: 0.7142857143 | Q56: 22 | R56: 1.571428571 | S56: 17 | T56: 1.214285714 | U56: 19 | V56: 1.357142857 | W56: 9 | X56: 0.6428571429 | Y56: 21 | Z56: 1.5 | AB56: 0 | AC56: 0 | AE56: =cálculos1!O56 -> 7 | AF56: 0.7 | AG56: =cálculos1!P56 -> 3 | AH56: 0.75
A57: Norte | B57: Pedro Canário | C57: 327 | D57: 27 | E57: 1 | F57: 0.03703703704 | G57: 4 | H57: 0.1481481481 | I57: 32 | J57: 1.185185185 | K57: 32 | L57: 1.185185185 | M57: 20 | N57: 0.7407407407 | O57: 19 | P57: 0.7037037037 | Q57: 24 | R57: 0.8888888889 | S57: 20 | T57: 0.7407407407 | U57: 29 | V57: 1.074074074 | W57: 28 | X57: 1.037037037 | Y57: 36 | Z57: 1.333333333 | AB57: 0 | AC57: 0 | AE57: =cálculos1!O57 -> 5 | AF57: 0.5 | AG57: =cálculos1!P57 -> 3 | AH57: 0.75
A58: Norte | B58: Pinheiros | C58: 320 | D58: 26 | E58: 0 | F58: 0 | G58: 1 | H58: 0.03846153846 | I58: 39 | J58: 1.5 | K58: 39 | L58: 1.5 | M58: 37 | N58: 1.423076923 | O58: 37 | P58: 1.423076923 | Q58: 19 | R58: 0.7307692308 | S58: 28 | T58: 1.076923077 | U58: 27 | V58: 1.038461538 | W58: 33 | X58: 1.269230769 | Y58: 33 | Z58: 1.269230769 | AB58: 1 | AC58: 0.03846153846 | AE58: =cálculos1!O58 -> 8 | AF58: 0.8 | AG58: =cálculos1!P58 -> 4 | AH58: 1
A59: Sul | B59: Piúma | C59: 290 | D59: 19 | E59: 1 | F59: 0.05263157895 | G59: 9 | H59: 0.4736842105 | I59: 22 | J59: 1.157894737 | K59: 21 | L59: 1.105263158 | M59: 26 | N59: 1.368421053 | O59: 26 | P59: 1.368421053 | Q59: 25 | R59: 1.315789474 | S59: 24 | T59: 1.263157895 | U59: 25 | V59: 1.315789474 | W59: 24 | X59: 1.263157895 | Y59: 14 | Z59: 0.7368421053 | AB59: 1 | AC59: 0.05263157895 | AE59: =cálculos1!O59 -> 8 | AF59: 0.8 | AG59: =cálculos1!P59 -> 4 | AH59: 1
A60: Norte | B60: Ponto Belo | C60: 78 | D60: 5 | E60: 0 | F60: 0 | G60: 0 | H60: 0 | I60: 12 | J60: 2.4 | K60: 12 | L60: 2.4 | M60: 13 | N60: 2.6 | O60: 13 | P60: 2.6 | Q60: 7 | R60: 1.4 | S60: 8 | T60: 1.6 | U60: 10 | V60: 2 | W60: 4 | X60: 0.8 | Y60: 11 | Z60: 2.2 | AB60: 0 | AC60: 0 | AE60: =cálculos1!O60 -> 8 | AF60: 0.8 | AG60: =cálculos1!P60 -> 3 | AH60: 0.75
A61: Sul | B61: Presidente Kennedy | C61: 204 | D61: 14 | E61: 2 | F61: 0.1428571429 | G61: 2 | H61: 0.1428571429 | I61: 18 | J61: 1.285714286 | K61: 16 | L61: 1.142857143 | M61: 21 | N61: 1.5 | O61: 21 | P61: 1.5 | Q61: 16 | R61: 1.142857143 | S61: 25 | T61: 1.785714286 | U61: 16 | V61: 1.142857143 | W61: 25 | X61: 1.785714286 | Y61: 6 | Z61: 0.4285714286 | AB61: 3 | AC61: 0.2142857143 | AE61: =cálculos1!O61 -> 8 | AF61: 0.8 | AG61: =cálculos1!P61 -> 4 | AH61: 1
A62: Central | B62: Rio Bananal | C62: 291 | D62: 21 | E62: 4 | F62: 0.1904761905 | G62: 2 | H62: 0.09523809524 | I62: 18 | J62: 0.8571428571 | K62: 19 | L62: 0.9047619048 | M62: 21 | N62: 1 | O62: 21 | P62: 1 | Q62: 22 | R62: 1.047619048 | S62: 25 | T62: 1.19047619 | U62: 27 | V62: 1.285714286 | W62: 24 | X62: 1.142857143 | Y62: 27 | Z62: 1.285714286 | AB62: 3 | AC62: 0.1428571429 | AE62: =cálculos1!O62 -> 7 | AF62: 0.7 | AG62: =cálculos1!P62 -> 2 | AH62: 0.5
A63: Sul | B63: Rio Novo do Sul | C63: 107 | D63: 11 | E63: 0 | F63: 0 | G63: 0 | H63: 0 | I63: 14 | J63: 1.272727273 | K63: 14 | L63: 1.272727273 | M63: 6 | N63: 0.5454545455 | O63: 6 | P63: 0.5454545455 | Q63: 9 | R63: 0.8181818182 | S63: 8 | T63: 0.7272727273 | U63: 14 | V63: 1.272727273 | W63: 10 | X63: 0.9090909091 | Y63: 14 | Z63: 1.272727273 | AB63: 0 | AC63: 0 | AE63: =cálculos1!O63 -> 4 | AF63: 0.4 | AG63: =cálculos1!P63 -> 2 | AH63: 0.5
A64: Metropolitana | B64: Santa Leopoldina | C64: 81 | D64: 6 | E64: 0 | F64: 0 | G64: 1 | H64: 0.1666666667 | I64: 7 | J64: 1.166666667 | K64: 6 | L64: 1 | M64: 6 | N64: 1 | O64: 6 | P64: 1 | Q64: 8 | R64: 1.333333333 | S64: 2 | T64: 0.3333333333 | U64: 10 | V64: 1.666666667 | W64: 8 | X64: 1.333333333 | Y64: 3 | Z64: 0.5 | AB64: 0 | AC64: 0 | AE64: =cálculos1!O64 -> 7 | AF64: 0.7 | AG64: =cálculos1!P64 -> 4 | AH64: 1
A65: Metropolitana | B65: Santa Maria de Jetibá | C65: 682 | D65: 55 | E65: 26 | F65: 0.4727272727 | G65: 41 | H65: 0.7454545455 | I65: 44 | J65: 0.8 | K65: 46 | L65: 0.8363636364 | M65: 52 | N65: 0.9454545455 | O65: 62 | P65: 1.127272727 | Q65: 57 | R65: 1.036363636 | S65: 36 | T65: 0.6545454545 | U65: 69 | V65: 1.254545455 | W65: 70 | X65: 1.272727273 | Y65: 56 | Z65: 1.018181818 | AB65: 0 | AC65: 0 | AE65: =cálculos1!O65 -> 5 | AF65: 0.5 | AG65: =cálculos1!P65 -> 1 | AH65: 0.25
A66: Metropolitana | B66: Santa Teresa | C66: 300 | D66: 24 | E66: 66 | F66: 2.75 | G66: 64 | H66: 2.666666667 | I66: 23 | J66: 0.9583333333 | K66: 23 | L66: 0.9583333333 | M66: 21 | N66: 0.875 | O66: 20 | P66: 0.8333333333 | Q66: 29 | R66: 1.208333333 | S66: 20 | T66: 0.8333333333 | U66: 26 | V66: 1.083333333 | W66: 20 | X66: 0.8333333333 | Y66: 20 | Z66: 0.8333333333 | AB66: 0 | AC66: 0 | AE66: =cálculos1!O66 -> 5 | AF66: 0.5 | AG66: =cálculos1!P66 -> 2 | AH66: 0.5
A67: Central | B67: São Domingos do Norte | C67: 119 | D67: 10 | E67: 4 | F67: 0.4 | G67: 6 | H67: =G67/D67 -> 0.6 | I67: 10 | J67: =I67/D67 -> 1 | K67: 10 | L67: =K67/D67 -> 1 | M67: 7 | N67: =M67/D67 -> 0.7 | O67: 6 | P67: =O67/D67 -> 0.6 | Q67: 6 | R67: =Q67/D67 -> 0.6 | S67: 9 | T67: =S67/D67 -> 0.9 | U67: 16 | V67: =U67/D67 -> 1.6 | W67: 13 | X67: =W67/D67 -> 1.3 | Y67: 15 | Z67: =Y67/D67 -> 1.5 | AB67: 0 | AC67: 0 | AE67: =cálculos1!O67 -> 5 | AF67: 0.5 | AG67: =cálculos1!P67 -> 3 | AH67: 0.75
A68: Central | B68: São Gabriel da Palha | C68: 437 | D68: 34 | E68: 1 | F68: =E68/D68 -> 0.02941176471 | G68: 0 | H68: 0 | I68: 53 | J68: 1.558823529 | K68: 54 | L68: 1.588235294 | M68: 36 | N68: 1.058823529 | O68: 37 | P68: 1.088235294 | Q68: 40 | R68: 1.176470588 | S68: 35 | T68: 1.029411765 | U68: 36 | V68: 1.058823529 | W68: 32 | X68: 0.9411764706 | Y68: 25 | Z68: 0.7352941176 | AB68: 1 | AC68: =AB68/D68 -> 0.02941176471 | AE68: =cálculos1!O68 -> 7 | AF68: =AE68*0.1 -> 0.7 | AG68: =cálculos1!P68 -> 3 | AH68: =AG68*0.25 -> 0.75
A69: Sul | B69: São José do Calçado | C69: 95 | D69: 13 | E69: 4 | F69: 0.3076923077 | G69: 7 | H69: 0.5384615385 | I69: 16 | J69: 1.230769231 | K69: 16 | L69: 1.230769231 | M69: 7 | N69: 0.5384615385 | O69: 7 | P69: 0.5384615385 | Q69: 12 | R69: 0.9230769231 | S69: 5 | T69: 0.3846153846 | U69: 15 | V69: 1.153846154 | W69: 8 | X69: 0.6153846154 | Y69: 15 | Z69: 1.153846154 | AB69: 1 | AC69: 0.07692307692 | AE69: =cálculos1!O69 -> 4 | AF69: 0.4 | AG69: =cálculos1!P69 -> 2 | AH69: 0.5
A70: Norte | B70: São Mateus | C70: 1896 | D70: 146 | E70: 247 | F70: 1.691780822 | G70: 242 | H70: 1.657534247 | I70: 146 | J70: 1 | K70: 140 | L70: 0.9589041096 | M70: 137 | N70: 0.9383561644 | O70: 132 | P70: 0.904109589 | Q70: 135 | R70: 0.9246575342 | S70: 96 | T70: 0.6575342466 | U70: 116 | V70: 0.7945205479 | W70: 115 | X70: 0.7876712329 | Y70: 120 | Z70: 0.8219178082 | AB70: 8 | AC70: 0.05479452055 | AE70: =cálculos1!O70 -> 4 | AF70: 0.4 | AG70: =cálculos1!P70 -> 2 | AH70: 0.5
A71: Central | B71: São Roque do Canaã | C71: 129 | D71: 15 | E71: 4 | F71: 0.2666666667 | G71: 3 | H71: 0.2 | I71: 12 | J71: 0.8 | K71: 9 | L71: 0.6 | M71: 10 | N71: 0.6666666667 | O71: 11 | P71: 0.7333333333 | Q71: 6 | R71: 0.4 | S71: 6 | T71: 0.4 | U71: 2 | V71: 0.1333333333 | W71: 13 | X71: 0.8666666667 | Y71: 6 | Z71: 0.4 | AB71: 0 | AC71: 0 | AE71: =cálculos1!O71 -> 0 | AF71: 0 | AG71: =cálculos1!P71 -> 0 | AH71: 0
A72: Metropolitana | B72: Serra | C72: 7364 | D72: 639 | E72: 730 | F72: 1.142410016 | G72: 737 | H72: 1.153364632 | I72: 603 | J72: 0.9436619718 | K72: 593 | L72: 0.9280125196 | M72: 596 | N72: 0.9327073552 | O72: 605 | P72: 0.9467918623 | Q72: 653 | R72: 1.021909233 | S72: 482 | T72: 0.7543035994 | U72: 645 | V72: 1.009389671 | W72: 583 | X72: 0.9123630673 | Y72: 577 | Z72: 0.9029733959 | AB72: 18 | AC72: 0.02816901408 | AE72: =cálculos1!O72 -> 4 | AF72: 0.4 | AG72: =cálculos1!P72 -> 0 | AH72: 0
A73: Central | B73: Sooretama | C73: 446 | D73: 40 | E73: 1 | F73: 0.025 | G73: 1 | H73: 0.025 | I73: 33 | J73: 0.825 | K73: 33 | L73: 0.825 | M73: 47 | N73: 1.175 | O73: 49 | P73: 1.225 | Q73: 41 | R73: 1.025 | S73: 49 | T73: 1.225 | U73: 34 | V73: 0.85 | W73: 30 | X73: 0.75 | Y73: 36 | Z73: 0.9 | AB73: 0 | AC73: 0 | AE73: =cálculos1!O73 -> 4 | AF73: 0.4 | AG73: =cálculos1!P73 -> 1 | AH73: 0.25
A74: Sul | B74: Vargem Alta | C74: 250 | D74: 22 | E74: 1 | F74: 0.04545454545 | G74: 2 | H74: 0.09090909091 | I74: 20 | J74: 0.9090909091 | K74: 19 | L74: 0.8636363636 | M74: 33 | N74: 1.5 | O74: 31 | P74: 1.409090909 | Q74: 23 | R74: 1.045454545 | S74: 20 | T74: 0.9090909091 | U74: 18 | V74: 0.8181818182 | W74: 23 | X74: 1.045454545 | Y74: 19 | Z74: 0.8636363636 | AB74: 2 | AC74: 0.09090909091 | AE74: =cálculos1!O74 -> 4 | AF74: 0.4 | AG74: =cálculos1!P74 -> 2 | AH74: 0.5
A75: Metropolitana | B75: Venda Nova do Imigrante | C75: 362 | D75: 28 | E75: 60 | F75: 2.142857143 | G75: 43 | H75: 1.535714286 | I75: 28 | J75: 1 | K75: 28 | L75: 1 | M75: 38 | N75: 1.357142857 | O75: 41 | P75: 1.464285714 | Q75: 27 | R75: 0.9642857143 | S75: 30 | T75: 1.071428571 | U75: 37 | V75: 1.321428571 | W75: 39 | X75: 1.392857143 | Y75: 36 | Z75: 1.285714286 | AB75: 3 | AC75: 0.1071428571 | AE75: =cálculos1!O75 -> 10 | AF75: 1 | AG75: =cálculos1!P75 -> 4 | AH75: 1
A76: Metropolitana | B76: Viana | C76: 918 | D76: 80 | E76: 17 | F76: 0.2125 | G76: 21 | H76: 0.2625 | I76: 82 | J76: 1.025 | K76: 79 | L76: 0.9875 | M76: 82 | N76: 1.025 | O76: 80 | P76: 1 | Q76: 80 | R76: 1 | S76: 37 | T76: 0.4625 | U76: 89 | V76: 1.1125 | W76: 81 | X76: 1.0125 | Y76: 35 | Z76: 0.4375 | AB76: 4 | AC76: 0.05 | AE76: =cálculos1!O76 -> 7 | AF76: 0.7 | AG76: =cálculos1!P76 -> 4 | AH76: 1
A77: Norte | B77: Vila Pavão | C77: 108 | D77: 3 | E77: 2 | F77: 0.6666666667 | G77: 2 | H77: 0.6666666667 | I77: 15 | J77: 5 | K77: 13 | L77: 4.333333333 | M77: 14 | N77: 4.666666667 | O77: 14 | P77: 4.666666667 | Q77: 17 | R77: 5.666666667 | S77: 12 | T77: 4 | U77: 7 | V77: 2.333333333 | W77: 6 | X77: 2 | Y77: 15 | Z77: 5 | AB77: 1 | AC77: 0.3333333333 | AE77: =cálculos1!O77 -> 9 | AF77: 0.9 | AG77: =cálculos1!P77 -> 4 | AH77: 1
A78: Central | B78: Vila Valério | C78: 244 | D78: 17 | E78: 1 | F78: 0.05882352941 | G78: 1 | H78: 0.05882352941 | I78: 19 | J78: 1.117647059 | K78: 21 | L78: 1.235294118 | M78: 15 | N78: 0.8823529412 | O78: 17 | P78: 1 | Q78: 14 | R78: 0.8235294118 | S78: 12 | T78: 0.7058823529 | U78: 18 | V78: 1.058823529 | W78: 19 | X78: 1.117647059 | Y78: 18 | Z78: 1.058823529 | AB78: 0 | AC78: 0 | AE78: =cálculos1!O78 -> 6 | AF78: 0.6 | AG78: =cálculos1!P78 -> 3 | AH78: 0.75
A79: Metropolitana | B79: Vila Velha | C79: 5476 | D79: 465 | E79: 383 | F79: 0.823655914 | G79: 372 | H79: 0.8 | I79: 474 | J79: 1.019354839 | K79: 467 | L79: 1.004301075 | M79: 440 | N79: 0.9462365591 | O79: 446 | P79: 0.9591397849 | Q79: 461 | R79: 0.9913978495 | S79: 350 | T79: 0.752688172 | U79: 496 | V79: 1.066666667 | W79: 460 | X79: 0.9892473118 | Y79: 486 | Z79: 1.04516129 | AB79: 20 | AC79: 0.04301075269 | AE79: =cálculos1!O79 -> 7 | AF79: 0.7 | AG79: =cálculos1!P79 -> 3 | AH79: 0.75
A80: Metropolitana | B80: Vitória | C80: 3504 | D80: 318 | E80: 486 | F80: 1.528301887 | G80: 558 | H80: 1.754716981 | I80: 405 | J80: 1.273584906 | K80: 399 | L80: 1.254716981 | M80: 295 | N80: 0.927672956 | O80: 339 | P80: 1.066037736 | Q80: 350 | R80: 1.100628931 | S80: 185 | T80: 0.5817610063 | U80: 434 | V80: 1.364779874 | W80: 426 | X80: 1.339622642 | Y80: 475 | Z80: 1.493710692 | AB80: 7 | AC80: 0.02201257862 | AE80: =cálculos1!O80 -> 8 | AF80: 0.8 | AG80: =cálculos1!P80 -> 3 | AH80: 0.75
B82: Total Norte | C82: =SUMIF($A$3:$A$80,"Norte",C$3:C$80) -> 5722 | D82: =SUMIF($A$3:$A$80,"Norte",D$3:D$80) -> 454 | E82: =SUMIF($A$3:$A$80,"Norte",E$3:E$80) -> 362 | F82: =E82/D82 -> 0.7973568282 | G82: =SUMIF($A$3:$A$80,"Norte",G$3:G$80) -> 357 | H82: =G82/D82 -> 0.7863436123 | I82: =SUMIF($A$3:$A$80,"Norte",I$3:I$80) -> 535 | J82: =I82/D82 -> 1.178414097 | K82: =SUMIF($A$3:$A$80,"Norte",K$3:K$80) -> 523 | L82: =K82/D82 -> 1.151982379 | M82: =SUMIF($A$3:$A$80,"Norte",M$3:M$80) -> 480 | N82: =M82/D82 -> 1.057268722 | O82: =SUMIF($A$3:$A$80,"Norte",O$3:O$80) -> 474 | P82: =O82/D82 -> 1.044052863 | Q82: =SUMIF($A$3:$A$80,"Norte",Q$3:Q$80) -> 477 | R82: =Q82/D82 -> 1.050660793 | S82: =SUMIF($A$3:$A$80,"Norte",S$3:S$80) -> 419 | T82: =S82/D82 -> 0.922907489 | U82: =SUMIF($A$3:$A$80,"Norte",U$3:U$80) -> 405 | V82: =U82/D82 -> 0.8920704846 | W82: =SUMIF($A$3:$A$80,"Norte",W$3:W$80) -> 427 | X82: =W82/D82 -> 0.9405286344 | Y82: =SUMIF($A$3:$A$80,"Norte",Y$3:Y$80) -> 471 | Z82: =Y82/D82 -> 1.037444934 | AB82: =SUMIF($A$3:$A$80,"Norte",AB$3:AB$80) -> 15 | AC82: =AB82/D82 -> 0.03303964758 | AE82: =cálculos1!O82 -> 6 | AF82: =AE82*0.1 -> 0.6 | AG82: =cálculos1!P82 -> 3 | AH82: 0.75
B83: Total Central | C83: =SUMIF($A$3:$A$80,"Central",C$3:C$80) -> 6920 | D83: =SUMIF($A$3:$A$80,"Central",D$3:D$80) -> 569 | E83: =SUMIF($A$3:$A$80,"Central",E$3:E$80) -> 576 | F83: =E83/D83 -> 1.012302285 | G83: =SUMIF($A$3:$A$80,"Central",G$3:G$80) -> 568 | H83: =G83/D83 -> 0.9982425308 | I83: =SUMIF($A$3:$A$80,"Central",I$3:I$80) -> 633 | J83: =I83/D83 -> 1.112478032 | K83: =SUMIF($A$3:$A$80,"Central",K$3:K$80) -> 634 | L83: =K83/D83 -> 1.114235501 | M83: =SUMIF($A$3:$A$80,"Central",M$3:M$80) -> 557 | N83: =M83/D83 -> 0.9789103691 | O83: =SUMIF($A$3:$A$80,"Central",O$3:O$80) -> 563 | P83: =O83/D83 -> 0.9894551845 | Q83: =SUMIF($A$3:$A$80,"Central",Q$3:Q$80) -> 643 | R83: =Q83/D83 -> 1.130052724 | S83: =SUMIF($A$3:$A$80,"Central",S$3:S$80) -> 547 | T83: =S83/D83 -> 0.9613356766 | U83: =SUMIF($A$3:$A$80,"Central",U$3:U$80) -> 564 | V83: =U83/D83 -> 0.9912126538 | W83: =SUMIF($A$3:$A$80,"Central",W$3:W$80) -> 572 | X83: =W83/D83 -> 1.005272408 | Y83: =SUMIF($A$3:$A$80,"Central",Y$3:Y$80) -> 486 | Z83: =Y83/D83 -> 0.8541300527 | AB83: =SUMIF($A$3:$A$80,"Central",AB$3:AB$80) -> 8 | AC83: =AB83/D83 -> 0.01405975395 | AE83: =cálculos1!O83 -> 9 | AF83: =AE83*0.1 -> 0.9 | AG83: =cálculos1!P83 -> 4 | AH83: 1
B84: Total Metropolitana | C84: =SUMIF($A$3:$A$80,"Metropolitana",C$3:C$80) -> 29149 | D84: =SUMIF($A$3:$A$80,"Metropolitana",D$3:D$80) -> 2477 | E84: =SUMIF($A$3:$A$80,"Metropolitana",E$3:E$80) -> 2288 | F84: =E84/D84 -> 0.9236980218 | G84: =SUMIF($A$3:$A$80,"Metropolitana",G$3:G$80) -> 2421 | H84: =G84/D84 -> 0.9773920065 | I84: =SUMIF($A$3:$A$80,"Metropolitana",I$3:I$80) -> 2613 | J84: =I84/D84 -> 1.054905127 | K84: =SUMIF($A$3:$A$80,"Metropolitana",K$3:K$80) -> 2579 | L84: =K84/D84 -> 1.041178845 | M84: =SUMIF($A$3:$A$80,"Metropolitana",M$3:M$80) -> 2498 | N84: =M84/D84 -> 1.008477998 | O84: =SUMIF($A$3:$A$80,"Metropolitana",O$3:O$80) -> 2575 | P84: =O84/D84 -> 1.039563989 | Q84: =SUMIF($A$3:$A$80,"Metropolitana",Q$3:Q$80) -> 2590 | R84: =Q84/D84 -> 1.045619701 | S84: =SUMIF($A$3:$A$80,"Metropolitana",S$3:S$80) -> 1943 | T84: =S84/D84 -> 0.784416633 | U84: =SUMIF($A$3:$A$80,"Metropolitana",U$3:U$80) -> 2879 | V84: =U84/D84 -> 1.162293096 | W84: =SUMIF($A$3:$A$80,"Metropolitana",W$3:W$80) -> 2605 | X84: =W84/D84 -> 1.051675414 | Y84: =SUMIF($A$3:$A$80,"Metropolitana",Y$3:Y$80) -> 2618 | Z84: =Y84/D84 -> 1.056923698 | AB84: =SUMIF($A$3:$A$80,"Metropolitana",AB$3:AB$80) -> 141 | AC84: 0.05692369802 | AE84: =cálculos1!O84 -> 9 | AF84: 0.9 | AG84: =cálculos1!P84 -> 4 | AH84: 1
B85: Total Sul | C85: =SUMIF($A$3:$A$80,"sul",C$3:C$80) -> 7908 | D85: =SUMIF($A$3:$A$80,"sul",D$3:D$80) -> 691 | E85: =SUMIF($A$3:$A$80,"Sul",E$3:E$80) -> 624 | F85: =E85/D85 -> 0.9030390738 | G85: =SUMIF($A$3:$A$80,"Sul",G$3:G$80) -> 655 | H85: =G85/D85 -> 0.9479015919 | I85: =SUMIF($A$3:$A$80,"Sul",I$3:I$80) -> 759 | J85: =I85/D85 -> 1.098408104 | K85: =SUMIF($A$3:$A$80,"Sul",K$3:K$80) -> 712 | L85: =K85/D85 -> 1.030390738 | M85: =SUMIF($A$3:$A$80,"Sul",M$3:M$80) -> 678 | N85: =M85/D85 -> 0.981186686 | O85: =SUMIF($A$3:$A$80,"Sul",O$3:O$80) -> 693 | P85: =O85/D85 -> 1.002894356 | Q85: =SUMIF($A$3:$A$80,"Sul",Q$3:Q$80) -> 720 | R85: =Q85/D85 -> 1.041968162 | S85: =SUMIF($A$3:$A$80,"Sul",S$3:S$80) -> 656 | T85: =S85/D85 -> 0.9493487699 | U85: =SUMIF($A$3:$A$80,"Sul",U$3:U$80) -> 812 | V85: =U85/D85 -> 1.175108538 | W85: =SUMIF($A$3:$A$80,"Sul",W$3:W$80) -> 703 | X85: =W85/D85 -> 1.017366136 | Y85: =SUMIF($A$3:$A$80,"Sul",Y$3:Y$80) -> 581 | Z85: =Y85/D85 -> 0.8408104197 | AB85: =SUMIF($A$3:$A$80,"Sul",AB$3:AB$80) -> 38 | AC85: 0.05499276411 | AE85: =cálculos1!O85 -> 8 | AF85: 0.8 | AG85: =cálculos1!P85 -> 4 | AH85: 1
B86: Total Espírito Santo | C86: =SUM(C3:C80) -> 49699 | D86: =SUM(D3:D80) -> 4191 | E86: =SUM(E82:E85) -> 3850 | F86: =E86/D86 -> 0.9186351706 | G86: =SUM(G82:G85) -> 4001 | H86: =G86/D86 -> 0.9546647578 | I86: =SUM(I82:I85) -> 4540 | J86: =I86/D86 -> 1.083273682 | K86: =SUM(K82:K85) -> 4448 | L86: =K86/D86 -> 1.06132188 | M86: =SUM(M82:M85) -> 4213 | N86: =M86/D86 -> 1.005249344 | O86: =SUM(O82:O85) -> 4305 | P86: =O86/D86 -> 1.027201145 | Q86: =SUM(Q82:Q85) -> 4430 | R86: =Q86/D86 -> 1.057026963 | S86: =SUM(S82:S85) -> 3565 | T86: =S86/D86 -> 0.8506323073 | U86: =SUM(U82:U85) -> 4660 | V86: =U86/D86 -> 1.111906466 | W86: =SUM(W82:W85) -> 4307 | X86: =W86/D86 -> 1.027678358 | Y86: =SUM(Y82:Y85) -> 4156 | Z86: =Y86/D86 -> 0.9916487712 | AB86: =SUM(AB82:AB85) -> 202 | AC86: 0.04819852064 | AE86: =cálculos1!O86 -> 9 | AF86: 0.9 | AG86: =cálculos1!P86 -> 4 | AH86: 1
E87: =COUNTIF(F3:F80,">=0,95") -> 10 | G87: =COUNTIF(H3:H80,">=0,9") -> 15 | I87: =COUNTIF(J3:J80,">=0,95") -> 59 | K87: =COUNTIF(L3:L80,">=0,95") -> 54 | M87: =COUNTIF(N3:N80,">=0,95") -> 44 | O87: =COUNTIF(P3:P80,">=0,9") -> 54 | Q87: =COUNTIF(R3:R80,">=0,95") -> 46 | S87: =COUNTIF(T3:T80,">=0,95") -> 40 | U87: =COUNTIF(V3:V80,">=0,95") -> 55 | W87: =COUNTIF(X3:X80,">=0,95") -> 47 | Y87: =COUNTIF(Z3:Z80,">=0,95") -> 41 | AB87: =COUNTIF(AC3:AC80,">=0,9") -> 0
B88: HOMOGENEIDADE ENTRE MUNICÍPIOS | E88: =E87/78 -> 0.1282051282 | G88: =G87/78 -> 0.1923076923 | I88: =I87/78 -> 0.7564102564 | K88: =K87/78 -> 0.6923076923 | M88: =M87/78 -> 0.5641025641 | O88: =O87/78 -> 0.6923076923 | Q88: =Q87/78 -> 0.5897435897 | S88: =S87/78 -> 0.5128205128 | U88: =U87/78 -> 0.7051282051 | W88: =W87/78 -> 0.6025641026 | Y88: =Y87/78 -> 0.5256410256 | AB88: =AB87/78 -> 0
A90: Fonte: Vacina e Confia, em 14 e 17 de Fevereiro de 2025.**
A91: **Dados referente às doses aplicadas no período de Janeiro 2025
A92: Cobertura Calculada por município de procedência/ocorrência da vacinação
A93: 1 População anual extraída do MS/SVS/DASIS - SINASC/DASIS/SVS/MS 2024 (hoje preliminares) referente ao período de Janeiro e Novembro de 2024 e SINASC/DASIS/SVS/MS 2023 referente ao período de Dezembro de 2023.
A94: ² População proporcional extraída do MS/SVS/DASIS - SINASC/DASIS/SVS/MS 2024 (hoje preliminares) referente ao período de Janeiro/ 2024.
A95: Sinasc, atualizado em 10/02/2025.
A96: Homogeineidade: O cálculo da Homogeineidade entre vacinas é feito de acordo com a pactuação estabelecida no Plano Plurianual (PPA) vigente no período 2024-2027.
A98: Observações:
A99: 1. Imunobiológicos que foram recebidos parcialmente pelo estado no mês de Janeiro/2025, sendo distribuídos em quantidades reduzidas às regionais e municípios:
A100: SORO ANTIRRÁBICO HUMANO, IMUNOGLOBULINA ANTIRRÁBICA HUMANA, VACINA COVID-19 MODERNA (SPIKEVAX),VACINA TETRA VIRAL,VACINA CONTRA VARICELA
A101: 2. Imunobiológicos indisponíveis no mês de Janeiro/2025, não sendo possível a distribuição às regionais e municípios:
A102: VACINA TRÍPLICE ACELULAR (DTPa) - CRIE

Sheet CV Rotina <2A - residência
E1: AO NASCER | I1: MENOR DE 1 ANO | U1: 1 ANO | AB1: MENOR DE 1 ANO
A2: Regional | B2: Município | C2: ¹População < 1 ano e 1 ano anual | D2: ²População < 1 ano e 1 ano proporcional | E2: Doses Aplicadas HB < 30 dias | F2: Cobertura Vacinal HB até 30 dias | G2: Doses Aplicadas BCG | H2: Cobertura Vacinal BCG | I2: Doses Aplicadas Pentavalente | J2: Cobertura Vacinal Pentavalente | K2: Doses Aplicadas Poliomielite | L2: Cobertura Vacinal Poliomielite | M2: Doses Aplicadas Pneumo 10 | N2: Cobertura Vacinal Pneumo 10 | O2: Doses Aplicadas Rotavírus | P2: Cobertura Vacinal Rotavírus | Q2: Doses Aplicadas Meningo C | R2: Cobertura Vacinal Meningo C | S2: Doses Aplicadas Febre Amarela | T2: Cobertura Vacinal Febre Amarela | U2: Doses Aplicadas Hepatite A | V2: Cobertura Vacinal Hepatite A | W2: Doses Aplicadas de Tríplice Viral | X2: Cobertura Vacinal Tríplice Viral | Y2: Doses Aplicadas Varicela | Z2: Cobertura Varicela | AB2: Doses Aplicadas COVID-19 | AC2: Cobertura Vacinal COVID-19 D1 | AE2: VACINAS QUE ATINGIRAM A META DE CV | AF2: HOMOGENEIDADE ENTRE AS 10 VACINAS | AG2: VACINAS DO PQA-VS QUE ATINGIRAM A META DE CV | AH2: HOMOGENEIDADE ENTRE AS VACINAS DO PQA-VS
A3: Metropolitana | B3: Afonso Cláudio | C3: 364 | D3: 32 | E3: 32 | F3: =E3/D3 -> 1 | G3: 25 | H3: =G3/D3 -> 0.78125 | I3: 37 | J3: =I3/D3 -> 1.15625 | K3: 37 | L3: =K3/D3 -> 1.15625 | M3: 34 | N3: =M3/D3 -> 1.0625 | O3: 35 | P3: =O3/D3 -> 1.09375 | Q3: 31 | R3: =Q3/D3 -> 0.96875 | S3: 32 | T3: =S3/D3 -> 1 | U3: 47 | V3: =U3/D3 -> 1.46875 | W3: 33 | X3: =W3/D3 -> 1.03125 | Y3: 52 | Z3: =Y3/D3 -> 1.625 | AB3: 0 | AC3: =AB3/D3 -> 0 | AE3: =cálculos2!O3 -> 9 | AF3: =AE3*0.1 -> 0.9 | AG3: =cálculos2!P3 -> 4 | AH3: =AG3*0.25 -> 1 | AJ3: LEGENDA / HOMOGENEIDADE PQA-VS
A4: Norte | B4: Água Doce do Norte | C4: 197 | D4: 26 | E4: 13 | F4: =E4/D4 -> 0.5 | G4: 15 | H4: =G4/D4 -> 0.5769230769 | I4: 18 | J4: 0.6923076923 | K4: 19 | L4: 0.7307692308 | M4: 8 | N4: 0.3076923077 | O4: 7 | P4: 0.2692307692 | Q4: 21 | R4: 0.8076923077 | S4: 15 | T4: 0.5769230769 | U4: 14 | V4: 0.5384615385 | W4: 15 | X4: 0.5769230769 | Y4: 9 | Z4: 0.3461538462 | AB4: 0 | AC4: =AB4/D4 -> 0 | AE4: =cálculos2!O4 -> 0 | AF4: =AE4*0.1 -> 0 | AG4: =cálculos2!P4 -> 0 | AH4: =AG4*0.25 -> 0 | AJ4: PERCENTUAL | AK4: Nº DE MUNICÍPIOS
A5: Central | B5: Águia Branca | C5: 146 | D5: 11 | E5: 11 | F5: 1 | G5: 10 | H5: 0.9090909091 | I5: 18 | J5: 1.636363636 | K5: 18 | L5: 1.636363636 | M5: 8 | N5: 0.7272727273 | O5: 6 | P5: 0.5454545455 | Q5: 15 | R5: 1.363636364 | S5: 23 | T5: 2.090909091 | U5: 18 | V5: 1.636363636 | W5: 16 | X5: 1.454545455 | Y5: 19 | Z5: 1.727272727 | AB5: 0 | AC5: 0 | AE5: =cálculos2!O5 -> 8 | AF5: 0.8 | AG5: =cálculos2!P5 -> 3 | AH5: 0.75 | AJ5: 0 | AK5: =COUNTIF($AH$3:$AH$80,"=0") -> 5
A6: Sul | B6: Alegre | C6: 291 | D6: 21 | E6: 19 | F6: 0.9047619048 | G6: 19 | H6: 0.9047619048 | I6: 30 | J6: 1.428571429 | K6: 24 | L6: 1.142857143 | M6: 20 | N6: 0.9523809524 | O6: 20 | P6: 0.9523809524 | Q6: 27 | R6: 1.285714286 | S6: 23 | T6: 1.095238095 | U6: 34 | V6: 1.619047619 | W6: 28 | X6: 1.333333333 | Y6: 30 | Z6: 1.428571429 | AB6: 0 | AC6: 0 | AE6: =cálculos2!O6 -> 10 | AF6: 1 | AG6: =cálculos2!P6 -> 4 | AH6: 1 | AJ6: 0.25 | AK6: =COUNTIF($AH$3:$AH$80,"=0,25") -> 9
A7: Sul | B7: Alfredo Chaves | C7: 116 | D7: 14 | E7: 7 | F7: 0.5 | G7: 8 | H7: 0.5714285714 | I7: 13 | J7: 0.9285714286 | K7: 12 | L7: 0.8571428571 | M7: 6 | N7: 0.4285714286 | O7: 7 | P7: 0.5 | Q7: 10 | R7: 0.7142857143 | S7: 14 | T7: 1 | U7: 28 | V7: 2 | W7: 16 | X7: 1.142857143 | Y7: 24 | Z7: 1.714285714 | AB7: 0 | AC7: 0 | AE7: =cálculos2!O7 -> 4 | AF7: 0.4 | AG7: =cálculos2!P7 -> 1 | AH7: 0.25 | AJ7: 0.5 | AK7: =COUNTIF($AH$3:$AH$80,"=0,5") -> 16
A8: Central | B8: Alto Rio Novo | C8: 86 | D8: 6 | E8: 4 | F8: 0.6666666667 | G8: 4 | H8: 0.6666666667 | I8: 8 | J8: 1.333333333 | K8: 8 | L8: 1.333333333 | M8: 12 | N8: 2 | O8: 12 | P8: 2 | Q8: 11 | R8: 1.833333333 | S8: 14 | T8: 2.333333333 | U8: 7 | V8: 1.166666667 | W8: 7 | X8: 1.166666667 | Y8: 13 | Z8: 2.166666667 | AB8: 0 | AC8: 0 | AE8: =cálculos2!O8 -> 9 | AF8: 0.9 | AG8: =cálculos2!P8 -> 4 | AH8: 1 | AJ8: 0.75 | AK8: =COUNTIF($AH$3:$AH$80,"=0,75") -> 20
A9: Sul | B9: Anchieta | C9: 349 | D9: 34 | E9: 22 | F9: 0.6470588235 | G9: 27 | H9: 0.7941176471 | I9: 37 | J9: 1.088235294 | K9: 32 | L9: 0.9411764706 | M9: 35 | N9: 1.029411765 | O9: 34 | P9: 1 | Q9: 34 | R9: 1 | S9: 35 | T9: 1.029411765 | U9: 41 | V9: 1.205882353 | W9: 23 | X9: 0.6764705882 | Y9: 26 | Z9: 0.7647058824 | AB9: 4 | AC9: 0.1176470588 | AE9: =cálculos2!O9 -> 6 | AF9: 0.6 | AG9: =cálculos2!P9 -> 2 | AH9: 0.5 | AJ9: 1 | AK9: =COUNTIF($AH$3:$AH$80,"=1,0") -> 28
A10: Sul | B10: Apiacá | C10: 56 | D10: 4 | E10: 2 | F10: 0.5 | G10: 13 | H10: 3.25 | I10: 8 | J10: 2 | K10: 8 | L10: 2 | M10: 4 | N10: 1 | O10: 4 | P10: 1 | Q10: 4 | R10: 1 | S10: 6 | T10: 1.5 | U10: 1 | V10: 0.25 | W10: 7 | X10: 1.75 | Y10: 2 | Z10: 0.5 | AB10: 0 | AC10: 0 | AE10: =cálculos2!O10 -> 8 | AF10: 0.8 | AG10: =cálculos2!P10 -> 4 | AH10: 1
A11: Metropolitana | B11: Aracruz | C11: 1384 | D11: 106 | E11: 123 | F11: 1.160377358 | G11: 128 | H11: 1.20754717 | I11: 129 | J11: 1.216981132 | K11: 128 | L11: 1.20754717 | M11: 116 | N11: 1.094339623 | O11: 121 | P11: 1.141509434 | Q11: 122 | R11: 1.150943396 | S11: 111 | T11: 1.047169811 | U11: 157 | V11: 1.481132075 | W11: 143 | X11: 1.349056604 | Y11: 146 | Z11: 1.377358491 | AB11: 16 | AC11: 0.1509433962 | AE11: =cálculos2!O11 -> 10 | AF11: 1 | AG11: =cálculos2!P11 -> 4 | AH11: 1
A12: Sul | B12: Atilio Vivacqua | C12: 148 | D12: 15 | E12: 17 | F12: 1.133333333 | G12: 15 | H12: 1 | I12: 22 | J12: 1.466666667 | K12: 22 | L12: 1.466666667 | M12: 22 | N12: 1.466666667 | O12: 23 | P12: 1.533333333 | Q12: 18 | R12: 1.2 | S12: 11 | T12: 0.7333333333 | U12: 10 | V12: 0.6666666667 | W12: 14 | X12: 0.9333333333 | Y12: 8 | Z12: 0.5333333333 | AB12: 2 | AC12: 0.1333333333 | AE12: =cálculos2!O12 -> 6 | AF12: 0.6 | AG12: =cálculos2!P12 -> 3 | AH12: 0.75 | AJ12: LEGENDA / HOMOGENEIDADE 10 VACINAS
A13: Central | B13: Baixo Guandu | C13: 332 | D13: 27 | E13: 23 | F13: 0.8518518519 | G13: 29 | H13: 1.074074074 | I13: 30 | J13: 1.111111111 | K13: 30 | L13: 1.111111111 | M13: 27 | N13: 1 | O13: 28 | P13: 1.037037037 | Q13: 28 | R13: 1.037037037 | S13: 37 | T13: 1.37037037 | U13: 47 | V13: 1.740740741 | W13: 32 | X13: 1.185185185 | Y13: 31 | Z13: 1.148148148 | AB13: 0 | AC13: 0 | AE13: =cálculos2!O13 -> 10 | AF13: 1 | AG13: =cálculos2!P13 -> 4 | AH13: 1 | AJ13: PERCENTUAL | AK13: Nº DE MUNICÍPIOS
A14: Norte | B14: Barra de São Francisco | C14: 571 | D14: 46 | E14: 33 | F14: 0.7173913043 | G14: 51 | H14: 1.108695652 | I14: 62 | J14: 1.347826087 | K14: 63 | L14: 1.369565217 | M14: 42 | N14: 0.9130434783 | O14: 41 | P14: 0.8913043478 | Q14: 41 | R14: 0.8913043478 | S14: 48 | T14: 1.043478261 | U14: 35 | V14: 0.7608695652 | W14: 42 | X14: 0.9130434783 | Y14: 45 | Z14: 0.9782608696 | AB14: 0 | AC14: 0 | AE14: =cálculos2!O14 -> 5 | AF14: 0.5 | AG14: =cálculos2!P14 -> 2 | AH14: 0.5 | AJ14: 0 | AK14: =COUNTIF($AF$3:$AF$80,"=0") -> 4
A15: Norte | B15: Boa Esperança | C15: 202 | D15: 16 | E15: 16 | F15: 1 | G15: 19 | H15: 1.1875 | I15: 17 | J15: 1.0625 | K15: 17 | L15: 1.0625 | M15: 17 | N15: 1.0625 | O15: 19 | P15: 1.1875 | Q15: 21 | R15: 1.3125 | S15: 16 | T15: 1 | U15: 21 | V15: 1.3125 | W15: 18 | X15: 1.125 | Y15: 21 | Z15: 1.3125 | AB15: 0 | AC15: 0 | AE15: =cálculos2!O15 -> 10 | AF15: 1 | AG15: =cálculos2!P15 -> 4 | AH15: 1 | AJ15: 0.1 | AK15: =COUNTIFS($AF$3:$AF$80,">=0,10",$AF$3:$AF$80,"<0,20") -> 1
A16: Sul | B16: Bom Jesus do Norte | C16: 68 | D16: 10 | E16: 3 | F16: 0.3 | G16: 13 | H16: 1.3 | I16: 12 | J16: 1.2 | K16: 12 | L16: 1.2 | M16: 9 | N16: 0.9 | O16: 8 | P16: 0.8 | Q16: 6 | R16: 0.6 | S16: 11 | T16: 1.1 | U16: 10 | V16: 1 | W16: 7 | X16: 0.7 | Y16: 2 | Z16: 0.2 | AB16: 0 | AC16: 0 | AE16: =cálculos2!O16 -> 5 | AF16: 0.5 | AG16: =cálculos2!P16 -> 2 | AH16: 0.5 | AJ16: 0.2 | AK16: =COUNTIFS($AF$3:$AF$80,">=0,20",$AF$3:$AF$80,"<0,30") -> 4
A17: Metropolitana | B17: Brejetuba | C17: 203 | D17: 22 | E17: 14 | F17: 0.6363636364 | G17: 19 | H17: 0.8636363636 | I17: 15 | J17: 0.6818181818 | K17: 15 | L17: 0.6818181818 | M17: 20 | N17: 0.9090909091 | O17: 21 | P17: 0.9545454545 | Q17: 16 | R17: 0.7272727273 | S17: 10 | T17: 0.4545454545 | U17: 11 | V17: 0.5 | W17: 24 | X17: 1.090909091 | Y17: 1 | Z17: 0.04545454545 | AB17: 0 | AC17: 0 | AE17: =cálculos2!O17 -> 2 | AF17: 0.2 | AG17: =cálculos2!P17 -> 1 | AH17: 0.25 | AJ17: 0.3 | AK17: =COUNTIFS($AF$3:$AF$80,">=0,30",$AF$3:$AF$80,"<0,40") -> 5
A18: Sul | B18: Cachoeiro de Itapemirim | C18: 2318 | D18: 199 | E18: 223 | F18: 1.120603015 | G18: 225 | H18: 1.130653266 | I18: 234 | J18: 1.175879397 | K18: 231 | L18: 1.16080402 | M18: 192 | N18: 0.9648241206 | O18: 194 | P18: 0.9748743719 | Q18: 221 | R18: 1.110552764 | S18: 179 | T18: 0.8994974874 | U18: 277 | V18: 1.391959799 | W18: 233 | X18: 1.170854271 | Y18: 214 | Z18: 1.075376884 | AB18: 9 | AC18: 0.04522613065 | AE18: =cálculos2!O18 -> 9 | AF18: 0.9 | AG18: =cálculos2!P18 -> 4 | AH18: 1 | AJ18: 0.4 | AK18: =COUNTIFS($AF$3:$AF$80,">=0,40",$AF$3:$AF$80,"<0,50") -> 5
A19: Metropolitana | B19: Cariacica | C19: 4755 | D19: 397 | E19: 412 | F19: 1.037783375 | G19: 427 | H19: 1.075566751 | I19: 445 | J19: 1.120906801 | K19: 437 | L19: 1.100755668 | M19: 465 | N19: 1.171284635 | O19: 459 | P19: 1.156171285 | Q19: 444 | R19: 1.118387909 | S19: 341 | T19: 0.8589420655 | U19: 483 | V19: 1.216624685 | W19: 447 | X19: 1.125944584 | Y19: 359 | Z19: 0.9042821159 | AB19: 42 | AC19: 0.1057934509 | AE19: =cálculos2!O19 -> 8 | AF19: 0.8 | AG19: =cálculos2!P19 -> 4 | AH19: 1 | AJ19: 0.5 | AK19: =COUNTIFS($AF$3:$AF$80,">=0,50",$AF$3:$AF$80,"<0,60") -> 8
A20: Sul | B20: Castelo | C20: 421 | D20: 39 | E20: 32 | F20: 0.8205128205 | G20: 28 | H20: 0.7179487179 | I20: 32 | J20: 0.8205128205 | K20: 32 | L20: 0.8205128205 | M20: 31 | N20: 0.7948717949 | O20: 32 | P20: 0.8205128205 | Q20: 35 | R20: 0.8974358974 | S20: 36 | T20: 0.9230769231 | U20: 43 | V20: 1.102564103 | W20: 37 | X20: 0.9487179487 | Y20: 19 | Z20: 0.4871794872 | AB20: 2 | AC20: 0.05128205128 | AE20: =cálculos2!O20 -> 1 | AF20: 0.1 | AG20: =cálculos2!P20 -> 0 | AH20: 0 | AJ20: 0.6 | AK20: =COUNTIFS($AF$3:$AF$80,">=0,60",$AF$3:$AF$80,"<0,70") -> 9
A21: Central | B21: Colatina | C21: 1493 | D21: 136 | E21: 118 | F21: 0.8676470588 | G21: 113 | H21: 0.8308823529 | I21: 132 | J21: 0.9705882353 | K21: 133 | L21: 0.9779411765 | M21: 110 | N21: 0.8088235294 | O21: 119 | P21: 0.875 | Q21: 158 | R21: 1.161764706 | S21: 105 | T21: 0.7720588235 | U21: 121 | V21: 0.8897058824 | W21: 134 | X21: 0.9852941176 | Y21: 102 | Z21: 0.75 | AB21: 4 | AC21: 0.02941176471 | AE21: =cálculos2!O21 -> 4 | AF21: 0.4 | AG21: =cálculos2!P21 -> 3 | AH21: 0.75 | AJ21: 0.7 | AK21: =COUNTIFS($AF$3:$AF$80,">=0,70",$AF$3:$AF$80,"<0,80") -> 7
A22: Norte | B22: Conceição da Barra | C22: 374 | D22: 25 | E22: 29 | F22: 1.16 | G22: 31 | H22: 1.24 | I22: 37 | J22: 1.48 | K22: 37 | L22: 1.48 | M22: 29 | N22: 1.16 | O22: 26 | P22: 1.04 | Q22: 40 | R22: 1.6 | S22: 37 | T22: 1.48 | U22: 29 | V22: 1.16 | W22: 45 | X22: 1.8 | Y22: 38 | Z22: 1.52 | AB22: 0 | AC22: 0 | AE22: =cálculos2!O22 -> 10 | AF22: 1 | AG22: =cálculos2!P22 -> 4 | AH22: 1 | AJ22: 0.8 | AK22: =COUNTIFS($AF$3:$AF$80,">=0,80",$AF$3:$AF$80,"<0,90") -> 14
A23: Metropolitana | B23: Conceição do Castelo | C23: 161 | D23: 19 | E23: 12 | F23: 0.6315789474 | G23: 12 | H23: 0.6315789474 | I23: 10 | J23: 0.5263157895 | K23: 11 | L23: 0.5789473684 | M23: 15 | N23: 0.7894736842 | O23: 14 | P23: 0.7368421053 | Q23: 9 | R23: 0.4736842105 | S23: 11 | T23: 0.5789473684 | U23: 10 | V23: 0.5263157895 | W23: 10 | X23: 0.5263157895 | Y23: 14 | Z23: 0.7368421053 | AB23: 0 | AC23: 0 | AE23: =cálculos2!O23 -> 0 | AF23: 0 | AG23: =cálculos2!P23 -> 0 | AH23: 0 | AJ23: 0.9 | AK23: =COUNTIFS($AF$3:$AF$80,">=0,90",$AF$3:$AF$80,"<1,0") -> 12
A24: Sul | B24: Divino de São Lourenço | C24: 55 | D24: 8 | E24: 4 | F24: 0.5 | G24: 3 | H24: 0.375 | I24: 4 | J24: 0.5 | K24: 4 | L24: 0.5 | M24: 0 | N24: 0 | O24: 0 | P24: 0 | Q24: 5 | R24: 0.625 | S24: 7 | T24: 0.875 | U24: 8 | V24: 1 | W24: 8 | X24: 1 | Y24: 6 | Z24: 0.75 | AB24: 0 | AC24: 0 | AE24: =cálculos2!O24 -> 2 | AF24: 0.2 | AG24: =cálculos2!P24 -> 1 | AH24: 0.25 | AJ24: 1 | AK24: =COUNTIF($AF$3:$AF$80,">=1,0") -> 9
A25: Metropolitana | B25: Domingos Martins | C25: 419 | D25: 34 | E25: 26 | F25: 0.7647058824 | G25: 31 | H25: 0.9117647059 | I25: 39 | J25: 1.147058824 | K25: 39 | L25: 1.147058824 | M25: 38 | N25: 1.117647059 | O25: 41 | P25: 1.205882353 | Q25: 39 | R25: 1.147058824 | S25: 28 | T25: 0.8235294118 | U25: 40 | V25: 1.176470588 | W25: 35 | X25: 1.029411765 | Y25: 46 | Z25: 1.352941176 | AB25: 4 | AC25: 0.1176470588 | AE25: =cálculos2!O25 -> 9 | AF25: 0.9 | AG25: =cálculos2!P25 -> 4 | AH25: 1
A26: Sul | B26: Dores do Rio Preto | C26: 89 | D26: 7 | E26: 4 | F26: 0.5714285714 | G26: 3 | H26: 0.4285714286 | I26: 13 | J26: 1.857142857 | K26: 12 | L26: 1.714285714 | M26: 7 | N26: 1 | O26: 8 | P26: 1.142857143 | Q26: 3 | R26: 0.4285714286 | S26: 9 | T26: 1.285714286 | U26: 9 | V26: 1.285714286 | W26: 4 | X26: 0.5714285714 | Y26: 5 | Z26: 0.7142857143 | AB26: 0 | AC26: 0 | AE26: =cálculos2!O26 -> 6 | AF26: 0.6 | AG26: =cálculos2!P26 -> 3 | AH26: 0.75
A27: Norte | B27: Ecoporanga | C27: 263 | D27: 22 | E27: 23 | F27: 1.045454545 | G27: 18 | H27: 0.8181818182 | I27: 29 | J27: 1.318181818 | K27: 28 | L27: 1.272727273 | M27: 19 | N27: 0.8636363636 | O27: 18 | P27: 0.8181818182 | Q27: 20 | R27: 0.9090909091 | S27: 22 | T27: 1 | U27: 16 | V27: 0.7272727273 | W27: 17 | X27: 0.7727272727 | Y27: 12 | Z27: 0.5454545455 | AB27: 1 | AC27: 0.04545454545 | AE27: =cálculos2!O27 -> 3 | AF27: 0.3 | AG27: =cálculos2!P27 -> 2 | AH27: 0.5
A28: Metropolitana | B28: Fundão | C28: 218 | D28: 22 | E28: 22 | F28: 1 | G28: 26 | H28: 1.181818182 | I28: 25 | J28: 1.136363636 | K28: 25 | L28: 1.136363636 | M28: 20 | N28: 0.9090909091 | O28: 20 | P28: 0.9090909091 | Q28: 15 | R28: 0.6818181818 | S28: 15 | T28: 0.6818181818 | U28: 17 | V28: 0.7727272727 | W28: 17 | X28: 0.7727272727 | Y28: 16 | Z28: 0.7272727273 | AB28: 0 | AC28: 0 | AE28: =cálculos2!O28 -> 4 | AF28: 0.4 | AG28: =cálculos2!P28 -> 2 | AH28: 0.5
A29: Central | B29: Governador Lindenberg | C29: 116 | D29: 12 | E29: 10 | F29: 0.8333333333 | G29: 10 | H29: 0.8333333333 | I29: 13 | J29: 1.083333333 | K29: 13 | L29: 1.083333333 | M29: 9 | N29: 0.75 | O29: 10 | P29: 0.8333333333 | Q29: 8 | R29: 0.6666666667 | S29: 9 | T29: 0.75 | U29: 11 | V29: 0.9166666667 | W29: 13 | X29: 1.083333333 | Y29: 4 | Z29: 0.3333333333 | AB29: 0 | AC29: 0 | AE29: =cálculos2!O29 -> 3 | AF29: 0.3 | AG29: =cálculos2!P29 -> 3 | AH29: 0.75
A30: Sul | B30: Guaçuí | C30: 394 | D30: 37 | E30: 23 | F30: 0.6216216216 | G30: 22 | H30: 0.5945945946 | I30: 32 | J30: 0.8648648649 | K30: 32 | L30: 0.8648648649 | M30: 32 | N30: 0.8648648649 | O30: 33 | P30: 0.8918918919 | Q30: 37 | R30: 1 | S30: 35 | T30: 0.9459459459 | U30: 34 | V30: 0.9189189189 | W30: 38 | X30: 1.027027027 | Y30: 18 | Z30: 0.4864864865 | AB30: 4 | AC30: 0.1081081081 | AE30: =cálculos2!O30 -> 2 | AF30: 0.2 | AG30: =cálculos2!P30 -> 1 | AH30: 0.25
A31: Metropolitana | B31: Guarapari | C31: 1723 | D31: 132 | E31: 101 | F31: 0.7651515152 | G31: 144 | H31: 1.090909091 | I31: 139 | J31: 1.053030303 | K31: 139 | L31: 1.053030303 | M31: 166 | N31: 1.257575758 | O31: 162 | P31: 1.227272727 | Q31: 136 | R31: 1.03030303 | S31: 111 | T31: 0.8409090909 | U31: 179 | V31: 1.356060606 | W31: 122 | X31: 0.9242424242 | Y31: 166 | Z31: 1.257575758 | AB31: 11 | AC31: 0.08333333333 | AE31: =cálculos2!O31 -> 8 | AF31: 0.8 | AG31: =cálculos2!P31 -> 3 | AH31: 0.75
A32: Metropolitana | B32: Ibatiba | C32: 345 | D32: 31 | E32: 20 | F32: 0.6451612903 | G32: 29 | H32: 0.935483871 | I32: 33 | J32: 1.064516129 | K32: 34 | L32: 1.096774194 | M32: 40 | N32: 1.290322581 | O32: 39 | P32: 1.258064516 | Q32: 43 | R32: 1.387096774 | S32: 25 | T32: 0.8064516129 | U32: 40 | V32: 1.290322581 | W32: 23 | X32: 0.7419354839 | Y32: 32 | Z32: 1.032258065 | AB32: 2 | AC32: 0.06451612903 | AE32: =cálculos2!O32 -> 8 | AF32: 0.8 | AG32: =cálculos2!P32 -> 3 | AH32: 0.75
A33: Metropolitana | B33: Ibiraçu | C33: 161 | D33: 17 | E33: 8 | F33: 0.4705882353 | G33: 8 | H33: 0.4705882353 | I33: 12 | J33: 0.7058823529 | K33: 12 | L33: 0.7058823529 | M33: 14 | N33: 0.8235294118 | O33: 15 | P33: 0.8823529412 | Q33: 14 | R33: 0.8235294118 | S33: 14 | T33: 0.8235294118 | U33: 14 | V33: 0.8235294118 | W33: 6 | X33: 0.3529411765 | Y33: 12 | Z33: 0.7058823529 | AB33: 0 | AC33: 0 | AE33: =cálculos2!O33 -> 0 | AF33: 0 | AG33: =cálculos2!P33 -> 0 | AH33: 0
A34: Sul | B34: Ibitirama | C34: 149 | D34: 13 | E34: 8 | F34: 0.6153846154 | G34: 10 | H34: 0.7692307692 | I34: 15 | J34: 1.153846154 | K34: 11 | L34: 0.8461538462 | M34: 26 | N34: 2 | O34: 28 | P34: 2.153846154 | Q34: 16 | R34: 1.230769231 | S34: 13 | T34: 1 | U34: 11 | V34: 0.8461538462 | W34: 13 | X34: 1 | Y34: 12 | Z34: 0.9230769231 | AB34: 2 | AC34: 0.1538461538 | AE34: =cálculos2!O34 -> 6 | AF34: 0.6 | AG34: =cálculos2!P34 -> 3 | AH34: 0.75
A35: Sul | B35: Iconha | C35: 120 | D35: 9 | E35: 7 | F35: 0.7777777778 | G35: 10 | H35: 1.111111111 | I35: 10 | J35: =I35/D35 -> 1.111111111 | K35: 10 | L35: =K35/D35 -> 1.111111111 | M35: 8 | N35: =M35/D35 -> 0.8888888889 | O35: 10 | P35: =O35/D35 -> 1.111111111 | Q35: 13 | R35: =Q35/D35 -> 1.444444444 | S35: 6 | T35: =S35/D35 -> 0.6666666667 | U35: 16 | V35: =U35/D35 -> 1.777777778 | W35: 13 | X35: =W35/D35 -> 1.444444444 | Y35: 14 | Z35: =Y35/D35 -> 1.555555556 | AB35: 0 | AC35: 0 | AE35: =cálculos2!O35 -> 8 | AF35: 0.8 | AG35: =cálculos2!P35 -> 3 | AH35: 0.75
A36: Sul | B36: Irupi | C36: 157 | D36: 19 | E36: 8 | F36: 0.4210526316 | G36: 13 | H36: 0.6842105263 | I36: 19 | J36: 1 | K36: 19 | L36: 1 | M36: 13 | N36: 0.6842105263 | O36: 14 | P36: 0.7368421053 | Q36: 25 | R36: 1.315789474 | S36: 16 | T36: 0.8421052632 | U36: 14 | V36: 0.7368421053 | W36: 15 | X36: 0.7894736842 | Y36: 17 | Z36: 0.8947368421 | AB36: 1 | AC36: 0.05263157895 | AE36: =cálculos2!O36 -> 3 | AF36: 0.3 | AG36: =cálculos2!P36 -> 2 | AH36: 0.5
A37: Metropolitana | B37: Itaguaçu | C37: 137 | D37: 7 | E37: 11 | F37: 1.571428571 | G37: 11 | H37: 1.571428571 | I37: 17 | J37: 2.428571429 | K37: 17 | L37: 2.428571429 | M37: 15 | N37: 2.142857143 | O37: 15 | P37: 2.142857143 | Q37: 14 | R37: 2 | S37: 23 | T37: 3.285714286 | U37: 10 | V37: 1.428571429 | W37: 14 | X37: 2 | Y37: 8 | Z37: 1.142857143 | AB37: 3 | AC37: 0.4285714286 | AE37: =cálculos2!O37 -> 10 | AF37: 1 | AG37: =cálculos2!P37 -> 4 | AH37: 1
A38: Sul | B38: Itapemirim | C38: 498 | D38: 40 | E38: 40 | F38: 1 | G38: 26 | H38: 0.65 | I38: 30 | J38: 0.75 | K38: 26 | L38: 0.65 | M38: 26 | N38: 0.65 | O38: 20 | P38: 0.5 | Q38: 34 | R38: 0.85 | S38: 16 | T38: 0.4 | U38: 29 | V38: 0.725 | W38: 25 | X38: 0.625 | Y38: 23 | Z38: 0.575 | AB38: 0 | AC38: 0 | AE38: =cálculos2!O38 -> 0 | AF38: 0 | AG38: =cálculos2!P38 -> 0 | AH38: 0
A39: Metropolitana | B39: Itarana | C39: 137 | D39: 12 | E39: 8 | F39: 0.6666666667 | G39: 9 | H39: 0.75 | I39: 18 | J39: 1.5 | K39: 18 | L39: 1.5 | M39: 6 | N39: 0.5 | O39: 8 | P39: 0.6666666667 | Q39: 14 | R39: 1.166666667 | S39: 21 | T39: 1.75 | U39: 10 | V39: 0.8333333333 | W39: 9 | X39: 0.75 | Y39: 12 | Z39: 1 | AB39: 1 | AC39: 0.08333333333 | AE39: =cálculos2!O39 -> 5 | AF39: 0.5 | AG39: =cálculos2!P39 -> 2 | AH39: 0.5
A40: Sul | B40: Iúna | C40: 427 | D40: 33 | E40: 26 | F40: 0.7878787879 | G40: 34 | H40: 1.03030303 | I40: 41 | J40: 1.242424242 | K40: 36 | L40: 1.090909091 | M40: 37 | N40: 1.121212121 | O40: 39 | P40: 1.181818182 | Q40: 49 | R40: 1.484848485 | S40: 46 | T40: 1.393939394 | U40: 45 | V40: 1.363636364 | W40: 36 | X40: 1.090909091 | Y40: 23 | Z40: 0.696969697 | AB40: 1 | AC40: 0.0303030303 | AE40: =cálculos2!O40 -> 9 | AF40: 0.9 | AG40: =cálculos2!P40 -> 4 | AH40: 1
A41: Norte | B41: Jaguaré | C41: 468 | D41: 35 | E41: 44 | F41: 1.257142857 | G41: 44 | H41: 1.257142857 | I41: 43 | J41: 1.228571429 | K41: 38 | L41: 1.085714286 | M41: 44 | N41: 1.257142857 | O41: 44 | P41: 1.257142857 | Q41: 53 | R41: 1.514285714 | S41: 29 | T41: 0.8285714286 | U41: 46 | V41: 1.314285714 | W41: 35 | X41: 1 | Y41: 23 | Z41: 0.6571428571 | AB41: 0 | AC41: 0 | AE41: =cálculos2!O41 -> 8 | AF41: 0.8 | AG41: =cálculos2!P41 -> 4 | AH41: 1
A42: Sul | B42: Jerônimo Monteiro | C42: 143 | D42: 10 | E42: 9 | F42: 0.9 | G42: 9 | H42: 0.9 | I42: 12 | J42: 1.2 | K42: 13 | L42: 1.3 | M42: 10 | N42: 1 | O42: 11 | P42: 1.1 | Q42: 9 | R42: 0.9 | S42: 12 | T42: 1.2 | U42: 20 | V42: 2 | W42: 14 | X42: 1.4 | Y42: 7 | Z42: 0.7 | AB42: 2 | AC42: 0.2 | AE42: =cálculos2!O42 -> 8 | AF42: 0.8 | AG42: =cálculos2!P42 -> 4 | AH42: 1
A43: Metropolitana | B43: João Neiva | C43: 156 | D43: 10 | E43: 5 | F43: 0.5 | G43: 5 | H43: 0.5 | I43: 17 | J43: 1.7 | K43: 15 | L43: 1.5 | M43: 11 | N43: 1.1 | O43: 13 | P43: 1.3 | Q43: 12 | R43: 1.2 | S43: 11 | T43: 1.1 | U43: 15 | V43: 1.5 | W43: 15 | X43: 1.5 | Y43: 13 | Z43: 1.3 | AB43: 1 | AC43: 0.1 | AE43: =cálculos2!O43 -> 9 | AF43: 0.9 | AG43: =cálculos2!P43 -> 4 | AH43: 1
A44: Metropolitana | B44: Laranja da Terra | C44: 98 | D44: 4 | E44: 7 | F44: 1.75 | G44: 10 | H44: 2.5 | I44: 8 | J44: 2 | K44: 9 | L44: 2.25 | M44: 13 | N44: 3.25 | O44: 14 | P44: 3.5 | Q44: 14 | R44: 3.5 | S44: 8 | T44: 2 | U44: 6 | V44: 1.5 | W44: 5 | X44: 1.25 | Y44: 11 | Z44: 2.75 | AB44: 1 | AC44: 0.25 | AE44: =cálculos2!O44 -> 10 | AF44: 1 | AG44: =cálculos2!P44 -> 4 | AH44: 1
A45: Central | B45: Linhares | C45: 2598 | D45: 201 | E45: 221 | F45: 1.099502488 | G45: 219 | H45: 1.089552239 | I45: 230 | J45: 1.144278607 | K45: 229 | L45: 1.139303483 | M45: 212 | N45: 1.054726368 | O45: 211 | P45: 1.049751244 | Q45: 228 | R45: 1.134328358 | S45: 159 | T45: 0.7910447761 | U45: 183 | V45: 0.9104477612 | W45: 204 | X45: 1.014925373 | Y45: 140 | Z45: 0.6965174129 | AB45: 0 | AC45: 0 | AE45: =cálculos2!O45 -> 7 | AF45: 0.7 | AG45: =cálculos2!P45 -> 4 | AH45: 1
A46: Central | B46: Mantenópolis | C46: 139 | D46: 14 | E46: 10 | F46: 0.7142857143 | G46: 12 | H46: 0.8571428571 | I46: 17 | J46: 1.214285714 | K46: 17 | L46: 1.214285714 | M46: 9 | N46: 0.6428571429 | O46: 10 | P46: 0.7142857143 | Q46: 18 | R46: 1.285714286 | S46: 24 | T46: 1.714285714 | U46: 8 | V46: 0.5714285714 | W46: 13 | X46: 0.9285714286 | Y46: 18 | Z46: 1.285714286 | AB46: 0 | AC46: 0 | AE46: =cálculos2!O46 -> 5 | AF46: 0.5 | AG46: =cálculos2!P46 -> 2 | AH46: 0.5
A47: Sul | B47: Marataízes | C47: 567 | D47: 53 | E47: 41 | F47: 0.7735849057 | G47: 49 | H47: 0.9245283019 | I47: 53 | J47: 1 | K47: 45 | L47: 0.8490566038 | M47: 50 | N47: 0.9433962264 | O47: 55 | P47: 1.037735849 | Q47: 44 | R47: 0.8301886792 | S47: 37 | T47: 0.6981132075 | U47: 37 | V47: 0.6981132075 | W47: 38 | X47: 0.7169811321 | Y47: 32 | Z47: 0.6037735849 | AB47: 0 | AC47: 0 | AE47: =cálculos2!O47 -> 3 | AF47: 0.3 | AG47: =cálculos2!P47 -> 1 | AH47: 0.25
A48: Metropolitana | B48: Marechal Floriano | C48: 201 | D48: 17 | E48: 22 | F48: 1.294117647 | G48: 23 | H48: 1.352941176 | I48: 15 | J48: 0.8823529412 | K48: 15 | L48: 0.8823529412 | M48: 13 | N48: 0.7647058824 | O48: 14 | P48: 0.8235294118 | Q48: 18 | R48: 1.058823529 | S48: 18 | T48: 1.058823529 | U48: 27 | V48: 1.588235294 | W48: 19 | X48: 1.117647059 | Y48: 30 | Z48: 1.764705882 | AB48: 6 | AC48: 0.3529411765 | AE48: =cálculos2!O48 -> 6 | AF48: 0.6 | AG48: =cálculos2!P48 -> 1 | AH48: 0.25
A49: Central | B49: Marilândia | C49: 147 | D49: 11 | E49: 9 | F49: 0.8181818182 | G49: 10 | H49: 0.9090909091 | I49: 9 | J49: 0.8181818182 | K49: 9 | L49: 0.8181818182 | M49: 14 | N49: 1.272727273 | O49: 15 | P49: 1.363636364 | Q49: 12 | R49: 1.090909091 | S49: 20 | T49: 1.818181818 | U49: 12 | V49: 1.090909091 | W49: 16 | X49: 1.454545455 | Y49: 12 | Z49: 1.090909091 | AB49: 0 | AC49: 0 | AE49: =cálculos2!O49 -> 8 | AF49: 0.8 | AG49: =cálculos2!P49 -> 2 | AH49: 0.5
A50: Sul | B50: Mimoso do Sul | C50: 254 | D50: 17 | E50: 18 | F50: 1.058823529 | G50: 20 | H50: 1.176470588 | I50: 27 | J50: 1.588235294 | K50: 21 | L50: 1.235294118 | M50: 27 | N50: 1.588235294 | O50: 32 | P50: 1.882352941 | Q50: 15 | R50: 0.8823529412 | S50: 27 | T50: 1.588235294 | U50: 17 | V50: 1 | W50: 12 | X50: 0.7058823529 | Y50: 25 | Z50: 1.470588235 | AB50: 1 | AC50: 0.05882352941 | AE50: =cálculos2!O50 -> 8 | AF50: 0.8 | AG50: =cálculos2!P50 -> 3 | AH50: 0.75
A51: Norte | B51: Montanha | C51: 209 | D51: 18 | E51: 22 | F51: 1.222222222 | G51: 21 | H51: 1.166666667 | I51: 24 | J51: 1.333333333 | K51: 24 | L51: 1.333333333 | M51: 31 | N51: 1.722222222 | O51: 35 | P51: 1.944444444 | Q51: 28 | R51: 1.555555556 | S51: 16 | T51: 0.8888888889 | U51: 22 | V51: 1.222222222 | W51: 23 | X51: 1.277777778 | Y51: 36 | Z51: 2 | AB51: 1 | AC51: 0.05555555556 | AE51: =cálculos2!O51 -> 9 | AF51: 0.9 | AG51: =cálculos2!P51 -> 4 | AH51: 1
A52: Norte | B52: Mucurici | C52: 66 | D52: 3 | E52: 4 | F52: 1.333333333 | G52: 4 | H52: 1.333333333 | I52: 10 | J52: 3.333333333 | K52: 11 | L52: 3.666666667 | M52: 6 | N52: 2 | O52: 6 | P52: 2 | Q52: 6 | R52: 2 | S52: 6 | T52: 2 | U52: 15 | V52: 5 | W52: 7 | X52: 2.333333333 | Y52: 17 | Z52: 5.666666667 | AB52: 1 | AC52: 0.3333333333 | AE52: =cálculos2!O52 -> 10 | AF52: 1 | AG52: =cálculos2!P52 -> 4 | AH52: 1
A53: Sul | B53: Muniz Freire | C53: 203 | D53: 17 | E53: 18 | F53: 1.058823529 | G53: 20 | H53: 1.176470588 | I53: 21 | J53: 1.235294118 | K53: 19 | L53: 1.117647059 | M53: 18 | N53: 1.058823529 | O53: 19 | P53: 1.117647059 | Q53: 23 | R53: 1.352941176 | S53: 25 | T53: 1.470588235 | U53: 18 | V53: 1.058823529 | W53: 17 | X53: 1 | Y53: 4 | Z53: 0.2352941176 | AB53: 1 | AC53: 0.05882352941 | AE53: =cálculos2!O53 -> 9 | AF53: 0.9 | AG53: =cálculos2!P53 -> 4 | AH53: 1
A54: Sul | B54: Muqui | C54: 139 | D54: 13 | E54: 12 | F54: 0.9230769231 | G54: 13 | H54: 1 | I54: 15 | J54: 1.153846154 | K54: 15 | L54: 1.153846154 | M54: 12 | N54: 0.9230769231 | O54: 11 | P54: 0.8461538462 | Q54: 8 | R54: 0.6153846154 | S54: 11 | T54: 0.8461538462 | U54: 14 | V54: 1.076923077 | W54: 14 | X54: 1.076923077 | Y54: 0 | Z54: 0 | AB54: 3 | AC54: 0.2307692308 | AE54: =cálculos2!O54 -> 5 | AF54: 0.5 | AG54: =cálculos2!P54 -> 3 | AH54: 0.75
A55: Norte | B55: Nova Venécia | C55: 643 | D55: 56 | E55: 54 | F55: 0.9642857143 | G55: 48 | H55: 0.8571428571 | I55: 53 | J55: 0.9464285714 | K55: 54 | L55: 0.9642857143 | M55: 61 | N55: 1.089285714 | O55: 62 | P55: 1.107142857 | Q55: 54 | R55: 0.9642857143 | S55: 54 | T55: 0.9642857143 | U55: 22 | V55: 0.3928571429 | W55: 37 | X55: 0.6607142857 | Y55: 60 | Z55: 1.071428571 | AB55: 4 | AC55: 0.07142857143 | AE55: =cálculos2!O55 -> 6 | AF55: 0.6 | AG55: =cálculos2!P55 -> 2 | AH55: 0.5
A56: Central | B56: Pancas | C56: 197 | D56: 14 | E56: 15 | F56: 1.071428571 | G56: 14 | H56: 1 | I56: 16 | J56: 1.142857143 | K56: 16 | L56: 1.142857143 | M56: 14 | N56: 1 | O56: 10 | P56: 0.7142857143 | Q56: 18 | R56: 1.285714286 | S56: 18 | T56: 1.285714286 | U56: 22 | V56: 1.571428571 | W56: 12 | X56: 0.8571428571 | Y56: 24 | Z56: 1.714285714 | AB56: 0 | AC56: 0 | AE56: =cálculos2!O56 -> 8 | AF56: 0.8 | AG56: =cálculos2!P56 -> 3 | AH56: 0.75
A57: Norte | B57: Pedro Canário | C57: 327 | D57: 27 | E57: 26 | F57: 0.962962963 | G57: 28 | H57: 1.037037037 | I57: 29 | J57: 1.074074074 | K57: 30 | L57: 1.111111111 | M57: 19 | N57: 0.7037037037 | O57: 19 | P57: 0.7037037037 | Q57: 21 | R57: 0.7777777778 | S57: 15 | T57: 0.5555555556 | U57: 30 | V57: 1.111111111 | W57: 27 | X57: 1 | Y57: 38 | Z57: 1.407407407 | AB57: 0 | AC57: 0 | AE57: =cálculos2!O57 -> 6 | AF57: 0.6 | AG57: =cálculos2!P57 -> 3 | AH57: 0.75
A58: Norte | B58: Pinheiros | C58: 320 | D58: 26 | E58: 29 | F58: 1.115384615 | G58: 28 | H58: 1.076923077 | I58: 43 | J58: 1.653846154 | K58: 43 | L58: 1.653846154 | M58: 41 | N58: 1.576923077 | O58: 42 | P58: 1.615384615 | Q58: 24 | R58: 0.9230769231 | S58: 31 | T58: 1.192307692 | U58: 32 | V58: 1.230769231 | W58: 34 | X58: 1.307692308 | Y58: 39 | Z58: 1.5 | AB58: 2 | AC58: 0.07692307692 | AE58: =cálculos2!O58 -> 9 | AF58: 0.9 | AG58: =cálculos2!P58 -> 4 | AH58: 1
A59: Sul | B59: Piúma | C59: 290 | D59: 19 | E59: 28 | F59: 1.473684211 | G59: 22 | H59: 1.157894737 | I59: 20 | J59: 1.052631579 | K59: 19 | L59: 1 | M59: 24 | N59: 1.263157895 | O59: 24 | P59: 1.263157895 | Q59: 21 | R59: 1.105263158 | S59: 23 | T59: 1.210526316 | U59: 23 | V59: 1.210526316 | W59: 20 | X59: 1.052631579 | Y59: 15 | Z59: 0.7894736842 | AB59: 1 | AC59: 0.05263157895 | AE59: =cálculos2!O59 -> 9 | AF59: 0.9 | AG59: =cálculos2!P59 -> 4 | AH59: 1
A60: Norte | B60: Ponto Belo | C60: 78 | D60: 5 | E60: 5 | F60: 1 | G60: 5 | H60: 1 | I60: 12 | J60: 2.4 | K60: 12 | L60: 2.4 | M60: 11 | N60: 2.2 | O60: 11 | P60: 2.2 | Q60: 7 | R60: 1.4 | S60: 8 | T60: 1.6 | U60: 10 | V60: 2 | W60: 4 | X60: 0.8 | Y60: 9 | Z60: 1.8 | AB60: 0 | AC60: 0 | AE60: =cálculos2!O60 -> 9 | AF60: 0.9 | AG60: =cálculos2!P60 -> 3 | AH60: 0.75
A61: Sul | B61: Presidente Kennedy | C61: 204 | D61: 14 | E61: 19 | F61: 1.357142857 | G61: 19 | H61: 1.357142857 | I61: 16 | J61: 1.142857143 | K61: 15 | L61: 1.071428571 | M61: 22 | N61: 1.571428571 | O61: 24 | P61: 1.714285714 | Q61: 18 | R61: 1.285714286 | S61: 24 | T61: 1.714285714 | U61: 17 | V61: 1.214285714 | W61: 27 | X61: 1.928571429 | Y61: 6 | Z61: 0.4285714286 | AB61: 3 | AC61: 0.2142857143 | AE61: =cálculos2!O61 -> 9 | AF61: 0.9 | AG61: =cálculos2!P61 -> 4 | AH61: 1
A62: Central | B62: Rio Bananal | C62: 291 | D62: 21 | E62: 15 | F62: 0.7142857143 | G62: 12 | H62: 0.5714285714 | I62: 19 | J62: 0.9047619048 | K62: 20 | L62: 0.9523809524 | M62: 20 | N62: 0.9523809524 | O62: 22 | P62: 1.047619048 | Q62: 28 | R62: 1.333333333 | S62: 27 | T62: 1.285714286 | U62: 28 | V62: 1.333333333 | W62: 25 | X62: 1.19047619 | Y62: 28 | Z62: 1.333333333 | AB62: 3 | AC62: 0.1428571429 | AE62: =cálculos2!O62 -> 8 | AF62: 0.8 | AG62: =cálculos2!P62 -> 3 | AH62: 0.75
A63: Sul | B63: Rio Novo do Sul | C63: 107 | D63: 11 | E63: 9 | F63: 0.8181818182 | G63: 8 | H63: 0.7272727273 | I63: 12 | J63: 1.090909091 | K63: 12 | L63: 1.090909091 | M63: 8 | N63: 0.7272727273 | O63: 7 | P63: 0.6363636364 | Q63: 14 | R63: 1.272727273 | S63: 7 | T63: 0.6363636364 | U63: 11 | V63: 1 | W63: 8 | X63: 0.7272727273 | Y63: 12 | Z63: 1.090909091 | AB63: 0 | AC63: 0 | AE63: =cálculos2!O63 -> 5 | AF63: 0.5 | AG63: =cálculos2!P63 -> 2 | AH63: 0.5
A64: Metropolitana | B64: Santa Leopoldina | C64: 81 | D64: 6 | E64: 4 | F64: 0.6666666667 | G64: 5 | H64: 0.8333333333 | I64: 8 | J64: 1.333333333 | K64: 7 | L64: 1.166666667 | M64: 7 | N64: 1.166666667 | O64: 7 | P64: 1.166666667 | Q64: 10 | R64: 1.666666667 | S64: 2 | T64: 0.3333333333 | U64: 10 | V64: 1.666666667 | W64: 7 | X64: 1.166666667 | Y64: 4 | Z64: 0.6666666667 | AB64: 0 | AC64: 0 | AE64: =cálculos2!O64 -> 7 | AF64: 0.7 | AG64: =cálculos2!P64 -> 4 | AH64: 1
A65: Metropolitana | B65: Santa Maria de Jetibá | C65: 682 | D65: 55 | E65: 45 | F65: 0.8181818182 | G65: 59 | H65: 1.072727273 | I65: 43 | J65: 0.7818181818 | K65: 45 | L65: 0.8181818182 | M65: 52 | N65: 0.9454545455 | O65: 61 | P65: 1.109090909 | Q65: 54 | R65: 0.9818181818 | S65: 33 | T65: 0.6 | U65: 67 | V65: 1.218181818 | W65: 66 | X65: 1.2 | Y65: 57 | Z65: 1.036363636 | AB65: 0 | AC65: 0 | AE65: =cálculos2!O65 -> 6 | AF65: 0.6 | AG65: =cálculos2!P65 -> 1 | AH65: 0.25
A66: Metropolitana | B66: Santa Teresa | C66: 300 | D66: 24 | E66: 28 | F66: 1.166666667 | G66: 32 | H66: 1.333333333 | I66: 25 | J66: 1.041666667 | K66: 23 | L66: 0.9583333333 | M66: 21 | N66: 0.875 | O66: 21 | P66: 0.875 | Q66: 29 | R66: 1.208333333 | S66: 19 | T66: 0.7916666667 | U66: 29 | V66: 1.208333333 | W66: 22 | X66: 0.9166666667 | Y66: 21 | Z66: 0.875 | AB66: 0 | AC66: 0 | AE66: =cálculos2!O66 -> 5 | AF66: 0.5 | AG66: =cálculos2!P66 -> 2 | AH66: 0.5
A67: Central | B67: São Domingos do Norte | C67: 119 | D67: 10 | E67: 6 | F67: 0.6 | G67: 7 | H67: 0.7 | I67: 8 | J67: =I67/D67 -> 0.8 | K67: 8 | L67: =K67/D67 -> 0.8 | M67: 9 | N67: =M67/D67 -> 0.9 | O67: 8 | P67: =O67/D67 -> 0.8 | Q67: 11 | R67: =Q67/D67 -> 1.1 | S67: 7 | T67: =S67/D67 -> 0.7 | U67: 16 | V67: =U67/D67 -> 1.6 | W67: 18 | X67: =W67/D67 -> 1.8 | Y67: 14 | Z67: =Y67/D67 -> 1.4 | AB67: 0 | AC67: 0 | AE67: =cálculos2!O67 -> 4 | AF67: 0.4 | AG67: =cálculos2!P67 -> 1 | AH67: 0.25
A68: Central | B68: São Gabriel da Palha | C68: 437 | D68: 34 | E68: 21 | F68: =E68/D68 -> 0.6176470588 | G68: 25 | H68: =G68/D68 -> 0.7352941176 | I68: 50 | J68: 1.470588235 | K68: 51 | L68: 1.5 | M68: 34 | N68: 1 | O68: 35 | P68: 1.029411765 | Q68: 43 | R68: 1.264705882 | S68: 35 | T68: 1.029411765 | U68: 33 | V68: 0.9705882353 | W68: 30 | X68: 0.8823529412 | Y68: 21 | Z68: 0.6176470588 | AB68: 0 | AC68: =AB68/D68 -> 0 | AE68: =cálculos2!O68 -> 7 | AF68: =AE68*0.1 -> 0.7 | AG68: =cálculos2!P68 -> 3 | AH68: =AG68*0.25 -> 0.75
A69: Sul | B69: São José do Calçado | C69: 95 | D69: 13 | E69: 8 | F69: 0.6153846154 | G69: 10 | H69: 0.7692307692 | I69: 16 | J69: 1.230769231 | K69: 16 | L69: 1.230769231 | M69: 7 | N69: 0.5384615385 | O69: 7 | P69: 0.5384615385 | Q69: 10 | R69: 0.7692307692 | S69: 6 | T69: 0.4615384615 | U69: 15 | V69: 1.153846154 | W69: 10 | X69: 0.7692307692 | Y69: 16 | Z69: 1.230769231 | AB69: 1 | AC69: 0.07692307692 | AE69: =cálculos2!O69 -> 4 | AF69: 0.4 | AG69: =cálculos2!P69 -> 2 | AH69: 0.5
A70: Norte | B70: São Mateus | C70: 1896 | D70: 146 | E70: 128 | F70: 0.8767123288 | G70: 136 | H70: 0.9315068493 | I70: 149 | J70: 1.020547945 | K70: 141 | L70: 0.9657534247 | M70: 138 | N70: 0.9452054795 | O70: 131 | P70: 0.897260274 | Q70: 129 | R70: 0.8835616438 | S70: 117 | T70: 0.801369863 | U70: 112 | V70: 0.7671232877 | W70: 122 | X70: 0.8356164384 | Y70: 116 | Z70: 0.7945205479 | AB70: 9 | AC70: 0.06164383562 | AE70: =cálculos2!O70 -> 3 | AF70: 0.3 | AG70: =cálculos2!P70 -> 2 | AH70: 0.5
A71: Central | B71: São Roque do Canaã | C71: 129 | D71: 15 | E71: 13 | F71: 0.8666666667 | G71: 14 | H71: 0.9333333333 | I71: 13 | J71: 0.8666666667 | K71: 11 | L71: 0.7333333333 | M71: 12 | N71: 0.8 | O71: 12 | P71: 0.8 | Q71: 8 | R71: 0.5333333333 | S71: 8 | T71: 0.5333333333 | U71: 4 | V71: 0.2666666667 | W71: 15 | X71: 1 | Y71: 7 | Z71: 0.4666666667 | AB71: 0 | AC71: 0 | AE71: =cálculos2!O71 -> 2 | AF71: 0.2 | AG71: =cálculos2!P71 -> 1 | AH71: 0.25
A72: Metropolitana | B72: Serra | C72: 7364 | D72: 639 | E72: 605 | F72: 0.9467918623 | G72: 622 | H72: 0.9733959311 | I72: 637 | J72: 0.9968701095 | K72: 630 | L72: 0.985915493 | M72: 622 | N72: 0.9733959311 | O72: 625 | P72: 0.9780907668 | Q72: 674 | R72: 1.054773083 | S72: 483 | T72: 0.7558685446 | U72: 660 | V72: 1.03286385 | W72: 576 | X72: 0.9014084507 | Y72: 590 | Z72: 0.9233176839 | AB72: 18 | AC72: 0.02816901408 | AE72: =cálculos2!O72 -> 7 | AF72: 0.7 | AG72: =cálculos2!P72 -> 3 | AH72: 0.75
A73: Central | B73: Sooretama | C73: 446 | D73: 40 | E73: 17 | F73: 0.425 | G73: 16 | H73: 0.4 | I73: 38 | J73: 0.95 | K73: 38 | L73: 0.95 | M73: 45 | N73: 1.125 | O73: 49 | P73: 1.225 | Q73: 42 | R73: 1.05 | S73: 44 | T73: 1.1 | U73: 36 | V73: 0.9 | W73: 24 | X73: 0.6 | Y73: 34 | Z73: 0.85 | AB73: 0 | AC73: 0 | AE73: =cálculos2!O73 -> 6 | AF73: 0.6 | AG73: =cálculos2!P73 -> 3 | AH73: 0.75
A74: Sul | B74: Vargem Alta | C74: 250 | D74: 22 | E74: 21 | F74: 0.9545454545 | G74: 20 | H74: 0.9090909091 | I74: 20 | J74: 0.9090909091 | K74: 19 | L74: 0.8636363636 | M74: 33 | N74: 1.5 | O74: 30 | P74: 1.363636364 | Q74: 21 | R74: 0.9545454545 | S74: 22 | T74: 1 | U74: 23 | V74: 1.045454545 | W74: 28 | X74: 1.272727273 | Y74: 22 | Z74: 1 | AB74: 1 | AC74: 0.04545454545 | AE74: =cálculos2!O74 -> 8 | AF74: 0.8 | AG74: =cálculos2!P74 -> 2 | AH74: 0.5
A75: Metropolitana | B75: Venda Nova do Imigrante | C75: 362 | D75: 28 | E75: 25 | F75: 0.8928571429 | G75: 33 | H75: 1.178571429 | I75: 26 | J75: 0.9285714286 | K75: 25 | L75: 0.8928571429 | M75: 35 | N75: 1.25 | O75: 40 | P75: 1.428571429 | Q75: 25 | R75: 0.8928571429 | S75: 33 | T75: 1.178571429 | U75: 36 | V75: 1.285714286 | W75: 31 | X75: 1.107142857 | Y75: 33 | Z75: 1.178571429 | AB75: 3 | AC75: 0.1071428571 | AE75: =cálculos2!O75 -> 7 | AF75: 0.7 | AG75: =cálculos2!P75 -> 2 | AH75: 0.5
A76: Metropolitana | B76: Viana | C76: 918 | D76: 80 | E76: 60 | F76: 0.75 | G76: 68 | H76: 0.85 | I76: 87 | J76: 1.0875 | K76: 85 | L76: 1.0625 | M76: 86 | N76: 1.075 | O76: 82 | P76: 1.025 | Q76: 79 | R76: 0.9875 | S76: 45 | T76: 0.5625 | U76: 95 | V76: 1.1875 | W76: 78 | X76: 0.975 | Y76: 48 | Z76: 0.6 | AB76: 5 | AC76: 0.0625 | AE76: =cálculos2!O76 -> 7 | AF76: 0.7 | AG76: =cálculos2!P76 -> 4 | AH76: 1
A77: Norte | B77: Vila Pavão | C77: 108 | D77: 3 | E77: 8 | F77: 2.666666667 | G77: 6 | H77: 2 | I77: 15 | J77: 5 | K77: 13 | L77: 4.333333333 | M77: 16 | N77: 5.333333333 | O77: 14 | P77: 4.666666667 | Q77: 17 | R77: 5.666666667 | S77: 10 | T77: 3.333333333 | U77: 8 | V77: 2.666666667 | W77: 6 | X77: 2 | Y77: 16 | Z77: 5.333333333 | AB77: 0 | AC77: 0 | AE77: =cálculos2!O77 -> 10 | AF77: 1 | AG77: =cálculos2!P77 -> 4 | AH77: 1
A78: Central | B78: Vila Valério | C78: 244 | D78: 17 | E78: 8 | F78: 0.4705882353 | G78: 9 | H78: 0.5294117647 | I78: 19 | J78: 1.117647059 | K78: 21 | L78: 1.235294118 | M78: 17 | N78: 1 | O78: 18 | P78: 1.058823529 | Q78: 15 | R78: 0.8823529412 | S78: 16 | T78: 0.9411764706 | U78: 19 | V78: 1.117647059 | W78: 18 | X78: 1.058823529 | Y78: 25 | Z78: 1.470588235 | AB78: 0 | AC78: 0 | AE78: =cálculos2!O78 -> 7 | AF78: 0.7 | AG78: =cálculos2!P78 -> 4 | AH78: 1
A79: Metropolitana | B79: Vila Velha | C79: 5476 | D79: 465 | E79: 435 | F79: 0.935483871 | G79: 455 | H79: 0.9784946237 | I79: 484 | J79: 1.040860215 | K79: 477 | L79: 1.025806452 | M79: 427 | N79: 0.9182795699 | O79: 455 | P79: 0.9784946237 | Q79: 465 | R79: 1 | S79: 332 | T79: 0.7139784946 | U79: 503 | V79: 1.08172043 | W79: 461 | X79: 0.9913978495 | Y79: 494 | Z79: 1.062365591 | AB79: 18 | AC79: 0.03870967742 | AE79: =cálculos2!O79 -> 8 | AF79: 0.8 | AG79: =cálculos2!P79 -> 3 | AH79: 0.75
A80: Metropolitana | B80: Vitória | C80: 3504 | D80: 318 | E80: 240 | F80: 0.7547169811 | G80: 253 | H80: 0.7955974843 | I80: 322 | J80: 1.012578616 | K80: 312 | L80: 0.9811320755 | M80: 244 | N80: 0.7672955975 | O80: 272 | P80: 0.8553459119 | Q80: 285 | R80: 0.8962264151 | S80: 189 | T80: 0.5943396226 | U80: 396 | V80: 1.245283019 | W80: 407 | X80: 1.279874214 | Y80: 422 | Z80: 1.327044025 | AB80: 8 | AC80: 0.0251572327 | AE80: =cálculos2!O80 -> 5 | AF80: 0.5 | AG80: =cálculos2!P80 -> 3 | AH80: 0.75
B82: Total Norte | C82: =SUMIF($A$3:$A$80,"Norte",C$3:C$80) -> 5722 | D82: =SUMIF($A$3:$A$80,"Norte",D$3:D$80) -> 454 | E82: =SUMIF($A$3:$A$80,"Norte",E$3:E$80) -> 434 | F82: =E82/D82 -> 0.9559471366 | G82: =SUMIF($A$3:$A$80,"Norte",G$3:G$80) -> 454 | H82: =G82/D82 -> 1 | I82: =SUMIF($A$3:$A$80,"Norte",I$3:I$80) -> 541 | J82: =I82/D82 -> 1.191629956 | K82: =SUMIF($A$3:$A$80,"Norte",K$3:K$80) -> 530 | L82: =K82/D82 -> 1.167400881 | M82: =SUMIF($A$3:$A$80,"Norte",M$3:M$80) -> 482 | N82: =M82/D82 -> 1.061674009 | O82: =SUMIF($A$3:$A$80,"Norte",O$3:O$80) -> 475 | P82: =O82/D82 -> 1.046255507 | Q82: =SUMIF($A$3:$A$80,"Norte",Q$3:Q$80) -> 482 | R82: =Q82/D82 -> 1.061674009 | S82: =SUMIF($A$3:$A$80,"Norte",S$3:S$80) -> 424 | T82: =S82/D82 -> 0.9339207048 | U82: =SUMIF($A$3:$A$80,"Norte",U$3:U$80) -> 412 | V82: =U82/D82 -> 0.9074889868 | W82: =SUMIF($A$3:$A$80,"Norte",W$3:W$80) -> 432 | X82: =W82/D82 -> 0.9515418502 | Y82: =SUMIF($A$3:$A$80,"Norte",Y$3:Y$80) -> 479 | Z82: =Y82/D82 -> 1.055066079 | AB82: =SUMIF($A$3:$A$80,"Norte",AB$3:AB$80) -> 18 | AC82: =AB82/D82 -> 0.03964757709 | AE82: =cálculos2!O82 -> 8 | AF82: =AE82*0.1 -> 0.8 | AG82: =cálculos2!P82 -> 4 | AH82: 1
B83: Total Central | C83: =SUMIF($A$3:$A$80,"Central",C$3:C$80) -> 6920 | D83: =SUMIF($A$3:$A$80,"Central",D$3:D$80) -> 569 | E83: =SUMIF($A$3:$A$80,"Central",E$3:E$80) -> 501 | F83: =E83/D83 -> 0.8804920914 | G83: =SUMIF($A$3:$A$80,"Central",G$3:G$80) -> 504 | H83: =G83/D83 -> 0.8857644991 | I83: =SUMIF($A$3:$A$80,"Central",I$3:I$80) -> 620 | J83: =I83/D83 -> 1.089630931 | K83: =SUMIF($A$3:$A$80,"Central",K$3:K$80) -> 622 | L83: =K83/D83 -> 1.09314587 | M83: =SUMIF($A$3:$A$80,"Central",M$3:M$80) -> 552 | N83: =M83/D83 -> 0.9701230228 | O83: =SUMIF($A$3:$A$80,"Central",O$3:O$80) -> 565 | P83: =O83/D83 -> 0.992970123 | Q83: =SUMIF($A$3:$A$80,"Central",Q$3:Q$80) -> 643 | R83: =Q83/D83 -> 1.130052724 | S83: =SUMIF($A$3:$A$80,"Central",S$3:S$80) -> 546 | T83: =S83/D83 -> 0.9595782074 | U83: =SUMIF($A$3:$A$80,"Central",U$3:U$80) -> 565 | V83: =U83/D83 -> 0.992970123 | W83: =SUMIF($A$3:$A$80,"Central",W$3:W$80) -> 577 | X83: =W83/D83 -> 1.014059754 | Y83: =SUMIF($A$3:$A$80,"Central",Y$3:Y$80) -> 492 | Z83: =Y83/D83 -> 0.8646748682 | AB83: =SUMIF($A$3:$A$80,"Central",AB$3:AB$80) -> 7 | AC83: =AB83/D83 -> 0.01230228471 | AE83: =cálculos2!O83 -> 8 | AF83: =AE83*0.1 -> 0.8 | AG83: =cálculos2!P83 -> 4 | AH83: 1
B84: Total Metropolitana | C84: =SUMIF($A$3:$A$80,"Metropolitana",C$3:C$80) -> 29149 | D84: =SUMIF($A$3:$A$80,"Metropolitana",D$3:D$80) -> 2477 | E84: =SUMIF($A$3:$A$80,"Metropolitana",E$3:E$80) -> 2265 | F84: =E84/D84 -> 0.9144125959 | G84: =SUMIF($A$3:$A$80,"Metropolitana",G$3:G$80) -> 2434 | H84: =G84/D84 -> 0.9826402907 | I84: =SUMIF($A$3:$A$80,"Metropolitana",I$3:I$80) -> 2591 | J84: =I84/D84 -> 1.046023415 | K84: =SUMIF($A$3:$A$80,"Metropolitana",K$3:K$80) -> 2555 | L84: =K84/D84 -> 1.031489705 | M84: =SUMIF($A$3:$A$80,"Metropolitana",M$3:M$80) -> 2480 | N84: =M84/D84 -> 1.001211143 | O84: =SUMIF($A$3:$A$80,"Metropolitana",O$3:O$80) -> 2554 | P84: =O84/D84 -> 1.031085991 | Q84: =SUMIF($A$3:$A$80,"Metropolitana",Q$3:Q$80) -> 2562 | R84: =Q84/D84 -> 1.034315704 | S84: =SUMIF($A$3:$A$80,"Metropolitana",S$3:S$80) -> 1915 | T84: =S84/D84 -> 0.7731126363 | U84: =SUMIF($A$3:$A$80,"Metropolitana",U$3:U$80) -> 2862 | V84: =U84/D84 -> 1.155429956 | W84: =SUMIF($A$3:$A$80,"Metropolitana",W$3:W$80) -> 2570 | X84: =W84/D84 -> 1.037545418 | Y84: =SUMIF($A$3:$A$80,"Metropolitana",Y$3:Y$80) -> 2587 | Z84: =Y84/D84 -> 1.044408559 | AB84: =SUMIF($A$3:$A$80,"Metropolitana",AB$3:AB$80) -> 139 | AC84: 0.05611626968 | AE84: =cálculos2!O84 -> 9 | AF84: 0.9 | AG84: =cálculos2!P84 -> 4 | AH84: 1
B85: Total Sul | C85: =SUMIF($A$3:$A$80,"sul",C$3:C$80) -> 7908 | D85: =SUMIF($A$3:$A$80,"sul",D$3:D$80) -> 691 | E85: =SUMIF($A$3:$A$80,"Sul",E$3:E$80) -> 628 | F85: =E85/D85 -> 0.9088277858 | G85: =SUMIF($A$3:$A$80,"Sul",G$3:G$80) -> 659 | H85: =G85/D85 -> 0.9536903039 | I85: =SUMIF($A$3:$A$80,"Sul",I$3:I$80) -> 764 | J85: =I85/D85 -> 1.105643994 | K85: =SUMIF($A$3:$A$80,"Sul",K$3:K$80) -> 717 | L85: =K85/D85 -> 1.037626628 | M85: =SUMIF($A$3:$A$80,"Sul",M$3:M$80) -> 679 | N85: =M85/D85 -> 0.982633864 | O85: =SUMIF($A$3:$A$80,"Sul",O$3:O$80) -> 694 | P85: =O85/D85 -> 1.004341534 | Q85: =SUMIF($A$3:$A$80,"Sul",Q$3:Q$80) -> 720 | R85: =Q85/D85 -> 1.041968162 | S85: =SUMIF($A$3:$A$80,"Sul",S$3:S$80) -> 657 | T85: =S85/D85 -> 0.9507959479 | U85: =SUMIF($A$3:$A$80,"Sul",U$3:U$80) -> 805 | V85: =U85/D85 -> 1.164978292 | W85: =SUMIF($A$3:$A$80,"Sul",W$3:W$80) -> 705 | X85: =W85/D85 -> 1.020260492 | Y85: =SUMIF($A$3:$A$80,"Sul",Y$3:Y$80) -> 582 | Z85: =Y85/D85 -> 0.8422575977 | AB85: =SUMIF($A$3:$A$80,"Sul",AB$3:AB$80) -> 38 | AC85: 0.05499276411 | AE85: =cálculos2!O85 -> 9 | AF85: 0.9 | AG85: =cálculos2!P85 -> 4 | AH85: 1
B86: Total Espírito Santo | C86: =SUM(C3:C80) -> 49699 | D86: =SUM(D3:D80) -> 4191 | E86: =SUM(E82:E85) -> 3828 | F86: =E86/D86 -> 0.9133858268 | G86: =SUM(G82:G85) -> 4051 | H86: =G86/D86 -> 0.9665950847 | I86: =SUM(I82:I85) -> 4516 | J86: =I86/D86 -> 1.077547125 | K86: =SUM(K82:K85) -> 4424 | L86: =K86/D86 -> 1.055595323 | M86: =SUM(M82:M85) -> 4193 | N86: =M86/D86 -> 1.000477213 | O86: =SUM(O82:O85) -> 4288 | P86: =O86/D86 -> 1.023144834 | Q86: =SUM(Q82:Q85) -> 4407 | R86: =Q86/D86 -> 1.051539012 | S86: =SUM(S82:S85) -> 3542 | T86: =S86/D86 -> 0.845144357 | U86: =SUM(U82:U85) -> 4644 | V86: =U86/D86 -> 1.108088762 | W86: =SUM(W82:W85) -> 4284 | X86: =W86/D86 -> 1.022190408 | Y86: =SUM(Y82:Y85) -> 4140 | Z86: =Y86/D86 -> 0.9878310666 | AB86: =SUM(AB82:AB85) -> 202 | AC86: 0.04819852064 | AE86: =cálculos2!O86 -> 9 | AF86: 0.9 | AG86: =cálculos2!P86 -> 4 | AH86: 1
E87: =COUNTIF(F3:F80,">=0,95") -> 30 | G87: =COUNTIF(H3:H80,">=0,9") -> 46 | I87: =COUNTIF(J3:J80,">=0,95") -> 60 | K87: =COUNTIF(L3:L80,">=0,95") -> 59 | M87: =COUNTIF(N3:N80,">=0,95") -> 45 | O87: =COUNTIF(P3:P80,">=0,9") -> 50 | Q87: =COUNTIF(R3:R80,">=0,95") -> 52 | S87: =COUNTIF(T3:T80,">=0,95") -> 40 | U87: =COUNTIF(V3:V80,">=0,95") -> 55 | W87: =COUNTIF(X3:X80,">=0,95") -> 49 | Y87: =COUNTIF(Z3:Z80,">=0,95") -> 41 | AB87: =COUNTIF(AC3:AC80,">=0,9") -> 0
B88: HOMOGENEIDADE ENTRE MUNICÍPIOS | E88: =E87/78 -> 0.3846153846 | G88: =G87/78 -> 0.5897435897 | I88: =I87/78 -> 0.7692307692 | K88: =K87/78 -> 0.7564102564 | M88: =M87/78 -> 0.5769230769 | O88: =O87/78 -> 0.641025641 | Q88: =Q87/78 -> 0.6666666667 | S88: =S87/78 -> 0.5128205128 | U88: =U87/78 -> 0.7051282051 | W88: =W87/78 -> 0.6282051282 | Y88: =Y87/78 -> 0.5256410256 | AB88: =AB87/78 -> 0
A90: Fonte: Vacina e Confia, em 14 e 17 de Fevereiro de 2025.**
A91: **Dados referente às doses aplicadas no período de Janeiro 2025
A92: Cobertura Calculada por município de residência do cidadão (no Vacina e Confia, a origem da informação é o endereço que consta no cadastro do cidadão preenchido manualmente por meio do autocadastro ou pelo cadastro realizado por um profissional de saúde no momento do atendimento).
A93: 1 População anual extraída do MS/SVS/DASIS - SINASC/DASIS/SVS/MS 2024 (hoje preliminares) referente ao período de Janeiro e Novembro de 2024 e SINASC/DASIS/SVS/MS 2023 referente ao período de Dezembro de 2023.
A94: ² População proporcional extraída do MS/SVS/DASIS - SINASC/DASIS/SVS/MS 2024 (hoje preliminares) referente ao período de Janeiro/ 2024.
A95: Sinasc, atualizado em 10/02/2025.
A96: Homogeineidade: O cálculo da Homogeineidade entre vacinas é feito de acordo com a pactuação estabelecida no Plano Plurianual (PPA) vigente no período 2024-2027.
A98: Observações:
A99: 1. Imunobiológicos que foram recebidos parcialmente pelo estado no mês de Janeiro/2025, sendo distribuídos em quantidades reduzidas às regionais e municípios:
A100: SORO ANTIRRÁBICO HUMANO, IMUNOGLOBULINA ANTIRRÁBICA HUMANA, VACINA COVID-19 MODERNA (SPIKEVAX),VACINA TETRA VIRAL,VACINA CONTRA VARICELA
A101: 2. Imunobiológicos indisponíveis no mês de Janeiro/2025, não sendo possível a distribuição às regionais e municípios:
A102: VACINA TRÍPLICE ACELULAR (DTPa) - CRIE

Sheet CV REF 1A e 4A - procedência
G1: D2 | K1: REFORÇOS 1 ANO | S1: REFORÇOS 4 ANOS
A2: Regional | B2: Município | C2: ¹População 1 ano anual | D2: ²População 1 ano proporcional | E2: ³População 4 anos anual | F2: ³População 4 anos proporcional | G2: DOSES APLICADAS D2 TRÍPLICE VIRAL | H2: COBERTURA D2 TRÍPLICE VIRAL | I2: DOSES APLICADAS D2 VARICELA | J2: COBERTURA D2 VARICELA | K2: DOSES APLICADAS REF PNEUMO | L2: COBERTURA REF PNEUMO | M2: DOSES APLICADAS REF MENINGO | N2: COBERTURA REF MENINGO | O2: DOSES APLICADAS REF POLIO | P2: COBERTURA REF POLIO | Q2: DOSES APLICADAS R1 TRÍPLICE BACTERIANA | R2: COBERTURA R1 TRÍPLICE BACTERIANA | S2: DOSES APLICADAS REF FEBRE AMARELA | T2: COBERTURA REF FEBRE AMARELA | U2: DOSES APLICADAS R2 TRÍPLICE BACTERIANA | V2: COBERTURA R2 TRÍPLICE BACTERIANA
A3: Metropolitana | B3: Afonso Cláudio | C3: 364 | D3: 32 | E3: 416 | F3: =(E3/12)*1 -> 34.66666667 | G3: 39 | H3: =G3/D3 -> 1.21875 | I3: 1 | J3: =I3/F3 -> 0.02884615385 | K3: 28 | L3: =K3/D3 -> 0.875 | M3: 30 | N3: =M3/D3 -> 0.9375 | O3: 50 | P3: =O3/D3 -> 1.5625 | Q3: 38 | R3: =Q3/D3 -> 1.1875 | S3: 28 | T3: =S3/F3 -> 0.8076923077 | U3: 24 | V3: =U3/F3 -> 0.6923076923
A4: Norte | B4: Água Doce do Norte | C4: 197 | D4: 26 | E4: 151 | F4: =(E4/12)*1 -> 12.58333333 | G4: 11 | H4: 0.4230769231 | I4: 6 | J4: 0.4768211921 | K4: 14 | L4: 0.5384615385 | M4: 14 | N4: 0.5384615385 | O4: 15 | P4: 0.5769230769 | Q4: 13 | R4: 0.5 | S4: 9 | T4: 0.7152317881 | U4: 13 | V4: 1.033112583
A5: Central | B5: Águia Branca | C5: 146 | D5: 11 | E5: 129 | F5: 10.75 | G5: 18 | H5: 1.636363636 | I5: 0 | J5: 0 | K5: 13 | L5: 1.181818182 | M5: 13 | N5: 1.181818182 | O5: 21 | P5: 1.909090909 | Q5: 19 | R5: 1.727272727 | S5: 8 | T5: 0.7441860465 | U5: 9 | V5: 0.8372093023
A6: Sul | B6: Alegre | C6: 291 | D6: 21 | E6: 372 | F6: 31 | G6: 35 | H6: 1.666666667 | I6: 2 | J6: 0.06451612903 | K6: 28 | L6: 1.333333333 | M6: 26 | N6: 1.238095238 | O6: 41 | P6: 1.952380952 | Q6: 33 | R6: 1.571428571 | S6: 15 | T6: 0.4838709677 | U6: 18 | V6: 0.5806451613
A7: Sul | B7: Alfredo Chaves | C7: 116 | D7: 14 | E7: 138 | F7: 11.5 | G7: 21 | H7: 1.5 | I7: 1 | J7: 0.08695652174 | K7: 18 | L7: 1.285714286 | M7: 20 | N7: 1.428571429 | O7: 28 | P7: 2 | Q7: 22 | R7: 1.571428571 | S7: 23 | T7: 2 | U7: 18 | V7: 1.565217391
A8: Central | B8: Alto Rio Novo | C8: 86 | D8: 6 | E8: 102 | F8: 8.5 | G8: 15 | H8: 2.5 | I8: 5 | J8: 0.5882352941 | K8: 7 | L8: 1.166666667 | M8: 8 | N8: 1.333333333 | O8: 8 | P8: 1.333333333 | Q8: 8 | R8: 1.333333333 | S8: 5 | T8: 0.5882352941 | U8: 5 | V8: 0.5882352941
A9: Sul | B9: Anchieta | C9: 349 | D9: 34 | E9: 390 | F9: 32.5 | G9: 25 | H9: 0.7352941176 | I9: 0 | J9: 0 | K9: 35 | L9: 1.029411765 | M9: 34 | N9: 1 | O9: 48 | P9: 1.411764706 | Q9: 36 | R9: 1.058823529 | S9: 22 | T9: 0.6769230769 | U9: 32 | V9: 0.9846153846
A10: Sul | B10: Apiacá | C10: 56 | D10: 4 | E10: 90 | F10: 7.5 | G10: 2 | H10: 0.5 | I10: 0 | J10: 0 | K10: 7 | L10: 1.75 | M10: 7 | N10: 1.75 | O10: 1 | P10: 0.25 | Q10: 1 | R10: 0.25 | S10: 0 | T10: 0 | U10: 2 | V10: 0.2666666667
A11: Metropolitana | B11: Aracruz | C11: 1384 | D11: 106 | E11: 1420 | F11: 118.3333333 | G11: 161 | H11: 1.518867925 | I11: 39 | J11: 0.3295774648 | K11: 145 | L11: 1.367924528 | M11: 144 | N11: 1.358490566 | O11: 201 | P11: 1.896226415 | Q11: 139 | R11: 1.311320755 | S11: 97 | T11: 0.8197183099 | U11: 133 | V11: 1.123943662
A12: Sul | B12: Atilio Vivacqua | C12: 148 | D12: 15 | E12: 138 | F12: 11.5 | G12: 8 | H12: 0.5333333333 | I12: 0 | J12: 0 | K12: 15 | L12: 1 | M12: 15 | N12: 1 | O12: 7 | P12: 0.4666666667 | Q12: 5 | R12: 0.3333333333 | S12: 3 | T12: 0.2608695652 | U12: 10 | V12: 0.8695652174
A13: Central | B13: Baixo Guandu | C13: 332 | D13: 27 | E13: 427 | F13: 35.58333333 | G13: 33 | H13: 1.222222222 | I13: 27 | J13: 0.7587822014 | K13: 41 | L13: 1.518518519 | M13: 39 | N13: 1.444444444 | O13: 54 | P13: 2 | Q13: 46 | R13: 1.703703704 | S13: 20 | T13: 0.5620608899 | U13: 32 | V13: 0.8992974239
A14: Norte | B14: Barra de São Francisco | C14: 571 | D14: 46 | E14: 589 | F14: 49.08333333 | G14: 41 | H14: 0.8913043478 | I14: 0 | J14: 0 | K14: 39 | L14: 0.847826087 | M14: 43 | N14: 0.9347826087 | O14: 43 | P14: 0.9347826087 | Q14: 35 | R14: 0.7608695652 | S14: 35 | T14: 0.7130730051 | U14: 36 | V14: 0.7334465195
A15: Norte | B15: Boa Esperança | C15: 202 | D15: 16 | E15: 200 | F15: 16.66666667 | G15: 18 | H15: 1.125 | I15: 10 | J15: 0.6 | K15: 19 | L15: 1.1875 | M15: 22 | N15: 1.375 | O15: 19 | P15: 1.1875 | Q15: 13 | R15: 0.8125 | S15: 5 | T15: 0.3 | U15: 15 | V15: 0.9
A16: Sul | B16: Bom Jesus do Norte | C16: 68 | D16: 10 | E16: 146 | F16: 12.16666667 | G16: 2 | H16: 0.2 | I16: 0 | J16: 0 | K16: 10 | L16: 1 | M16: 10 | N16: 1 | O16: 12 | P16: 1.2 | Q16: 10 | R16: 1 | S16: 11 | T16: 0.904109589 | U16: 15 | V16: 1.232876712
A17: Metropolitana | B17: Brejetuba | C17: 203 | D17: 22 | E17: 169 | F17: 14.08333333 | G17: 2 | H17: 0.09090909091 | I17: 6 | J17: 0.426035503 | K17: 26 | L17: 1.181818182 | M17: 26 | N17: 1.181818182 | O17: 9 | P17: 0.4090909091 | Q17: 9 | R17: 0.4090909091 | S17: 8 | T17: 0.5680473373 | U17: 7 | V17: 0.4970414201
A18: Sul | B18: Cachoeiro de Itapemirim | C18: 2318 | D18: 199 | E18: 2417 | F18: 201.4166667 | G18: 256 | H18: 1.286432161 | I18: 17 | J18: 0.08440215143 | K18: 238 | L18: 1.195979899 | M18: 245 | N18: 1.231155779 | O18: 343 | P18: 1.72361809 | Q18: 246 | R18: 1.236180905 | S18: 257 | T18: 1.275961936 | U18: 308 | V18: 1.529168391
A19: Metropolitana | B19: Cariacica | C19: 4755 | D19: 397 | E19: 5005 | F19: 417.0833333 | G19: 393 | H19: 0.9899244332 | I19: 30 | J19: 0.07192807193 | K19: 464 | L19: 1.168765743 | M19: 458 | N19: 1.153652393 | O19: 572 | P19: 1.440806045 | Q19: 403 | R19: 1.01511335 | S19: 544 | T19: 1.304295704 | U19: 726 | V19: 1.740659341
A20: Sul | B20: Castelo | C20: 421 | D20: 39 | E20: 399 | F20: 33.25 | G20: 38 | H20: 0.9743589744 | I20: 34 | J20: 1.022556391 | K20: 32 | L20: 0.8205128205 | M20: 34 | N20: 0.8717948718 | O20: 41 | P20: 1.051282051 | Q20: 35 | R20: 0.8974358974 | S20: 35 | T20: 1.052631579 | U20: 30 | V20: 0.9022556391
A21: Central | B21: Colatina | C21: 1493 | D21: 136 | E21: 1561 | F21: 130.0833333 | G21: 115 | H21: 0.8455882353 | I21: 68 | J21: 0.5227418322 | K21: 132 | L21: 0.9705882353 | M21: 153 | N21: 1.125 | O21: 155 | P21: 1.139705882 | Q21: 107 | R21: 0.7867647059 | S21: 74 | T21: 0.5688661115 | U21: 98 | V21: 0.7533632287
A22: Norte | B22: Conceição da Barra | C22: 374 | D22: 25 | E22: 391 | F22: 32.58333333 | G22: 40 | H22: 1.6 | I22: 5 | J22: 0.1534526854 | K22: 42 | L22: 1.68 | M22: 48 | N22: 1.92 | O22: 48 | P22: 1.92 | Q22: 35 | R22: 1.4 | S22: 39 | T22: 1.196930946 | U22: 44 | V22: 1.350383632
A23: Metropolitana | B23: Conceição do Castelo | C23: 161 | D23: 19 | E23: 144 | F23: 12 | G23: 14 | H23: 0.7368421053 | I23: 0 | J23: 0 | K23: 9 | L23: 0.4736842105 | M23: 8 | N23: 0.4210526316 | O23: 13 | P23: 0.6842105263 | Q23: 14 | R23: 0.7368421053 | S23: 16 | T23: 1.333333333 | U23: 13 | V23: 1.083333333
A24: Sul | B24: Divino de São Lourenço | C24: 55 | D24: 8 | E24: 68 | F24: 5.666666667 | G24: 6 | H24: 0.75 | I24: 0 | J24: 0 | K24: 7 | L24: 0.875 | M24: 7 | N24: 0.875 | O24: 6 | P24: 0.75 | Q24: 6 | R24: 0.75 | S24: 1 | T24: 0.1764705882 | U24: 3 | V24: 0.5294117647
A25: Metropolitana | B25: Domingos Martins | C25: 419 | D25: 34 | E25: 411 | F25: 34.25 | G25: 43 | H25: 1.264705882 | I25: 0 | J25: 0 | K25: 37 | L25: 1.088235294 | M25: 38 | N25: 1.117647059 | O25: 49 | P25: 1.441176471 | Q25: 34 | R25: 1 | S25: 18 | T25: 0.5255474453 | U25: 32 | V25: 0.9343065693
A26: Sul | B26: Dores do Rio Preto | C26: 89 | D26: 7 | E26: 92 | F26: 7.666666667 | G26: 6 | H26: 0.8571428571 | I26: 6 | J26: 0.7826086957 | K26: 5 | L26: 0.7142857143 | M26: 5 | N26: 0.7142857143 | O26: 12 | P26: 1.714285714 | Q26: 11 | R26: 1.571428571 | S26: 7 | T26: 0.9130434783 | U26: 7 | V26: 0.9130434783
A27: Norte | B27: Ecoporanga | C27: 263 | D27: 22 | E27: 283 | F27: 23.58333333 | G27: 14 | H27: 0.6363636364 | I27: 15 | J27: 0.6360424028 | K27: 17 | L27: 0.7727272727 | M27: 17 | N27: 0.7727272727 | O27: 19 | P27: 0.8636363636 | Q27: 14 | R27: 0.6363636364 | S27: 20 | T27: 0.8480565371 | U27: 29 | V27: 1.229681979
A28: Metropolitana | B28: Fundão | C28: 218 | D28: 22 | E28: 218 | F28: 18.16666667 | G28: 18 | H28: 0.8181818182 | I28: 16 | J28: 0.880733945 | K28: 20 | L28: 0.9090909091 | M28: 21 | N28: 0.9545454545 | O28: 19 | P28: 0.8636363636 | Q28: 17 | R28: 0.7727272727 | S28: 17 | T28: 0.9357798165 | U28: 21 | V28: 1.155963303
A29: Central | B29: Governador Lindenberg | C29: 116 | D29: 12 | E29: 142 | F29: 11.83333333 | G29: 11 | H29: 0.9166666667 | I29: 0 | J29: 0 | K29: 12 | L29: 1 | M29: 10 | N29: 0.8333333333 | O29: 11 | P29: 0.9166666667 | Q29: 9 | R29: 0.75 | S29: 11 | T29: 0.9295774648 | U29: 16 | V29: 1.352112676
A30: Sul | B30: Guaçuí | C30: 394 | D30: 37 | E30: 407 | F30: 33.91666667 | G30: 32 | H30: 0.8648648649 | I30: 0 | J30: 0 | K30: 37 | L30: 1 | M30: 38 | N30: 1.027027027 | O30: 37 | P30: 1 | Q30: 31 | R30: 0.8378378378 | S30: 30 | T30: 0.8845208845 | U30: 23 | V30: 0.6781326781
A31: Metropolitana | B31: Guarapari | C31: 1723 | D31: 132 | E31: 1557 | F31: 129.75 | G31: 166 | H31: 1.257575758 | I31: 18 | J31: 0.1387283237 | K31: 150 | L31: 1.136363636 | M31: 150 | N31: 1.136363636 | O31: 234 | P31: 1.772727273 | Q31: 160 | R31: 1.212121212 | S31: 99 | T31: 0.7630057803 | U31: 149 | V31: 1.148362235
A32: Metropolitana | B32: Ibatiba | C32: 345 | D32: 31 | E32: 354 | F32: 29.5 | G32: 60 | H32: 1.935483871 | I32: 3 | J32: 0.1016949153 | K32: 20 | L32: 0.6451612903 | M32: 21 | N32: 0.6774193548 | O32: 62 | P32: 2 | Q32: 33 | R32: 1.064516129 | S32: 32 | T32: 1.084745763 | U32: 39 | V32: 1.322033898
A33: Metropolitana | B33: Ibiraçu | C33: 161 | D33: 17 | E33: 160 | F33: 13.33333333 | G33: 10 | H33: 0.5882352941 | I33: 5 | J33: 0.375 | K33: 10 | L33: 0.5882352941 | M33: 10 | N33: 0.5882352941 | O33: 13 | P33: 0.7647058824 | Q33: 13 | R33: 0.7647058824 | S33: 6 | T33: 0.45 | U33: 7 | V33: 0.525
A34: Sul | B34: Ibitirama | C34: 149 | D34: 13 | E34: 148 | F34: 12.33333333 | G34: 18 | H34: 1.384615385 | I34: 8 | J34: 0.6486486486 | K34: 8 | L34: 0.6153846154 | M34: 5 | N34: 0.3846153846 | O34: 18 | P34: 1.384615385 | Q34: 10 | R34: 0.7692307692 | S34: 8 | T34: 0.6486486486 | U34: 5 | V34: 0.4054054054
A35: Sul | B35: Iconha | C35: 120 | D35: 9 | E35: 156 | F35: 13 | G35: 26 | H35: =G35/D35 -> 2.888888889 | I35: 0 | J35: =I35/F35 -> 0 | K35: 12 | L35: =K35/D35 -> 1.333333333 | M35: 11 | N35: =M35/D35 -> 1.222222222 | O35: 20 | P35: =O35/D35 -> 2.222222222 | Q35: 16 | R35: =Q35/D35 -> 1.777777778 | S35: 5 | T35: =S35/F35 -> 0.3846153846 | U35: 7 | V35: =U35/F35 -> 0.5384615385
A36: Sul | B36: Irupi | C36: 157 | D36: 19 | E36: 200 | F36: 16.66666667 | G36: 15 | H36: 0.7894736842 | I36: 6 | J36: 0.36 | K36: 17 | L36: 0.8947368421 | M36: 17 | N36: 0.8947368421 | O36: 16 | P36: 0.8421052632 | Q36: 15 | R36: 0.7894736842 | S36: 6 | T36: 0.36 | U36: 13 | V36: 0.78
A37: Metropolitana | B37: Itaguaçu | C37: 137 | D37: 7 | E37: 154 | F37: 12.83333333 | G37: 11 | H37: 1.571428571 | I37: 1 | J37: 0.07792207792 | K37: 12 | L37: 1.714285714 | M37: 13 | N37: 1.857142857 | O37: 17 | P37: 2.428571429 | Q37: 12 | R37: 1.714285714 | S37: 15 | T37: 1.168831169 | U37: 8 | V37: 0.6233766234
A38: Sul | B38: Itapemirim | C38: 498 | D38: 40 | E38: 556 | F38: 46.33333333 | G38: 20 | H38: 0.5 | I38: 9 | J38: 0.1942446043 | K38: 23 | L38: 0.575 | M38: 24 | N38: 0.6 | O38: 25 | P38: 0.625 | Q38: 22 | R38: 0.55 | S38: 9 | T38: 0.1942446043 | U38: 10 | V38: 0.2158273381
A39: Metropolitana | B39: Itarana | C39: 137 | D39: 12 | E39: 128 | F39: 10.66666667 | G39: 13 | H39: 1.083333333 | I39: 0 | J39: 0 | K39: 10 | L39: 0.8333333333 | M39: 10 | N39: 0.8333333333 | O39: 13 | P39: 1.083333333 | Q39: 11 | R39: 0.9166666667 | S39: 6 | T39: 0.5625 | U39: 10 | V39: 0.9375
A40: Sul | B40: Iúna | C40: 427 | D40: 33 | E40: 410 | F40: 34.16666667 | G40: 43 | H40: 1.303030303 | I40: 0 | J40: 0 | K40: 34 | L40: 1.03030303 | M40: 36 | N40: 1.090909091 | O40: 55 | P40: 1.666666667 | Q40: 38 | R40: 1.151515152 | S40: 42 | T40: 1.229268293 | U40: 50 | V40: 1.463414634
A41: Norte | B41: Jaguaré | C41: 468 | D41: 35 | E41: 445 | F41: 37.08333333 | G41: 27 | H41: 0.7714285714 | I41: 0 | J41: 0 | K41: 42 | L41: 1.2 | M41: 42 | N41: 1.2 | O41: 48 | P41: 1.371428571 | Q41: 42 | R41: 1.2 | S41: 14 | T41: 0.3775280899 | U41: 25 | V41: 0.6741573034
A42: Sul | B42: Jerônimo Monteiro | C42: 143 | D42: 10 | E42: 157 | F42: 13.08333333 | G42: 13 | H42: 1.3 | I42: 6 | J42: 0.4585987261 | K42: 16 | L42: 1.6 | M42: 15 | N42: 1.5 | O42: 28 | P42: 2.8 | Q42: 19 | R42: 1.9 | S42: 16 | T42: 1.222929936 | U42: 18 | V42: 1.375796178
A43: Metropolitana | B43: João Neiva | C43: 156 | D43: 10 | E43: 142 | F43: 11.83333333 | G43: 11 | H43: 1.1 | I43: 14 | J43: 1.183098592 | K43: 15 | L43: 1.5 | M43: 16 | N43: 1.6 | O43: 14 | P43: 1.4 | Q43: 13 | R43: 1.3 | S43: 13 | T43: 1.098591549 | U43: 13 | V43: 1.098591549
A44: Metropolitana | B44: Laranja da Terra | C44: 98 | D44: 4 | E44: 133 | F44: 11.08333333 | G44: 15 | H44: 3.75 | I44: 10 | J44: 0.9022556391 | K44: 5 | L44: 1.25 | M44: 5 | N44: 1.25 | O44: 11 | P44: 2.75 | Q44: 6 | R44: 1.5 | S44: 13 | T44: 1.172932331 | U44: 16 | V44: 1.443609023
A45: Central | B45: Linhares | C45: 2598 | D45: 201 | E45: 2452 | F45: 204.3333333 | G45: 159 | H45: 0.7910447761 | I45: 54 | J45: 0.264274062 | K45: 178 | L45: 0.8855721393 | M45: 203 | N45: 1.009950249 | O45: 225 | P45: 1.119402985 | Q45: 187 | R45: 0.9303482587 | S45: 106 | T45: 0.5187601958 | U45: 155 | V45: 0.7585644372
A46: Central | B46: Mantenópolis | C46: 139 | D46: 14 | E46: 166 | F46: 13.83333333 | G46: 12 | H46: 0.8571428571 | I46: 7 | J46: 0.5060240964 | K46: 13 | L46: 0.9285714286 | M46: 15 | N46: 1.071428571 | O46: 12 | P46: 0.8571428571 | Q46: 9 | R46: 0.6428571429 | S46: 9 | T46: 0.6506024096 | U46: 18 | V46: 1.301204819
A47: Sul | B47: Marataízes | C47: 567 | D47: 53 | E47: 579 | F47: 48.25 | G47: 32 | H47: 0.6037735849 | I47: 15 | J47: 0.310880829 | K47: 48 | L47: 0.9056603774 | M47: 48 | N47: 0.9056603774 | O47: 44 | P47: 0.8301886792 | Q47: 42 | R47: 0.7924528302 | S47: 30 | T47: 0.621761658 | U47: 39 | V47: 0.8082901554
A48: Metropolitana | B48: Marechal Floriano | C48: 201 | D48: 17 | E48: 236 | F48: 19.66666667 | G48: 29 | H48: 1.705882353 | I48: 7 | J48: 0.3559322034 | K48: 20 | L48: 1.176470588 | M48: 17 | N48: 1 | O48: 32 | P48: 1.882352941 | Q48: 26 | R48: 1.529411765 | S48: 9 | T48: 0.4576271186 | U48: 16 | V48: 0.813559322
A49: Central | B49: Marilândia | C49: 147 | D49: 11 | E49: 164 | F49: 13.66666667 | G49: 12 | H49: 1.090909091 | I49: 1 | J49: 0.07317073171 | K49: 12 | L49: 1.090909091 | M49: 12 | N49: 1.090909091 | O49: 14 | P49: 1.272727273 | Q49: 12 | R49: 1.090909091 | S49: 13 | T49: 0.9512195122 | U49: 9 | V49: 0.6585365854
A50: Sul | B50: Mimoso do Sul | C50: 254 | D50: 17 | E50: 276 | F50: 23 | G50: 28 | H50: 1.647058824 | I50: 1 | J50: 0.04347826087 | K50: 17 | L50: 1 | M50: 15 | N50: 0.8823529412 | O50: 31 | P50: 1.823529412 | Q50: 27 | R50: 1.588235294 | S50: 13 | T50: 0.5652173913 | U50: 15 | V50: 0.652173913
A51: Norte | B51: Montanha | C51: 209 | D51: 18 | E51: 278 | F51: 23.16666667 | G51: 33 | H51: 1.833333333 | I51: 5 | J51: 0.2158273381 | K51: 23 | L51: 1.277777778 | M51: 27 | N51: 1.5 | O51: 23 | P51: 1.277777778 | Q51: 25 | R51: 1.388888889 | S51: 20 | T51: 0.8633093525 | U51: 27 | V51: 1.165467626
A52: Norte | B52: Mucurici | C52: 66 | D52: 3 | E52: 97 | F52: 8.083333333 | G52: 14 | H52: 4.666666667 | I52: 0 | J52: 0 | K52: 5 | L52: 1.666666667 | M52: 5 | N52: 1.666666667 | O52: 17 | P52: 5.666666667 | Q52: 12 | R52: 4 | S52: 2 | T52: 0.2474226804 | U52: 2 | V52: 0.2474226804
A53: Sul | B53: Muniz Freire | C53: 203 | D53: 17 | E53: 275 | F53: 22.91666667 | G53: 25 | H53: 1.470588235 | I53: 1 | J53: 0.04363636364 | K53: 19 | L53: 1.117647059 | M53: 19 | N53: 1.117647059 | O53: 22 | P53: 1.294117647 | Q53: 20 | R53: 1.176470588 | S53: 13 | T53: 0.5672727273 | U53: 14 | V53: 0.6109090909
A54: Sul | B54: Muqui | C54: 139 | D54: 13 | E54: 152 | F54: 12.66666667 | G54: 15 | H54: 1.153846154 | I54: 0 | J54: 0 | K54: 17 | L54: 1.307692308 | M54: 17 | N54: 1.307692308 | O54: 20 | P54: 1.538461538 | Q54: 16 | R54: 1.230769231 | S54: 11 | T54: 0.8684210526 | U54: 11 | V54: 0.8684210526
A55: Norte | B55: Nova Venécia | C55: 643 | D55: 56 | E55: 656 | F55: 54.66666667 | G55: 64 | H55: 1.142857143 | I55: 41 | J55: 0.75 | K55: 53 | L55: 0.9464285714 | M55: 54 | N55: 0.9642857143 | O55: 74 | P55: 1.321428571 | Q55: 55 | R55: 0.9821428571 | S55: 25 | T55: 0.4573170732 | U55: 42 | V55: 0.7682926829
A56: Central | B56: Pancas | C56: 197 | D56: 14 | E56: 244 | F56: 20.33333333 | G56: 19 | H56: 1.357142857 | I56: 0 | J56: 0 | K56: 14 | L56: 1 | M56: 13 | N56: 0.9285714286 | O56: 21 | P56: 1.5 | Q56: 18 | R56: 1.285714286 | S56: 5 | T56: 0.2459016393 | U56: 8 | V56: 0.393442623
A57: Norte | B57: Pedro Canário | C57: 327 | D57: 27 | E57: 338 | F57: 28.16666667 | G57: 36 | H57: 1.333333333 | I57: 27 | J57: 0.9585798817 | K57: 27 | L57: 1 | M57: 27 | N57: 1 | O57: 45 | P57: 1.666666667 | Q57: 28 | R57: 1.037037037 | S57: 26 | T57: 0.9230769231 | U57: 31 | V57: 1.100591716
A58: Norte | B58: Pinheiros | C58: 320 | D58: 26 | E58: 383 | F58: 31.91666667 | G58: 33 | H58: 1.269230769 | I58: 16 | J58: 0.501305483 | K58: 31 | L58: 1.192307692 | M58: 31 | N58: 1.192307692 | O58: 33 | P58: 1.269230769 | Q58: 24 | R58: 0.9230769231 | S58: 15 | T58: 0.4699738903 | U58: 27 | V58: 0.8459530026
A59: Sul | B59: Piúma | C59: 290 | D59: 19 | E59: 311 | F59: 25.91666667 | G59: 19 | H59: 1 | I59: 1 | J59: 0.038585209 | K59: 28 | L59: 1.473684211 | M59: 31 | N59: 1.631578947 | O59: 23 | P59: 1.210526316 | Q59: 13 | R59: 0.6842105263 | S59: 24 | T59: 0.9260450161 | U59: 29 | V59: 1.118971061
A60: Norte | B60: Ponto Belo | C60: 78 | D60: 5 | E60: 85 | F60: 7.083333333 | G60: 10 | H60: 2 | I60: 5 | J60: 0.7058823529 | K60: 2 | L60: 0.4 | M60: 2 | N60: 0.4 | O60: 9 | P60: 1.8 | Q60: 8 | R60: 1.6 | S60: 5 | T60: 0.7058823529 | U60: 5 | V60: 0.7058823529
A61: Sul | B61: Presidente Kennedy | C61: 204 | D61: 14 | E61: 239 | F61: 19.91666667 | G61: 13 | H61: 0.9285714286 | I61: 0 | J61: 0 | K61: 21 | L61: 1.5 | M61: 17 | N61: 1.214285714 | O61: 21 | P61: 1.5 | Q61: 18 | R61: 1.285714286 | S61: 24 | T61: 1.205020921 | U61: 21 | V61: 1.054393305
A62: Central | B62: Rio Bananal | C62: 291 | D62: 21 | E62: 229 | F62: 19.08333333 | G62: 39 | H62: 1.857142857 | I62: 15 | J62: 0.7860262009 | K62: 20 | L62: 0.9523809524 | M62: 23 | N62: 1.095238095 | O62: 25 | P62: 1.19047619 | Q62: 24 | R62: 1.142857143 | S62: 23 | T62: 1.205240175 | U62: 20 | V62: 1.048034934
A63: Sul | B63: Rio Novo do Sul | C63: 107 | D63: 11 | E63: 144 | F63: 12 | G63: 14 | H63: 1.272727273 | I63: 13 | J63: 1.083333333 | K63: 14 | L63: 1.272727273 | M63: 14 | N63: 1.272727273 | O63: 18 | P63: 1.636363636 | Q63: 14 | R63: 1.272727273 | S63: 8 | T63: 0.6666666667 | U63: 11 | V63: 0.9166666667
A64: Metropolitana | B64: Santa Leopoldina | C64: 81 | D64: 6 | E64: 155 | F64: 12.91666667 | G64: 8 | H64: 1.333333333 | I64: 8 | J64: 0.6193548387 | K64: 9 | L64: 1.5 | M64: 9 | N64: 1.5 | O64: 12 | P64: 2 | Q64: 8 | R64: 1.333333333 | S64: 5 | T64: 0.3870967742 | U64: 13 | V64: 1.006451613
A65: Metropolitana | B65: Santa Maria de Jetibá | C65: 682 | D65: 55 | E65: 685 | F65: 57.08333333 | G65: 62 | H65: 1.127272727 | I65: 20 | J65: 0.3503649635 | K65: 62 | L65: 1.127272727 | M65: 62 | N65: 1.127272727 | O65: 77 | P65: 1.4 | Q65: 60 | R65: 1.090909091 | S65: 13 | T65: 0.2277372263 | U65: 38 | V65: 0.6656934307
A66: Metropolitana | B66: Santa Teresa | C66: 300 | D66: 24 | E66: 260 | F66: 21.66666667 | G66: 26 | H66: 1.083333333 | I66: 4 | J66: 0.1846153846 | K66: 25 | L66: 1.041666667 | M66: 29 | N66: 1.208333333 | O66: 30 | P66: 1.25 | Q66: 26 | R66: 1.083333333 | S66: 11 | T66: 0.5076923077 | U66: 18 | V66: 0.8307692308
A67: Central | B67: São Domingos do Norte | C67: 119 | D67: 10 | E67: 117 | F67: 9.75 | G67: 12 | H67: =G67/D67 -> 1.2 | I67: 0 | J67: =I67/F67 -> 0 | K67: 13 | L67: =K67/D67 -> 1.3 | M67: 13 | N67: =M67/D67 -> 1.3 | O67: 14 | P67: =O67/D67 -> 1.4 | Q67: 10 | R67: =Q67/D67 -> 1 | S67: 3 | T67: =S67/F67 -> 0.3076923077 | U67: 6 | V67: =U67/F67 -> 0.6153846154
A68: Central | B68: São Gabriel da Palha | C68: 437 | D68: 34 | E68: 426 | F68: =(E68/12)*1 -> 35.5 | G68: 45 | H68: 1.323529412 | I68: 30 | J68: 0.8450704225 | K68: 28 | L68: 0.8235294118 | M68: 32 | N68: 0.9411764706 | O68: 28 | P68: 0.8235294118 | Q68: 27 | R68: 0.7941176471 | S68: 23 | T68: 0.6478873239 | U68: 24 | V68: 0.676056338
A69: Sul | B69: São José do Calçado | C69: 95 | D69: 13 | E69: 150 | F69: 12.5 | G69: 14 | H69: 1.076923077 | I69: 3 | J69: 0.24 | K69: 8 | L69: 0.6153846154 | M69: 7 | N69: 0.5384615385 | O69: 18 | P69: 1.384615385 | Q69: 14 | R69: 1.076923077 | S69: 9 | T69: 0.72 | U69: 21 | V69: 1.68
A70: Norte | B70: São Mateus | C70: 1896 | D70: 146 | E70: 1766 | F70: 147.1666667 | G70: 101 | H70: 0.6917808219 | I70: 18 | J70: 0.1223103058 | K70: 134 | L70: 0.9178082192 | M70: 137 | N70: 0.9383561644 | O70: 150 | P70: 1.02739726 | Q70: 106 | R70: 0.7260273973 | S70: 61 | T70: 0.4144960362 | U70: 98 | V70: 0.6659116648
A71: Central | B71: São Roque do Canaã | C71: 129 | D71: 15 | E71: 100 | F71: 8.333333333 | G71: 5 | H71: 0.3333333333 | I71: 7 | J71: 0.84 | K71: 15 | L71: 1 | M71: 16 | N71: 1.066666667 | O71: 3 | P71: 0.2 | Q71: 4 | R71: 0.2666666667 | S71: 2 | T71: 0.24 | U71: 7 | V71: 0.84
A72: Metropolitana | B72: Serra | C72: 7364 | D72: 639 | E72: 7550 | F72: 629.1666667 | G72: 596 | H72: 0.9327073552 | I72: 50 | J72: 0.07947019868 | K72: 610 | L72: 0.9546165884 | M72: 621 | N72: 0.9718309859 | O72: 733 | P72: 1.147104851 | Q72: 592 | R72: 0.9264475743 | S72: 594 | T72: 0.9441059603 | U72: 757 | V72: 1.203178808
A73: Central | B73: Sooretama | C73: 446 | D73: 40 | E73: 415 | F73: 34.58333333 | G73: 35 | H73: 0.875 | I73: 15 | J73: 0.4337349398 | K73: 34 | L73: 0.85 | M73: 32 | N73: 0.8 | O73: 39 | P73: 0.975 | Q73: 34 | R73: 0.85 | S73: 24 | T73: 0.6939759036 | U73: 19 | V73: 0.5493975904
A74: Sul | B74: Vargem Alta | C74: 250 | D74: 22 | E74: 278 | F74: 23.16666667 | G74: 18 | H74: 0.8181818182 | I74: 0 | J74: 0 | K74: 22 | L74: 1 | M74: 22 | N74: 1 | O74: 25 | P74: 1.136363636 | Q74: 21 | R74: 0.9545454545 | S74: 15 | T74: 0.6474820144 | U74: 21 | V74: 0.9064748201
A75: Metropolitana | B75: Venda Nova do Imigrante | C75: 362 | D75: 28 | E75: 328 | F75: 27.33333333 | G75: 33 | H75: 1.178571429 | I75: 0 | J75: 0 | K75: 31 | L75: 1.107142857 | M75: 28 | N75: 1 | O75: 36 | P75: 1.285714286 | Q75: 31 | R75: 1.107142857 | S75: 23 | T75: 0.8414634146 | U75: 22 | V75: 0.8048780488
A76: Metropolitana | B76: Viana | C76: 918 | D76: 80 | E76: 1064 | F76: 88.66666667 | G76: 48 | H76: 0.6 | I76: 2 | J76: 0.02255639098 | K76: 99 | L76: 1.2375 | M76: 100 | N76: 1.25 | O76: 86 | P76: 1.075 | Q76: 74 | R76: 0.925 | S76: 35 | T76: 0.3947368421 | U76: 97 | V76: 1.093984962
A77: Norte | B77: Vila Pavão | C77: 108 | D77: 3 | E77: 127 | F77: 10.58333333 | G77: 14 | H77: 4.666666667 | I77: 0 | J77: 0 | K77: 7 | L77: 2.333333333 | M77: 7 | N77: 2.333333333 | O77: 7 | P77: 2.333333333 | Q77: 7 | R77: 2.333333333 | S77: 6 | T77: 0.5669291339 | U77: 9 | V77: 0.8503937008
A78: Central | B78: Vila Valério | C78: 244 | D78: 17 | E78: 169 | F78: 14.08333333 | G78: 20 | H78: 1.176470588 | I78: 13 | J78: 0.9230769231 | K78: 21 | L78: 1.235294118 | M78: 16 | N78: 0.9411764706 | O78: 20 | P78: 1.176470588 | Q78: 16 | R78: 0.9411764706 | S78: 9 | T78: 0.6390532544 | U78: 15 | V78: 1.065088757
A79: Metropolitana | B79: Vila Velha | C79: 5476 | D79: 465 | E79: 5675 | F79: 472.9166667 | G79: 467 | H79: 1.004301075 | I79: 410 | J79: 0.8669603524 | K79: 447 | L79: 0.9612903226 | M79: 429 | N79: 0.9225806452 | O79: 554 | P79: 1.191397849 | Q79: 432 | R79: 0.9290322581 | S79: 436 | T79: 0.921938326 | U79: 488 | V79: 1.031894273
A80: Metropolitana | B80: Vitória | C80: 3504 | D80: 318 | E80: 3833 | F80: 319.4166667 | G80: 437 | H80: 1.374213836 | I80: 86 | J80: 0.2692408035 | K80: 339 | L80: 1.066037736 | M80: 330 | N80: 1.037735849 | O80: 567 | P80: 1.783018868 | Q80: 440 | R80: 1.383647799 | S80: 146 | T80: 0.4570832246 | U80: 344 | V80: 1.076963214
B82: Total Norte | C82: =SUMIF($A$3:$A$80,"Norte",C$3:C$80) -> 5722 | D82: =SUMIF($A$3:$A$80,"Norte",D$3:D$80) -> 454 | E82: =SUMIF($A$3:$A$80,"Norte",E$3:E$80) -> 5789 | F82: =SUMIF($A$3:$A$80,"Norte",F$3:F$80) -> 482.4166667 | G82: =SUMIF($A$3:$A$80,"Norte",G$3:G$80) -> 456 | H82: =G82/D82 -> 1.004405286 | I82: =SUMIF($A$3:$A$80,"Norte",I$3:I$80) -> 148 | J82: =I82/F82 -> 0.3067887373 | K82: =SUMIF($A$3:$A$80,"Norte",K$3:K$80) -> 455 | L82: =K82/D82 -> 1.002202643 | M82: =SUMIF($A$3:$A$80,"Norte",M$3:M$80) -> 476 | N82: =M82/D82 -> 1.04845815 | O82: =SUMIF($A$3:$A$80,"Norte",O$3:O$80) -> 550 | P82: =O82/D82 -> 1.211453744 | Q82: =SUMIF($A$3:$A$80,"Norte",Q$3:Q$80) -> 417 | R82: =Q82/D82 -> 0.9185022026 | S82: =SUMIF($A$3:$A$80,"Norte",S$3:S$80) -> 282 | T82: =S82/F82 -> 0.5845569183 | U82: =SUMIF($A$3:$A$80,"Norte",U$3:U$80) -> 403 | V82: =U82/F82 -> 0.83537744
B83: Total Central | C83: =SUMIF($A$3:$A$80,"Central",C$3:C$80) -> 6920 | D83: =SUMIF($A$3:$A$80,"Central",D$3:D$80) -> 569 | E83: =SUMIF($A$3:$A$80,"Central",E$3:E$80) -> 6843 | F83: =SUMIF($A$3:$A$80,"Central",F$3:F$80) -> 570.25 | G83: =SUMIF($A$3:$A$80,"Central",G$3:G$80) -> 550 | H83: =G83/D83 -> 0.9666080844 | I83: =SUMIF($A$3:$A$80,"Central",I$3:I$80) -> 242 | J83: =I83/F83 -> 0.424375274 | K83: =SUMIF($A$3:$A$80,"Central",K$3:K$80) -> 553 | L83: =K83/D83 -> 0.9718804921 | M83: =SUMIF($A$3:$A$80,"Central",M$3:M$80) -> 598 | N83: =M83/D83 -> 1.050966608 | O83: =SUMIF($A$3:$A$80,"Central",O$3:O$80) -> 650 | P83: =O83/D83 -> 1.142355009 | Q83: =SUMIF($A$3:$A$80,"Central",Q$3:Q$80) -> 530 | R83: =Q83/D83 -> 0.9314586995 | S83: =SUMIF($A$3:$A$80,"Central",S$3:S$80) -> 335 | T83: =S83/F83 -> 0.5874616396 | U83: =SUMIF($A$3:$A$80,"Central",U$3:U$80) -> 441 | V83: =U83/F83 -> 0.7733450241
B84: Total Metropolitana | C84: =SUMIF($A$3:$A$80,"Metropolitana",C$3:C$80) -> 29149 | D84: =SUMIF($A$3:$A$80,"Metropolitana",D$3:D$80) -> 2477 | E84: =SUMIF($A$3:$A$80,"Metropolitana",E$3:E$80) -> 30197 | F84: =SUMIF($A$3:$A$80,"Metropolitana",F$3:F$80) -> 2516.416667 | G84: =SUMIF($A$3:$A$80,"Metropolitana",G$3:G$80) -> 2662 | H84: =G84/D84 -> 1.074687122 | I84: =SUMIF($A$3:$A$80,"Metropolitana",I$3:I$80) -> 730 | J84: =I84/F84 -> 0.2900950426 | K84: =SUMIF($A$3:$A$80,"Metropolitana",K$3:K$80) -> 2593 | L84: =K84/D84 -> 1.046830844 | M84: =SUMIF($A$3:$A$80,"Metropolitana",M$3:M$80) -> 2575 | N84: =M84/D84 -> 1.039563989 | O84: =SUMIF($A$3:$A$80,"Metropolitana",O$3:O$80) -> 3404 | P84: =O84/D84 -> 1.374243036 | Q84: =SUMIF($A$3:$A$80,"Metropolitana",Q$3:Q$80) -> 2591 | R84: =Q84/D84 -> 1.046023415 | S84: =SUMIF($A$3:$A$80,"Metropolitana",S$3:S$80) -> 2184 | T84: =S84/F84 -> 0.8679007848 | U84: =SUMIF($A$3:$A$80,"Metropolitana",U$3:U$80) -> 2991 | V84: =U84/F84 -> 1.188594894
B85: Total Sul | C85: =SUMIF($A$3:$A$80,"sul",C$3:C$80) -> 7908 | D85: =SUMIF($A$3:$A$80,"sul",D$3:D$80) -> 691 | E85: =SUMIF($A$3:$A$80,"sul",E$3:E$80) -> 8688 | F85: =SUMIF($A$3:$A$80,"sul",F$3:F$80) -> 724 | G85: =SUMIF($A$3:$A$80,"sul",G$3:G$80) -> 744 | H85: =G85/D85 -> 1.076700434 | I85: =SUMIF($A$3:$A$80,"sul",I$3:I$80) -> 123 | J85: =I85/F85 -> 0.1698895028 | K85: =SUMIF($A$3:$A$80,"sul",K$3:K$80) -> 736 | L85: =K85/D85 -> 1.06512301 | M85: =SUMIF($A$3:$A$80,"sul",M$3:M$80) -> 739 | N85: =M85/D85 -> 1.069464544 | O85: =SUMIF($A$3:$A$80,"sul",O$3:O$80) -> 960 | P85: =O85/D85 -> 1.389290883 | Q85: =SUMIF($A$3:$A$80,"sul",Q$3:Q$80) -> 741 | R85: =Q85/D85 -> 1.0723589 | S85: =SUMIF($A$3:$A$80,"sul",S$3:S$80) -> 637 | T85: =S85/F85 -> 0.8798342541 | U85: =SUMIF($A$3:$A$80,"sul",U$3:U$80) -> 751 | V85: =U85/F85 -> 1.037292818
B86: Total Espírito Santo | C86: =SUM(C3:C80) -> 49699 | D86: =SUM(D3:D80) -> 4191 | E86: =SUM(E3:E80) -> 51517 | F86: =SUM(F3:F80) -> 4293.083333 | G86: =SUM(G3:G80) -> 4412 | H86: =G86/D86 -> 1.052732045 | I86: =SUM(I3:I80) -> 1243 | J86: =I86/F86 -> 0.2895354931 | K86: =SUM(K3:K80) -> 4337 | L86: =K86/D86 -> 1.034836555 | M86: =SUM(M3:M80) -> 4388 | N86: =M86/D86 -> 1.047005488 | O86: =SUM(O3:O80) -> 5564 | P86: =O86/D86 -> 1.327606776 | Q86: =SUM(Q3:Q80) -> 4279 | R86: =Q86/D86 -> 1.020997375 | S86: =SUM(S3:S80) -> 3438 | T86: =S86/F86 -> 0.8008230293 | U86: =SUM(U3:U80) -> 4586 | V86: =U86/F86 -> 1.068229905
A90: Fonte: Vacina e Confia, em 14 e 17 de Fevereiro de 2025.**
A91: **Dados referente às doses aplicadas no período de Janeiro 2025
A92: Cobertura Calculada por município de procedência da vacinação
A93: 1 População anual extraída do MS/SVS/DASIS - SINASC/DASIS/SVS/MS 2024 (hoje preliminares) referente ao período de Janeiro e Novembro de 2024 e SINASC/DASIS/SVS/MS 2023 referente ao período de Dezembro de 2023.
A94: ² População proporcional extraída do MS/SVS/DASIS - SINASC/DASIS/SVS/MS 2024 (hoje preliminares) referente ao período de Janeiro/ 2024.
A95: Sinasc, atualizado em 10/02/2025.
A96: ³ População anual e proporcional extraída do Censo IBGE 2022.
A98: Observações:
A99: 1. Imunobiológicos que foram recebidos parcialmente pelo estado no mês de Janeiro/2025, sendo distribuídos em quantidades reduzidas às regionais e municípios:
A100: SORO ANTIRRÁBICO HUMANO, IMUNOGLOBULINA ANTIRRÁBICA HUMANA, VACINA COVID-19 MODERNA (SPIKEVAX),VACINA TETRA VIRAL,VACINA CONTRA VARICELA
A101: 2. Imunobiológicos indisponíveis no mês de Janeiro/2025, não sendo possível a distribuição às regionais e municípios:
A102: VACINA TRÍPLICE ACELULAR (DTPa) - CRIE

Sheet CV REF 1A e 4A - residência
G1: D2 | K1: REFORÇOS 1 ANO | S1: REFORÇOS 4 ANOS
A2: Regional | B2: Município | C2: ¹População 1 ano anual | D2: ²População 1 ano proporcional | E2: ³População 4 anos anual | F2: ³População 4 anos proporcional | G2: DOSES APLICADAS D2 TRÍPLICE VIRAL | H2: COBERTURA D2 TRÍPLICE VIRAL | I2: DOSES APLICADAS D2 VARICELA | J2: COBERTURA D2 VARICELA | K2: DOSES APLICADAS REF PNEUMO | L2: COBERTURA REF PNEUMO | M2: DOSES APLICADAS REF MENINGO | N2: COBERTURA REF MENINGO | O2: DOSES APLICADAS REF POLIO | P2: COBERTURA REF POLIO | Q2: DOSES APLICADAS R1 TRÍPLICE BACTERIANA | R2: COBERTURA R1 TRÍPLICE BACTERIANA | S2: DOSES APLICADAS REF FEBRE AMARELA | T2: COBERTURA REF FEBRE AMARELA | U2: DOSES APLICADAS R2 TRÍPLICE BACTERIANA | V2: COBERTURA R2 TRÍPLICE BACTERIANA
A3: Metropolitana | B3: Afonso Cláudio | C3: 364 | D3: 32 | E3: 416 | F3: =(E3/12)*1 -> 34.66666667 | G3: 46 | H3: =G3/D3 -> 1.4375 | I3: 2 | J3: =I3/F3 -> 0.05769230769 | K3: 29 | L3: =K3/D3 -> 0.90625 | M3: 33 | N3: =M3/D3 -> 1.03125 | O3: 54 | P3: =O3/D3 -> 1.6875 | Q3: 41 | R3: =Q3/D3 -> 1.28125 | S3: 33 | T3: =S3/F3 -> 0.9519230769 | U3: 28 | V3: =U3/F3 -> 0.8076923077
A4: Norte | B4: Água Doce do Norte | C4: 197 | D4: 26 | E4: 151 | F4: =(E4/12)*1 -> 12.58333333 | G4: 13 | H4: 0.5 | I4: 6 | J4: 0.4768211921 | K4: 13 | L4: 0.5 | M4: 13 | N4: 0.5 | O4: 15 | P4: 0.5769230769 | Q4: 13 | R4: 0.5 | S4: 8 | T4: 0.6357615894 | U4: 13 | V4: 1.033112583
A5: Central | B5: Águia Branca | C5: 146 | D5: 11 | E5: 129 | F5: 10.75 | G5: 18 | H5: 1.636363636 | I5: 0 | J5: 0 | K5: 15 | L5: 1.363636364 | M5: 15 | N5: 1.363636364 | O5: 21 | P5: 1.909090909 | Q5: 19 | R5: 1.727272727 | S5: 7 | T5: 0.6511627907 | U5: 8 | V5: 0.7441860465
A6: Sul | B6: Alegre | C6: 291 | D6: 21 | E6: 372 | F6: 31 | G6: 34 | H6: 1.619047619 | I6: 5 | J6: 0.1612903226 | K6: 25 | L6: 1.19047619 | M6: 22 | N6: 1.047619048 | O6: 38 | P6: 1.80952381 | Q6: 32 | R6: 1.523809524 | S6: 20 | T6: 0.6451612903 | U6: 23 | V6: 0.7419354839
A7: Sul | B7: Alfredo Chaves | C7: 116 | D7: 14 | E7: 138 | F7: 11.5 | G7: 23 | H7: 1.642857143 | I7: 1 | J7: 0.08695652174 | K7: 18 | L7: 1.285714286 | M7: 18 | N7: 1.285714286 | O7: 31 | P7: 2.214285714 | Q7: 21 | R7: 1.5 | S7: 21 | T7: 1.826086957 | U7: 18 | V7: 1.565217391
A8: Central | B8: Alto Rio Novo | C8: 86 | D8: 6 | E8: 102 | F8: 8.5 | G8: 12 | H8: 2 | I8: 4 | J8: 0.4705882353 | K8: 7 | L8: 1.166666667 | M8: 8 | N8: 1.333333333 | O8: 6 | P8: 1 | Q8: 6 | R8: 1 | S8: 5 | T8: 0.5882352941 | U8: 5 | V8: 0.5882352941
A9: Sul | B9: Anchieta | C9: 349 | D9: 34 | E9: 390 | F9: 32.5 | G9: 27 | H9: 0.7941176471 | I9: 0 | J9: 0 | K9: 34 | L9: 1 | M9: 35 | N9: 1.029411765 | O9: 50 | P9: 1.470588235 | Q9: 38 | R9: 1.117647059 | S9: 22 | T9: 0.6769230769 | U9: 33 | V9: 1.015384615
A10: Sul | B10: Apiacá | C10: 56 | D10: 4 | E10: 90 | F10: 7.5 | G10: 2 | H10: 0.5 | I10: 0 | J10: 0 | K10: 6 | L10: 1.5 | M10: 6 | N10: 1.5 | O10: 2 | P10: 0.5 | Q10: 2 | R10: 0.5 | S10: 4 | T10: 0.5333333333 | U10: 4 | V10: 0.5333333333
A11: Metropolitana | B11: Aracruz | C11: 1384 | D11: 106 | E11: 1420 | F11: 118.3333333 | G11: 149 | H11: 1.405660377 | I11: 41 | J11: 0.3464788732 | K11: 140 | L11: 1.320754717 | M11: 141 | N11: 1.330188679 | O11: 188 | P11: 1.773584906 | Q11: 135 | R11: 1.273584906 | S11: 92 | T11: 0.7774647887 | U11: 127 | V11: 1.073239437
A12: Sul | B12: Atilio Vivacqua | C12: 148 | D12: 15 | E12: 138 | F12: 11.5 | G12: 7 | H12: 0.4666666667 | I12: 0 | J12: 0 | K12: 15 | L12: 1 | M12: 16 | N12: 1.066666667 | O12: 6 | P12: 0.4 | Q12: 5 | R12: 0.3333333333 | S12: 3 | T12: 0.2608695652 | U12: 12 | V12: 1.043478261
A13: Central | B13: Baixo Guandu | C13: 332 | D13: 27 | E13: 427 | F13: 35.58333333 | G13: 33 | H13: 1.222222222 | I13: 23 | J13: 0.6463700234 | K13: 40 | L13: 1.481481481 | M13: 38 | N13: 1.407407407 | O13: 54 | P13: 2 | Q13: 45 | R13: 1.666666667 | S13: 18 | T13: 0.5058548009 | U13: 32 | V13: 0.8992974239
A14: Norte | B14: Barra de São Francisco | C14: 571 | D14: 46 | E14: 589 | F14: 49.08333333 | G14: 39 | H14: 0.847826087 | I14: 2 | J14: 0.04074702886 | K14: 39 | L14: 0.847826087 | M14: 42 | N14: 0.9130434783 | O14: 42 | P14: 0.9130434783 | Q14: 32 | R14: 0.6956521739 | S14: 32 | T14: 0.6519524618 | U14: 34 | V14: 0.6926994907
A15: Norte | B15: Boa Esperança | C15: 202 | D15: 16 | E15: 200 | F15: 16.66666667 | G15: 18 | H15: 1.125 | I15: 10 | J15: 0.6 | K15: 18 | L15: 1.125 | M15: 23 | N15: 1.4375 | O15: 20 | P15: 1.25 | Q15: 14 | R15: 0.875 | S15: 6 | T15: 0.36 | U15: 17 | V15: 1.02
A16: Sul | B16: Bom Jesus do Norte | C16: 68 | D16: 10 | E16: 146 | F16: 12.16666667 | G16: 2 | H16: 0.2 | I16: 0 | J16: 0 | K16: 8 | L16: 0.8 | M16: 8 | N16: 0.8 | O16: 12 | P16: 1.2 | Q16: 10 | R16: 1 | S16: 2 | T16: 0.1643835616 | U16: 6 | V16: 0.4931506849
A17: Metropolitana | B17: Brejetuba | C17: 203 | D17: 22 | E17: 169 | F17: 14.08333333 | G17: 1 | H17: 0.04545454545 | I17: 7 | J17: 0.4970414201 | K17: 25 | L17: 1.136363636 | M17: 24 | N17: 1.090909091 | O17: 7 | P17: 0.3181818182 | Q17: 7 | R17: 0.3181818182 | S17: 8 | T17: 0.5680473373 | U17: 9 | V17: 0.6390532544
A18: Sul | B18: Cachoeiro de Itapemirim | C18: 2318 | D18: 199 | E18: 2417 | F18: 201.4166667 | G18: 255 | H18: 1.281407035 | I18: 15 | J18: 0.07447248655 | K18: 238 | L18: 1.195979899 | M18: 234 | N18: 1.175879397 | O18: 345 | P18: 1.733668342 | Q18: 248 | R18: 1.246231156 | S18: 267 | T18: 1.325610261 | U18: 315 | V18: 1.563922218
A19: Metropolitana | B19: Cariacica | C19: 4755 | D19: 397 | E19: 5005 | F19: 417.0833333 | G19: 389 | H19: 0.9798488665 | I19: 44 | J19: 0.1054945055 | K19: 465 | L19: 1.171284635 | M19: 453 | N19: 1.141057935 | O19: 567 | P19: 1.428211587 | Q19: 404 | R19: 1.017632242 | S19: 512 | T19: 1.227572428 | U19: 704 | V19: 1.687912088
A20: Sul | B20: Castelo | C20: 421 | D20: 39 | E20: 399 | F20: 33.25 | G20: 40 | H20: 1.025641026 | I20: 33 | J20: 0.992481203 | K20: 34 | L20: 0.8717948718 | M20: 35 | N20: 0.8974358974 | O20: 43 | P20: 1.102564103 | Q20: 36 | R20: 0.9230769231 | S20: 33 | T20: 0.992481203 | U20: 27 | V20: 0.8120300752
A21: Central | B21: Colatina | C21: 1493 | D21: 136 | E21: 1561 | F21: 130.0833333 | G21: 109 | H21: 0.8014705882 | I21: 66 | J21: 0.5073670724 | K21: 132 | L21: 0.9705882353 | M21: 141 | N21: 1.036764706 | O21: 150 | P21: 1.102941176 | Q21: 100 | R21: 0.7352941176 | S21: 76 | T21: 0.5842408712 | U21: 99 | V21: 0.7610506086
A22: Norte | B22: Conceição da Barra | C22: 374 | D22: 25 | E22: 391 | F22: 32.58333333 | G22: 39 | H22: 1.56 | I22: 6 | J22: 0.1841432225 | K22: 40 | L22: 1.6 | M22: 46 | N22: 1.84 | O22: 47 | P22: 1.88 | Q22: 33 | R22: 1.32 | S22: 40 | T22: 1.227621483 | U22: 41 | V22: 1.25831202
A23: Metropolitana | B23: Conceição do Castelo | C23: 161 | D23: 19 | E23: 144 | F23: 12 | G23: 10 | H23: 0.5263157895 | I23: 0 | J23: 0 | K23: 9 | L23: 0.4736842105 | M23: 8 | N23: 0.4210526316 | O23: 11 | P23: 0.5789473684 | Q23: 11 | R23: 0.5789473684 | S23: 17 | T23: 1.416666667 | U23: 13 | V23: 1.083333333
A24: Sul | B24: Divino de São Lourenço | C24: 55 | D24: 8 | E24: 68 | F24: 5.666666667 | G24: 6 | H24: 0.75 | I24: 0 | J24: 0 | K24: 7 | L24: 0.875 | M24: 7 | N24: 0.875 | O24: 7 | P24: 0.875 | Q24: 7 | R24: 0.875 | S24: 1 | T24: 0.1764705882 | U24: 3 | V24: 0.5294117647
A25: Metropolitana | B25: Domingos Martins | C25: 419 | D25: 34 | E25: 411 | F25: 34.25 | G25: 40 | H25: 1.176470588 | I25: 4 | J25: 0.1167883212 | K25: 38 | L25: 1.117647059 | M25: 39 | N25: 1.147058824 | O25: 46 | P25: 1.352941176 | Q25: 34 | R25: 1 | S25: 21 | T25: 0.6131386861 | U25: 33 | V25: 0.9635036496
A26: Sul | B26: Dores do Rio Preto | C26: 89 | D26: 7 | E26: 92 | F26: 7.666666667 | G26: 5 | H26: 0.7142857143 | I26: 6 | J26: 0.7826086957 | K26: 3 | L26: 0.4285714286 | M26: 3 | N26: 0.4285714286 | O26: 10 | P26: 1.428571429 | Q26: 9 | R26: 1.285714286 | S26: 9 | T26: 1.173913043 | U26: 7 | V26: 0.9130434783
A27: Norte | B27: Ecoporanga | C27: 263 | D27: 22 | E27: 283 | F27: 23.58333333 | G27: 14 | H27: 0.6363636364 | I27: 13 | J27: 0.5512367491 | K27: 17 | L27: 0.7727272727 | M27: 18 | N27: 0.8181818182 | O27: 19 | P27: 0.8636363636 | Q27: 14 | R27: 0.6363636364 | S27: 21 | T27: 0.890459364 | U27: 29 | V27: 1.229681979
A28: Metropolitana | B28: Fundão | C28: 218 | D28: 22 | E28: 218 | F28: 18.16666667 | G28: 17 | H28: 0.7727272727 | I28: 10 | J28: 0.5504587156 | K28: 21 | L28: 0.9545454545 | M28: 22 | N28: 1 | O28: 20 | P28: 0.9090909091 | Q28: 17 | R28: 0.7727272727 | S28: 15 | T28: 0.8256880734 | U28: 19 | V28: 1.04587156
A29: Central | B29: Governador Lindenberg | C29: 116 | D29: 12 | E29: 142 | F29: 11.83333333 | G29: 12 | H29: 1 | I29: 0 | J29: 0 | K29: 14 | L29: 1.166666667 | M29: 12 | N29: 1 | O29: 11 | P29: 0.9166666667 | Q29: 10 | R29: 0.8333333333 | S29: 10 | T29: 0.8450704225 | U29: 15 | V29: 1.267605634
A30: Sul | B30: Guaçuí | C30: 394 | D30: 37 | E30: 407 | F30: 33.91666667 | G30: 32 | H30: 0.8648648649 | I30: 1 | J30: 0.02948402948 | K30: 39 | L30: 1.054054054 | M30: 41 | N30: 1.108108108 | O30: 38 | P30: 1.027027027 | Q30: 32 | R30: 0.8648648649 | S30: 27 | T30: 0.7960687961 | U30: 21 | V30: 0.6191646192
A31: Metropolitana | B31: Guarapari | C31: 1723 | D31: 132 | E31: 1557 | F31: 129.75 | G31: 170 | H31: 1.287878788 | I31: 16 | J31: 0.1233140655 | K31: 159 | L31: 1.204545455 | M31: 159 | N31: 1.204545455 | O31: 233 | P31: 1.765151515 | Q31: 164 | R31: 1.242424242 | S31: 107 | T31: 0.8246628131 | U31: 146 | V31: 1.125240848
A32: Metropolitana | B32: Ibatiba | C32: 345 | D32: 31 | E32: 354 | F32: 29.5 | G32: 58 | H32: 1.870967742 | I32: 3 | J32: 0.1016949153 | K32: 20 | L32: 0.6451612903 | M32: 20 | N32: 0.6451612903 | O32: 59 | P32: 1.903225806 | Q32: 31 | R32: 1 | S32: 26 | T32: 0.8813559322 | U32: 32 | V32: 1.084745763
A33: Metropolitana | B33: Ibiraçu | C33: 161 | D33: 17 | E33: 160 | F33: 13.33333333 | G33: 13 | H33: 0.7647058824 | I33: 5 | J33: 0.375 | K33: 7 | L33: 0.4117647059 | M33: 7 | N33: 0.4117647059 | O33: 14 | P33: 0.8235294118 | Q33: 14 | R33: 0.8235294118 | S33: 6 | T33: 0.45 | U33: 7 | V33: 0.525
A34: Sul | B34: Ibitirama | C34: 149 | D34: 13 | E34: 148 | F34: 12.33333333 | G34: 15 | H34: 1.153846154 | I34: 8 | J34: 0.6486486486 | K34: 11 | L34: 0.8461538462 | M34: 8 | N34: 0.6153846154 | O34: 16 | P34: 1.230769231 | Q34: 9 | R34: 0.6923076923 | S34: 9 | T34: 0.7297297297 | U34: 7 | V34: 0.5675675676
A35: Sul | B35: Iconha | C35: 120 | D35: 9 | E35: 156 | F35: 13 | G35: 24 | H35: =G35/D35 -> 2.666666667 | I35: 2 | J35: =I35/F35 -> 0.1538461538 | K35: 11 | L35: =K35/D35 -> 1.222222222 | M35: 9 | N35: =M35/D35 -> 1 | O35: 17 | P35: =O35/D35 -> 1.888888889 | Q35: 14 | R35: =Q35/D35 -> 1.555555556 | S35: 3 | T35: =S35/F35 -> 0.2307692308 | U35: 5 | V35: =U35/F35 -> 0.3846153846
A36: Sul | B36: Irupi | C36: 157 | D36: 19 | E36: 200 | F36: 16.66666667 | G36: 15 | H36: 0.7894736842 | I36: 5 | J36: 0.3 | K36: 16 | L36: 0.8421052632 | M36: 16 | N36: 0.8421052632 | O36: 14 | P36: 0.7368421053 | Q36: 14 | R36: 0.7368421053 | S36: 7 | T36: 0.42 | U36: 12 | V36: 0.72
A37: Metropolitana | B37: Itaguaçu | C37: 137 | D37: 7 | E37: 154 | F37: 12.83333333 | G37: 12 | H37: 1.714285714 | I37: 1 | J37: 0.07792207792 | K37: 13 | L37: 1.857142857 | M37: 15 | N37: 2.142857143 | O37: 15 | P37: 2.142857143 | Q37: 11 | R37: 1.571428571 | S37: 14 | T37: 1.090909091 | U37: 7 | V37: 0.5454545455
A38: Sul | B38: Itapemirim | C38: 498 | D38: 40 | E38: 556 | F38: 46.33333333 | G38: 20 | H38: 0.5 | I38: 10 | J38: 0.2158273381 | K38: 27 | L38: 0.675 | M38: 30 | N38: 0.75 | O38: 26 | P38: 0.65 | Q38: 22 | R38: 0.55 | S38: 15 | T38: 0.3237410072 | U38: 24 | V38: 0.5179856115
A39: Metropolitana | B39: Itarana | C39: 137 | D39: 12 | E39: 128 | F39: 10.66666667 | G39: 12 | H39: 1 | I39: 0 | J39: 0 | K39: 11 | L39: 0.9166666667 | M39: 10 | N39: 0.8333333333 | O39: 10 | P39: 0.8333333333 | Q39: 10 | R39: 0.8333333333 | S39: 7 | T39: 0.65625 | U39: 10 | V39: 0.9375
A40: Sul | B40: Iúna | C40: 427 | D40: 33 | E40: 410 | F40: 34.16666667 | G40: 45 | H40: 1.363636364 | I40: 1 | J40: 0.02926829268 | K40: 34 | L40: 1.03030303 | M40: 36 | N40: 1.090909091 | O40: 58 | P40: 1.757575758 | Q40: 37 | R40: 1.121212121 | S40: 38 | T40: 1.112195122 | U40: 51 | V40: 1.492682927
A41: Norte | B41: Jaguaré | C41: 468 | D41: 35 | E41: 445 | F41: 37.08333333 | G41: 29 | H41: 0.8285714286 | I41: 5 | J41: 0.1348314607 | K41: 41 | L41: 1.171428571 | M41: 41 | N41: 1.171428571 | O41: 47 | P41: 1.342857143 | Q41: 42 | R41: 1.2 | S41: 17 | T41: 0.4584269663 | U41: 27 | V41: 0.7280898876
A42: Sul | B42: Jerônimo Monteiro | C42: 143 | D42: 10 | E42: 157 | F42: 13.08333333 | G42: 15 | H42: 1.5 | I42: 5 | J42: 0.3821656051 | K42: 12 | L42: 1.2 | M42: 13 | N42: 1.3 | O42: 29 | P42: 2.9 | Q42: 20 | R42: 2 | S42: 14 | T42: 1.070063694 | U42: 15 | V42: 1.146496815
A43: Metropolitana | B43: João Neiva | C43: 156 | D43: 10 | E43: 142 | F43: 11.83333333 | G43: 10 | H43: 1 | I43: 12 | J43: 1.014084507 | K43: 16 | L43: 1.6 | M43: 17 | N43: 1.7 | O43: 12 | P43: 1.2 | Q43: 12 | R43: 1.2 | S43: 12 | T43: 1.014084507 | U43: 13 | V43: 1.098591549
A44: Metropolitana | B44: Laranja da Terra | C44: 98 | D44: 4 | E44: 133 | F44: 11.08333333 | G44: 12 | H44: 3 | I44: 11 | J44: 0.992481203 | K44: 4 | L44: 1 | M44: 4 | N44: 1 | O44: 10 | P44: 2.5 | Q44: 7 | R44: 1.75 | S44: 12 | T44: 1.082706767 | U44: 15 | V44: 1.353383459
A45: Central | B45: Linhares | C45: 2598 | D45: 201 | E45: 2452 | F45: 204.3333333 | G45: 167 | H45: 0.8308457711 | I45: 53 | J45: 0.2593800979 | K45: 177 | L45: 0.8805970149 | M45: 201 | N45: 1 | O45: 225 | P45: 1.119402985 | Q45: 186 | R45: 0.9253731343 | S45: 115 | T45: 0.5628058728 | U45: 154 | V45: 0.7536704731
A46: Central | B46: Mantenópolis | C46: 139 | D46: 14 | E46: 166 | F46: 13.83333333 | G46: 15 | H46: 1.071428571 | I46: 5 | J46: 0.3614457831 | K46: 12 | L46: 0.8571428571 | M46: 14 | N46: 1 | O46: 11 | P46: 0.7857142857 | Q46: 10 | R46: 0.7142857143 | S46: 9 | T46: 0.6506024096 | U46: 18 | V46: 1.301204819
A47: Sul | B47: Marataízes | C47: 567 | D47: 53 | E47: 579 | F47: 48.25 | G47: 30 | H47: 0.5660377358 | I47: 14 | J47: 0.2901554404 | K47: 45 | L47: 0.8490566038 | M47: 45 | N47: 0.8490566038 | O47: 38 | P47: 0.7169811321 | Q47: 37 | R47: 0.6981132075 | S47: 28 | T47: 0.5803108808 | U47: 33 | V47: 0.6839378238
A48: Metropolitana | B48: Marechal Floriano | C48: 201 | D48: 17 | E48: 236 | F48: 19.66666667 | G48: 30 | H48: 1.764705882 | I48: 5 | J48: 0.2542372881 | K48: 16 | L48: 0.9411764706 | M48: 16 | N48: 0.9411764706 | O48: 31 | P48: 1.823529412 | Q48: 27 | R48: 1.588235294 | S48: 10 | T48: 0.5084745763 | U48: 17 | V48: 0.8644067797
A49: Central | B49: Marilândia | C49: 147 | D49: 11 | E49: 164 | F49: 13.66666667 | G49: 12 | H49: 1.090909091 | I49: 2 | J49: 0.1463414634 | K49: 12 | L49: 1.090909091 | M49: 16 | N49: 1.454545455 | O49: 14 | P49: 1.272727273 | Q49: 12 | R49: 1.090909091 | S49: 12 | T49: 0.8780487805 | U49: 11 | V49: 0.8048780488
A50: Sul | B50: Mimoso do Sul | C50: 254 | D50: 17 | E50: 276 | F50: 23 | G50: 27 | H50: 1.588235294 | I50: 0 | J50: 0 | K50: 15 | L50: 0.8823529412 | M50: 14 | N50: 0.8235294118 | O50: 32 | P50: 1.882352941 | Q50: 27 | R50: 1.588235294 | S50: 11 | T50: 0.4782608696 | U50: 16 | V50: 0.6956521739
A51: Norte | B51: Montanha | C51: 209 | D51: 18 | E51: 278 | F51: 23.16666667 | G51: 29 | H51: 1.611111111 | I51: 4 | J51: 0.1726618705 | K51: 25 | L51: 1.388888889 | M51: 26 | N51: 1.444444444 | O51: 20 | P51: 1.111111111 | Q51: 22 | R51: 1.222222222 | S51: 20 | T51: 0.8633093525 | U51: 27 | V51: 1.165467626
A52: Norte | B52: Mucurici | C52: 66 | D52: 3 | E52: 97 | F52: 8.083333333 | G52: 16 | H52: 5.333333333 | I52: 0 | J52: 0 | K52: 6 | L52: 2 | M52: 6 | N52: 2 | O52: 20 | P52: 6.666666667 | Q52: 15 | R52: 5 | S52: 2 | T52: 0.2474226804 | U52: 2 | V52: 0.2474226804
A53: Sul | B53: Muniz Freire | C53: 203 | D53: 17 | E53: 275 | F53: 22.91666667 | G53: 24 | H53: 1.411764706 | I53: 1 | J53: 0.04363636364 | K53: 17 | L53: 1 | M53: 16 | N53: 0.9411764706 | O53: 21 | P53: 1.235294118 | Q53: 21 | R53: 1.235294118 | S53: 6 | T53: 0.2618181818 | U53: 9 | V53: 0.3927272727
A54: Sul | B54: Muqui | C54: 139 | D54: 13 | E54: 152 | F54: 12.66666667 | G54: 13 | H54: 1 | I54: 2 | J54: 0.1578947368 | K54: 18 | L54: 1.384615385 | M54: 18 | N54: 1.384615385 | O54: 19 | P54: 1.461538462 | Q54: 14 | R54: 1.076923077 | S54: 8 | T54: 0.6315789474 | U54: 8 | V54: 0.6315789474
A55: Norte | B55: Nova Venécia | C55: 643 | D55: 56 | E55: 656 | F55: 54.66666667 | G55: 62 | H55: 1.107142857 | I55: 42 | J55: 0.7682926829 | K55: 49 | L55: 0.875 | M55: 49 | N55: 0.875 | O55: 73 | P55: 1.303571429 | Q55: 56 | R55: 1 | S55: 29 | T55: 0.5304878049 | U55: 46 | V55: 0.8414634146
A56: Central | B56: Pancas | C56: 197 | D56: 14 | E56: 244 | F56: 20.33333333 | G56: 21 | H56: 1.5 | I56: 0 | J56: 0 | K56: 13 | L56: 0.9285714286 | M56: 13 | N56: 0.9285714286 | O56: 26 | P56: 1.857142857 | Q56: 22 | R56: 1.571428571 | S56: 4 | T56: 0.1967213115 | U56: 8 | V56: 0.393442623
A57: Norte | B57: Pedro Canário | C57: 327 | D57: 27 | E57: 338 | F57: 28.16666667 | G57: 39 | H57: 1.444444444 | I57: 25 | J57: 0.8875739645 | K57: 26 | L57: 0.962962963 | M57: 25 | N57: 0.9259259259 | O57: 46 | P57: 1.703703704 | Q57: 29 | R57: 1.074074074 | S57: 22 | T57: 0.7810650888 | U57: 28 | V57: 0.9940828402
A58: Norte | B58: Pinheiros | C58: 320 | D58: 26 | E58: 383 | F58: 31.91666667 | G58: 39 | H58: 1.5 | I58: 18 | J58: 0.5639686684 | K58: 36 | L58: 1.384615385 | M58: 35 | N58: 1.346153846 | O58: 42 | P58: 1.615384615 | Q58: 30 | R58: 1.153846154 | S58: 15 | T58: 0.4699738903 | U58: 26 | V58: 0.8146214099
A59: Sul | B59: Piúma | C59: 290 | D59: 19 | E59: 311 | F59: 25.91666667 | G59: 20 | H59: 1.052631579 | I59: 1 | J59: 0.038585209 | K59: 27 | L59: 1.421052632 | M59: 27 | N59: 1.421052632 | O59: 21 | P59: 1.105263158 | Q59: 13 | R59: 0.6842105263 | S59: 23 | T59: 0.8874598071 | U59: 27 | V59: 1.041800643
A60: Norte | B60: Ponto Belo | C60: 78 | D60: 5 | E60: 85 | F60: 7.083333333 | G60: 8 | H60: 1.6 | I60: 5 | J60: 0.7058823529 | K60: 3 | L60: 0.6 | M60: 3 | N60: 0.6 | O60: 7 | P60: 1.4 | Q60: 6 | R60: 1.2 | S60: 5 | T60: 0.7058823529 | U60: 5 | V60: 0.7058823529
A61: Sul | B61: Presidente Kennedy | C61: 204 | D61: 14 | E61: 239 | F61: 19.91666667 | G61: 13 | H61: 0.9285714286 | I61: 1 | J61: 0.05020920502 | K61: 21 | L61: 1.5 | M61: 17 | N61: 1.214285714 | O61: 20 | P61: 1.428571429 | Q61: 18 | R61: 1.285714286 | S61: 25 | T61: 1.255230126 | U61: 22 | V61: 1.10460251
A62: Central | B62: Rio Bananal | C62: 291 | D62: 21 | E62: 229 | F62: 19.08333333 | G62: 40 | H62: 1.904761905 | I62: 15 | J62: 0.7860262009 | K62: 21 | L62: 1 | M62: 25 | N62: 1.19047619 | O62: 25 | P62: 1.19047619 | Q62: 25 | R62: 1.19047619 | S62: 24 | T62: 1.257641921 | U62: 23 | V62: 1.205240175
A63: Sul | B63: Rio Novo do Sul | C63: 107 | D63: 11 | E63: 144 | F63: 12 | G63: 11 | H63: 1 | I63: 11 | J63: 0.9166666667 | K63: 12 | L63: 1.090909091 | M63: 14 | N63: 1.272727273 | O63: 15 | P63: 1.363636364 | Q63: 12 | R63: 1.090909091 | S63: 9 | T63: 0.75 | U63: 12 | V63: 1
A64: Metropolitana | B64: Santa Leopoldina | C64: 81 | D64: 6 | E64: 155 | F64: 12.91666667 | G64: 8 | H64: 1.333333333 | I64: 6 | J64: 0.464516129 | K64: 9 | L64: 1.5 | M64: 9 | N64: 1.5 | O64: 12 | P64: 2 | Q64: 9 | R64: 1.5 | S64: 5 | T64: 0.3870967742 | U64: 16 | V64: 1.238709677
A65: Metropolitana | B65: Santa Maria de Jetibá | C65: 682 | D65: 55 | E65: 685 | F65: 57.08333333 | G65: 63 | H65: 1.145454545 | I65: 18 | J65: 0.3153284672 | K65: 57 | L65: 1.036363636 | M65: 57 | N65: 1.036363636 | O65: 78 | P65: 1.418181818 | Q65: 60 | R65: 1.090909091 | S65: 10 | T65: 0.1751824818 | U65: 34 | V65: 0.595620438
A66: Metropolitana | B66: Santa Teresa | C66: 300 | D66: 24 | E66: 260 | F66: 21.66666667 | G66: 28 | H66: 1.166666667 | I66: 4 | J66: 0.1846153846 | K66: 28 | L66: 1.166666667 | M66: 32 | N66: 1.333333333 | O66: 34 | P66: 1.416666667 | Q66: 29 | R66: 1.208333333 | S66: 12 | T66: 0.5538461538 | U66: 19 | V66: 0.8769230769
A67: Central | B67: São Domingos do Norte | C67: 119 | D67: 10 | E67: 117 | F67: 9.75 | G67: 12 | H67: =G67/D67 -> 1.2 | I67: 1 | J67: =I67/F67 -> 0.1025641026 | K67: 17 | L67: =K67/D67 -> 1.7 | M67: 18 | N67: =M67/D67 -> 1.8 | O67: 15 | P67: =O67/D67 -> 1.5 | Q67: 11 | R67: =Q67/D67 -> 1.1 | S67: 3 | T67: =S67/F67 -> 0.3076923077 | U67: 8 | V67: =U67/F67 -> 0.8205128205
A68: Central | B68: São Gabriel da Palha | C68: 437 | D68: 34 | E68: 426 | F68: =(E68/12)*1 -> 35.5 | G68: 39 | H68: 1.147058824 | I68: 28 | J68: 0.7887323944 | K68: 26 | L68: 0.7647058824 | M68: 31 | N68: 0.9117647059 | O68: 27 | P68: 0.7941176471 | Q68: 25 | R68: 0.7352941176 | S68: 21 | T68: 0.5915492958 | U68: 22 | V68: 0.6197183099
A69: Sul | B69: São José do Calçado | C69: 95 | D69: 13 | E69: 150 | F69: 12.5 | G69: 16 | H69: 1.230769231 | I69: 4 | J69: 0.32 | K69: 10 | L69: 0.7692307692 | M69: 9 | N69: 0.6923076923 | O69: 18 | P69: 1.384615385 | Q69: 14 | R69: 1.076923077 | S69: 5 | T69: 0.4 | U69: 19 | V69: 1.52
A70: Norte | B70: São Mateus | C70: 1896 | D70: 146 | E70: 1766 | F70: 147.1666667 | G70: 101 | H70: 0.6917808219 | I70: 19 | J70: 0.1291053228 | K70: 142 | L70: 0.9726027397 | M70: 149 | N70: 1.020547945 | O70: 160 | P70: 1.095890411 | Q70: 114 | R70: 0.7808219178 | S70: 64 | T70: 0.4348810872 | U70: 103 | V70: 0.6998867497
A71: Central | B71: São Roque do Canaã | C71: 129 | D71: 15 | E71: 100 | F71: 8.333333333 | G71: 5 | H71: 0.3333333333 | I71: 8 | J71: 0.96 | K71: 15 | L71: 1 | M71: 18 | N71: 1.2 | O71: 5 | P71: 0.3333333333 | Q71: 4 | R71: 0.2666666667 | S71: 2 | T71: 0.24 | U71: 7 | V71: 0.84
A72: Metropolitana | B72: Serra | C72: 7364 | D72: 639 | E72: 7550 | F72: 629.1666667 | G72: 607 | H72: 0.9499217527 | I72: 75 | J72: 0.119205298 | K72: 610 | L72: 0.9546165884 | M72: 612 | N72: 0.9577464789 | O72: 756 | P72: 1.183098592 | Q72: 604 | R72: 0.9452269171 | S72: 582 | T72: 0.9250331126 | U72: 766 | V72: 1.217483444
A73: Central | B73: Sooretama | C73: 446 | D73: 40 | E73: 415 | F73: 34.58333333 | G73: 34 | H73: 0.85 | I73: 13 | J73: 0.3759036145 | K73: 29 | L73: 0.725 | M73: 26 | N73: 0.65 | O73: 41 | P73: 1.025 | Q73: 34 | R73: 0.85 | S73: 25 | T73: 0.7228915663 | U73: 22 | V73: 0.6361445783
A74: Sul | B74: Vargem Alta | C74: 250 | D74: 22 | E74: 278 | F74: 23.16666667 | G74: 20 | H74: 0.9090909091 | I74: 0 | J74: 0 | K74: 26 | L74: 1.181818182 | M74: 28 | N74: 1.272727273 | O74: 30 | P74: 1.363636364 | Q74: 23 | R74: 1.045454545 | S74: 17 | T74: 0.7338129496 | U74: 18 | V74: 0.7769784173
A75: Metropolitana | B75: Venda Nova do Imigrante | C75: 362 | D75: 28 | E75: 328 | F75: 27.33333333 | G75: 33 | H75: 1.178571429 | I75: 1 | J75: 0.03658536585 | K75: 27 | L75: 0.9642857143 | M75: 29 | N75: 1.035714286 | O75: 36 | P75: 1.285714286 | Q75: 30 | R75: 1.071428571 | S75: 23 | T75: 0.8414634146 | U75: 21 | V75: 0.7682926829
A76: Metropolitana | B76: Viana | C76: 918 | D76: 80 | E76: 1064 | F76: 88.66666667 | G76: 62 | H76: 0.775 | I76: 10 | J76: 0.1127819549 | K76: 94 | L76: 1.175 | M76: 94 | N76: 1.175 | O76: 94 | P76: 1.175 | Q76: 81 | R76: 1.0125 | S76: 45 | T76: 0.507518797 | U76: 102 | V76: 1.15037594
A77: Norte | B77: Vila Pavão | C77: 108 | D77: 3 | E77: 127 | F77: 10.58333333 | G77: 15 | H77: 5 | I77: 0 | J77: 0 | K77: 7 | L77: 2.333333333 | M77: 8 | N77: 2.666666667 | O77: 7 | P77: 2.333333333 | Q77: 8 | R77: 2.666666667 | S77: 5 | T77: 0.4724409449 | U77: 8 | V77: 0.7559055118
A78: Central | B78: Vila Valério | C78: 244 | D78: 17 | E78: 169 | F78: 14.08333333 | G78: 24 | H78: 1.411764706 | I78: 15 | J78: 1.065088757 | K78: 20 | L78: 1.176470588 | M78: 17 | N78: 1 | O78: 18 | P78: 1.058823529 | Q78: 14 | R78: 0.8235294118 | S78: 12 | T78: 0.8520710059 | U78: 16 | V78: 1.136094675
A79: Metropolitana | B79: Vila Velha | C79: 5476 | D79: 465 | E79: 5675 | F79: 472.9166667 | G79: 480 | H79: 1.032258065 | I79: 373 | J79: 0.788722467 | K79: 446 | L79: 0.9591397849 | M79: 429 | N79: 0.9225806452 | O79: 577 | P79: 1.240860215 | Q79: 452 | R79: 0.9720430108 | S79: 421 | T79: 0.8902202643 | U79: 493 | V79: 1.04246696
A80: Metropolitana | B80: Vitória | C80: 3504 | D80: 318 | E80: 3833 | F80: 319.4166667 | G80: 396 | H80: 1.245283019 | I80: 69 | J80: 0.2160187842 | K80: 327 | L80: 1.028301887 | M80: 331 | N80: 1.040880503 | O80: 514 | P80: 1.616352201 | Q80: 393 | R80: 1.235849057 | S80: 154 | T80: 0.4821288808 | U80: 289 | V80: 0.9047743282
B82: Total Norte | C82: =SUMIF($A$3:$A$80,"Norte",C$3:C$80) -> 5722 | D82: =SUMIF($A$3:$A$80,"Norte",D$3:D$80) -> 454 | E82: =SUMIF($A$3:$A$80,"Norte",E$3:E$80) -> 5789 | F82: =SUMIF($A$3:$A$80,"Norte",F$3:F$80) -> 482.4166667 | H82: =G82/D82 -> 0 | I82: =SUMIF($A$3:$A$80,"Norte",I$3:I$80) -> 155 | J82: =I82/F82 -> 0.3212990154 | K82: =SUMIF($A$3:$A$80,"Norte",K$3:K$80) -> 462 | L82: =K82/D82 -> 1.017621145 | M82: =SUMIF($A$3:$A$80,"Norte",M$3:M$80) -> 484 | N82: =M82/D82 -> 1.066079295 | O82: =SUMIF($A$3:$A$80,"Norte",O$3:O$80) -> 565 | P82: =O82/D82 -> 1.244493392 | Q82: =SUMIF($A$3:$A$80,"Norte",Q$3:Q$80) -> 428 | R82: =Q82/D82 -> 0.9427312775 | S82: =SUMIF($A$3:$A$80,"Norte",S$3:S$80) -> 286 | T82: =S82/F82 -> 0.5928485058 | U82: =SUMIF($A$3:$A$80,"Norte",U$3:U$80) -> 406 | V82: =U82/F82 -> 0.8415961306
B83: Total Central | C83: =SUMIF($A$3:$A$80,"Central",C$3:C$80) -> 6920 | D83: =SUMIF($A$3:$A$80,"Central",D$3:D$80) -> 569 | E83: =SUMIF($A$3:$A$80,"Central",E$3:E$80) -> 6843 | F83: =SUMIF($A$3:$A$80,"Central",F$3:F$80) -> 570.25 | G83: =SUMIF($A$3:$A$80,"Central",G$3:G$80) -> 553 | H83: =G83/D83 -> 0.9718804921 | I83: =SUMIF($A$3:$A$80,"Central",I$3:I$80) -> 233 | J83: =I83/F83 -> 0.4085927225 | K83: =SUMIF($A$3:$A$80,"Central",K$3:K$80) -> 550 | L83: =K83/D83 -> 0.9666080844 | M83: =SUMIF($A$3:$A$80,"Central",M$3:M$80) -> 593 | N83: =M83/D83 -> 1.042179262 | O83: =SUMIF($A$3:$A$80,"Central",O$3:O$80) -> 649 | P83: =O83/D83 -> 1.14059754 | Q83: =SUMIF($A$3:$A$80,"Central",Q$3:Q$80) -> 523 | R83: =Q83/D83 -> 0.9191564148 | S83: =SUMIF($A$3:$A$80,"Central",S$3:S$80) -> 343 | T83: =S83/F83 -> 0.6014905743 | U83: =SUMIF($A$3:$A$80,"Central",U$3:U$80) -> 448 | V83: =U83/F83 -> 0.785620342
B84: Total Metropolitana | C84: =SUMIF($A$3:$A$80,"Metropolitana",C$3:C$80) -> 29149 | D84: =SUMIF($A$3:$A$80,"Metropolitana",D$3:D$80) -> 2477 | E84: =SUMIF($A$3:$A$80,"Metropolitana",E$3:E$80) -> 30197 | F84: =SUMIF($A$3:$A$80,"Metropolitana",F$3:F$80) -> 2516.416667 | G84: =SUMIF($A$3:$A$80,"Metropolitana",G$3:G$80) -> 2646 | H84: =G84/D84 -> 1.068227695 | I84: =SUMIF($A$3:$A$80,"Metropolitana",I$3:I$80) -> 717 | J84: =I84/F84 -> 0.2849289665 | K84: =SUMIF($A$3:$A$80,"Metropolitana",K$3:K$80) -> 2571 | L84: =K84/D84 -> 1.037949132 | M84: =SUMIF($A$3:$A$80,"Metropolitana",M$3:M$80) -> 2561 | N84: =M84/D84 -> 1.03391199 | O84: =SUMIF($A$3:$A$80,"Metropolitana",O$3:O$80) -> 3378 | P84: =O84/D84 -> 1.363746468 | Q84: =SUMIF($A$3:$A$80,"Metropolitana",Q$3:Q$80) -> 2583 | R84: =Q84/D84 -> 1.042793702 | S84: =SUMIF($A$3:$A$80,"Metropolitana",S$3:S$80) -> 2144 | T84: =S84/F84 -> 0.8520051661 | U84: =SUMIF($A$3:$A$80,"Metropolitana",U$3:U$80) -> 2920 | V84: =U84/F84 -> 1.16038017
B85: Total Sul | C85: =SUMIF($A$3:$A$80,"sul",C$3:C$80) -> 7908 | D85: =SUMIF($A$3:$A$80,"sul",D$3:D$80) -> 691 | E85: =SUMIF($A$3:$A$80,"sul",E$3:E$80) -> 8688 | F85: =SUMIF($A$3:$A$80,"sul",F$3:F$80) -> 724 | G85: =SUMIF($A$3:$A$80,"sul",G$3:G$80) -> 741 | H85: =G85/D85 -> 1.0723589 | I85: =SUMIF($A$3:$A$80,"sul",I$3:I$80) -> 126 | J85: =I85/F85 -> 0.1740331492 | K85: =SUMIF($A$3:$A$80,"sul",K$3:K$80) -> 729 | L85: =K85/D85 -> 1.054992764 | M85: =SUMIF($A$3:$A$80,"sul",M$3:M$80) -> 725 | N85: =M85/D85 -> 1.049204052 | O85: =SUMIF($A$3:$A$80,"sul",O$3:O$80) -> 956 | P85: =O85/D85 -> 1.383502171 | Q85: =SUMIF($A$3:$A$80,"sul",Q$3:Q$80) -> 735 | R85: =Q85/D85 -> 1.063675832 | S85: =SUMIF($A$3:$A$80,"sul",S$3:S$80) -> 627 | T85: =S85/F85 -> 0.8660220994 | U85: =SUMIF($A$3:$A$80,"sul",U$3:U$80) -> 747 | V85: =U85/F85 -> 1.031767956
B86: Total Espírito Santo | C86: =SUM(C3:C80) -> 49699 | D86: =SUM(D3:D80) -> 4191 | E86: =SUM(E3:E80) -> 51517 | F86: =SUM(F3:F80) -> 4293.083333 | G86: =SUM(G3:G80) -> 4401 | H86: =G86/D86 -> 1.050107373 | I86: =SUM(I3:I80) -> 1231 | J86: =I86/F86 -> 0.2867402993 | K86: =SUM(K3:K80) -> 4312 | L86: =K86/D86 -> 1.028871391 | M86: =SUM(M3:M80) -> 4363 | N86: =M86/D86 -> 1.041040325 | O86: =SUM(O3:O80) -> 5548 | P86: =O86/D86 -> 1.323789072 | Q86: =SUM(Q3:Q80) -> 4269 | R86: =Q86/D86 -> 1.01861131 | S86: =SUM(S3:S80) -> 3400 | T86: =S86/F86 -> 0.7919715822 | U86: =SUM(U3:U80) -> 4521 | V86: =U86/F86 -> 1.053089272
A90: Fonte: Vacina e Confia, em 14 e 17 de Fevereiro de 2025.**
A91: **Dados referente às doses aplicadas no período de Janeiro 2025
A92: Cobertura Calculada por município de residência do cidadão (no Vacina e Confia, a origem da informação é o endereço que consta no cadastro do cidadão preenchido manualmente por meio do autocadastro ou pelo cadastro realizado por um profissional de saúde no momento do atendimento).
A93: 1 População anual extraída do MS/SVS/DASIS - SINASC/DASIS/SVS/MS 2024 (hoje preliminares) referente ao período de Janeiro e Novembro de 2024 e SINASC/DASIS/SVS/MS 2023 referente ao período de Dezembro de 2023.
A94: ² População proporcional extraída do MS/SVS/DASIS - SINASC/DASIS/SVS/MS 2024 (hoje preliminares) referente ao período de Janeiro/ 2024.
A95: Sinasc, atualizado em 10/02/2025.
A96: ³ População anual e proporcional extraída do Censo IBGE 2022.
A98: Observações:
A99: 1. Imunobiológicos que foram recebidos parcialmente pelo estado no mês de Janeiro/2025, sendo distribuídos em quantidades reduzidas às regionais e municípios:
A100: SORO ANTIRRÁBICO HUMANO, IMUNOGLOBULINA ANTIRRÁBICA HUMANA, VACINA COVID-19 MODERNA (SPIKEVAX),VACINA TETRA VIRAL,VACINA CONTRA VARICELA
A101: 2. Imunobiológicos indisponíveis no mês de Janeiro/2025, não sendo possível a distribuição às regionais e municípios:
A102: VACINA TRÍPLICE ACELULAR (DTPa) - CRIE

Sheet Cobert. COVID-19 Menores 4 anos (hidden)
A1: Regional | B1: Município | C1: Série Histórica
A2: Região Metropolitana | B2: Afonso Cláudio
A3: Região Norte | B3: Água Doce do Norte
A4: Região Central | B4: Águia Branca
A5: Região Sul | B5: Alegre
A6: Região Sul | B6: Alfredo Chaves
A7: Região Central | B7: Alto Rio Novo
A8: Região Sul | B8: Anchieta
A9: Região Sul | B9: Apiacá
A10: Região Metropolitana | B10: Aracruz
A11: Região Sul | B11: Atilio Vivacqua
A12: Região Central | B12: Baixo Guandu
A13: Região Norte | B13: Barra de São Francisco
A14: Região Norte | B14: Boa Esperança
A15: Região Sul | B15: Bom Jesus do Norte
A16: Região Metropolitana | B16: Brejetuba
A17: Região Sul | B17: Cachoeiro de Itapemirim
A18: Região Metropolitana | B18: Cariacica
A19: Região Sul | B19: Castelo
A20: Região Central | B20: Colatina
A21: Região Norte | B21: Conceição da Barra
A22: Região Metropolitana | B22: Conceição do Castelo
A23: Região Sul | B23: Divino de São Lourenço
A24: Região Metropolitana | B24: Domingos Martins
A25: Região Sul | B25: Dores do Rio Preto
A26: Região Norte | B26: Ecoporanga
A27: Região Metropolitana | B27: Fundão
A28: Região Central | B28: Governador Lindenberg
A29: Região Sul | B29: Guaçuí
A30: Região Metropolitana | B30: Guarapari
A31: Região Metropolitana | B31: Ibatiba
A32: Região Metropolitana | B32: Ibiraçu
A33: Região Sul | B33: Ibitirama
A34: Região Sul | B34: Iconha
A35: Região Sul | B35: Irupi
A36: Região Metropolitana | B36: Itaguaçu
A37: Região Sul | B37: Itapemirim
A38: Região Metropolitana | B38: Itarana
A39: Região Sul | B39: Iúna
A40: Região Norte | B40: Jaguaré
A41: Região Sul | B41: Jerônimo Monteiro
A42: Região Metropolitana | B42: João Neiva
A43: Região Metropolitana | B43: Laranja da Terra
A44: Região Central | B44: Linhares
A45: Região Central | B45: Mantenópolis
A46: Região Sul | B46: Marataízes
A47: Região Metropolitana | B47: Marechal Floriano
A48: Região Central | B48: Marilândia
A49: Região Sul | B49: Mimoso do Sul
A50: Região Norte | B50: Montanha
A51: Região Norte | B51: Mucurici
A52: Região Sul | B52: Muniz Freire
A53: Região Sul | B53: Muqui
A54: Região Norte | B54: Nova Venécia
A55: Região Central | B55: Pancas
A56: Região Norte | B56: Pedro Canário
A57: Região Norte | B57: Pinheiros
A58: Região Sul | B58: Piúma
A59: Região Norte | B59: Ponto Belo
A60: Região Sul | B60: Presidente Kennedy
A61: Região Central | B61: Rio Bananal
A62: Região Sul | B62: Rio Novo do Sul
A63: Região Metropolitana | B63: Santa Leopoldina
A64: Região Metropolitana | B64: Santa Maria de Jetibá
A65: Região Metropolitana | B65: Santa Teresa
A66: Região Central | B66: São Domingos do Norte
A67: Região Central | B67: São Gabriel da Palha
A68: Região Sul | B68: São José do Calçado
A69: Região Norte | B69: São Mateus
A70: Região Central | B70: São Roque do Canaã
A71: Região Metropolitana | B71: Serra
A72: Região Central | B72: Sooretama
A73: Região Sul | B73: Vargem Alta
A74: Região Metropolitana | B74: Venda Nova do Imigrante
A75: Região Metropolitana | B75: Viana
A76: Região Norte | B76: Vila Pavão
A77: Região Central | B77: Vila Valério
A78: Região Metropolitana | B78: Vila Velha
A79: Região Metropolitana | B79: Vitória
B81: Espírito Santo
B82: Região Norte
B83: Região Central
B84: Região Metropolitana
B85: Região Sul
A87: Pfizer Pediátrica Menor de 5 anos e Coronavac
A88: Período avaliado: 2021-2024
A89: Fonte: https://www.vacinaeconfia.es.gov.br
A90: *Dados de janeiro/2024 extraídos do Vacina e Confia em 04/01/2024
A91: População proporcional extraída do SINASC 2022 (menores de 1 ano) e Censo IBGE 2022 (demais idades)
A92: Cobertura Calculada por município de procedência da vacinação

Sheet Cobert. Meningo C Adolescentes
A1: Regional | B1: Município | C1: Série Histórica %
A2: Metropolitana | B2: Afonso Cláudio | C2: 51.89873418
A3: Central Norte | B3: Água Doce do Norte | C3: 77.84507491
A4: Central Norte | B4: Águia Branca | C4: 68.96551724
A5: Sul | B5: Alegre | C5: 79.31623932
A6: Sul | B6: Alfredo Chaves | C6: 37.4686926
A7: Central Norte | B7: Alto Rio Novo | C7: 89.72533062
A8: Sul | B8: Anchieta | C8: 90.18391634
A9: Sul | B9: Apiacá | C9: 32.68348624
A10: Metropolitana | B10: Aracruz | C10: 90.37857729
A11: Sul | B11: Atilio Vivacqua | C11: 97.15481172
A12: Central Norte | B12: Baixo Guandu | C12: 71.99829992
A13: Central Norte | B13: Barra de São Francisco | C13: 71.71604248
A14: Central Norte | B14: Boa Esperança | C14: 65.69544548
A15: Sul | B15: Bom Jesus do Norte | C15: 74.34262948
A16: Metropolitana | B16: Brejetuba | C16: 98.927847
A17: Sul | B17: Cachoeiro de Itapemirim | C17: 109.7568023
A18: Metropolitana | B18: Cariacica | C18: 85.12705735
A19: Sul | B19: Castelo | C19: 84.06964834
A20: Central Norte | B20: Colatina | C20: 77.21608277
A21: Central Norte | B21: Conceição da Barra | C21: 63.33457665
A22: Metropolitana | B22: Conceição do Castelo | C22: 85.99490724
A23: Sul | B23: Divino de São Lourenço | C23: 69.63434022
A24: Metropolitana | B24: Domingos Martins | C24: 83.28794883
A25: Sul | B25: Dores do Rio Preto | C25: 72.81132621
A26: Central Norte | B26: Ecoporanga | C26: 60.90413238
A27: Metropolitana | B27: Fundão | C27: 97.16874292
A28: Central Norte | B28: Governador Lindenberg | C28: 85.10474726
A29: Sul | B29: Guaçuí | C29: 72.13690215
A30: Metropolitana | B30: Guarapari | C30: 84.6461599
A31: Metropolitana | B31: Ibatiba | C31: 70.72544903
A32: Metropolitana | B32: Ibiraçu | C32: 93.13572543
A33: Sul | B33: Ibitirama | C33: 91.70204554
A34: Sul | B34: Iconha | C34: 80.66390041
A35: Sul | B35: Irupi | C35: 81.63265306
A36: Metropolitana | B36: Itaguaçu | C36: 66.01731602
A37: Sul | B37: Itapemirim | C37: 76.72446287
A38: Metropolitana | B38: Itarana | C38: 72.13942915
A39: Sul | B39: Iúna | C39: 70.31888798
A40: Central Norte | B40: Jaguaré | C40: 71.13273601
A41: Sul | B41: Jerônimo Monteiro | C41: 97.11115363
A42: Metropolitana | B42: João Neiva | C42: 101.1011011
A43: Metropolitana | B43: Laranja da Terra | C43: 110.6700911
A44: Central Norte | B44: Linhares | C44: 86.1681052
A45: Central Norte | B45: Mantenópolis | C45: 97.16748768
A46: Sul | B46: Marataízes | C46: 94.61769903
A47: Metropolitana | B47: Marechal Floriano | C47: 93.90342284
A48: Central Norte | B48: Marilândia | C48: 75.47169811
A49: Sul | B49: Mimoso do Sul | C49: 96.63528754
A50: Central Norte | B50: Montanha | C50: 83.127227
A51: Central Norte | B51: Mucurici | C51: 68.30926083
A52: Sul | B52: Muniz Freire | C52: 74.45454545
A53: Sul | B53: Muqui | C53: 76.0851894
A54: Central Norte | B54: Nova Venécia | C54: 86.44733397
A55: Central Norte | B55: Pancas | C55: 69.19945726
A56: Central Norte | B56: Pedro Canário | C56: 80.29121165
A57: Central Norte | B57: Pinheiros | C57: 69.86237823
A58: Sul | B58: Piúma | C58: 98.99941142
A59: Central Norte | B59: Ponto Belo | C59: 64.59763801
A60: Sul | B60: Presidente Kennedy | C60: 95.66508314
A61: Central Norte | B61: Rio Bananal | C61: 87.86024257
A62: Sul | B62: Rio Novo do Sul | C62: 72.23495105
A63: Metropolitana | B63: Santa Leopoldina | C63: 66.47924591
A64: Metropolitana | B64: Santa Maria de Jetibá | C64: 90.8707124
A65: Metropolitana | B65: Santa Teresa | C65: 112.4612523
A66: Central Norte | B66: São Domingos do Norte | C66: 78.49576271
A67: Central Norte | B67: São Gabriel da Palha | C67: 63.33202048
A68: Sul | B68: São José do Calçado | C68: 68.98121799
A69: Central Norte | B69: São Mateus | C69: 75.59903958
A70: Central Norte | B70: São Roque do Canaã | C70: 78.17853922
A71: Metropolitana | B71: Serra | C71: 86.07585444
A72: Central Norte | B72: Sooretama | C72: 87.65178405
A73: Sul | B73: Vargem Alta | C73: 75.57509457
A74: Metropolitana | B74: Venda Nova do Imigrante | C74: 105.3613054
A75: Metropolitana | B75: Viana | C75: 96.50901518
A76: Central Norte | B76: Vila Pavão | C76: 101.3758146
A77: Central Norte | B77: Vila Valério | C77: 99.69059406
A78: Metropolitana | B78: Vila Velha | C78: 93.33208715
A79: Metropolitana | B79: Vitória | C79: 94.51102279
A80: Total | C80: 81.72787141
A83: Meningocócica Conjudada C e Meningocócica ACWY
A84: Período avaliado: 2016-2025
A85: Faixa Etária: 11 a 14 anos.
A86: Fonte: http://tabnet.datasus.gov.br/ e https://www.vacinaeconfia.es.gov.br
A87: *Dados parciais:
A88: Dados de janeiro/2022 a abril/2022 extraídos do TABNET em 10/05/2024
A89: Dados de Janeiro/2025 extraídos do Vacina e Confia em Fevereiro/2025
A90: População proporcional extraída do Censo IBGE 2022
A91: Cobertura Calculada por município de procedência da vacinação
A93: Observações:
A94: 1. Imunobiológicos que foram recebidos parcialmente pelo estado no mês de Janeiro/2025, sendo distribuídos em quantidades reduzidas às regionais e municípios:
A95: SORO ANTIRRÁBICO HUMANO, IMUNOGLOBULINA ANTIRRÁBICA HUMANA, VACINA COVID-19 MODERNA (SPIKEVAX),VACINA TETRA VIRAL,VACINA CONTRA VARICELA
A96: 2. Imunobiológicos indisponíveis no mês de Janeiro/2025, não sendo possível a distribuição às regionais e municípios:
A97: VACINA TRÍPLICE ACELULAR (DTPa) - CRIE

Sheet Cobert. HPV
A1: REGIONAL | B1: MUNICÍPIO | C1: HPV Feminino % | D1: HPV Masculino %
A2: METROPOLITANA | B2: Afonso Cláudio | C2: 97.89473684 | D2: 96.75866496
A3: CENTRAL-NORTE | B3: Água Doce do Norte | C3: 92.49948057 | D3: 89.39894962
A4: CENTRAL-NORTE | B4: Águia Branca | C4: 104.7698745 | D4: 92.74004684
A5: SUL | B5: Alegre | C5: 75.71857157 | D5: 79.3814433
A6: SUL | B6: Alfredo Chaves | C6: 67.54708811 | D6: 68.52976914
A7: CENTRAL-NORTE | B7: Alto Rio Novo | C7: 110.7509097 | D7: 100.995824
A8: SUL | B8: Anchieta | C8: 102.0610488 | D8: 107.1072646
A9: SUL | B9: Apiacá | C9: 62.03130688 | D9: 68.74546773
A10: METROPOLITANA | B10: Aracruz | C10: 110.66343 | D10: 103.5910036
A11: SUL | B11: Atílio Vivácqua | C11: 116.2683115 | D11: 115.4824233
A12: CENTRAL-NORTE | B12: Baixo Guandu | C12: 90.51440155 | D12: 91.4830876
A13: CENTRAL-NORTE | B13: Barra de São Francisco | C13: 83.30635838 | D13: 82.91198761
A14: CENTRAL-NORTE | B14: Boa Esperança | C14: 55.63496427 | D14: 84.09520212
A15: SUL | B15: Bom Jesus do Norte | C15: 75.57948958 | D15: 93.06930693
A16: METROPOLITANA | B16: Brejetuba | C16: 109.9045967 | D16: 118.6789388
A17: SUL | B17: Cachoeiro de Itapemirim | C17: 99.51477724 | D17: 99.86830367
A18: METROPOLITANA | B18: Cariacica | C18: 93.80551548 | D18: 91.37555643
A19: SUL | B19: Castelo | C19: 101.462613 | D19: 105.0737316
A20: CENTRAL-NORTE | B20: Colatina | C20: 78.11739511 | D20: 86.12651587
A21: CENTRAL-NORTE | B21: Conceição da Barra | C21: 89.56327505 | D21: 87.37775061
A22: METROPOLITANA | B22: Conceição do Castelo | C22: 120.5715582 | D22: 122.6736566
A23: SUL | B23: Divino de São Lourenço | C23: 104.8793566 | D23: 90.05524862
A24: METROPOLITANA | B24: Domingos Martins | C24: 105.3570007 | D24: 103.5523979
A25: SUL | B25: Dores do Rio Preto | C25: 99.92217899 | D25: 84.96265021
A26: CENTRAL-NORTE | B26: Ecoporanga | C26: 86.10664357 | D26: 83.30871492
A27: METROPOLITANA | B27: Fundão | C27: 113.0957149 | D27: 114.106225
A28: CENTRAL-NORTE | B28: Governador Lindenberg | C28: 115.0814503 | D28: 105.8663029
A29: SUL | B29: Guaçuí | C29: 83.68336026 | D29: 81.88923439
A30: METROPOLITANA | B30: Guarapari | C30: 92.74297263 | D30: 89.71433068
A31: METROPOLITANA | B31: Ibatiba | C31: 112.5 | D31: 95.70875835
A32: METROPOLITANA | B32: Ibiraçu | C32: 116.2288931 | D32: 110.0636943
A33: SUL | B33: Ibitirama | C33: 92.94566254 | D33: 100.068918
A34: SUL | B34: Iconha | C34: 102.4042272 | D34: 100.9565857
A35: SUL | B35: Irupi | C35: 104.6622939 | D35: 99.3736952
A36: METROPOLITANA | B36: Itaguaçu | C36: 75.32693984 | D36: 73.96033269
A37: SUL | B37: Itapemirim | C37: 87.77758349 | D37: 87.74534059
A38: METROPOLITANA | B38: Itarana | C38: 117.0731707 | D38: 96.51741294
A39: SUL | B39: Iúna | C39: 94.44161142 | D39: 102.3447565
A40: CENTRAL-NORTE | B40: Jaguaré | C40: 105.046251 | D40: 99.51386903
A41: SUL | B41: Jerônimo Monteiro | C41: 95.55353902 | D41: 103.3131802
A42: METROPOLITANA | B42: João Neiva | C42: 105.5512119 | D42: 114.7804054
A43: METROPOLITANA | B43: Laranja da Terra | C43: 112.5 | D43: 92.41672573
A44: CENTRAL-NORTE | B44: Linhares | C44: 98.69629294 | D44: 98.79656804
A45: CENTRAL-NORTE | B45: Mantenópolis | C45: 79.12087912 | D45: 97.10572947
A46: SUL | B46: Marataízes | C46: 120.1845586 | D46: 103.8461538
A47: METROPOLITANA | B47: Marechal Floriano | C47: 112.4660429 | D47: 108.0016875
A48: CENTRAL-NORTE | B48: Marilândia | C48: 119.001387 | D48: 122.1964424
A49: SUL | B49: Mimoso do Sul | C49: 76.98899826 | D49: 80.65433855
A50: CENTRAL-NORTE | B50: Montanha | C50: 107.5356415 | D50: 107.3576143
A51: CENTRAL-NORTE | B51: Mucurici | C51: 102.9565217 | D51: 89.49152542
A52: SUL | B52: Muniz Freire | C52: 108.3732057 | D52: 99.6126176
A53: SUL | B53: Muqui | C53: 92.7680798 | D53: 98.7176958
A54: CENTRAL-NORTE | B54: Nova Venécia | C54: 109.3164848 | D54: 104.4562738
A55: CENTRAL-NORTE | B55: Pancas | C55: 103.0408341 | D55: 100.9242144
A56: CENTRAL-NORTE | B56: Pedro Canário | C56: 98.55135606 | D56: 85.05889647
A57: CENTRAL-NORTE | B57: Pinheiros | C57: 81.88614146 | D57: 82.52524334
A58: SUL | B58: Piúma | C58: 83.30039526 | D58: 81.06642567
A59: CENTRAL-NORTE | B59: Ponto Belo | C59: 97.00130378 | D59: 106.5010957
A60: SUL | B60: Presidente Kennedy | C60: 100.6762932 | D60: 100.5319149
A61: CENTRAL-NORTE | B61: Rio Bananal | C61: 128.3937408 | D61: 130.8189098
A62: SUL | B62: Rio Novo do Sul | C62: 102.866242 | D62: 101.2327774
A63: METROPOLITANA | B63: Santa Leopoldina | C63: 66.47764449 | D63: 64.10205302
A64: METROPOLITANA | B64: Santa Maria de Jetibá | C64: 106.9476971 | D64: 105.0509869
A65: METROPOLITANA | B65: Santa Teresa | C65: 110.4721709 | D65: 90.09937431
A66: CENTRAL-NORTE | B66: São Domingos do Norte | C66: 109.1258405 | D66: 109.4363521
A67: CENTRAL-NORTE | B67: São Gabriel da Palha | C67: 88.75449493 | D67: 95.68072746
A68: SUL | B68: São José do Calçado | C68: 94.69896858 | D68: 94.23936045
A69: CENTRAL-NORTE | B69: São Mateus | C69: 88.20333327 | D69: 82.42120482
A70: CENTRAL-NORTE | B70: São Roque do Canaã | C70: 102.3576159 | D70: 117.3727609
A71: METROPOLITANA | B71: Serra | C71: 79.93706751 | D71: 79.87265528
A72: CENTRAL-NORTE | B72: Sooretama | C72: 102.584493 | D72: 100.6380198
A73: SUL | B73: Vargem Alta | C73: 107.9247434 | D73: 95.47946875
A74: METROPOLITANA | B74: Venda Nova do Imigrante | C74: 103.2616396 | D74: 97.9764605
A75: METROPOLITANA | B75: Viana | C75: 117.9696184 | D75: 104.2875303
A76: CENTRAL-NORTE | B76: Vila Pavão | C76: 96.4037123 | D76: 105.4147465
A77: CENTRAL-NORTE | B77: Vila Valério | C77: 125.448505 | D77: 106.0628196
A78: METROPOLITANA | B78: Vila Velha | C78: 103.5905271 | D78: 92.4166082
A79: METROPOLITANA | B79: Vitória | C79: 99.26473278 | D79: 95.02777875
A80: TOTAL | C80: 97.84466822 | D80: 91.4857229
A83: Vacina HPV Quadrivalente, Bivalente e Nonavalente
A84: Período avaliado: 2013-2025
A85: Faixa Etária: 9 a 14 anos.
A86: Fonte: http://tabnet.datasus.gov.br/ e https://www.vacinaeconfia.es.gov.br
A87: *Dados parciais:
A88: Dados de janeiro/2013 a dezembro/2022 extraídos do TABNET em 26/02/2025
A89: Dados de Janeiro/2023 a Janeiro/2025 extraídos do Vacina e Confia em em 26/02/2025
A90: População proporcional extraída do Censo IBGE 2022
A91: Cobertura Calculada por município de procedência da vacinação
A93: Observações:
A94: 1. Imunobiológicos que foram recebidos parcialmente pelo estado no mês de Janeiro/2025, sendo distribuídos em quantidades reduzidas às regionais e municípios:
A95: SORO ANTIRRÁBICO HUMANO, IMUNOGLOBULINA ANTIRRÁBICA HUMANA, VACINA COVID-19 MODERNA (SPIKEVAX),VACINA TETRA VIRAL,VACINA CONTRA VARICELA
A96: 2. Imunobiológicos indisponíveis no mês de Janeiro/2025, não sendo possível a distribuição às regionais e municípios:
A97: VACINA TRÍPLICE ACELULAR (DTPa) - CRIE

Sheet Cobert. Dengue
A1: REGIONAL | B1: MUNICÍPIO | C1: DENGUE -D1 % | D1: DENGUE - D2 %
A2: METROPOLITANA | B2: Afonso Cláudio | C2: 63.24683162 | D2: 31.56306578
A3: CENTRAL-NORTE | B3: Água Doce do Norte | C3: 33.09122245 | D3: 8.420534285
A4: CENTRAL-NORTE | B4: Águia Branca | C4: 42.15319564 | D4: 17.36867783
A5: SUL | B5: Alegre | C5: 72.14341764 | D5: 19.33965111
A6: SUL | B6: Alfredo Chaves | C6: 20.48364154 | D6: 6.051984999
A7: CENTRAL-NORTE | B7: Alto Rio Novo | C7: 85.08440914 | D7: 40.75471698
A8: SUL | B8: Anchieta | C8: 76.31706922 | D8: 30.15075377
A9: SUL | B9: Apiacá | C9: 22.89048474 | D9: 5.92459605
A10: METROPOLITANA | B10: Aracruz | C10: 80.85910913 | D10: 39.94857445
A11: SUL | B11: Atílio Vivácqua | C11: 55.24052246 | D11: 16.24721249
A12: CENTRAL-NORTE | B12: Baixo Guandu | C12: 39.7470254 | D12: 16.14320935
A13: CENTRAL-NORTE | B13: Barra de São Francisco | C13: 11.54744216 | D13: 2.886860539
A14: CENTRAL-NORTE | B14: Boa Esperança | C14: 23.93123209 | D14: 6.601719198
A15: SUL | B15: Bom Jesus do Norte | C15: 37.61755486 | D15: 7.711598746
A16: METROPOLITANA | B16: Brejetuba | C16: 94.10231346 | D16: 57.21733464
A17: SUL | B17: Cachoeiro de Itapemirim | C17: 48.51241236 | D17: 11.81407185
A18: METROPOLITANA | B18: Cariacica | C18: 56.672463 | D18: 24.12817473
A19: SUL | B19: Castelo | C19: 50.6607703 | D19: 12.34123515
A20: CENTRAL-NORTE | B20: Colatina | C20: 31.73195513 | D20: 11.76954249
A21: CENTRAL-NORTE | B21: Conceição da Barra | C21: 25.46598432 | D21: 7.211606179
A22: METROPOLITANA | B22: Conceição do Castelo | C22: 120.7286779 | D22: 63.9249241
A23: SUL | B23: Divino de São Lourenço | C23: 28.88955763 | D23: 15.16701776
A24: METROPOLITANA | B24: Domingos Martins | C24: 69.00740178 | D24: 40.31125451
A25: SUL | B25: Dores do Rio Preto | C25: 23.71643394 | D25: 7.733619764
A26: CENTRAL-NORTE | B26: Ecoporanga | C26: 27.55344418 | D26: 9.414813215
A27: METROPOLITANA | B27: Fundão | C27: 88.44375963 | D27: 46.22496148
A28: CENTRAL-NORTE | B28: Governador Lindenberg | C28: 84.79619161 | D28: 44.98661113
A29: SUL | B29: Guaçuí | C29: 28.44771596 | D29: 8.443386014
A30: METROPOLITANA | B30: Guarapari | C30: 19.52058637 | D30: 7.000486145
A31: METROPOLITANA | B31: Ibatiba | C31: 83.54698342 | D31: 37.96307186
A32: METROPOLITANA | B32: Ibiraçu | C32: 86.139878 | D32: 46.985388
A33: SUL | B33: Ibitirama | C33: 55.69041839 | D33: 17.64957875
A34: SUL | B34: Iconha | C34: 44.86521181 | D34: 18.48523748
A35: SUL | B35: Irupi | C35: 50.65104167 | D35: 12.36979167
A36: METROPOLITANA | B36: Itaguaçu | C36: 105.212893 | D36: 80.22284123
A37: SUL | B37: Itapemirim | C37: 19.79934981 | D37: 6.627748453
A38: METROPOLITANA | B38: Itarana | C38: 105.740988 | D38: 69.8073622
A39: SUL | B39: Iúna | C39: 39.66527197 | D39: 9.916317992
A40: CENTRAL-NORTE | B40: Jaguaré | C40: 22.28391971 | D40: 8.138000091
A41: SUL | B41: Jerônimo Monteiro | C41: 48.38288615 | D41: 14.96736766
A42: METROPOLITANA | B42: João Neiva | C42: 84.1504282 | D42: 47.36254189
A43: METROPOLITANA | B43: Laranja da Terra | C43: 99.44862155 | D43: 68.57142857
A44: CENTRAL-NORTE | B44: Linhares | C44: 57.90791755 | D44: 22.56002522
A45: CENTRAL-NORTE | B45: Mantenópolis | C45: 83.95857307 | D45: 29.27502877
A46: SUL | B46: Marataízes | C46: 32.35197548 | D46: 8.624274926
A47: METROPOLITANA | B47: Marechal Floriano | C47: 86.36081285 | D47: 48.98393824
A48: CENTRAL-NORTE | B48: Marilândia | C48: 64.43551986 | D48: 23.73940205
A49: SUL | B49: Mimoso do Sul | C49: 24.68193384 | D49: 8.227311281
A50: CENTRAL-NORTE | B50: Montanha | C50: 54.65568164 | D50: 17.62785637
A51: CENTRAL-NORTE | B51: Mucurici | C51: 69.78998384 | D51: 34.11954766
A52: SUL | B52: Muniz Freire | C52: 57.74946921 | D52: 20.38216561
A53: SUL | B53: Muqui | C53: 23.03716466 | D53: 9.451144475
A54: CENTRAL-NORTE | B54: Nova Venécia | C54: 25.15562435 | D54: 7.389212288
A55: CENTRAL-NORTE | B55: Pancas | C55: 75.2458168 | D55: 35.39761946
A56: CENTRAL-NORTE | B56: Pedro Canário | C56: 47.75574113 | D56: 17.61482255
A57: CENTRAL-NORTE | B57: Pinheiros | C57: 19.99538745 | D57: 3.943726937
A58: SUL | B58: Piúma | C58: 40.23704148 | D58: 9.631685545
A59: CENTRAL-NORTE | B59: Ponto Belo | C59: 81.45695364 | D59: 30.29801325
A60: SUL | B60: Presidente Kennedy | C60: 74.38956405 | D60: 17.39324339
A61: CENTRAL-NORTE | B61: Rio Bananal | C61: 67.93012525 | D61: 33.124588
A62: SUL | B62: Rio Novo do Sul | C62: 55.0320864 | D62: 18.78228205
A63: METROPOLITANA | B63: Santa Leopoldina | C63: 75.0386001 | D63: 44.00411734
A64: METROPOLITANA | B64: Santa Maria de Jetibá | C64: 76.40087447 | D64: 39.21297894
A65: METROPOLITANA | B65: Santa Teresa | C65: 80.45941332 | D65: 40.32283098
A66: CENTRAL-NORTE | B66: São Domingos do Norte | C66: 57.30202945 | D66: 24.35336251
A67: CENTRAL-NORTE | B67: São Gabriel da Palha | C67: 72.77881841 | D67: 20.53358983
A68: SUL | B68: São José do Calçado | C68: 44.18157622 | D68: 8.871802455
A69: CENTRAL-NORTE | B69: São Mateus | C69: 30.57617489 | D69: 8.151670475
A70: CENTRAL-NORTE | B70: São Roque do Canaã | C70: 90.49868766 | D70: 42.83464567
A71: METROPOLITANA | B71: Serra | C71: 47.01517044 | D71: 17.73636274
A72: CENTRAL-NORTE | B72: Sooretama | C72: 52.73532353 | D72: 20.68275961
A73: SUL | B73: Vargem Alta | C73: 66.25009887 | D73: 23.9183738
A74: METROPOLITANA | B74: Venda Nova do Imigrante | C74: 68.49894292 | D74: 37.09265874
A75: METROPOLITANA | B75: Viana | C75: 68.47142916 | D75: 26.57026661
A76: CENTRAL-NORTE | B76: Vila Pavão | C76: 58.02997859 | D76: 22.91220557
A77: CENTRAL-NORTE | B77: Vila Valério | C77: 60.90634441 | D77: 25.66767372
A78: METROPOLITANA | B78: Vila Velha | C78: 48.77310513 | D78: 18.68663825
A79: METROPOLITANA | B79: Vitória | C79: 68.62079605 | D79: 31.69803559
A80: TOTAL | C80: 51.72398846 | D80: 20.85852441
A83: Vacina Dengue (Atenuada)
A84: Período avaliado: 2024-2025
A85: Faixa Etária: 10 a 14 anos.
A86: Fonte: https://www.vacinaeconfia.es.gov.br
A87: *Dados parciais:
A88: Dados de Janeiro/2024 a Janeiro/2025 extraídos do Vacina e Confia em em 24/02/2025
A90: População proporcional extraída do Censo IBGE 2022
A91: Cobertura Calculada por município de procedência da vacinação
A93: Observações:
A94: 1. Imunobiológicos que foram recebidos parcialmente pelo estado no mês de Janeiro/2025, sendo distribuídos em quantidades reduzidas às regionais e municípios:
A95: SORO ANTIRRÁBICO HUMANO, IMUNOGLOBULINA ANTIRRÁBICA HUMANA, VACINA COVID-19 MODERNA (SPIKEVAX),VACINA TETRA VIRAL,VACINA CONTRA VARICELA
A96: 2. Imunobiológicos indisponíveis no mês de Janeiro/2025, não sendo possível a distribuição às regionais e municípios:
A97: VACINA TRÍPLICE ACELULAR (DTPa) - CRIE

Sheet dTpa gestantes - procedência
A1: REGIONAL | B1: MUNICÍPIO | C1: ¹POPULAÇÃO GESTANTE ANUAL | D1: ²POPULAÇÃO PROPORCIONAL | E1: DOSES APLICADAS dTpa GESTANTES | F1: COBERTURA VACINAL dTpa GESTANTES
A2: Metropolitana | B2: Afonso Cláudio | C2: 364 | D2: 32 | E2: 39 | F2: =E2/D2 -> 1.21875
A3: Norte | B3: Água Doce do Norte | C3: 197 | D3: 26 | E3: 9 | F3: =E3/D3 -> 0.3461538462
A4: Central | B4: Águia Branca | C4: 146 | D4: 11 | E4: 9 | F4: 0.8181818182
A5: Sul | B5: Alegre | C5: 291 | D5: 21 | E5: 20 | F5: 0.9523809524
A6: Sul | B6: Alfredo Chaves | C6: 116 | D6: 14 | E6: 12 | F6: 0.8571428571
A7: Central | B7: Alto Rio Novo | C7: 86 | D7: 6 | E7: 11 | F7: 1.833333333
A8: Sul | B8: Anchieta | C8: 349 | D8: 34 | E8: 35 | F8: 1.029411765
A9: Sul | B9: Apiacá | C9: 56 | D9: 4 | E9: 4 | F9: 1
A10: Metropolitana | B10: Aracruz | C10: 1384 | D10: 106 | E10: 139 | F10: 1.311320755
A11: Sul | B11: Atilio Vivacqua | C11: 148 | D11: 15 | E11: 11 | F11: 0.7333333333
A12: Central | B12: Baixo Guandu | C12: 332 | D12: 27 | E12: 43 | F12: 1.592592593
A13: Norte | B13: Barra de São Francisco | C13: 571 | D13: 46 | E13: 48 | F13: 1.043478261
A14: Norte | B14: Boa Esperança | C14: 202 | D14: 16 | E14: 29 | F14: 1.8125
A15: Sul | B15: Bom Jesus do Norte | C15: 68 | D15: 10 | E15: 10 | F15: 1
A16: Metropolitana | B16: Brejetuba | C16: 203 | D16: 22 | E16: 11 | F16: 0.5
A17: Sul | B17: Cachoeiro de Itapemirim | C17: 2318 | D17: 199 | E17: 203 | F17: 1.020100503
A18: Metropolitana | B18: Cariacica | C18: 4755 | D18: 397 | E18: 393 | F18: 0.9899244332
A19: Sul | B19: Castelo | C19: 421 | D19: 39 | E19: 42 | F19: 1.076923077
A20: Central | B20: Colatina | C20: 1493 | D20: 136 | E20: 140 | F20: 1.029411765
A21: Norte | B21: Conceição da Barra | C21: 374 | D21: 25 | E21: 46 | F21: 1.84
A22: Metropolitana | B22: Conceição do Castelo | C22: 161 | D22: 19 | E22: 16 | F22: 0.8421052632
A23: Sul | B23: Divino de São Lourenço | C23: 55 | D23: 8 | E23: 4 | F23: 0.5
A24: Metropolitana | B24: Domingos Martins | C24: 419 | D24: 34 | E24: 46 | F24: 1.352941176
A25: Sul | B25: Dores do Rio Preto | C25: 89 | D25: 7 | E25: 13 | F25: 1.857142857
A26: Norte | B26: Ecoporanga | C26: 263 | D26: 22 | E26: 13 | F26: 0.5909090909
A27: Metropolitana | B27: Fundão | C27: 218 | D27: 22 | E27: 31 | F27: 1.409090909
A28: Central | B28: Governador Lindenberg | C28: 116 | D28: 12 | E28: 16 | F28: 1.333333333
A29: Sul | B29: Guaçuí | C29: 394 | D29: 37 | E29: 34 | F29: 0.9189189189
A30: Metropolitana | B30: Guarapari | C30: 1723 | D30: 132 | E30: 126 | F30: 0.9545454545
A31: Metropolitana | B31: Ibatiba | C31: 345 | D31: 31 | E31: 41 | F31: 1.322580645
A32: Metropolitana | B32: Ibiraçu | C32: 161 | D32: 17 | E32: 15 | F32: 0.8823529412
A33: Sul | B33: Ibitirama | C33: 149 | D33: 13 | E33: 17 | F33: 1.307692308
A34: Sul | B34: Iconha | C34: 120 | D34: 9 | E34: 11 | F34: 1.222222222
A35: Sul | B35: Irupi | C35: 157 | D35: 19 | E35: 13 | F35: 0.6842105263
A36: Metropolitana | B36: Itaguaçu | C36: 137 | D36: 7 | E36: 10 | F36: 1.428571429
A37: Sul | B37: Itapemirim | C37: 498 | D37: 40 | E37: 26 | F37: 0.65
A38: Metropolitana | B38: Itarana | C38: 137 | D38: 12 | E38: 10 | F38: 0.8333333333
A39: Sul | B39: Iúna | C39: 427 | D39: 33 | E39: 43 | F39: 1.303030303
A40: Norte | B40: Jaguaré | C40: 468 | D40: 35 | E40: 45 | F40: 1.285714286
A41: Sul | B41: Jerônimo Monteiro | C41: 143 | D41: 10 | E41: 9 | F41: 0.9
A42: Metropolitana | B42: João Neiva | C42: 156 | D42: 10 | E42: 11 | F42: 1.1
A43: Metropolitana | B43: Laranja da Terra | C43: 98 | D43: 4 | E43: 15 | F43: 3.75
A44: Central | B44: Linhares | C44: 2598 | D44: 201 | E44: 207 | F44: 1.029850746
A45: Central | B45: Mantenópolis | C45: 139 | D45: 14 | E45: 10 | F45: 0.7142857143
A46: Sul | B46: Marataízes | C46: 567 | D46: 53 | E46: 41 | F46: 0.7735849057
A47: Metropolitana | B47: Marechal Floriano | C47: 201 | D47: 17 | E47: 16 | F47: 0.9411764706
A48: Central | B48: Marilândia | C48: 147 | D48: 11 | E48: 13 | F48: 1.181818182
A49: Sul | B49: Mimoso do Sul | C49: 254 | D49: 17 | E49: 24 | F49: 1.411764706
A50: Norte | B50: Montanha | C50: 209 | D50: 18 | E50: 24 | F50: 1.333333333
A51: Norte | B51: Mucurici | C51: 66 | D51: 3 | E51: 10 | F51: 3.333333333
A52: Sul | B52: Muniz Freire | C52: 203 | D52: 17 | E52: 21 | F52: 1.235294118
A53: Sul | B53: Muqui | C53: 139 | D53: 13 | E53: 11 | F53: 0.8461538462
A54: Norte | B54: Nova Venécia | C54: 643 | D54: 56 | E54: 61 | F54: 1.089285714
A55: Central | B55: Pancas | C55: 197 | D55: 14 | E55: 19 | F55: 1.357142857
A56: Norte | B56: Pedro Canário | C56: 327 | D56: 27 | E56: 22 | F56: 0.8148148148
A57: Norte | B57: Pinheiros | C57: 320 | D57: 26 | E57: 25 | F57: 0.9615384615
A58: Sul | B58: Piúma | C58: 290 | D58: 19 | E58: 15 | F58: 0.7894736842
A59: Norte | B59: Ponto Belo | C59: 78 | D59: 5 | E59: 9 | F59: 1.8
A60: Sul | B60: Presidente Kennedy | C60: 204 | D60: 14 | E60: 19 | F60: 1.357142857
A61: Central | B61: Rio Bananal | C61: 291 | D61: 21 | E61: 33 | F61: 1.571428571
A62: Sul | B62: Rio Novo do Sul | C62: 107 | D62: 11 | E62: 10 | F62: 0.9090909091
A63: Metropolitana | B63: Santa Leopoldina | C63: 81 | D63: 6 | E63: 14 | F63: 2.333333333
A64: Metropolitana | B64: Santa Maria de Jetibá | C64: 682 | D64: 55 | E64: 43 | F64: 0.7818181818
A65: Metropolitana | B65: Santa Teresa | C65: 300 | D65: 24 | E65: 22 | F65: 0.9166666667
A66: Central | B66: São Domingos do Norte | C66: 119 | D66: 10 | E66: 10 | F66: 1
A67: Central | B67: São Gabriel da Palha | C67: 437 | D67: 34 | E67: 45 | F67: =E67/D67 -> 1.323529412
A68: Sul | B68: São José do Calçado | C68: 95 | D68: 13 | E68: 4 | F68: 0.3076923077
A69: Norte | B69: São Mateus | C69: 1896 | D69: 146 | E69: 111 | F69: 0.7602739726
A70: Central | B70: São Roque do Canaã | C70: 129 | D70: 15 | E70: 12 | F70: 0.8
A71: Metropolitana | B71: Serra | C71: 7364 | D71: 639 | E71: 588 | F71: 0.9201877934
A72: Central | B72: Sooretama | C72: 446 | D72: 40 | E72: 41 | F72: 1.025
A73: Sul | B73: Vargem Alta | C73: 250 | D73: 22 | E73: 26 | F73: 1.181818182
A74: Metropolitana | B74: Venda Nova do Imigrante | C74: 362 | D74: 28 | E74: 37 | F74: 1.321428571
A75: Metropolitana | B75: Viana | C75: 918 | D75: 80 | E75: 94 | F75: 1.175
A76: Norte | B76: Vila Pavão | C76: 108 | D76: 3 | E76: 11 | F76: 3.666666667
A77: Central | B77: Vila Valério | C77: 244 | D77: 17 | E77: 25 | F77: 1.470588235
A78: Metropolitana | B78: Vila Velha | C78: 5476 | D78: 465 | E78: 454 | F78: 0.976344086
A79: Metropolitana | B79: Vitória | C79: 3504 | D79: 318 | E79: 347 | F79: 1.091194969
B81: Total Norte | C81: =SUMIF($A$2:$A$79,"Norte",C$2:C$79) -> 5722 | D81: =SUMIF($A$2:$A$79,"Norte",D$2:D$79) -> 454 | E81: =SUMIF($A$2:$A$79,"Norte",E$2:E$79) -> 463 | F81: 1.019823789
B82: Total Central | C82: =SUMIF($A$2:$A$79,"CENTRAL",C$2:C$79) -> 6920 | D82: =SUMIF($A$2:$A$79,"CENTRAL",D$2:D$79) -> 569 | E82: =SUMIF($A$2:$A$79,"CENTRAL",E$2:E$79) -> 634 | F82: 1.114235501
B83: Total Metropolitana | C83: =SUMIF($A$2:$A$79,"METROPOLITANA",C$2:C$79) -> 29149 | D83: =SUMIF($A$2:$A$79,"METROPOLITANA",D$2:D$79) -> 2477 | E83: =SUMIF($A$2:$A$79,"METROPOLITANA",E$2:E$79) -> 2518 | F83: 1.016552281
B84: Total Sul | C84: =SUMIF($A$2:$A$79,"SUL",C$2:C$79) -> 7908 | D84: =SUMIF($A$2:$A$79,"SUL",D$2:D$79) -> 691 | E84: =SUMIF($A$2:$A$79,"SUL",E$2:E$79) -> 678 | F84: 0.981186686
B85: TOTAL ES | C85: =SUM(C2:C79) -> 49699 | D85: =SUM(D2:D79) -> 4191 | E85: =SUM(E2:E79) -> 4293 | F85: =E85/D85 -> 1.024337867
B86: HOMOGENEIDADE ENTRE MUNICÍPIOS | E86: =COUNTIF(F2:F79,">=0,95") -> 51 | F86: =COUNTIF(F2:F79,">=0,95")/78 -> 0.6538461538
A89: Cobertura Vacinal dTpa das Gestantes de Janeiro de 2025
A90: Fonte: Vacina e Confia, em 14 e 17 de Fevereiro de 2025.**
A91: **Dados referente às doses aplicadas no período de Janeiro 2025
A92: Cobertura Calculada por município de procedência/ocorrência da vacinação
A93: 1 População anual extraída do MS/SVS/DASIS - SINASC/DASIS/SVS/MS 2024 (hoje preliminares) referente ao período de Janeiro e Novembro de 2024 e SINASC/DASIS/SVS/MS 2023 referente ao período de Dezembro de 2023.
A94: ² População proporcional extraída do MS/SVS/DASIS - SINASC/DASIS/SVS/MS 2024 (hoje preliminares) referente ao período de Janeiro/ 2024.
A95: Sinasc, atualizado em 10/02/2025.
A96: Homogeineidade: O cálculo da Homogeineidade entre vacinas é feito de acordo com a pactuação estabelecida no Plano Plurianual (PPA) vigente no período 2024-2027.
A98: Observações:
A99: 1. Imunobiológicos que foram recebidos parcialmente pelo estado no mês de Janeiro/2025, sendo distribuídos em quantidades reduzidas às regionais e municípios:
A100: SORO ANTIRRÁBICO HUMANO, IMUNOGLOBULINA ANTIRRÁBICA HUMANA, VACINA COVID-19 MODERNA (SPIKEVAX),VACINA TETRA VIRAL,VACINA CONTRA VARICELA
A101: 2. Imunobiológicos indisponíveis no mês de Janeiro/2025, não sendo possível a distribuição às regionais e municípios:
A102: VACINA TRÍPLICE ACELULAR (DTPa) - CRIE

Sheet dTpa gestantes - residência
A1: REGIONAL | B1: MUNICÍPIO | C1: ¹POPULAÇÃO GESTANTE ANUAL | D1: ¹POPULAÇÃO PROPORCIONAL | E1: DOSES APLICADAS dTpa GESTANTES | F1: COBERTURA VACINAL dTpa GESTANTES
A2: Metropolitana | B2: Afonso Cláudio | C2: 364 | D2: 32 | E2: 38 | F2: =E2/D2 -> 1.1875
A3: Norte | B3: Água Doce do Norte | C3: 197 | D3: 26 | E3: 9 | F3: =E3/D3 -> 0.3461538462
A4: Central | B4: Águia Branca | C4: 146 | D4: 11 | E4: 5 | F4: 0.4545454545
A5: Sul | B5: Alegre | C5: 291 | D5: 21 | E5: 22 | F5: 1.047619048
A6: Sul | B6: Alfredo Chaves | C6: 116 | D6: 14 | E6: 15 | F6: 1.071428571
A7: Central | B7: Alto Rio Novo | C7: 86 | D7: 6 | E7: 9 | F7: 1.5
A8: Sul | B8: Anchieta | C8: 349 | D8: 34 | E8: 36 | F8: 1.058823529
A9: Sul | B9: Apiacá | C9: 56 | D9: 4 | E9: 5 | F9: 1.25
A10: Metropolitana | B10: Aracruz | C10: 1384 | D10: 106 | E10: 124 | F10: 1.169811321
A11: Sul | B11: Atilio Vivacqua | C11: 148 | D11: 15 | E11: 12 | F11: 0.8
A12: Central | B12: Baixo Guandu | C12: 332 | D12: 27 | E12: 42 | F12: 1.555555556
A13: Norte | B13: Barra de São Francisco | C13: 571 | D13: 46 | E13: 52 | F13: 1.130434783
A14: Norte | B14: Boa Esperança | C14: 202 | D14: 16 | E14: 31 | F14: 1.9375
A15: Sul | B15: Bom Jesus do Norte | C15: 68 | D15: 10 | E15: 7 | F15: 0.7
A16: Metropolitana | B16: Brejetuba | C16: 203 | D16: 22 | E16: 11 | F16: 0.5
A17: Sul | B17: Cachoeiro de Itapemirim | C17: 2318 | D17: 199 | E17: 183 | F17: 0.9195979899
A18: Metropolitana | B18: Cariacica | C18: 4755 | D18: 397 | E18: 418 | F18: 1.052896725
A19: Sul | B19: Castelo | C19: 421 | D19: 39 | E19: 45 | F19: 1.153846154
A20: Central | B20: Colatina | C20: 1493 | D20: 136 | E20: 146 | F20: 1.073529412
A21: Norte | B21: Conceição da Barra | C21: 374 | D21: 25 | E21: 47 | F21: 1.88
A22: Metropolitana | B22: Conceição do Castelo | C22: 161 | D22: 19 | E22: 13 | F22: 0.6842105263
A23: Sul | B23: Divino de São Lourenço | C23: 55 | D23: 8 | E23: 3 | F23: 0.375
A24: Metropolitana | B24: Domingos Martins | C24: 419 | D24: 34 | E24: 47 | F24: 1.382352941
A25: Sul | B25: Dores do Rio Preto | C25: 89 | D25: 7 | E25: 10 | F25: 1.428571429
A26: Norte | B26: Ecoporanga | C26: 263 | D26: 22 | E26: 14 | F26: 0.6363636364
A27: Metropolitana | B27: Fundão | C27: 218 | D27: 22 | E27: 29 | F27: 1.318181818
A28: Central | B28: Governador Lindenberg | C28: 116 | D28: 12 | E28: 15 | F28: 1.25
A29: Sul | B29: Guaçuí | C29: 394 | D29: 37 | E29: 37 | F29: 1
A30: Metropolitana | B30: Guarapari | C30: 1723 | D30: 132 | E30: 117 | F30: 0.8863636364
A31: Metropolitana | B31: Ibatiba | C31: 345 | D31: 31 | E31: 41 | F31: 1.322580645
A32: Metropolitana | B32: Ibiraçu | C32: 161 | D32: 17 | E32: 18 | F32: 1.058823529
A33: Sul | B33: Ibitirama | C33: 149 | D33: 13 | E33: 18 | F33: 1.384615385
A34: Sul | B34: Iconha | C34: 120 | D34: 9 | E34: 12 | F34: 1.333333333
A35: Sul | B35: Irupi | C35: 157 | D35: 19 | E35: 10 | F35: 0.5263157895
A36: Metropolitana | B36: Itaguaçu | C36: 137 | D36: 7 | E36: 9 | F36: 1.285714286
A37: Sul | B37: Itapemirim | C37: 498 | D37: 40 | E37: 30 | F37: 0.75
A38: Metropolitana | B38: Itarana | C38: 137 | D38: 12 | E38: 15 | F38: 1.25
A39: Sul | B39: Iúna | C39: 427 | D39: 33 | E39: 45 | F39: 1.363636364
A40: Norte | B40: Jaguaré | C40: 468 | D40: 35 | E40: 39 | F40: 1.114285714
A41: Sul | B41: Jerônimo Monteiro | C41: 143 | D41: 10 | E41: 7 | F41: 0.7
A42: Metropolitana | B42: João Neiva | C42: 156 | D42: 10 | E42: 11 | F42: 1.1
A43: Metropolitana | B43: Laranja da Terra | C43: 98 | D43: 4 | E43: 16 | F43: 4
A44: Central | B44: Linhares | C44: 2598 | D44: 201 | E44: 183 | F44: 0.9104477612
A45: Central | B45: Mantenópolis | C45: 139 | D45: 14 | E45: 9 | F45: 0.6428571429
A46: Sul | B46: Marataízes | C46: 567 | D46: 53 | E46: 42 | F46: 0.7924528302
A47: Metropolitana | B47: Marechal Floriano | C47: 201 | D47: 17 | E47: 16 | F47: 0.9411764706
A48: Central | B48: Marilândia | C48: 147 | D48: 11 | E48: 13 | F48: 1.181818182
A49: Sul | B49: Mimoso do Sul | C49: 254 | D49: 17 | E49: 24 | F49: 1.411764706
A50: Norte | B50: Montanha | C50: 209 | D50: 18 | E50: 27 | F50: 1.5
A51: Norte | B51: Mucurici | C51: 66 | D51: 3 | E51: 8 | F51: 2.666666667
A52: Sul | B52: Muniz Freire | C52: 203 | D52: 17 | E52: 17 | F52: 1
A53: Sul | B53: Muqui | C53: 139 | D53: 13 | E53: 14 | F53: 1.076923077
A54: Norte | B54: Nova Venécia | C54: 643 | D54: 56 | E54: 64 | F54: 1.142857143
A55: Central | B55: Pancas | C55: 197 | D55: 14 | E55: 21 | F55: 1.5
A56: Norte | B56: Pedro Canário | C56: 327 | D56: 27 | E56: 33 | F56: 1.222222222
A57: Norte | B57: Pinheiros | C57: 320 | D57: 26 | E57: 25 | F57: 0.9615384615
A58: Sul | B58: Piúma | C58: 290 | D58: 19 | E58: 13 | F58: 0.6842105263
A59: Norte | B59: Ponto Belo | C59: 78 | D59: 5 | E59: 9 | F59: 1.8
A60: Sul | B60: Presidente Kennedy | C60: 204 | D60: 14 | E60: 19 | F60: 1.357142857
A61: Central | B61: Rio Bananal | C61: 291 | D61: 21 | E61: 41 | F61: 1.952380952
A62: Sul | B62: Rio Novo do Sul | C62: 107 | D62: 11 | E62: 11 | F62: 1
A63: Metropolitana | B63: Santa Leopoldina | C63: 81 | D63: 6 | E63: 16 | F63: 2.666666667
A64: Metropolitana | B64: Santa Maria de Jetibá | C64: 682 | D64: 55 | E64: 35 | F64: 0.6363636364
A65: Metropolitana | B65: Santa Teresa | C65: 300 | D65: 24 | E65: 25 | F65: 1.041666667
A66: Central | B66: São Domingos do Norte | C66: 119 | D66: 10 | E66: 13 | F66: 1.3
A67: Central | B67: São Gabriel da Palha | C67: 437 | D67: 34 | E67: 39 | F67: =E67/D67 -> 1.147058824
A68: Sul | B68: São José do Calçado | C68: 95 | D68: 13 | E68: 2 | F68: 0.1538461538
A69: Norte | B69: São Mateus | C69: 1896 | D69: 146 | E69: 110 | F69: 0.7534246575
A70: Central | B70: São Roque do Canaã | C70: 129 | D70: 15 | E70: 15 | F70: 1
A71: Metropolitana | B71: Serra | C71: 7364 | D71: 639 | E71: 564 | F71: 0.882629108
A72: Central | B72: Sooretama | C72: 446 | D72: 40 | E72: 42 | F72: 1.05
A73: Sul | B73: Vargem Alta | C73: 250 | D73: 22 | E73: 25 | F73: 1.136363636
A74: Metropolitana | B74: Venda Nova do Imigrante | C74: 362 | D74: 28 | E74: 41 | F74: 1.464285714
A75: Metropolitana | B75: Viana | C75: 918 | D75: 80 | E75: 98 | F75: 1.225
A76: Norte | B76: Vila Pavão | C76: 108 | D76: 3 | E76: 8 | F76: 2.666666667
A77: Central | B77: Vila Valério | C77: 244 | D77: 17 | E77: 17 | F77: 1
A78: Metropolitana | B78: Vila Velha | C78: 5476 | D78: 465 | E78: 408 | F78: 0.8774193548
A79: Metropolitana | B79: Vitória | C79: 3504 | D79: 318 | E79: 305 | F79: 0.9591194969
B81: Total Norte | C81: =SUMIF($A$2:$A$79,"Norte",C$2:C$79) -> 5722 | D81: =SUMIF($A$2:$A$79,"Norte",D$2:D$79) -> 454 | E81: =SUMIF($A$2:$A$79,"Norte",E$2:E$79) -> 476 | F81: 1.04845815
B82: Total Central | C82: =SUMIF($A$2:$A$79,"CENTRAL",C$2:C$79) -> 6920 | D82: =SUMIF($A$2:$A$79,"CENTRAL",D$2:D$79) -> 569 | E82: =SUMIF($A$2:$A$79,"CENTRAL",E$2:E$79) -> 610 | F82: 1.072056239
B83: Total Metropolitana | C83: =SUMIF($A$2:$A$79,"METROPOLITANA",C$2:C$79) -> 29149 | D83: =SUMIF($A$2:$A$79,"METROPOLITANA",D$2:D$79) -> 2477 | E83: =SUMIF($A$2:$A$79,"METROPOLITANA",E$2:E$79) -> 2415 | F83: 0.9749697214
B84: Total Sul | C84: =SUMIF($A$2:$A$79,"SUL",C$2:C$79) -> 7908 | D84: =SUMIF($A$2:$A$79,"SUL",D$2:D$79) -> 691 | E84: =SUMIF($A$2:$A$79,"SUL",E$2:E$79) -> 664 | F84: 0.9609261939
B85: TOTAL ES | C85: =SUM(C2:C79) -> 49699 | D85: =SUM(D2:D79) -> 4191 | E85: =SUM(E2:E79) -> 4165 | F85: =E85/D85 -> 0.99379623
B86: HOMOGENEIDADE ENTRE MUNICÍPIOS | E86: =COUNTIF(F2:F79,">=0,95") -> 55 | F86: =COUNTIF(F2:F79,">=0,95")/78 -> 0.7051282051
A89: Cobertura Vacinal dTpa das Gestantes de Janeiro de 2025
A90: Fonte: Vacina e Confia, em 14 e 17 de Fevereiro de 2025.**
A91: **Dados referente às doses aplicadas no período de Janeiro 2025
A92: Cobertura Calculada por município de residência do cidadão (no Vacina e Confia, a origem da informação é o endereço que consta no cadastro do cidadão preenchido manualmente por meio do autocadastro ou pelo cadastro realizado por um profissional de saúde no momento do atendimento).
A93: 1 População anual extraída do MS/SVS/DASIS - SINASC/DASIS/SVS/MS 2024 (hoje preliminares) referente ao período de Janeiro e Novembro de 2024 e SINASC/DASIS/SVS/MS 2023 referente ao período de Dezembro de 2023.
A94: ² População proporcional extraída do MS/SVS/DASIS - SINASC/DASIS/SVS/MS 2024 (hoje preliminares) referente ao período de Janeiro/ 2024.
A95: Sinasc, atualizado em 10/02/2025.
A96: Homogeineidade: O cálculo da Homogeineidade entre vacinas é feito de acordo com a pactuação estabelecida no Plano Plurianual (PPA) vigente no período 2024-2027.
A98: Observações:
A99: 1. Imunobiológicos que foram recebidos parcialmente pelo estado no mês de Janeiro/2025, sendo distribuídos em quantidades reduzidas às regionais e municípios:
A100: SORO ANTIRRÁBICO HUMANO, IMUNOGLOBULINA ANTIRRÁBICA HUMANA, VACINA COVID-19 MODERNA (SPIKEVAX),VACINA TETRA VIRAL,VACINA CONTRA VARICELA
A101: 2. Imunobiológicos indisponíveis no mês de Janeiro/2025, não sendo possível a distribuição às regionais e municípios:
A102: VACINA TRÍPLICE ACELULAR (DTPa) - CRIE

Sheet COVID-19 gestantes -Residência
A1: REGIONAL | B1: MUNICÍPIO | C1: ¹POPULAÇÃO GESTANTE ANUAL | D1: ²POPULAÇÃO PROPORCIONAL | E1: DOSES APLICADAS dTpa GESTANTES | F1: COBERTURA VACINAL dTpa GESTANTES
A2: Metropolitana | B2: Afonso Cláudio | C2: 364 | D2: 32 | E2: 1 | F2: =E2/D2 -> 0.03125
A3: Norte | B3: Água Doce do Norte | C3: 197 | D3: 26 | E3: 0 | F3: =E3/D3 -> 0
A4: Central | B4: Águia Branca | C4: 146 | D4: 11 | E4: 1 | F4: 0.09090909091
A5: Sul | B5: Alegre | C5: 291 | D5: 21 | E5: 3 | F5: 0.1428571429
A6: Sul | B6: Alfredo Chaves | C6: 116 | D6: 14 | E6: 0 | F6: 0
A7: Central | B7: Alto Rio Novo | C7: 86 | D7: 6 | E7: 0 | F7: 0
A8: Sul | B8: Anchieta | C8: 349 | D8: 34 | E8: 3 | F8: 0.08823529412
A9: Sul | B9: Apiacá | C9: 56 | D9: 4 | E9: 0 | F9: 0
A10: Metropolitana | B10: Aracruz | C10: 1384 | D10: 106 | E10: 15 | F10: 0.141509434
A11: Sul | B11: Atilio Vivacqua | C11: 148 | D11: 15 | E11: 0 | F11: 0
A12: Central | B12: Baixo Guandu | C12: 332 | D12: 27 | E12: 1 | F12: 0.03703703704
A13: Norte | B13: Barra de São Francisco | C13: 571 | D13: 46 | E13: 1 | F13: 0.02173913043
A14: Norte | B14: Boa Esperança | C14: 202 | D14: 16 | E14: 1 | F14: 0.0625
A15: Sul | B15: Bom Jesus do Norte | C15: 68 | D15: 10 | E15: 0 | F15: 0
A16: Metropolitana | B16: Brejetuba | C16: 203 | D16: 22 | E16: 1 | F16: 0.04545454545
A17: Sul | B17: Cachoeiro de Itapemirim | C17: 2318 | D17: 199 | E17: 5 | F17: 0.02512562814
A18: Metropolitana | B18: Cariacica | C18: 4755 | D18: 397 | E18: 123 | F18: 0.3098236776
A19: Sul | B19: Castelo | C19: 421 | D19: 39 | E19: 0 | F19: 0
A20: Central | B20: Colatina | C20: 1493 | D20: 136 | E20: 14 | F20: 0.1029411765
A21: Norte | B21: Conceição da Barra | C21: 374 | D21: 25 | E21: 3 | F21: 0.12
A22: Metropolitana | B22: Conceição do Castelo | C22: 161 | D22: 19 | E22: 1 | F22: 0.05263157895
A23: Sul | B23: Divino de São Lourenço | C23: 55 | D23: 8 | E23: 0 | F23: 0
A24: Metropolitana | B24: Domingos Martins | C24: 419 | D24: 34 | E24: 3 | F24: 0.08823529412
A25: Sul | B25: Dores do Rio Preto | C25: 89 | D25: 7 | E25: 4 | F25: 0.5714285714
A26: Norte | B26: Ecoporanga | C26: 263 | D26: 22 | E26: 5 | F26: 0.2272727273
A27: Metropolitana | B27: Fundão | C27: 218 | D27: 22 | E27: 1 | F27: 0.04545454545
A28: Central | B28: Governador Lindenberg | C28: 116 | D28: 12 | E28: 0 | F28: 0
A29: Sul | B29: Guaçuí | C29: 394 | D29: 37 | E29: 2 | F29: 0.05405405405
A30: Metropolitana | B30: Guarapari | C30: 1723 | D30: 132 | E30: 14 | F30: 0.1060606061
A31: Metropolitana | B31: Ibatiba | C31: 345 | D31: 31 | E31: 1 | F31: 0.03225806452
A32: Metropolitana | B32: Ibiraçu | C32: 161 | D32: 17 | E32: 0 | F32: 0
A33: Sul | B33: Ibitirama | C33: 149 | D33: 13 | E33: 5 | F33: 0.3846153846
A34: Sul | B34: Iconha | C34: 120 | D34: 9 | E34: 0 | F34: 0
A35: Sul | B35: Irupi | C35: 157 | D35: 19 | E35: 0 | F35: 0
A36: Metropolitana | B36: Itaguaçu | C36: 137 | D36: 7 | E36: 1 | F36: 0.1428571429
A37: Sul | B37: Itapemirim | C37: 498 | D37: 40 | E37: 2 | F37: 0.05
A38: Metropolitana | B38: Itarana | C38: 137 | D38: 12 | E38: 1 | F38: 0.08333333333
A39: Sul | B39: Iúna | C39: 427 | D39: 33 | E39: 1 | F39: 0.0303030303
A40: Norte | B40: Jaguaré | C40: 468 | D40: 35 | E40: 6 | F40: 0.1714285714
A41: Sul | B41: Jerônimo Monteiro | C41: 143 | D41: 10 | E41: 3 | F41: 0.3
A42: Metropolitana | B42: João Neiva | C42: 156 | D42: 10 | E42: 0 | F42: 0
A43: Metropolitana | B43: Laranja da Terra | C43: 98 | D43: 4 | E43: 0 | F43: 0
A44: Central | B44: Linhares | C44: 2598 | D44: 201 | E44: 6 | F44: 0.02985074627
A45: Central | B45: Mantenópolis | C45: 139 | D45: 14 | E45: 0 | F45: 0
A46: Sul | B46: Marataízes | C46: 567 | D46: 53 | E46: 3 | F46: 0.05660377358
A47: Metropolitana | B47: Marechal Floriano | C47: 201 | D47: 17 | E47: 6 | F47: 0.3529411765
A48: Central | B48: Marilândia | C48: 147 | D48: 11 | E48: 0 | F48: 0
A49: Sul | B49: Mimoso do Sul | C49: 254 | D49: 17 | E49: 2 | F49: 0.1176470588
A50: Norte | B50: Montanha | C50: 209 | D50: 18 | E50: 1 | F50: 0.05555555556
A51: Norte | B51: Mucurici | C51: 66 | D51: 3 | E51: 3 | F51: 1
A52: Sul | B52: Muniz Freire | C52: 203 | D52: 17 | E52: 0 | F52: 0
A53: Sul | B53: Muqui | C53: 139 | D53: 13 | E53: 0 | F53: 0
A54: Norte | B54: Nova Venécia | C54: 643 | D54: 56 | E54: 6 | F54: 0.1071428571
A55: Central | B55: Pancas | C55: 197 | D55: 14 | E55: 0 | F55: 0
A56: Norte | B56: Pedro Canário | C56: 327 | D56: 27 | E56: 5 | F56: 0.1851851852
A57: Norte | B57: Pinheiros | C57: 320 | D57: 26 | E57: 1 | F57: 0.03846153846
A58: Sul | B58: Piúma | C58: 290 | D58: 19 | E58: 4 | F58: 0.2105263158
A59: Norte | B59: Ponto Belo | C59: 78 | D59: 5 | E59: 0 | F59: 0
A60: Sul | B60: Presidente Kennedy | C60: 204 | D60: 14 | E60: 0 | F60: 0
A61: Central | B61: Rio Bananal | C61: 291 | D61: 21 | E61: 0 | F61: 0
A62: Sul | B62: Rio Novo do Sul | C62: 107 | D62: 11 | E62: 0 | F62: 0
A63: Metropolitana | B63: Santa Leopoldina | C63: 81 | D63: 6 | E63: 1 | F63: 0.1666666667
A64: Metropolitana | B64: Santa Maria de Jetibá | C64: 682 | D64: 55 | E64: 0 | F64: 0
A65: Metropolitana | B65: Santa Teresa | C65: 300 | D65: 24 | E65: 0 | F65: 0
A66: Central | B66: São Domingos do Norte | C66: 119 | D66: 10 | E66: 0 | F66: 0
A67: Central | B67: São Gabriel da Palha | C67: 437 | D67: 34 | E67: 1 | F67: =E67/D67 -> 0.02941176471
A68: Sul | B68: São José do Calçado | C68: 95 | D68: 13 | E68: 0 | F68: 0
A69: Norte | B69: São Mateus | C69: 1896 | D69: 146 | E69: 11 | F69: 0.07534246575
A70: Central | B70: São Roque do Canaã | C70: 129 | D70: 15 | E70: 2 | F70: 0.1333333333
A71: Metropolitana | B71: Serra | C71: 7364 | D71: 639 | E71: 106 | F71: 0.1658841941
A72: Central | B72: Sooretama | C72: 446 | D72: 40 | E72: 1 | F72: 0.025
A73: Sul | B73: Vargem Alta | C73: 250 | D73: 22 | E73: 0 | F73: 0
A74: Metropolitana | B74: Venda Nova do Imigrante | C74: 362 | D74: 28 | E74: 2 | F74: 0.07142857143
A75: Metropolitana | B75: Viana | C75: 918 | D75: 80 | E75: 7 | F75: 0.0875
A76: Norte | B76: Vila Pavão | C76: 108 | D76: 3 | E76: 0 | F76: 0
A77: Central | B77: Vila Valério | C77: 244 | D77: 17 | E77: 1 | F77: 0.05882352941
A78: Metropolitana | B78: Vila Velha | C78: 5476 | D78: 465 | E78: 81 | F78: 0.1741935484
A79: Metropolitana | B79: Vitória | C79: 3504 | D79: 318 | E79: 67 | F79: 0.2106918239
B81: Total Norte | C81: =SUMIF($A$2:$A$79,"Norte",C$2:C$79) -> 5722 | D81: =SUMIF($A$2:$A$79,"Norte",D$2:D$79) -> 454 | E81: =SUMIF($A$2:$A$79,"Norte",E$2:E$79) -> 43 | F81: =E81/D81 -> 0.09471365639
B82: Total Central | C82: =SUMIF($A$2:$A$79,"CENTRAL",C$2:C$79) -> 6920 | D82: =SUMIF($A$2:$A$79,"CENTRAL",D$2:D$79) -> 569 | E82: =SUMIF($A$2:$A$79,"CENTRAL",E$2:E$79) -> 27 | F82: 0.0474516696
B83: Total Metropolitana | C83: =SUMIF($A$2:$A$79,"METROPOLITANA",C$2:C$79) -> 29149 | D83: =SUMIF($A$2:$A$79,"METROPOLITANA",D$2:D$79) -> 2477 | E83: =SUMIF($A$2:$A$79,"METROPOLITANA",E$2:E$79) -> 432 | F83: 0.1744045216
B84: Total Sul | C84: =SUMIF($A$2:$A$79,"SUL",C$2:C$79) -> 7908 | D84: =SUMIF($A$2:$A$79,"SUL",D$2:D$79) -> 691 | E84: =SUMIF($A$2:$A$79,"SUL",E$2:E$79) -> 37 | F84: 0.05354558611
B85: TOTAL ES | C85: =SUM(C2:C79) -> 49699 | D85: =SUM(D2:D79) -> 4191 | E85: =SUM(E2:E79) -> 539 | F85: =E85/D85 -> 0.1286089239
B86: HOMOGENEIDADE ENTRE MUNICÍPIOS | E86: =COUNTIF(F2:F79,">=0,95") -> 1 | F86: =COUNTIF(F2:F79,">=0,90")/78 -> 0.01282051282
A89: Cobertura Vacinal Covid 19 das Gestantes de Janeiro de 2025
A90: Fonte: Vacina e Confia, em 12 de Março de 2025.**
A91: **Dados referente às doses aplicadas no período de Janeiro 2025
A92: Cobertura Calculada por município de residência do cidadão (no Vacina e Confia, a origem da informação é o endereço que consta no cadastro do cidadão preenchido manualmente por meio do autocadastro ou pelo cadastro realizado por um profissional de saúde no momento do atendimento).
A93: 1 População anual extraída do MS/SVS/DASIS - SINASC/DASIS/SVS/MS 2024 (hoje preliminares) referente ao período de Janeiro e Novembro de 2024 e SINASC/DASIS/SVS/MS 2023 referente ao período de Dezembro de 2023.
A94: ² População proporcional extraída do MS/SVS/DASIS - SINASC/DASIS/SVS/MS 2024 (hoje preliminares) referente ao período de Janeiro/ 2024.
A95: Sinasc, atualizado em 10/02/2025.
A96: Homogeineidade: O cálculo da Homogeineidade entre vacinas é feito de acordo com a pactuação estabelecida no Plano Plurianual (PPA) vigente no período 2024-2027.
A98: Observações:
A99: 1. Imunobiológicos que foram recebidos parcialmente pelo estado no mês de Janeiro/2025, sendo distribuídos em quantidades reduzidas às regionais e municípios:
A100: SORO ANTIRRÁBICO HUMANO, IMUNOGLOBULINA ANTIRRÁBICA HUMANA, VACINA COVID-19 MODERNA (SPIKEVAX),VACINA TETRA VIRAL,VACINA CONTRA VARICELA
A101: 2. Imunobiológicos indisponíveis no mês de Janeiro/2025, não sendo possível a distribuição às regionais e municípios:
A102: VACINA TRÍPLICE ACELULAR (DTPa) - CRIE

Sheet COVID-19 gestantes -Procedência
A1: REGIONAL | B1: MUNICÍPIO | C1: ¹POPULAÇÃO GESTANTE ANUAL | D1: ²POPULAÇÃO PROPORCIONAL | E1: DOSES APLICADAS dTpa GESTANTES | F1: COBERTURA VACINAL dTpa GESTANTES
A2: Metropolitana | B2: Afonso Cláudio | C2: 364 | D2: 32 | E2: 0 | F2: =E2/D2 -> 0
A3: Norte | B3: Água Doce do Norte | C3: 197 | D3: 26 | E3: 0 | F3: =E3/D3 -> 0
A4: Central | B4: Águia Branca | C4: 146 | D4: 11 | E4: 0 | F4: 0
A5: Sul | B5: Alegre | C5: 291 | D5: 21 | E5: 3 | F5: 0.1428571429
A6: Sul | B6: Alfredo Chaves | C6: 116 | D6: 14 | E6: 0 | F6: 0
A7: Central | B7: Alto Rio Novo | C7: 86 | D7: 6 | E7: 0 | F7: 0
A8: Sul | B8: Anchieta | C8: 349 | D8: 34 | E8: 2 | F8: 0.05882352941
A9: Sul | B9: Apiacá | C9: 56 | D9: 4 | E9: 0 | F9: 0
A10: Metropolitana | B10: Aracruz | C10: 1384 | D10: 106 | E10: 17 | F10: 0.1603773585
A11: Sul | B11: Atilio Vivacqua | C11: 148 | D11: 15 | E11: 0 | F11: 0
A12: Central | B12: Baixo Guandu | C12: 332 | D12: 27 | E12: 0 | F12: 0
A13: Norte | B13: Barra de São Francisco | C13: 571 | D13: 46 | E13: 0 | F13: 0
A14: Norte | B14: Boa Esperança | C14: 202 | D14: 16 | E14: 1 | F14: 0.0625
A15: Sul | B15: Bom Jesus do Norte | C15: 68 | D15: 10 | E15: 0 | F15: 0
A16: Metropolitana | B16: Brejetuba | C16: 203 | D16: 22 | E16: 0 | F16: 0
A17: Sul | B17: Cachoeiro de Itapemirim | C17: 2318 | D17: 199 | E17: 4 | F17: 0.02010050251
A18: Metropolitana | B18: Cariacica | C18: 4755 | D18: 397 | E18: 129 | F18: 0.3249370277
A19: Sul | B19: Castelo | C19: 421 | D19: 39 | E19: 0 | F19: 0
A20: Central | B20: Colatina | C20: 1493 | D20: 136 | E20: 16 | F20: 0.1176470588
A21: Norte | B21: Conceição da Barra | C21: 374 | D21: 25 | E21: 4 | F21: 0.16
A22: Metropolitana | B22: Conceição do Castelo | C22: 161 | D22: 19 | E22: 0 | F22: 0
A23: Sul | B23: Divino de São Lourenço | C23: 55 | D23: 8 | E23: 0 | F23: 0
A24: Metropolitana | B24: Domingos Martins | C24: 419 | D24: 34 | E24: 5 | F24: 0.1470588235
A25: Sul | B25: Dores do Rio Preto | C25: 89 | D25: 7 | E25: 5 | F25: 0.7142857143
A26: Norte | B26: Ecoporanga | C26: 263 | D26: 22 | E26: 3 | F26: 0.1363636364
A27: Metropolitana | B27: Fundão | C27: 218 | D27: 22 | E27: 2 | F27: 0.09090909091
A28: Central | B28: Governador Lindenberg | C28: 116 | D28: 12 | E28: 0 | F28: 0
A29: Sul | B29: Guaçuí | C29: 394 | D29: 37 | E29: 0 | F29: 0
A30: Metropolitana | B30: Guarapari | C30: 1723 | D30: 132 | E30: 12 | F30: 0.09090909091
A31: Metropolitana | B31: Ibatiba | C31: 345 | D31: 31 | E31: 2 | F31: 0.06451612903
A32: Metropolitana | B32: Ibiraçu | C32: 161 | D32: 17 | E32: 0 | F32: 0
A33: Sul | B33: Ibitirama | C33: 149 | D33: 13 | E33: 6 | F33: 0.4615384615
A34: Sul | B34: Iconha | C34: 120 | D34: 9 | E34: 1 | F34: 0.1111111111
A35: Sul | B35: Irupi | C35: 157 | D35: 19 | E35: 0 | F35: 0
A36: Metropolitana | B36: Itaguaçu | C36: 137 | D36: 7 | E36: 1 | F36: 0.1428571429
A37: Sul | B37: Itapemirim | C37: 498 | D37: 40 | E37: 1 | F37: 0.025
A38: Metropolitana | B38: Itarana | C38: 137 | D38: 12 | E38: 0 | F38: 0
A39: Sul | B39: Iúna | C39: 427 | D39: 33 | E39: 0 | F39: 0
A40: Norte | B40: Jaguaré | C40: 468 | D40: 35 | E40: 7 | F40: 0.2
A41: Sul | B41: Jerônimo Monteiro | C41: 143 | D41: 10 | E41: 4 | F41: 0.4
A42: Metropolitana | B42: João Neiva | C42: 156 | D42: 10 | E42: 0 | F42: 0
A43: Metropolitana | B43: Laranja da Terra | C43: 98 | D43: 4 | E43: 0 | F43: 0
A44: Central | B44: Linhares | C44: 2598 | D44: 201 | E44: 1 | F44: 0.004975124378
A45: Central | B45: Mantenópolis | C45: 139 | D45: 14 | E45: 0 | F45: 0
A46: Sul | B46: Marataízes | C46: 567 | D46: 53 | E46: 3 | F46: 0.05660377358
A47: Metropolitana | B47: Marechal Floriano | C47: 201 | D47: 17 | E47: 3 | F47: 0.1764705882
A48: Central | B48: Marilândia | C48: 147 | D48: 11 | E48: 0 | F48: 0
A49: Sul | B49: Mimoso do Sul | C49: 254 | D49: 17 | E49: 1 | F49: 0.05882352941
A50: Norte | B50: Montanha | C50: 209 | D50: 18 | E50: 1 | F50: 0.05555555556
A51: Norte | B51: Mucurici | C51: 66 | D51: 3 | E51: 5 | F51: 1.666666667
A52: Sul | B52: Muniz Freire | C52: 203 | D52: 17 | E52: 0 | F52: 0
A53: Sul | B53: Muqui | C53: 139 | D53: 13 | E53: 0 | F53: 0
A54: Norte | B54: Nova Venécia | C54: 643 | D54: 56 | E54: 5 | F54: 0.08928571429
A55: Central | B55: Pancas | C55: 197 | D55: 14 | E55: 0 | F55: 0
A56: Norte | B56: Pedro Canário | C56: 327 | D56: 27 | E56: 3 | F56: 0.1111111111
A57: Norte | B57: Pinheiros | C57: 320 | D57: 26 | E57: 1 | F57: 0.03846153846
A58: Sul | B58: Piúma | C58: 290 | D58: 19 | E58: 4 | F58: 0.2105263158
A59: Norte | B59: Ponto Belo | C59: 78 | D59: 5 | E59: 0 | F59: 0
A60: Sul | B60: Presidente Kennedy | C60: 204 | D60: 14 | E60: 0 | F60: 0
A61: Central | B61: Rio Bananal | C61: 291 | D61: 21 | E61: 0 | F61: 0
A62: Sul | B62: Rio Novo do Sul | C62: 107 | D62: 11 | E62: 1 | F62: 0.09090909091
A63: Metropolitana | B63: Santa Leopoldina | C63: 81 | D63: 6 | E63: 0 | F63: 0
A64: Metropolitana | B64: Santa Maria de Jetibá | C64: 682 | D64: 55 | E64: 0 | F64: 0
A65: Metropolitana | B65: Santa Teresa | C65: 300 | D65: 24 | E65: 1 | F65: 0.04166666667
A66: Central | B66: São Domingos do Norte | C66: 119 | D66: 10 | E66: 0 | F66: 0
A67: Central | B67: São Gabriel da Palha | C67: 437 | D67: 34 | E67: 1 | F67: =E67/D67 -> 0.02941176471
A68: Sul | B68: São José do Calçado | C68: 95 | D68: 13 | E68: 1 | F68: 0.07692307692
A69: Norte | B69: São Mateus | C69: 1896 | D69: 146 | E69: 11 | F69: 0.07534246575
A70: Central | B70: São Roque do Canaã | C70: 129 | D70: 15 | E70: 2 | F70: 0.1333333333
A71: Metropolitana | B71: Serra | C71: 7364 | D71: 639 | E71: 103 | F71: 0.1611893584
A72: Central | B72: Sooretama | C72: 446 | D72: 40 | E72: 0 | F72: 0
A73: Sul | B73: Vargem Alta | C73: 250 | D73: 22 | E73: 1 | F73: 0.04545454545
A74: Metropolitana | B74: Venda Nova do Imigrante | C74: 362 | D74: 28 | E74: 1 | F74: 0.03571428571
A75: Metropolitana | B75: Viana | C75: 918 | D75: 80 | E75: 4 | F75: 0.05
A76: Norte | B76: Vila Pavão | C76: 108 | D76: 3 | E76: 0 | F76: 0
A77: Central | B77: Vila Valério | C77: 244 | D77: 17 | E77: 0 | F77: 0
A78: Metropolitana | B78: Vila Velha | C78: 5476 | D78: 465 | E78: 104 | F78: 0.223655914
A79: Metropolitana | B79: Vitória | C79: 3504 | D79: 318 | E79: 71 | F79: 0.2232704403
B81: Total Norte | C81: =SUMIF($A$2:$A$79,"Norte",C$2:C$79) -> 5722 | D81: =SUMIF($A$2:$A$79,"Norte",D$2:D$79) -> 454 | E81: =SUMIF($A$2:$A$79,"Norte",E$2:E$79) -> 41 | F81: =E81/D81 -> 0.09030837004
B82: Total Central | C82: =SUMIF($A$2:$A$79,"CENTRAL",C$2:C$79) -> 6920 | D82: =SUMIF($A$2:$A$79,"CENTRAL",D$2:D$79) -> 569 | E82: =SUMIF($A$2:$A$79,"CENTRAL",E$2:E$79) -> 20 | F82: 0.03514938489
B83: Total Metropolitana | C83: =SUMIF($A$2:$A$79,"METROPOLITANA",C$2:C$79) -> 29149 | D83: =SUMIF($A$2:$A$79,"METROPOLITANA",D$2:D$79) -> 2477 | E83: =SUMIF($A$2:$A$79,"METROPOLITANA",E$2:E$79) -> 455 | F83: 0.1836899475
B84: Total Sul | C84: =SUMIF($A$2:$A$79,"SUL",C$2:C$79) -> 7908 | D84: =SUMIF($A$2:$A$79,"SUL",D$2:D$79) -> 691 | E84: =SUMIF($A$2:$A$79,"SUL",E$2:E$79) -> 37 | F84: 0.05354558611
B85: TOTAL ES | C85: =SUM(C2:C79) -> 49699 | D85: =SUM(D2:D79) -> 4191 | E85: =SUM(E2:E79) -> 553 | F85: =E85/D85 -> 0.1319494154
B86: HOMOGENEIDADE ENTRE MUNICÍPIOS | E86: =COUNTIF(F2:F79,">=0,95") -> 1 | F86: =COUNTIF(F2:F79,">=0,90")/78 -> 0.01282051282
A89: Cobertura Vacinal Covid 19 das Gestantes de Janeiro de 2025
A90: Fonte: Vacina e Confia, em 12 de Março de 2025.**
A91: **Dados referente às doses aplicadas no período de Janeiro 2025
A92: Cobertura Calculada por município de procedência/ocorrência da vacinação
A93: 1 População anual extraída do MS/SVS/DASIS - SINASC/DASIS/SVS/MS 2024 (hoje preliminares) referente ao período de Janeiro e Novembro de 2024 e SINASC/DASIS/SVS/MS 2023 referente ao período de Dezembro de 2023.
A94: ² População proporcional extraída do MS/SVS/DASIS - SINASC/DASIS/SVS/MS 2024 (hoje preliminares) referente ao período de Janeiro/ 2024.
A95: Sinasc, atualizado em 10/02/2025.
A96: Homogeineidade: O cálculo da Homogeineidade entre vacinas é feito de acordo com a pactuação estabelecida no Plano Plurianual (PPA) vigente no período 2024-2027.
A98: Observações:
A99: 1. Imunobiológicos que foram recebidos parcialmente pelo estado no mês de Janeiro/2025, sendo distribuídos em quantidades reduzidas às regionais e municípios:
A100: SORO ANTIRRÁBICO HUMANO, IMUNOGLOBULINA ANTIRRÁBICA HUMANA, VACINA COVID-19 MODERNA (SPIKEVAX),VACINA TETRA VIRAL,VACINA CONTRA VARICELA
A101: 2. Imunobiológicos indisponíveis no mês de Janeiro/2025, não sendo possível a distribuição às regionais e municípios:
A102: VACINA TRÍPLICE ACELULAR (DTPa) - CRIE

Sheet COVID-19 idoso -Procêdencia
A1: Regional | B1: Município | C1: População 60 anos + | D1: TOTAL DE DOSES APLICADAS COVID-19 | E1: COBERTURA COVID-19
A2: Metropolitana | B2: Afonso Cláudio | C2: 5905 | D2: 5 | E2: =(D2/C2) -> 0.0008467400508
A3: Norte | B3: Água Doce do Norte | C3: 2357 | D3: 35 | E3: =(D3/C3) -> 0.01484938481
A4: Central | B4: Águia Branca | C4: 1775 | D4: 15 | E4: 0.008450704225
A5: Sul | B5: Alegre | C5: 5949 | D5: 63 | E5: 0.01059001513
A6: Sul | B6: Alfredo Chaves | C6: 3040 | D6: 43 | E6: 0.01414473684
A7: Central | B7: Alto Rio Novo | C7: 1417 | D7: 1 | E7: 0.000705716302
A8: Sul | B8: Anchieta | C8: 5080 | D8: 80 | E8: 0.0157480315
A9: Sul | B9: Apiacá | C9: 1536 | D9: 7 | E9: 0.004557291667
A10: Metropolitana | B10: Aracruz | C10: 13047 | D10: 332 | E10: 0.02544646279
A11: Sul | B11: Atilio Vivacqua | C11: 1843 | D11: 7 | E11: 0.003798155182
A12: Central | B12: Baixo Guandu | C12: 5706 | D12: 36 | E12: 0.006309148265
A13: Norte | B13: Barra de São Francisco | C13: 7226 | D13: 90 | E13: 0.01245502353
A14: Norte | B14: Boa Esperança | C14: 2317 | D14: 9 | E14: 0.003884333189
A15: Sul | B15: Bom Jesus do Norte | C15: 1991 | D15: 38 | E15: 0.01908588649
A16: Metropolitana | B16: Brejetuba | C16: 1637 | D16: 2 | E16: 0.001221747098
A17: Sul | B17: Cachoeiro de Itapemirim | C17: 32906 | D17: 334 | E17: 0.0101501246
A18: Metropolitana | B18: Cariacica | C18: 54005 | D18: 1966 | E18: 0.03640403666
A19: Sul | B19: Castelo | C19: 7171 | D19: 69 | E19: 0.009622088969
A20: Central | B20: Colatina | C20: 21491 | D20: 403 | E20: 0.01875203574
A21: Norte | B21: Conceição da Barra | C21: 4468 | D21: 70 | E21: 0.01566696509
A22: Metropolitana | B22: Conceição do Castelo | C22: 2176 | D22: 0 | E22: 0
A23: Sul | B23: Divino de São Lourenço | C23: 847 | D23: 7 | E23: 0.00826446281
A24: Metropolitana | B24: Domingos Martins | C24: 6358 | D24: 183 | E24: 0.02878263605
A25: Sul | B25: Dores do Rio Preto | C25: 1145 | D25: 26 | E25: 0.02270742358
A26: Norte | B26: Ecoporanga | C26: 4274 | D26: 78 | E26: 0.01824988301
A27: Metropolitana | B27: Fundão | C27: 3432 | D27: 62 | E27: 0.01806526807
A28: Central | B28: Governador Lindenberg | C28: 1987 | D28: 41 | E28: 0.02063412179
A29: Sul | B29: Guaçuí | C29: 5504 | D29: 18 | E29: 0.003270348837
A30: Metropolitana | B30: Guarapari | C30: 21755 | D30: 302 | E30: 0.01388186624
A31: Metropolitana | B31: Ibatiba | C31: 3852 | D31: 67 | E31: 0.01739356179
A32: Metropolitana | B32: Ibiraçu | C32: 2121 | D32: 51 | E32: 0.02404526167
A33: Sul | B33: Ibitirama | C33: 1400 | D33: 27 | E33: 0.01928571429
A34: Sul | B34: Iconha | C34: 2560 | D34: 58 | E34: 0.02265625
A35: Sul | B35: Irupi | C35: 2006 | D35: 38 | E35: 0.01894317049
A36: Metropolitana | B36: Itaguaçu | C36: 3214 | D36: 49 | E36: 0.01524579963
A37: Sul | B37: Itapemirim | C37: 6549 | D37: 31 | E37: 0.004733547106
A38: Metropolitana | B38: Itarana | C38: 2389 | D38: 20 | E38: 0.008371703642
A39: Sul | B39: Iúna | C39: 4417 | D39: 58 | E39: 0.01313108445
A40: Norte | B40: Jaguaré | C40: 3734 | D40: 14 | E40: 0.003749330477
A41: Sul | B41: Jerônimo Monteiro | C41: 2356 | D41: 84 | E41: 0.03565365025
A42: Metropolitana | B42: João Neiva | C42: 3012 | D42: 15 | E42: 0.004980079681
A43: Metropolitana | B43: Laranja da Terra | C43: 2471 | D43: 19 | E43: 0.007689194658
A44: Central | B44: Linhares | C44: 21740 | D44: 124 | E44: 0.005703771849
A45: Central | B45: Mantenópolis | C45: 2524 | D45: 1 | E45: 0.0003961965135
A46: Sul | B46: Marataízes | C46: 7611 | D46: 115 | E46: 0.01510970963
A47: Metropolitana | B47: Marechal Floriano | C47: 2879 | D47: 54 | E47: 0.01875651268
A48: Central | B48: Marilândia | C48: 2476 | D48: 10 | E48: 0.004038772213
A49: Sul | B49: Mimoso do Sul | C49: 5077 | D49: 25 | E49: 0.004924167816
A50: Norte | B50: Montanha | C50: 3304 | D50: 78 | E50: 0.02360774818
A51: Norte | B51: Mucurici | C51: 1090 | D51: 11 | E51: 0.01009174312
A52: Sul | B52: Muniz Freire | C52: 3309 | D52: 71 | E52: 0.02145663342
A53: Sul | B53: Muqui | C53: 2780 | D53: 34 | E53: 0.01223021583
A54: Norte | B54: Nova Venécia | C54: 8352 | D54: 27 | E54: 0.003232758621
A55: Central | B55: Pancas | C55: 3687 | D55: 29 | E55: 0.007865473285
A56: Norte | B56: Pedro Canário | C56: 3253 | D56: 37 | E56: 0.0113741162
A57: Norte | B57: Pinheiros | C57: 3762 | D57: 26 | E57: 0.006911217438
A58: Sul | B58: Piúma | C58: 3886 | D58: 45 | E58: 0.01158003088
A59: Norte | B59: Ponto Belo | C59: 1330 | D59: 2 | E59: 0.001503759398
A60: Sul | B60: Presidente Kennedy | C60: 2214 | D60: 7 | E60: 0.003161698284
A61: Central | B61: Rio Bananal | C61: 3071 | D61: 54 | E61: 0.01758384891
A62: Sul | B62: Rio Novo do Sul | C62: 2232 | D62: 17 | E62: 0.007616487455
A63: Metropolitana | B63: Santa Leopoldina | C63: 2634 | D63: 143 | E63: 0.05429005315
A64: Metropolitana | B64: Santa Maria de Jetibá | C64: 5552 | D64: 50 | E64: 0.009005763689
A65: Metropolitana | B65: Santa Teresa | C65: 4767 | D65: 38 | E65: 0.007971470527
A66: Central | B66: São Domingos do Norte | C66: 1520 | D66: 9 | E66: 0.005921052632
A67: Central | B67: São Gabriel da Palha | C67: 5456 | D67: 21 | E67: =(D67/C67) -> 0.003848973607
A68: Sul | B68: São José do Calçado | C68: 2456 | D68: 20 | E68: 0.008143322476
A69: Norte | B69: São Mateus | C69: 17649 | D69: 431 | E69: 0.02442064706
A70: Central | B70: São Roque do Canaã | C70: 2370 | D70: 36 | E70: 0.01518987342
A71: Metropolitana | B71: Serra | C71: 66481 | D71: 2014 | E71: 0.03029436982
A72: Central | B72: Sooretama | C72: 3097 | D72: 14 | E72: 0.004520503713
A73: Sul | B73: Vargem Alta | C73: 3365 | D73: 19 | E73: 0.005646359584
A74: Metropolitana | B74: Venda Nova do Imigrante | C74: 3766 | D74: 97 | E74: 0.02575677111
A75: Metropolitana | B75: Viana | C75: 9758 | D75: 332 | E75: 0.03402336544
A76: Norte | B76: Vila Pavão | C76: 1510 | D76: 26 | E76: 0.01721854305
A77: Central | B77: Vila Valério | C77: 2160 | D77: 28 | E77: 0.01296296296
A78: Metropolitana | B78: Vila Velha | C78: 81049 | D78: 2646 | E78: 0.0326469173
A79: Metropolitana | B79: Vitória | C79: 64805 | D79: 2988 | E79: 0.04610755343
B81: Total Norte | C81: =SUMIF($A$2:$A$79,"Norte",C$2:C$79) -> 64626 | D81: =SUMIF($A$2:$A$79,"Norte",D$2:D$79) -> 934 | E81: =D81/C81 -> 0.01445238758
B82: Total Central | C82: =SUMIF($A$2:$A$79,"Central",C$2:C$79) -> 80477 | D82: =SUMIF($A$2:$A$79,"Central",D$2:D$79) -> 822 | E82: =D82/C82 -> 0.01021409844
B83: Total Metropolitana | C83: =SUMIF($A$2:$A$79,"Metropolitana",C$2:C$79) -> 367065 | D83: =SUMIF($A$2:$A$79,"Metropolitana",D$2:D$79) -> 11435 | E83: 0.03115252067
B84: Total Sul | C84: =SUMIF($A$2:$A$79,"sul",C$2:C$79) -> 119230 | D84: =SUMIF($A$2:$A$79,"sul",D$2:D$79) -> 1341 | E84: 0.01124716934
B85: Total Espírito Santo | C85: =SUM(C2:C79) -> 631398 | D85: =SUM(D81:D84) -> 14532 | E85: 0.02301559397
B86: HOMOGENEIDADE ENTRE MUNICÍPIOS | E86: =COUNTIF(E2:E79,">=0,90")/78 -> 0
A88: Cobertura Vacinal Covid19 dos Idosos de Janeiro de 2025
A89: Vacina COVID-19 RECOMBINANTE SERUM/ZALIKA e COVID-19 Moderna (Spikevax)
A90: Período avaliado: Últimos 6meses - Ago/2024 a Jan/2025
A91: Faixa Etária: 60+
A92: Fonte: https://www.vacinaeconfia.es.gov.br
A93: *Dados parciais:
A94: **Dados referente às doses aplicadas no período de Janeiro 2025
A95: População proporcional extraída do Censo IBGE 2022
A96: Cobertura Calculada por município de procedência da vacinação
A97: Homogeineidade: O cálculo da Homogeineidade entre vacinas é feito de acordo com a pactuação estabelecida no Plano Plurianual (PPA) vigente no período 2024-2027.
A99: Observações:
A100: 1. Imunobiológicos que foram recebidos parcialmente pelo estado no mês de Janeiro/2025, sendo distribuídos em quantidades reduzidas às regionais e municípios:
A101: SORO ANTIRRÁBICO HUMANO, IMUNOGLOBULINA ANTIRRÁBICA HUMANA, VACINA COVID-19 MODERNA (SPIKEVAX),VACINA TETRA VIRAL,VACINA CONTRA VARICELA
A102: 2. Imunobiológicos indisponíveis no mês de Janeiro/2025, não sendo possível a distribuição às regionais e municípios:
A103: VACINA TRÍPLICE ACELULAR (DTPa) - CRIE

Sheet COVID-19 idoso -Residência
A1: Regional | B1: Município | C1: População 60 anos + | D1: TOTAL DE DOSES APLICADAS COVID-19 | E1: COBERTURA COVID-19
A2: Metropolitana | B2: Afonso Cláudio | C2: 5905 | D2: 5 | E2: =(D2/C2) -> 0.0008467400508
A3: Norte | B3: Água Doce do Norte | C3: 2357 | D3: 34 | E3: =(D3/C3) -> 0.01442511667
A4: Central | B4: Águia Branca | C4: 1775 | D4: 15 | E4: 0.008450704225
A5: Sul | B5: Alegre | C5: 5949 | D5: 59 | E5: 0.009917633216
A6: Sul | B6: Alfredo Chaves | C6: 3040 | D6: 43 | E6: 0.01414473684
A7: Central | B7: Alto Rio Novo | C7: 1417 | D7: 1 | E7: 0.000705716302
A8: Sul | B8: Anchieta | C8: 5080 | D8: 73 | E8: 0.01437007874
A9: Sul | B9: Apiacá | C9: 1536 | D9: 6 | E9: 0.00390625
A10: Metropolitana | B10: Aracruz | C10: 13047 | D10: 328 | E10: 0.0251398789
A11: Sul | B11: Atilio Vivacqua | C11: 1843 | D11: 7 | E11: 0.003798155182
A12: Central | B12: Baixo Guandu | C12: 5706 | D12: 32 | E12: 0.005608131791
A13: Norte | B13: Barra de São Francisco | C13: 7226 | D13: 88 | E13: 0.01217824523
A14: Norte | B14: Boa Esperança | C14: 2317 | D14: 9 | E14: 0.003884333189
A15: Sul | B15: Bom Jesus do Norte | C15: 1991 | D15: 27 | E15: 0.01356102461
A16: Metropolitana | B16: Brejetuba | C16: 1637 | D16: 1 | E16: 0.0006108735492
A17: Sul | B17: Cachoeiro de Itapemirim | C17: 32906 | D17: 328 | E17: 0.00996778703
A18: Metropolitana | B18: Cariacica | C18: 54005 | D18: 1947 | E18: 0.03605221739
A19: Sul | B19: Castelo | C19: 7171 | D19: 69 | E19: 0.009622088969
A20: Central | B20: Colatina | C20: 21491 | D20: 397 | E20: 0.0184728491
A21: Norte | B21: Conceição da Barra | C21: 4468 | D21: 65 | E21: 0.01454789615
A22: Metropolitana | B22: Conceição do Castelo | C22: 2176 | D22: 0 | E22: 0
A23: Sul | B23: Divino de São Lourenço | C23: 847 | D23: 7 | E23: 0.00826446281
A24: Metropolitana | B24: Domingos Martins | C24: 6358 | D24: 183 | E24: 0.02878263605
A25: Sul | B25: Dores do Rio Preto | C25: 1145 | D25: 20 | E25: 0.01746724891
A26: Norte | B26: Ecoporanga | C26: 4274 | D26: 77 | E26: 0.01801591015
A27: Metropolitana | B27: Fundão | C27: 3432 | D27: 59 | E27: 0.01719114219
A28: Central | B28: Governador Lindenberg | C28: 1987 | D28: 41 | E28: 0.02063412179
A29: Sul | B29: Guaçuí | C29: 5504 | D29: 14 | E29: 0.002543604651
A30: Metropolitana | B30: Guarapari | C30: 21755 | D30: 268 | E30: 0.01231900712
A31: Metropolitana | B31: Ibatiba | C31: 3852 | D31: 63 | E31: 0.01635514019
A32: Metropolitana | B32: Ibiraçu | C32: 2121 | D32: 47 | E32: 0.02215935879
A33: Sul | B33: Ibitirama | C33: 1400 | D33: 27 | E33: 0.01928571429
A34: Sul | B34: Iconha | C34: 2560 | D34: 58 | E34: 0.02265625
A35: Sul | B35: Irupi | C35: 2006 | D35: 36 | E35: 0.01794616152
A36: Metropolitana | B36: Itaguaçu | C36: 3214 | D36: 48 | E36: 0.01493466086
A37: Sul | B37: Itapemirim | C37: 6549 | D37: 30 | E37: 0.004580852038
A38: Metropolitana | B38: Itarana | C38: 2389 | D38: 20 | E38: 0.008371703642
A39: Sul | B39: Iúna | C39: 4417 | D39: 57 | E39: 0.01290468644
A40: Norte | B40: Jaguaré | C40: 3734 | D40: 13 | E40: 0.003481521157
A41: Sul | B41: Jerônimo Monteiro | C41: 2356 | D41: 77 | E41: 0.03268251273
A42: Metropolitana | B42: João Neiva | C42: 3012 | D42: 14 | E42: 0.004648074369
A43: Metropolitana | B43: Laranja da Terra | C43: 2471 | D43: 19 | E43: 0.007689194658
A44: Central | B44: Linhares | C44: 21740 | D44: 121 | E44: 0.005565777369
A45: Central | B45: Mantenópolis | C45: 2524 | D45: 1 | E45: 0.0003961965135
A46: Sul | B46: Marataízes | C46: 7611 | D46: 107 | E46: 0.0140585994
A47: Metropolitana | B47: Marechal Floriano | C47: 2879 | D47: 53 | E47: 0.01840916985
A48: Central | B48: Marilândia | C48: 2476 | D48: 9 | E48: 0.003634894992
A49: Sul | B49: Mimoso do Sul | C49: 5077 | D49: 23 | E49: 0.00453023439
A50: Norte | B50: Montanha | C50: 3304 | D50: 78 | E50: 0.02360774818
A51: Norte | B51: Mucurici | C51: 1090 | D51: 11 | E51: 0.01009174312
A52: Sul | B52: Muniz Freire | C52: 3309 | D52: 69 | E52: 0.02085222121
A53: Sul | B53: Muqui | C53: 2780 | D53: 33 | E53: 0.0118705036
A54: Norte | B54: Nova Venécia | C54: 8352 | D54: 27 | E54: 0.003232758621
A55: Central | B55: Pancas | C55: 3687 | D55: 28 | E55: 0.007594250068
A56: Norte | B56: Pedro Canário | C56: 3253 | D56: 36 | E56: 0.01106670765
A57: Norte | B57: Pinheiros | C57: 3762 | D57: 24 | E57: 0.006379585327
A58: Sul | B58: Piúma | C58: 3886 | D58: 42 | E58: 0.01080802882
A59: Norte | B59: Ponto Belo | C59: 1330 | D59: 2 | E59: 0.001503759398
A60: Sul | B60: Presidente Kennedy | C60: 2214 | D60: 5 | E60: 0.002258355917
A61: Central | B61: Rio Bananal | C61: 3071 | D61: 54 | E61: 0.01758384891
A62: Sul | B62: Rio Novo do Sul | C62: 2232 | D62: 17 | E62: 0.007616487455
A63: Metropolitana | B63: Santa Leopoldina | C63: 2634 | D63: 143 | E63: 0.05429005315
A64: Metropolitana | B64: Santa Maria de Jetibá | C64: 5552 | D64: 50 | E64: 0.009005763689
A65: Metropolitana | B65: Santa Teresa | C65: 4767 | D65: 35 | E65: 0.007342143906
A66: Central | B66: São Domingos do Norte | C66: 1520 | D66: 9 | E66: 0.005921052632
A67: Central | B67: São Gabriel da Palha | C67: 5456 | D67: 21 | E67: =(D67/C67) -> 0.003848973607
A68: Sul | B68: São José do Calçado | C68: 2456 | D68: 19 | E68: 0.007736156352
A69: Norte | B69: São Mateus | C69: 17649 | D69: 403 | E69: 0.02283415491
A70: Central | B70: São Roque do Canaã | C70: 2370 | D70: 36 | E70: 0.01518987342
A71: Metropolitana | B71: Serra | C71: 66481 | D71: 1969 | E71: 0.02961748469
A72: Central | B72: Sooretama | C72: 3097 | D72: 14 | E72: 0.004520503713
A73: Sul | B73: Vargem Alta | C73: 3365 | D73: 18 | E73: 0.005349182764
A74: Metropolitana | B74: Venda Nova do Imigrante | C74: 3766 | D74: 96 | E74: 0.02549123739
A75: Metropolitana | B75: Viana | C75: 9758 | D75: 327 | E75: 0.03351096536 | H75: 2.23
A76: Norte | B76: Vila Pavão | C76: 1510 | D76: 26 | E76: 0.01721854305
A77: Central | B77: Vila Valério | C77: 2160 | D77: 28 | E77: 0.01296296296
A78: Metropolitana | B78: Vila Velha | C78: 81049 | D78: 2514 | E78: 0.0310182729
A79: Metropolitana | B79: Vitória | C79: 64805 | D79: 2905 | E79: 0.04482678806
B81: Total Norte | C81: =SUMIF($A$2:$A$79,"Norte",C$2:C$79) -> 64626 | D81: =SUMIF($A$2:$A$79,"Norte",D$2:D$79) -> 893 | E81: =D81/C81 -> 0.013817968
B82: Total Central | C82: =SUMIF($A$2:$A$79,"Central",C$2:C$79) -> 80477 | D82: =SUMIF($A$2:$A$79,"Central",D$2:D$79) -> 807 | E82: =D82/C82 -> 0.01002770978
B83: Total Metropolitana | C83: =SUMIF($A$2:$A$79,"Metropolitana",C$2:C$79) -> 367065 | D83: =SUMIF($A$2:$A$79,"Metropolitana",D$2:D$79) -> 11094 | E83: 0.03022352989
B84: Total Sul | C84: =SUMIF($A$2:$A$79,"sul",C$2:C$79) -> 119230 | D84: =SUMIF($A$2:$A$79,"Sul",D$2:D$79) -> 1271 | E84: 0.01066006877
B85: Total Espírito Santo | C85: =SUM(C2:C79) -> 631398 | D85: =SUM(D81:D84) -> 14065 | E85: 0.0222759654
B86: HOMOGENEIDADE ENTRE MUNICÍPIOS | E86: =COUNTIF(E2:E79,">=0,90")/78 -> 0
A88: Cobertura Vacinal Covid19 dos Idosos de Janeiro de 2025
A89: Vacina COVID-19 RECOMBINANTE SERUM/ZALIKA e COVID-19 Moderna (Spikevax)
A90: Período avaliado: Últimos 6meses - Ago/2024 a Jan/2025
A91: Faixa Etária: 60+
A92: Fonte: https://www.vacinaeconfia.es.gov.br
A93: *Dados parciais:
A94: **Dados referente às doses aplicadas no período de Janeiro 2025
A95: População proporcional extraída do Censo IBGE 2022
A96: Cobertura Calculada por município de residência do cidadão (no Vacina e Confia, a origem da informação é o endereço que consta no cadastro do cidadão preenchido manualmente por meio do autocadastro ou pelo cadastro realizado por um profissional de saúde no momento do atendimento).
A97: Homogeineidade: O cálculo da Homogeineidade entre vacinas é feito de acordo com a pactuação estabelecida no Plano Plurianual (PPA) vigente no período 2024-2027.
A99: Observações:
A100: 1. Imunobiológicos que foram recebidos parcialmente pelo estado no mês de Janeiro/2025, sendo distribuídos em quantidades reduzidas às regionais e municípios:
A101: SORO ANTIRRÁBICO HUMANO, IMUNOGLOBULINA ANTIRRÁBICA HUMANA, VACINA COVID-19 MODERNA (SPIKEVAX),VACINA TETRA VIRAL,VACINA CONTRA VARICELA
A102: 2. Imunobiológicos indisponíveis no mês de Janeiro/2025, não sendo possível a distribuição às regionais e municípios:
A103: VACINA TRÍPLICE ACELULAR (DTPa) - CRIE

Sheet PROTEÇÃO

Sheet cálculos1 (hidden)
C1: 0.9 | E1: 0.95
A2: Regional | B2: Município | C2: Cobertura Vacinal BCG | D2: Cobertura Vacinal Rotavírus | E2: Cobertura Vacinal Pentavalente | F2: Cobertura Vacinal Poliomielite | G2: Cobertura Vacinal Pneumo 10 | H2: Cobertura Vacinal Tríplice Viral | I2: Cobertura Vacinal Meningo C | J2: Cobertura Vacinal Febre Amarela | K2: Cobertura Vacinal Hepatite A | L2: Cobertura Varicela | M2: META 90% | N2: META 95% | O2: ATINGIRAM META | P2: PQA-VS
A3: Metropolitana | B3: Afonso Cláudio | C3: ='CV Rotina <2A - procedência'!H3 -> 0.71875 | D3: ='CV Rotina <2A - procedência'!P3 -> 0.96875 | E3: ='CV Rotina <2A - procedência'!J3 -> 1.0625 | F3: ='CV Rotina <2A - procedência'!L3 -> 1.0625 | G3: ='CV Rotina <2A - procedência'!N3 -> 0.9375 | H3: ='CV Rotina <2A - procedência'!X3 -> 0.875 | I3: ='CV Rotina <2A - procedência'!R3 -> 1 | J3: ='CV Rotina <2A - procedência'!T3 -> 1.03125 | K3: ='CV Rotina <2A - procedência'!V3 -> 1.34375 | L3: ='CV Rotina <2A - procedência'!Z3 -> 1.46875 | M3: =COUNTIF(C3:D3,">=0,9") -> 1 | N3: =COUNTIFS(E3:L3,">=0,95") -> 6 | O3: =SUM(M3:N3) -> 7 | P3: =COUNTIF(E3:H3,">=0,95") -> 2
A4: Norte | B4: Água Doce do Norte | C4: ='CV Rotina <2A - procedência'!H4 -> 0.2307692308 | D4: ='CV Rotina <2A - procedência'!P4 -> 0.2692307692 | E4: ='CV Rotina <2A - procedência'!J4 -> 0.7307692308 | F4: ='CV Rotina <2A - procedência'!L4 -> 0.7307692308 | G4: ='CV Rotina <2A - procedência'!N4 -> 0.3076923077 | H4: ='CV Rotina <2A - procedência'!X4 -> 0.6153846154 | I4: ='CV Rotina <2A - procedência'!R4 -> 0.8846153846 | J4: ='CV Rotina <2A - procedência'!T4 -> 0.6153846154 | K4: ='CV Rotina <2A - procedência'!V4 -> 0.5769230769 | L4: ='CV Rotina <2A - procedência'!Z4 -> 0.2692307692 | M4: 0 | N4: 0 | O4: =SUM(M4:N4) -> 0 | P4: =COUNTIF(E4:H4,">=0,95") -> 0
A5: Central | B5: Águia Branca | C5: ='CV Rotina <2A - procedência'!H5 -> 0.1818181818 | D5: ='CV Rotina <2A - procedência'!P5 -> 0.6363636364 | E5: ='CV Rotina <2A - procedência'!J5 -> 1.636363636 | F5: ='CV Rotina <2A - procedência'!L5 -> 1.636363636 | G5: ='CV Rotina <2A - procedência'!N5 -> 0.7272727273 | H5: ='CV Rotina <2A - procedência'!X5 -> 1.272727273 | I5: ='CV Rotina <2A - procedência'!R5 -> 1.545454545 | J5: ='CV Rotina <2A - procedência'!T5 -> 2.181818182 | K5: ='CV Rotina <2A - procedência'!V5 -> 1.727272727 | L5: ='CV Rotina <2A - procedência'!Z5 -> 1.818181818 | M5: 0 | N5: 7 | O5: 7 | P5: 3
A6: Sul | B6: Alegre | C6: ='CV Rotina <2A - procedência'!H6 -> 0.4285714286 | D6: ='CV Rotina <2A - procedência'!P6 -> 1.095238095 | E6: ='CV Rotina <2A - procedência'!J6 -> 1.428571429 | F6: ='CV Rotina <2A - procedência'!L6 -> 1.095238095 | G6: ='CV Rotina <2A - procedência'!N6 -> 1 | H6: ='CV Rotina <2A - procedência'!X6 -> 1.428571429 | I6: ='CV Rotina <2A - procedência'!R6 -> 1.238095238 | J6: ='CV Rotina <2A - procedência'!T6 -> 1.095238095 | K6: ='CV Rotina <2A - procedência'!V6 -> 1.666666667 | L6: ='CV Rotina <2A - procedência'!Z6 -> 1.571428571 | M6: 1 | N6: 8 | O6: 9 | P6: 4
A7: Sul | B7: Alfredo Chaves | C7: ='CV Rotina <2A - procedência'!H7 -> 0.2142857143 | D7: ='CV Rotina <2A - procedência'!P7 -> 0.4285714286 | E7: ='CV Rotina <2A - procedência'!J7 -> 0.7857142857 | F7: ='CV Rotina <2A - procedência'!L7 -> 0.7142857143 | G7: ='CV Rotina <2A - procedência'!N7 -> 0.2857142857 | H7: ='CV Rotina <2A - procedência'!X7 -> 1.142857143 | I7: ='CV Rotina <2A - procedência'!R7 -> 0.6428571429 | J7: ='CV Rotina <2A - procedência'!T7 -> 1.142857143 | K7: ='CV Rotina <2A - procedência'!V7 -> 1.857142857 | L7: ='CV Rotina <2A - procedência'!Z7 -> 1.5 | M7: 0 | N7: 4 | O7: 4 | P7: 1
A8: Central | B8: Alto Rio Novo | C8: ='CV Rotina <2A - procedência'!H8 -> 0 | D8: ='CV Rotina <2A - procedência'!P8 -> 2 | E8: ='CV Rotina <2A - procedência'!J8 -> 1.5 | F8: ='CV Rotina <2A - procedência'!L8 -> 1.5 | G8: ='CV Rotina <2A - procedência'!N8 -> 2 | H8: ='CV Rotina <2A - procedência'!X8 -> 1.166666667 | I8: ='CV Rotina <2A - procedência'!R8 -> 1.666666667 | J8: ='CV Rotina <2A - procedência'!T8 -> 2.333333333 | K8: ='CV Rotina <2A - procedência'!V8 -> 1.5 | L8: ='CV Rotina <2A - procedência'!Z8 -> 2.666666667 | M8: 1 | N8: 8 | O8: 9 | P8: 4
A9: Sul | B9: Anchieta | C9: ='CV Rotina <2A - procedência'!H9 -> 0.3823529412 | D9: ='CV Rotina <2A - procedência'!P9 -> 0.9411764706 | E9: ='CV Rotina <2A - procedência'!J9 -> 1 | F9: ='CV Rotina <2A - procedência'!L9 -> 0.8529411765 | G9: ='CV Rotina <2A - procedência'!N9 -> 0.9705882353 | H9: ='CV Rotina <2A - procedência'!X9 -> 0.6470588235 | I9: ='CV Rotina <2A - procedência'!R9 -> 0.9411764706 | J9: ='CV Rotina <2A - procedência'!T9 -> 0.9705882353 | K9: ='CV Rotina <2A - procedência'!V9 -> 1.058823529 | L9: ='CV Rotina <2A - procedência'!Z9 -> 0.7058823529 | M9: 1 | N9: 4 | O9: 5 | P9: 2
A10: Sul | B10: Apiacá | C10: ='CV Rotina <2A - procedência'!H10 -> 2.75 | D10: ='CV Rotina <2A - procedência'!P10 -> 1 | E10: ='CV Rotina <2A - procedência'!J10 -> 2 | F10: ='CV Rotina <2A - procedência'!L10 -> 2 | G10: ='CV Rotina <2A - procedência'!N10 -> 1 | H10: ='CV Rotina <2A - procedência'!X10 -> 2 | I10: ='CV Rotina <2A - procedência'!R10 -> 0.75 | J10: ='CV Rotina <2A - procedência'!T10 -> 1.75 | K10: ='CV Rotina <2A - procedência'!V10 -> 0.25 | L10: ='CV Rotina <2A - procedência'!Z10 -> 0.25 | M10: 2 | N10: 5 | O10: 7 | P10: 4
A11: Metropolitana | B11: Aracruz | C11: ='CV Rotina <2A - procedência'!H11 -> 1.066037736 | D11: ='CV Rotina <2A - procedência'!P11 -> 1.160377358 | E11: ='CV Rotina <2A - procedência'!J11 -> 1.226415094 | F11: ='CV Rotina <2A - procedência'!L11 -> 1.20754717 | G11: ='CV Rotina <2A - procedência'!N11 -> 1.094339623 | H11: ='CV Rotina <2A - procedência'!X11 -> 1.377358491 | I11: ='CV Rotina <2A - procedência'!R11 -> 1.150943396 | J11: ='CV Rotina <2A - procedência'!T11 -> 1.066037736 | K11: ='CV Rotina <2A - procedência'!V11 -> 1.5 | L11: ='CV Rotina <2A - procedência'!Z11 -> 1.490566038 | M11: 2 | N11: 8 | O11: 10 | P11: 4
A12: Sul | B12: Atilio Vivacqua | C12: ='CV Rotina <2A - procedência'!H12 -> 0.06666666667 | D12: ='CV Rotina <2A - procedência'!P12 -> 1.2 | E12: ='CV Rotina <2A - procedência'!J12 -> 1.133333333 | F12: ='CV Rotina <2A - procedência'!L12 -> 1.133333333 | G12: ='CV Rotina <2A - procedência'!N12 -> 1.2 | H12: ='CV Rotina <2A - procedência'!X12 -> 0.9333333333 | I12: ='CV Rotina <2A - procedência'!R12 -> 1.133333333 | J12: ='CV Rotina <2A - procedência'!T12 -> 0.6 | K12: ='CV Rotina <2A - procedência'!V12 -> 0.7333333333 | L12: ='CV Rotina <2A - procedência'!Z12 -> 0.5333333333 | M12: 1 | N12: 4 | O12: 5 | P12: 3
A13: Central | B13: Baixo Guandu | C13: ='CV Rotina <2A - procedência'!H13 -> 0.4814814815 | D13: ='CV Rotina <2A - procedência'!P13 -> 1 | E13: ='CV Rotina <2A - procedência'!J13 -> 1.185185185 | F13: ='CV Rotina <2A - procedência'!L13 -> 1.185185185 | G13: ='CV Rotina <2A - procedência'!N13 -> 0.962962963 | H13: ='CV Rotina <2A - procedência'!X13 -> 1.185185185 | I13: ='CV Rotina <2A - procedência'!R13 -> 1.111111111 | J13: ='CV Rotina <2A - procedência'!T13 -> 1.481481481 | K13: ='CV Rotina <2A - procedência'!V13 -> 1.703703704 | L13: ='CV Rotina <2A - procedência'!Z13 -> 1.111111111 | M13: 1 | N13: 8 | O13: 9 | P13: 4
A14: Norte | B14: Barra de São Francisco | C14: ='CV Rotina <2A - procedência'!H14 -> 0.4565217391 | D14: ='CV Rotina <2A - procedência'!P14 -> 0.9130434783 | E14: ='CV Rotina <2A - procedência'!J14 -> 1.347826087 | F14: ='CV Rotina <2A - procedência'!L14 -> 1.347826087 | G14: ='CV Rotina <2A - procedência'!N14 -> 0.9347826087 | H14: ='CV Rotina <2A - procedência'!X14 -> 0.8913043478 | I14: ='CV Rotina <2A - procedência'!R14 -> 0.8695652174 | J14: ='CV Rotina <2A - procedência'!T14 -> 0.9782608696 | K14: ='CV Rotina <2A - procedência'!V14 -> 0.7608695652 | L14: ='CV Rotina <2A - procedência'!Z14 -> 1 | M14: 1 | N14: 4 | O14: 5 | P14: 2
A15: Norte | B15: Boa Esperança | C15: ='CV Rotina <2A - procedência'!H15 -> 0.4375 | D15: ='CV Rotina <2A - procedência'!P15 -> 1.125 | E15: ='CV Rotina <2A - procedência'!J15 -> 1 | F15: ='CV Rotina <2A - procedência'!L15 -> 1 | G15: ='CV Rotina <2A - procedência'!N15 -> 1.0625 | H15: ='CV Rotina <2A - procedência'!X15 -> 1.0625 | I15: ='CV Rotina <2A - procedência'!R15 -> 1.3125 | J15: ='CV Rotina <2A - procedência'!T15 -> 1.3125 | K15: ='CV Rotina <2A - procedência'!V15 -> 1.25 | L15: ='CV Rotina <2A - procedência'!Z15 -> 1.25 | M15: 1 | N15: 8 | O15: 9 | P15: 4
A16: Sul | B16: Bom Jesus do Norte | C16: ='CV Rotina <2A - procedência'!H16 -> 1.3 | D16: ='CV Rotina <2A - procedência'!P16 -> 0.8 | E16: ='CV Rotina <2A - procedência'!J16 -> 1.1 | F16: ='CV Rotina <2A - procedência'!L16 -> 1.1 | G16: ='CV Rotina <2A - procedência'!N16 -> 0.9 | H16: ='CV Rotina <2A - procedência'!X16 -> 0.9 | I16: ='CV Rotina <2A - procedência'!R16 -> 0.7 | J16: ='CV Rotina <2A - procedência'!T16 -> 1.3 | K16: ='CV Rotina <2A - procedência'!V16 -> 1.3 | L16: ='CV Rotina <2A - procedência'!Z16 -> 0.2 | M16: 1 | N16: 4 | O16: 5 | P16: 2
A17: Metropolitana | B17: Brejetuba | C17: ='CV Rotina <2A - procedência'!H17 -> 0.6818181818 | D17: ='CV Rotina <2A - procedência'!P17 -> 1.045454545 | E17: ='CV Rotina <2A - procedência'!J17 -> 0.6363636364 | F17: ='CV Rotina <2A - procedência'!L17 -> 0.6363636364 | G17: ='CV Rotina <2A - procedência'!N17 -> 1 | H17: ='CV Rotina <2A - procedência'!X17 -> 1.136363636 | I17: ='CV Rotina <2A - procedência'!R17 -> 0.7727272727 | J17: ='CV Rotina <2A - procedência'!T17 -> 0.4090909091 | K17: ='CV Rotina <2A - procedência'!V17 -> 0.5909090909 | L17: ='CV Rotina <2A - procedência'!Z17 -> 0.09090909091 | M17: 1 | N17: 2 | O17: 3 | P17: 2
A18: Sul | B18: Cachoeiro de Itapemirim | C18: ='CV Rotina <2A - procedência'!H18 -> 2.100502513 | D18: ='CV Rotina <2A - procedência'!P18 -> 1.030150754 | E18: ='CV Rotina <2A - procedência'!J18 -> 1.185929648 | F18: ='CV Rotina <2A - procedência'!L18 -> 1.170854271 | G18: ='CV Rotina <2A - procedência'!N18 -> 1.010050251 | H18: ='CV Rotina <2A - procedência'!X18 -> 1.180904523 | I18: ='CV Rotina <2A - procedência'!R18 -> 1.155778894 | J18: ='CV Rotina <2A - procedência'!T18 -> 0.8793969849 | K18: ='CV Rotina <2A - procedência'!V18 -> 1.407035176 | L18: ='CV Rotina <2A - procedência'!Z18 -> 1.140703518 | M18: 2 | N18: 7 | O18: 9 | P18: 4
A19: Metropolitana | B19: Cariacica | C19: ='CV Rotina <2A - procedência'!H19 -> 0.6397984887 | D19: ='CV Rotina <2A - procedência'!P19 -> 1.136020151 | E19: ='CV Rotina <2A - procedência'!J19 -> 1.103274559 | F19: ='CV Rotina <2A - procedência'!L19 -> 1.088161209 | G19: ='CV Rotina <2A - procedência'!N19 -> 1.146095718 | H19: ='CV Rotina <2A - procedência'!X19 -> 1.130982368 | I19: ='CV Rotina <2A - procedência'!R19 -> 1.098236776 | J19: ='CV Rotina <2A - procedência'!T19 -> 0.8967254408 | K19: ='CV Rotina <2A - procedência'!V19 -> 1.221662469 | L19: ='CV Rotina <2A - procedência'!Z19 -> 0.8967254408 | M19: 1 | N19: 6 | O19: 7 | P19: 4
A20: Sul | B20: Castelo | C20: ='CV Rotina <2A - procedência'!H20 -> 0.5128205128 | D20: ='CV Rotina <2A - procedência'!P20 -> 0.7692307692 | E20: ='CV Rotina <2A - procedência'!J20 -> 0.8717948718 | F20: ='CV Rotina <2A - procedência'!L20 -> 0.8717948718 | G20: ='CV Rotina <2A - procedência'!N20 -> 0.7435897436 | H20: ='CV Rotina <2A - procedência'!X20 -> 0.8974358974 | I20: ='CV Rotina <2A - procedência'!R20 -> 0.9230769231 | J20: ='CV Rotina <2A - procedência'!T20 -> 0.9230769231 | K20: ='CV Rotina <2A - procedência'!V20 -> 1 | L20: ='CV Rotina <2A - procedência'!Z20 -> 0.4358974359 | M20: 0 | N20: 1 | O20: 1 | P20: 0
A21: Central | B21: Colatina | C21: ='CV Rotina <2A - procedência'!H21 -> 1.948529412 | D21: ='CV Rotina <2A - procedência'!P21 -> 0.8970588235 | E21: ='CV Rotina <2A - procedência'!J21 -> 1.022058824 | F21: ='CV Rotina <2A - procedência'!L21 -> 1.029411765 | G21: ='CV Rotina <2A - procedência'!N21 -> 0.8529411765 | H21: ='CV Rotina <2A - procedência'!X21 -> 1.014705882 | I21: ='CV Rotina <2A - procedência'!R21 -> 1.227941176 | J21: ='CV Rotina <2A - procedência'!T21 -> 0.7426470588 | K21: ='CV Rotina <2A - procedência'!V21 -> 0.9558823529 | L21: ='CV Rotina <2A - procedência'!Z21 -> 0.8014705882 | M21: 1 | N21: 5 | O21: 6 | P21: 3
A22: Norte | B22: Conceição da Barra | C22: ='CV Rotina <2A - procedência'!H22 -> 0.12 | D22: ='CV Rotina <2A - procedência'!P22 -> 0.96 | E22: ='CV Rotina <2A - procedência'!J22 -> 1.6 | F22: ='CV Rotina <2A - procedência'!L22 -> 1.6 | G22: ='CV Rotina <2A - procedência'!N22 -> 1.04 | H22: ='CV Rotina <2A - procedência'!X22 -> 1.96 | I22: ='CV Rotina <2A - procedência'!R22 -> 1.48 | J22: ='CV Rotina <2A - procedência'!T22 -> 1.6 | K22: ='CV Rotina <2A - procedência'!V22 -> 1.12 | L22: ='CV Rotina <2A - procedência'!Z22 -> 1.56 | M22: 1 | N22: 8 | O22: 9 | P22: 4
A23: Metropolitana | B23: Conceição do Castelo | C23: ='CV Rotina <2A - procedência'!H23 -> 0 | D23: ='CV Rotina <2A - procedência'!P23 -> 0.7894736842 | E23: ='CV Rotina <2A - procedência'!J23 -> 0.6315789474 | F23: ='CV Rotina <2A - procedência'!L23 -> 0.6842105263 | G23: ='CV Rotina <2A - procedência'!N23 -> 0.7894736842 | H23: ='CV Rotina <2A - procedência'!X23 -> 0.4736842105 | I23: ='CV Rotina <2A - procedência'!R23 -> 0.4210526316 | J23: ='CV Rotina <2A - procedência'!T23 -> 0.6842105263 | K23: ='CV Rotina <2A - procedência'!V23 -> 0.6842105263 | L23: ='CV Rotina <2A - procedência'!Z23 -> 0.6842105263 | M23: 0 | N23: 0 | O23: 0 | P23: 0
A24: Sul | B24: Divino de São Lourenço | C24: ='CV Rotina <2A - procedência'!H24 -> 0.25 | D24: ='CV Rotina <2A - procedência'!P24 -> 0 | E24: ='CV Rotina <2A - procedência'!J24 -> 0.375 | F24: ='CV Rotina <2A - procedência'!L24 -> 0.375 | G24: ='CV Rotina <2A - procedência'!N24 -> 0 | H24: ='CV Rotina <2A - procedência'!X24 -> 1 | I24: ='CV Rotina <2A - procedência'!R24 -> 0.625 | J24: ='CV Rotina <2A - procedência'!T24 -> 0.75 | K24: ='CV Rotina <2A - procedência'!V24 -> 0.75 | L24: ='CV Rotina <2A - procedência'!Z24 -> 0.75 | M24: 0 | N24: 1 | O24: 1 | P24: 1
A25: Metropolitana | B25: Domingos Martins | C25: ='CV Rotina <2A - procedência'!H25 -> 0.2941176471 | D25: ='CV Rotina <2A - procedência'!P25 -> 1.147058824 | E25: ='CV Rotina <2A - procedência'!J25 -> 1.117647059 | F25: ='CV Rotina <2A - procedência'!L25 -> 1.117647059 | G25: ='CV Rotina <2A - procedência'!N25 -> 1 | H25: ='CV Rotina <2A - procedência'!X25 -> 1 | I25: ='CV Rotina <2A - procedência'!R25 -> 1.117647059 | J25: ='CV Rotina <2A - procedência'!T25 -> 0.7647058824 | K25: ='CV Rotina <2A - procedência'!V25 -> 1.147058824 | L25: ='CV Rotina <2A - procedência'!Z25 -> 1.382352941 | M25: 1 | N25: 7 | O25: 8 | P25: 4
A26: Sul | B26: Dores do Rio Preto | C26: ='CV Rotina <2A - procedência'!H26 -> 0.5714285714 | D26: ='CV Rotina <2A - procedência'!P26 -> 1.142857143 | E26: ='CV Rotina <2A - procedência'!J26 -> 2 | F26: ='CV Rotina <2A - procedência'!L26 -> 2 | G26: ='CV Rotina <2A - procedência'!N26 -> 1 | H26: ='CV Rotina <2A - procedência'!X26 -> 0.7142857143 | I26: ='CV Rotina <2A - procedência'!R26 -> 0.4285714286 | J26: ='CV Rotina <2A - procedência'!T26 -> 1.285714286 | K26: ='CV Rotina <2A - procedência'!V26 -> 1.571428571 | L26: ='CV Rotina <2A - procedência'!Z26 -> 0.8571428571 | M26: 1 | N26: 5 | O26: 6 | P26: 3
A27: Norte | B27: Ecoporanga | C27: ='CV Rotina <2A - procedência'!H27 -> 0.09090909091 | D27: ='CV Rotina <2A - procedência'!P27 -> 0.7272727273 | E27: ='CV Rotina <2A - procedência'!J27 -> 1.227272727 | F27: ='CV Rotina <2A - procedência'!L27 -> 1.181818182 | G27: ='CV Rotina <2A - procedência'!N27 -> 0.8181818182 | H27: ='CV Rotina <2A - procedência'!X27 -> 0.7727272727 | I27: ='CV Rotina <2A - procedência'!R27 -> 0.8636363636 | J27: ='CV Rotina <2A - procedência'!T27 -> 1 | K27: ='CV Rotina <2A - procedência'!V27 -> 0.7727272727 | L27: ='CV Rotina <2A - procedência'!Z27 -> 0.5454545455 | M27: 0 | N27: 3 | O27: 3 | P27: 2
A28: Metropolitana | B28: Fundão | C28: ='CV Rotina <2A - procedência'!H28 -> 0.2727272727 | D28: ='CV Rotina <2A - procedência'!P28 -> 0.9090909091 | E28: ='CV Rotina <2A - procedência'!J28 -> 1.227272727 | F28: ='CV Rotina <2A - procedência'!L28 -> 1.227272727 | G28: ='CV Rotina <2A - procedência'!N28 -> 0.9545454545 | H28: ='CV Rotina <2A - procedência'!X28 -> 0.7727272727 | I28: ='CV Rotina <2A - procedência'!R28 -> 0.7727272727 | J28: ='CV Rotina <2A - procedência'!T28 -> 0.6818181818 | K28: ='CV Rotina <2A - procedência'!V28 -> 0.8181818182 | L28: ='CV Rotina <2A - procedência'!Z28 -> 0.8181818182 | M28: 1 | N28: 3 | O28: 4 | P28: 3
A29: Central | B29: Governador Lindenberg | C29: ='CV Rotina <2A - procedência'!H29 -> 0.1666666667 | D29: ='CV Rotina <2A - procedência'!P29 -> 0.75 | E29: ='CV Rotina <2A - procedência'!J29 -> 0.8333333333 | F29: ='CV Rotina <2A - procedência'!L29 -> 0.9166666667 | G29: ='CV Rotina <2A - procedência'!N29 -> 0.6666666667 | H29: ='CV Rotina <2A - procedência'!X29 -> 1.083333333 | I29: ='CV Rotina <2A - procedência'!R29 -> 0.5833333333 | J29: ='CV Rotina <2A - procedência'!T29 -> 0.8333333333 | K29: ='CV Rotina <2A - procedência'!V29 -> 0.75 | L29: ='CV Rotina <2A - procedência'!Z29 -> 0 | M29: 0 | N29: 1 | O29: 1 | P29: 1
A30: Sul | B30: Guaçuí | C30: ='CV Rotina <2A - procedência'!H30 -> 0.7567567568 | D30: ='CV Rotina <2A - procedência'!P30 -> 0.8918918919 | E30: ='CV Rotina <2A - procedência'!J30 -> 0.8108108108 | F30: ='CV Rotina <2A - procedência'!L30 -> 0.8108108108 | G30: ='CV Rotina <2A - procedência'!N30 -> 0.9189189189 | H30: ='CV Rotina <2A - procedência'!X30 -> 1.054054054 | I30: ='CV Rotina <2A - procedência'!R30 -> 0.8918918919 | J30: ='CV Rotina <2A - procedência'!T30 -> 1.027027027 | K30: ='CV Rotina <2A - procedência'!V30 -> 0.8918918919 | L30: ='CV Rotina <2A - procedência'!Z30 -> 0.4864864865 | M30: 0 | N30: 2 | O30: 2 | P30: 1
A31: Metropolitana | B31: Guarapari | C31: ='CV Rotina <2A - procedência'!H31 -> 0.946969697 | D31: ='CV Rotina <2A - procedência'!P31 -> 1.204545455 | E31: ='CV Rotina <2A - procedência'!J31 -> 1.068181818 | F31: ='CV Rotina <2A - procedência'!L31 -> 1.060606061 | G31: ='CV Rotina <2A - procedência'!N31 -> 1.257575758 | H31: ='CV Rotina <2A - procedência'!X31 -> 0.8712121212 | I31: ='CV Rotina <2A - procedência'!R31 -> 1.007575758 | J31: ='CV Rotina <2A - procedência'!T31 -> 0.8484848485 | K31: ='CV Rotina <2A - procedência'!V31 -> 1.325757576 | L31: ='CV Rotina <2A - procedência'!Z31 -> 1.257575758 | M31: 2 | N31: 6 | O31: 8 | P31: 3
A32: Metropolitana | B32: Ibatiba | C32: ='CV Rotina <2A - procedência'!H32 -> 0.9032258065 | D32: ='CV Rotina <2A - procedência'!P32 -> 1.322580645 | E32: ='CV Rotina <2A - procedência'!J32 -> 1 | F32: ='CV Rotina <2A - procedência'!L32 -> 1.032258065 | G32: ='CV Rotina <2A - procedência'!N32 -> 1.35483871 | H32: ='CV Rotina <2A - procedência'!X32 -> 0.7741935484 | I32: ='CV Rotina <2A - procedência'!R32 -> 1.451612903 | J32: ='CV Rotina <2A - procedência'!T32 -> 0.8709677419 | K32: ='CV Rotina <2A - procedência'!V32 -> 1.35483871 | L32: ='CV Rotina <2A - procedência'!Z32 -> 1.096774194 | M32: 2 | N32: 6 | O32: 8 | P32: 3
A33: Metropolitana | B33: Ibiraçu | C33: ='CV Rotina <2A - procedência'!H33 -> 0.1176470588 | D33: ='CV Rotina <2A - procedência'!P33 -> 0.7058823529 | E33: ='CV Rotina <2A - procedência'!J33 -> 0.6470588235 | F33: ='CV Rotina <2A - procedência'!L33 -> 0.6470588235 | G33: ='CV Rotina <2A - procedência'!N33 -> 0.7058823529 | H33: ='CV Rotina <2A - procedência'!X33 -> 0.5882352941 | I33: ='CV Rotina <2A - procedência'!R33 -> 0.7647058824 | J33: ='CV Rotina <2A - procedência'!T33 -> 0.7647058824 | K33: ='CV Rotina <2A - procedência'!V33 -> 0.7647058824 | L33: ='CV Rotina <2A - procedência'!Z33 -> 0.5882352941 | M33: 0 | N33: 0 | O33: 0 | P33: 0
A34: Sul | B34: Ibitirama | C34: ='CV Rotina <2A - procedência'!H34 -> 0.5384615385 | D34: ='CV Rotina <2A - procedência'!P34 -> 1.846153846 | E34: ='CV Rotina <2A - procedência'!J34 -> 1.076923077 | F34: ='CV Rotina <2A - procedência'!L34 -> 0.7692307692 | G34: ='CV Rotina <2A - procedência'!N34 -> 1.769230769 | H34: ='CV Rotina <2A - procedência'!X34 -> 0.7692307692 | I34: ='CV Rotina <2A - procedência'!R34 -> 1.153846154 | J34: ='CV Rotina <2A - procedência'!T34 -> 0.9230769231 | K34: ='CV Rotina <2A - procedência'!V34 -> 1.076923077 | L34: ='CV Rotina <2A - procedência'!Z34 -> 1 | M34: 1 | N34: 5 | O34: 6 | P34: 2
A35: Sul | B35: Iconha | C35: ='CV Rotina <2A - procedência'!H35 -> 0.7777777778 | D35: ='CV Rotina <2A - procedência'!P35 -> 1 | E35: ='CV Rotina <2A - procedência'!J35 -> 0.8888888889 | F35: ='CV Rotina <2A - procedência'!L35 -> 0.8888888889 | G35: ='CV Rotina <2A - procedência'!N35 -> 0.8888888889 | H35: ='CV Rotina <2A - procedência'!X35 -> 1.444444444 | I35: ='CV Rotina <2A - procedência'!R35 -> 1.222222222 | J35: ='CV Rotina <2A - procedência'!T35 -> 0.5555555556 | K35: ='CV Rotina <2A - procedência'!V35 -> 1.888888889 | L35: ='CV Rotina <2A - procedência'!Z35 -> 1.222222222 | M35: =COUNTIF(C35:D35,">=0,9") -> 1 | N35: =COUNTIFS(E35:L35,">=0,95") -> 4 | O35: 5 | P35: 1
A36: Sul | B36: Irupi | C36: ='CV Rotina <2A - procedência'!H36 -> 0.4210526316 | D36: ='CV Rotina <2A - procedência'!P36 -> 0.9473684211 | E36: ='CV Rotina <2A - procedência'!J36 -> 1.052631579 | F36: ='CV Rotina <2A - procedência'!L36 -> 1.052631579 | G36: ='CV Rotina <2A - procedência'!N36 -> 0.8947368421 | H36: ='CV Rotina <2A - procedência'!X36 -> 0.7894736842 | I36: ='CV Rotina <2A - procedência'!R36 -> 1.526315789 | J36: ='CV Rotina <2A - procedência'!T36 -> 0.8947368421 | K36: ='CV Rotina <2A - procedência'!V36 -> 0.7894736842 | L36: ='CV Rotina <2A - procedência'!Z36 -> 0.8947368421 | M36: 1 | N36: 3 | O36: 4 | P36: 2
A37: Metropolitana | B37: Itaguaçu | C37: ='CV Rotina <2A - procedência'!H37 -> 0.2857142857 | D37: ='CV Rotina <2A - procedência'!P37 -> 2.428571429 | E37: ='CV Rotina <2A - procedência'!J37 -> 2.285714286 | F37: ='CV Rotina <2A - procedência'!L37 -> 2.285714286 | G37: ='CV Rotina <2A - procedência'!N37 -> 2.285714286 | H37: ='CV Rotina <2A - procedência'!X37 -> 1.857142857 | I37: ='CV Rotina <2A - procedência'!R37 -> 1.714285714 | J37: ='CV Rotina <2A - procedência'!T37 -> 3.285714286 | K37: ='CV Rotina <2A - procedência'!V37 -> 1.714285714 | L37: ='CV Rotina <2A - procedência'!Z37 -> 1.142857143 | M37: 1 | N37: 8 | O37: 9 | P37: 4
A38: Sul | B38: Itapemirim | C38: ='CV Rotina <2A - procedência'!H38 -> 0.25 | D38: ='CV Rotina <2A - procedência'!P38 -> 0.375 | E38: ='CV Rotina <2A - procedência'!J38 -> 0.675 | F38: ='CV Rotina <2A - procedência'!L38 -> 0.6 | G38: ='CV Rotina <2A - procedência'!N38 -> 0.6 | H38: ='CV Rotina <2A - procedência'!X38 -> 0.475 | I38: ='CV Rotina <2A - procedência'!R38 -> 0.725 | J38: ='CV Rotina <2A - procedência'!T38 -> 0.3 | K38: ='CV Rotina <2A - procedência'!V38 -> 0.675 | L38: ='CV Rotina <2A - procedência'!Z38 -> 0.575 | M38: 0 | N38: 0 | O38: 0 | P38: 0
A39: Metropolitana | B39: Itarana | C39: ='CV Rotina <2A - procedência'!H39 -> 0 | D39: ='CV Rotina <2A - procedência'!P39 -> 0.4166666667 | E39: ='CV Rotina <2A - procedência'!J39 -> 1 | F39: ='CV Rotina <2A - procedência'!L39 -> 0.9166666667 | G39: ='CV Rotina <2A - procedência'!N39 -> 0.25 | H39: ='CV Rotina <2A - procedência'!X39 -> 0.75 | I39: ='CV Rotina <2A - procedência'!R39 -> 0.9166666667 | J39: ='CV Rotina <2A - procedência'!T39 -> 1.5 | K39: ='CV Rotina <2A - procedência'!V39 -> 1 | L39: ='CV Rotina <2A - procedência'!Z39 -> 1.083333333 | M39: 0 | N39: 4 | O39: 4 | P39: 1
A40: Sul | B40: Iúna | C40: ='CV Rotina <2A - procedência'!H40 -> 0.9090909091 | D40: ='CV Rotina <2A - procedência'!P40 -> 1.03030303 | E40: ='CV Rotina <2A - procedência'!J40 -> 1.242424242 | F40: ='CV Rotina <2A - procedência'!L40 -> 1.090909091 | G40: ='CV Rotina <2A - procedência'!N40 -> 0.9393939394 | H40: ='CV Rotina <2A - procedência'!X40 -> 1.090909091 | I40: ='CV Rotina <2A - procedência'!R40 -> 1.333333333 | J40: ='CV Rotina <2A - procedência'!T40 -> 1.454545455 | K40: ='CV Rotina <2A - procedência'!V40 -> 1.333333333 | L40: ='CV Rotina <2A - procedência'!Z40 -> 0.5757575758 | M40: 2 | N40: 6 | O40: 8 | P40: 3
A41: Norte | B41: Jaguaré | C41: ='CV Rotina <2A - procedência'!H41 -> 0.8857142857 | D41: ='CV Rotina <2A - procedência'!P41 -> 1.314285714 | E41: ='CV Rotina <2A - procedência'!J41 -> 1.142857143 | F41: ='CV Rotina <2A - procedência'!L41 -> 1.057142857 | G41: ='CV Rotina <2A - procedência'!N41 -> 1.285714286 | H41: ='CV Rotina <2A - procedência'!X41 -> 1.057142857 | I41: ='CV Rotina <2A - procedência'!R41 -> 1.371428571 | J41: ='CV Rotina <2A - procedência'!T41 -> 0.8857142857 | K41: ='CV Rotina <2A - procedência'!V41 -> 1.371428571 | L41: ='CV Rotina <2A - procedência'!Z41 -> 0.5428571429 | M41: 1 | N41: 6 | O41: 7 | P41: 4
A42: Sul | B42: Jerônimo Monteiro | C42: ='CV Rotina <2A - procedência'!H42 -> 0 | D42: ='CV Rotina <2A - procedência'!P42 -> 1.1 | E42: ='CV Rotina <2A - procedência'!J42 -> 1 | F42: ='CV Rotina <2A - procedência'!L42 -> 1.1 | G42: ='CV Rotina <2A - procedência'!N42 -> 1 | H42: ='CV Rotina <2A - procedência'!X42 -> 1.3 | I42: ='CV Rotina <2A - procedência'!R42 -> 1 | J42: ='CV Rotina <2A - procedência'!T42 -> 1.1 | K42: ='CV Rotina <2A - procedência'!V42 -> 1.9 | L42: ='CV Rotina <2A - procedência'!Z42 -> 0.3 | M42: 1 | N42: 7 | O42: 8 | P42: 4
A43: Metropolitana | B43: João Neiva | C43: ='CV Rotina <2A - procedência'!H43 -> 0 | D43: ='CV Rotina <2A - procedência'!P43 -> 1.3 | E43: ='CV Rotina <2A - procedência'!J43 -> 1.9 | F43: ='CV Rotina <2A - procedência'!L43 -> 1.7 | G43: ='CV Rotina <2A - procedência'!N43 -> 1 | H43: ='CV Rotina <2A - procedência'!X43 -> 1.2 | I43: ='CV Rotina <2A - procedência'!R43 -> 1.5 | J43: ='CV Rotina <2A - procedência'!T43 -> 1.5 | K43: ='CV Rotina <2A - procedência'!V43 -> 1.5 | L43: ='CV Rotina <2A - procedência'!Z43 -> 1.3 | M43: 1 | N43: 8 | O43: 9 | P43: 4
A44: Metropolitana | B44: Laranja da Terra | C44: ='CV Rotina <2A - procedência'!H44 -> 1 | D44: ='CV Rotina <2A - procedência'!P44 -> 3.25 | E44: ='CV Rotina <2A - procedência'!J44 -> 2.25 | F44: ='CV Rotina <2A - procedência'!L44 -> 2.5 | G44: ='CV Rotina <2A - procedência'!N44 -> 3.25 | H44: ='CV Rotina <2A - procedência'!X44 -> 1.75 | I44: ='CV Rotina <2A - procedência'!R44 -> 2.75 | J44: ='CV Rotina <2A - procedência'!T44 -> 2.5 | K44: ='CV Rotina <2A - procedência'!V44 -> 1.5 | L44: ='CV Rotina <2A - procedência'!Z44 -> 3.5 | M44: 2 | N44: 8 | O44: 10 | P44: 4
A45: Central | B45: Linhares | C45: ='CV Rotina <2A - procedência'!H45 -> 1.278606965 | D45: ='CV Rotina <2A - procedência'!P45 -> 1.034825871 | E45: ='CV Rotina <2A - procedência'!J45 -> 1.15920398 | F45: ='CV Rotina <2A - procedência'!L45 -> 1.149253731 | G45: ='CV Rotina <2A - procedência'!N45 -> 1.054726368 | H45: ='CV Rotina <2A - procedência'!X45 -> 0.9850746269 | I45: ='CV Rotina <2A - procedência'!R45 -> 1.154228856 | J45: ='CV Rotina <2A - procedência'!T45 -> 0.8009950249 | K45: ='CV Rotina <2A - procedência'!V45 -> 0.9004975124 | L45: ='CV Rotina <2A - procedência'!Z45 -> 0.6666666667 | M45: 2 | N45: 5 | O45: 7 | P45: 4
A46: Central | B46: Mantenópolis | C46: ='CV Rotina <2A - procedência'!H46 -> 0.2857142857 | D46: ='CV Rotina <2A - procedência'!P46 -> 0.7142857143 | E46: ='CV Rotina <2A - procedência'!J46 -> 1.214285714 | F46: ='CV Rotina <2A - procedência'!L46 -> 1.214285714 | G46: ='CV Rotina <2A - procedência'!N46 -> 0.6428571429 | H46: ='CV Rotina <2A - procedência'!X46 -> 1 | I46: ='CV Rotina <2A - procedência'!R46 -> 1.357142857 | J46: ='CV Rotina <2A - procedência'!T46 -> 1.714285714 | K46: ='CV Rotina <2A - procedência'!V46 -> 0.5 | L46: ='CV Rotina <2A - procedência'!Z46 -> 1.214285714 | M46: 0 | N46: 6 | O46: 6 | P46: 3
A47: Sul | B47: Marataízes | C47: ='CV Rotina <2A - procedência'!H47 -> 0.5849056604 | D47: ='CV Rotina <2A - procedência'!P47 -> 1.245283019 | E47: ='CV Rotina <2A - procedência'!J47 -> 1.056603774 | F47: ='CV Rotina <2A - procedência'!L47 -> 0.8867924528 | G47: ='CV Rotina <2A - procedência'!N47 -> 1.094339623 | H47: ='CV Rotina <2A - procedência'!X47 -> 0.7735849057 | I47: ='CV Rotina <2A - procedência'!R47 -> 0.9433962264 | J47: ='CV Rotina <2A - procedência'!T47 -> 0.7547169811 | K47: ='CV Rotina <2A - procedência'!V47 -> 0.8490566038 | L47: ='CV Rotina <2A - procedência'!Z47 -> 0.641509434 | M47: 1 | N47: 2 | O47: 3 | P47: 2
A48: Metropolitana | B48: Marechal Floriano | C48: ='CV Rotina <2A - procedência'!H48 -> 0.1176470588 | D48: ='CV Rotina <2A - procedência'!P48 -> 0.8235294118 | E48: ='CV Rotina <2A - procedência'!J48 -> 0.8823529412 | F48: ='CV Rotina <2A - procedência'!L48 -> 0.8823529412 | G48: ='CV Rotina <2A - procedência'!N48 -> 0.7647058824 | H48: ='CV Rotina <2A - procedência'!X48 -> 1.176470588 | I48: ='CV Rotina <2A - procedência'!R48 -> 0.8823529412 | J48: ='CV Rotina <2A - procedência'!T48 -> 1.058823529 | K48: ='CV Rotina <2A - procedência'!V48 -> 1.647058824 | L48: ='CV Rotina <2A - procedência'!Z48 -> 1.823529412 | M48: 0 | N48: 4 | O48: 4 | P48: 1
A49: Central | B49: Marilândia | C49: ='CV Rotina <2A - procedência'!H49 -> 0.4545454545 | D49: ='CV Rotina <2A - procedência'!P49 -> 1.545454545 | E49: ='CV Rotina <2A - procedência'!J49 -> 0.9090909091 | F49: ='CV Rotina <2A - procedência'!L49 -> 0.9090909091 | G49: ='CV Rotina <2A - procedência'!N49 -> 1.454545455 | H49: ='CV Rotina <2A - procedência'!X49 -> 1.454545455 | I49: ='CV Rotina <2A - procedência'!R49 -> 0.9090909091 | J49: ='CV Rotina <2A - procedência'!T49 -> 1.818181818 | K49: ='CV Rotina <2A - procedência'!V49 -> 1 | L49: ='CV Rotina <2A - procedência'!Z49 -> 1.090909091 | M49: 1 | N49: 5 | O49: 6 | P49: 2
A50: Sul | B50: Mimoso do Sul | C50: ='CV Rotina <2A - procedência'!H50 -> 0.3529411765 | D50: ='CV Rotina <2A - procedência'!P50 -> 1.764705882 | E50: ='CV Rotina <2A - procedência'!J50 -> 1.294117647 | F50: ='CV Rotina <2A - procedência'!L50 -> 0.9411764706 | G50: ='CV Rotina <2A - procedência'!N50 -> 1.529411765 | H50: ='CV Rotina <2A - procedência'!X50 -> 0.7647058824 | I50: ='CV Rotina <2A - procedência'!R50 -> 0.8235294118 | J50: ='CV Rotina <2A - procedência'!T50 -> 1.294117647 | K50: ='CV Rotina <2A - procedência'!V50 -> 0.9411764706 | L50: ='CV Rotina <2A - procedência'!Z50 -> 1.470588235 | M50: 1 | N50: 4 | O50: 5 | P50: 2
A51: Norte | B51: Montanha | C51: ='CV Rotina <2A - procedência'!H51 -> 0.3888888889 | D51: ='CV Rotina <2A - procedência'!P51 -> 2 | E51: ='CV Rotina <2A - procedência'!J51 -> 1.277777778 | F51: ='CV Rotina <2A - procedência'!L51 -> 1.277777778 | G51: ='CV Rotina <2A - procedência'!N51 -> 1.722222222 | H51: ='CV Rotina <2A - procedência'!X51 -> 1.222222222 | I51: ='CV Rotina <2A - procedência'!R51 -> 1.444444444 | J51: ='CV Rotina <2A - procedência'!T51 -> 0.9444444444 | K51: ='CV Rotina <2A - procedência'!V51 -> 1.388888889 | L51: ='CV Rotina <2A - procedência'!Z51 -> 2 | M51: 1 | N51: 7 | O51: 8 | P51: 4
A52: Norte | B52: Mucurici | C52: ='CV Rotina <2A - procedência'!H52 -> 0.3333333333 | D52: ='CV Rotina <2A - procedência'!P52 -> 2.333333333 | E52: ='CV Rotina <2A - procedência'!J52 -> 3 | F52: ='CV Rotina <2A - procedência'!L52 -> 3.333333333 | G52: ='CV Rotina <2A - procedência'!N52 -> 2.333333333 | H52: ='CV Rotina <2A - procedência'!X52 -> 1.666666667 | I52: ='CV Rotina <2A - procedência'!R52 -> 3 | J52: ='CV Rotina <2A - procedência'!T52 -> 2.333333333 | K52: ='CV Rotina <2A - procedência'!V52 -> 4.333333333 | L52: ='CV Rotina <2A - procedência'!Z52 -> 5.333333333 | M52: 1 | N52: 8 | O52: 9 | P52: 4
A53: Sul | B53: Muniz Freire | C53: ='CV Rotina <2A - procedência'!H53 -> 0.6470588235 | D53: ='CV Rotina <2A - procedência'!P53 -> 1.058823529 | E53: ='CV Rotina <2A - procedência'!J53 -> 1.411764706 | F53: ='CV Rotina <2A - procedência'!L53 -> 1.352941176 | G53: ='CV Rotina <2A - procedência'!N53 -> 1 | H53: ='CV Rotina <2A - procedência'!X53 -> 1.058823529 | I53: ='CV Rotina <2A - procedência'!R53 -> 1.411764706 | J53: ='CV Rotina <2A - procedência'!T53 -> 1.588235294 | K53: ='CV Rotina <2A - procedência'!V53 -> 1.176470588 | L53: ='CV Rotina <2A - procedência'!Z53 -> 0.2941176471 | M53: 1 | N53: 7 | O53: 8 | P53: 4
A54: Sul | B54: Muqui | C54: ='CV Rotina <2A - procedência'!H54 -> 0.2307692308 | D54: ='CV Rotina <2A - procedência'!P54 -> 0.7692307692 | E54: ='CV Rotina <2A - procedência'!J54 -> 1.461538462 | F54: ='CV Rotina <2A - procedência'!L54 -> 1.461538462 | G54: ='CV Rotina <2A - procedência'!N54 -> 0.8461538462 | H54: ='CV Rotina <2A - procedência'!X54 -> 1.076923077 | I54: ='CV Rotina <2A - procedência'!R54 -> 0.6153846154 | J54: ='CV Rotina <2A - procedência'!T54 -> 1.153846154 | K54: ='CV Rotina <2A - procedência'!V54 -> 1.230769231 | L54: ='CV Rotina <2A - procedência'!Z54 -> 0 | M54: 0 | N54: 5 | O54: 5 | P54: 3
A55: Norte | B55: Nova Venécia | C55: ='CV Rotina <2A - procedência'!H55 -> 0.5357142857 | D55: ='CV Rotina <2A - procedência'!P55 -> 1.125 | E55: ='CV Rotina <2A - procedência'!J55 -> 0.9821428571 | F55: ='CV Rotina <2A - procedência'!L55 -> 0.9642857143 | G55: ='CV Rotina <2A - procedência'!N55 -> 1.142857143 | H55: ='CV Rotina <2A - procedência'!X55 -> 0.6607142857 | I55: ='CV Rotina <2A - procedência'!R55 -> 0.9285714286 | J55: ='CV Rotina <2A - procedência'!T55 -> 1 | K55: ='CV Rotina <2A - procedência'!V55 -> 0.2678571429 | L55: ='CV Rotina <2A - procedência'!Z55 -> 1.089285714 | M55: 1 | N55: 5 | O55: 6 | P55: 3
A56: Central | B56: Pancas | C56: ='CV Rotina <2A - procedência'!H56 -> 0.5 | D56: ='CV Rotina <2A - procedência'!P56 -> 0.7142857143 | E56: ='CV Rotina <2A - procedência'!J56 -> 1.428571429 | F56: ='CV Rotina <2A - procedência'!L56 -> 1.428571429 | G56: ='CV Rotina <2A - procedência'!N56 -> 1 | H56: ='CV Rotina <2A - procedência'!X56 -> 0.6428571429 | I56: ='CV Rotina <2A - procedência'!R56 -> 1.571428571 | J56: ='CV Rotina <2A - procedência'!T56 -> 1.214285714 | K56: ='CV Rotina <2A - procedência'!V56 -> 1.357142857 | L56: ='CV Rotina <2A - procedência'!Z56 -> 1.5 | M56: 0 | N56: 7 | O56: 7 | P56: 3
A57: Norte | B57: Pedro Canário | C57: ='CV Rotina <2A - procedência'!H57 -> 0.1481481481 | D57: ='CV Rotina <2A - procedência'!P57 -> 0.7037037037 | E57: ='CV Rotina <2A - procedência'!J57 -> 1.185185185 | F57: ='CV Rotina <2A - procedência'!L57 -> 1.185185185 | G57: ='CV Rotina <2A - procedência'!N57 -> 0.7407407407 | H57: ='CV Rotina <2A - procedência'!X57 -> 1.037037037 | I57: ='CV Rotina <2A - procedência'!R57 -> 0.8888888889 | J57: ='CV Rotina <2A - procedência'!T57 -> 0.7407407407 | K57: ='CV Rotina <2A - procedência'!V57 -> 1.074074074 | L57: ='CV Rotina <2A - procedência'!Z57 -> 1.333333333 | M57: 0 | N57: 5 | O57: 5 | P57: 3
A58: Norte | B58: Pinheiros | C58: ='CV Rotina <2A - procedência'!H58 -> 0.03846153846 | D58: ='CV Rotina <2A - procedência'!P58 -> 1.423076923 | E58: ='CV Rotina <2A - procedência'!J58 -> 1.5 | F58: ='CV Rotina <2A - procedência'!L58 -> 1.5 | G58: ='CV Rotina <2A - procedência'!N58 -> 1.423076923 | H58: ='CV Rotina <2A - procedência'!X58 -> 1.269230769 | I58: ='CV Rotina <2A - procedência'!R58 -> 0.7307692308 | J58: ='CV Rotina <2A - procedência'!T58 -> 1.076923077 | K58: ='CV Rotina <2A - procedência'!V58 -> 1.038461538 | L58: ='CV Rotina <2A - procedência'!Z58 -> 1.269230769 | M58: 1 | N58: 7 | O58: 8 | P58: 4
A59: Sul | B59: Piúma | C59: ='CV Rotina <2A - procedência'!H59 -> 0.4736842105 | D59: ='CV Rotina <2A - procedência'!P59 -> 1.368421053 | E59: ='CV Rotina <2A - procedência'!J59 -> 1.157894737 | F59: ='CV Rotina <2A - procedência'!L59 -> 1.105263158 | G59: ='CV Rotina <2A - procedência'!N59 -> 1.368421053 | H59: ='CV Rotina <2A - procedência'!X59 -> 1.263157895 | I59: ='CV Rotina <2A - procedência'!R59 -> 1.315789474 | J59: ='CV Rotina <2A - procedência'!T59 -> 1.263157895 | K59: ='CV Rotina <2A - procedência'!V59 -> 1.315789474 | L59: ='CV Rotina <2A - procedência'!Z59 -> 0.7368421053 | M59: 1 | N59: 7 | O59: 8 | P59: 4
A60: Norte | B60: Ponto Belo | C60: ='CV Rotina <2A - procedência'!H60 -> 0 | D60: ='CV Rotina <2A - procedência'!P60 -> 2.6 | E60: ='CV Rotina <2A - procedência'!J60 -> 2.4 | F60: ='CV Rotina <2A - procedência'!L60 -> 2.4 | G60: ='CV Rotina <2A - procedência'!N60 -> 2.6 | H60: ='CV Rotina <2A - procedência'!X60 -> 0.8 | I60: ='CV Rotina <2A - procedência'!R60 -> 1.4 | J60: ='CV Rotina <2A - procedência'!T60 -> 1.6 | K60: ='CV Rotina <2A - procedência'!V60 -> 2 | L60: ='CV Rotina <2A - procedência'!Z60 -> 2.2 | M60: 1 | N60: 7 | O60: 8 | P60: 3
A61: Sul | B61: Presidente Kennedy | C61: ='CV Rotina <2A - procedência'!H61 -> 0.1428571429 | D61: ='CV Rotina <2A - procedência'!P61 -> 1.5 | E61: ='CV Rotina <2A - procedência'!J61 -> 1.285714286 | F61: ='CV Rotina <2A - procedência'!L61 -> 1.142857143 | G61: ='CV Rotina <2A - procedência'!N61 -> 1.5 | H61: ='CV Rotina <2A - procedência'!X61 -> 1.785714286 | I61: ='CV Rotina <2A - procedência'!R61 -> 1.142857143 | J61: ='CV Rotina <2A - procedência'!T61 -> 1.785714286 | K61: ='CV Rotina <2A - procedência'!V61 -> 1.142857143 | L61: ='CV Rotina <2A - procedência'!Z61 -> 0.4285714286 | M61: 1 | N61: 7 | O61: 8 | P61: 4
A62: Central | B62: Rio Bananal | C62: ='CV Rotina <2A - procedência'!H62 -> 0.09523809524 | D62: ='CV Rotina <2A - procedência'!P62 -> 1 | E62: ='CV Rotina <2A - procedência'!J62 -> 0.8571428571 | F62: ='CV Rotina <2A - procedência'!L62 -> 0.9047619048 | G62: ='CV Rotina <2A - procedência'!N62 -> 1 | H62: ='CV Rotina <2A - procedência'!X62 -> 1.142857143 | I62: ='CV Rotina <2A - procedência'!R62 -> 1.047619048 | J62: ='CV Rotina <2A - procedência'!T62 -> 1.19047619 | K62: ='CV Rotina <2A - procedência'!V62 -> 1.285714286 | L62: ='CV Rotina <2A - procedência'!Z62 -> 1.285714286 | M62: 1 | N62: 6 | O62: 7 | P62: 2
A63: Sul | B63: Rio Novo do Sul | C63: ='CV Rotina <2A - procedência'!H63 -> 0 | D63: ='CV Rotina <2A - procedência'!P63 -> 0.5454545455 | E63: ='CV Rotina <2A - procedência'!J63 -> 1.272727273 | F63: ='CV Rotina <2A - procedência'!L63 -> 1.272727273 | G63: ='CV Rotina <2A - procedência'!N63 -> 0.5454545455 | H63: ='CV Rotina <2A - procedência'!X63 -> 0.9090909091 | I63: ='CV Rotina <2A - procedência'!R63 -> 0.8181818182 | J63: ='CV Rotina <2A - procedência'!T63 -> 0.7272727273 | K63: ='CV Rotina <2A - procedência'!V63 -> 1.272727273 | L63: ='CV Rotina <2A - procedência'!Z63 -> 1.272727273 | M63: 0 | N63: 4 | O63: 4 | P63: 2
A64: Metropolitana | B64: Santa Leopoldina | C64: ='CV Rotina <2A - procedência'!H64 -> 0.1666666667 | D64: ='CV Rotina <2A - procedência'!P64 -> 1 | E64: ='CV Rotina <2A - procedência'!J64 -> 1.166666667 | F64: ='CV Rotina <2A - procedência'!L64 -> 1 | G64: ='CV Rotina <2A - procedência'!N64 -> 1 | H64: ='CV Rotina <2A - procedência'!X64 -> 1.333333333 | I64: ='CV Rotina <2A - procedência'!R64 -> 1.333333333 | J64: ='CV Rotina <2A - procedência'!T64 -> 0.3333333333 | K64: ='CV Rotina <2A - procedência'!V64 -> 1.666666667 | L64: ='CV Rotina <2A - procedência'!Z64 -> 0.5 | M64: 1 | N64: 6 | O64: 7 | P64: 4
A65: Metropolitana | B65: Santa Maria de Jetibá | C65: ='CV Rotina <2A - procedência'!H65 -> 0.7454545455 | D65: ='CV Rotina <2A - procedência'!P65 -> 1.127272727 | E65: ='CV Rotina <2A - procedência'!J65 -> 0.8 | F65: ='CV Rotina <2A - procedência'!L65 -> 0.8363636364 | G65: ='CV Rotina <2A - procedência'!N65 -> 0.9454545455 | H65: ='CV Rotina <2A - procedência'!X65 -> 1.272727273 | I65: ='CV Rotina <2A - procedência'!R65 -> 1.036363636 | J65: ='CV Rotina <2A - procedência'!T65 -> 0.6545454545 | K65: ='CV Rotina <2A - procedência'!V65 -> 1.254545455 | L65: ='CV Rotina <2A - procedência'!Z65 -> 1.018181818 | M65: 1 | N65: 4 | O65: 5 | P65: 1
A66: Metropolitana | B66: Santa Teresa | C66: ='CV Rotina <2A - procedência'!H66 -> 2.666666667 | D66: ='CV Rotina <2A - procedência'!P66 -> 0.8333333333 | E66: ='CV Rotina <2A - procedência'!J66 -> 0.9583333333 | F66: ='CV Rotina <2A - procedência'!L66 -> 0.9583333333 | G66: ='CV Rotina <2A - procedência'!N66 -> 0.875 | H66: ='CV Rotina <2A - procedência'!X66 -> 0.8333333333 | I66: ='CV Rotina <2A - procedência'!R66 -> 1.208333333 | J66: ='CV Rotina <2A - procedência'!T66 -> 0.8333333333 | K66: ='CV Rotina <2A - procedência'!V66 -> 1.083333333 | L66: ='CV Rotina <2A - procedência'!Z66 -> 0.8333333333 | M66: 1 | N66: 4 | O66: 5 | P66: 2
A67: Central | B67: São Domingos do Norte | C67: ='CV Rotina <2A - procedência'!H67 -> 0.6 | D67: ='CV Rotina <2A - procedência'!P67 -> 0.6 | E67: ='CV Rotina <2A - procedência'!J67 -> 1 | F67: ='CV Rotina <2A - procedência'!L67 -> 1 | G67: ='CV Rotina <2A - procedência'!N67 -> 0.7 | H67: ='CV Rotina <2A - procedência'!X67 -> 1.3 | I67: ='CV Rotina <2A - procedência'!R67 -> 0.6 | J67: ='CV Rotina <2A - procedência'!T67 -> 0.9 | K67: ='CV Rotina <2A - procedência'!V67 -> 1.6 | L67: ='CV Rotina <2A - procedência'!Z67 -> 1.5 | M67: =COUNTIF(C67:D67,">=0,9") -> 0 | N67: =COUNTIFS(E67:L67,">=0,95") -> 5 | O67: 5 | P67: 3
A68: Central | B68: São Gabriel da Palha | C68: ='CV Rotina <2A - procedência'!H68 -> 0 | D68: ='CV Rotina <2A - procedência'!P68 -> 1.088235294 | E68: ='CV Rotina <2A - procedência'!J68 -> 1.558823529 | F68: ='CV Rotina <2A - procedência'!L68 -> 1.588235294 | G68: ='CV Rotina <2A - procedência'!N68 -> 1.058823529 | H68: ='CV Rotina <2A - procedência'!X68 -> 0.9411764706 | I68: ='CV Rotina <2A - procedência'!R68 -> 1.176470588 | J68: ='CV Rotina <2A - procedência'!T68 -> 1.029411765 | K68: ='CV Rotina <2A - procedência'!V68 -> 1.058823529 | L68: ='CV Rotina <2A - procedência'!Z68 -> 0.7352941176 | M68: 1 | N68: 6 | O68: =SUM(M68:N68) -> 7 | P68: =COUNTIF(E68:H68,">=0,95") -> 3
A69: Sul | B69: São José do Calçado | C69: ='CV Rotina <2A - procedência'!H69 -> 0.5384615385 | D69: ='CV Rotina <2A - procedência'!P69 -> 0.5384615385 | E69: ='CV Rotina <2A - procedência'!J69 -> 1.230769231 | F69: ='CV Rotina <2A - procedência'!L69 -> 1.230769231 | G69: ='CV Rotina <2A - procedência'!N69 -> 0.5384615385 | H69: ='CV Rotina <2A - procedência'!X69 -> 0.6153846154 | I69: ='CV Rotina <2A - procedência'!R69 -> 0.9230769231 | J69: ='CV Rotina <2A - procedência'!T69 -> 0.3846153846 | K69: ='CV Rotina <2A - procedência'!V69 -> 1.153846154 | L69: ='CV Rotina <2A - procedência'!Z69 -> 1.153846154 | M69: 0 | N69: 4 | O69: 4 | P69: 2
A70: Norte | B70: São Mateus | C70: ='CV Rotina <2A - procedência'!H70 -> 1.657534247 | D70: ='CV Rotina <2A - procedência'!P70 -> 0.904109589 | E70: ='CV Rotina <2A - procedência'!J70 -> 1 | F70: ='CV Rotina <2A - procedência'!L70 -> 0.9589041096 | G70: ='CV Rotina <2A - procedência'!N70 -> 0.9383561644 | H70: ='CV Rotina <2A - procedência'!X70 -> 0.7876712329 | I70: ='CV Rotina <2A - procedência'!R70 -> 0.9246575342 | J70: ='CV Rotina <2A - procedência'!T70 -> 0.6575342466 | K70: ='CV Rotina <2A - procedência'!V70 -> 0.7945205479 | L70: ='CV Rotina <2A - procedência'!Z70 -> 0.8219178082 | M70: 2 | N70: 2 | O70: 4 | P70: 2
A71: Central | B71: São Roque do Canaã | C71: ='CV Rotina <2A - procedência'!H71 -> 0.2 | D71: ='CV Rotina <2A - procedência'!P71 -> 0.7333333333 | E71: ='CV Rotina <2A - procedência'!J71 -> 0.8 | F71: ='CV Rotina <2A - procedência'!L71 -> 0.6 | G71: ='CV Rotina <2A - procedência'!N71 -> 0.6666666667 | H71: ='CV Rotina <2A - procedência'!X71 -> 0.8666666667 | I71: ='CV Rotina <2A - procedência'!R71 -> 0.4 | J71: ='CV Rotina <2A - procedência'!T71 -> 0.4 | K71: ='CV Rotina <2A - procedência'!V71 -> 0.1333333333 | L71: ='CV Rotina <2A - procedência'!Z71 -> 0.4 | M71: 0 | N71: 0 | O71: 0 | P71: 0
A72: Metropolitana | B72: Serra | C72: ='CV Rotina <2A - procedência'!H72 -> 1.153364632 | D72: ='CV Rotina <2A - procedência'!P72 -> 0.9467918623 | E72: ='CV Rotina <2A - procedência'!J72 -> 0.9436619718 | F72: ='CV Rotina <2A - procedência'!L72 -> 0.9280125196 | G72: ='CV Rotina <2A - procedência'!N72 -> 0.9327073552 | H72: ='CV Rotina <2A - procedência'!X72 -> 0.9123630673 | I72: ='CV Rotina <2A - procedência'!R72 -> 1.021909233 | J72: ='CV Rotina <2A - procedência'!T72 -> 0.7543035994 | K72: ='CV Rotina <2A - procedência'!V72 -> 1.009389671 | L72: ='CV Rotina <2A - procedência'!Z72 -> 0.9029733959 | M72: 2 | N72: 2 | O72: 4 | P72: 0
A73: Central | B73: Sooretama | C73: ='CV Rotina <2A - procedência'!H73 -> 0.025 | D73: ='CV Rotina <2A - procedência'!P73 -> 1.225 | E73: ='CV Rotina <2A - procedência'!J73 -> 0.825 | F73: ='CV Rotina <2A - procedência'!L73 -> 0.825 | G73: ='CV Rotina <2A - procedência'!N73 -> 1.175 | H73: ='CV Rotina <2A - procedência'!X73 -> 0.75 | I73: ='CV Rotina <2A - procedência'!R73 -> 1.025 | J73: ='CV Rotina <2A - procedência'!T73 -> 1.225 | K73: ='CV Rotina <2A - procedência'!V73 -> 0.85 | L73: ='CV Rotina <2A - procedência'!Z73 -> 0.9 | M73: 1 | N73: 3 | O73: 4 | P73: 1
A74: Sul | B74: Vargem Alta | C74: ='CV Rotina <2A - procedência'!H74 -> 0.09090909091 | D74: ='CV Rotina <2A - procedência'!P74 -> 1.409090909 | E74: ='CV Rotina <2A - procedência'!J74 -> 0.9090909091 | F74: ='CV Rotina <2A - procedência'!L74 -> 0.8636363636 | G74: ='CV Rotina <2A - procedência'!N74 -> 1.5 | H74: ='CV Rotina <2A - procedência'!X74 -> 1.045454545 | I74: ='CV Rotina <2A - procedência'!R74 -> 1.045454545 | J74: ='CV Rotina <2A - procedência'!T74 -> 0.9090909091 | K74: ='CV Rotina <2A - procedência'!V74 -> 0.8181818182 | L74: ='CV Rotina <2A - procedência'!Z74 -> 0.8636363636 | M74: 1 | N74: 3 | O74: 4 | P74: 2
A75: Metropolitana | B75: Venda Nova do Imigrante | C75: ='CV Rotina <2A - procedência'!H75 -> 1.535714286 | D75: ='CV Rotina <2A - procedência'!P75 -> 1.464285714 | E75: ='CV Rotina <2A - procedência'!J75 -> 1 | F75: ='CV Rotina <2A - procedência'!L75 -> 1 | G75: ='CV Rotina <2A - procedência'!N75 -> 1.357142857 | H75: ='CV Rotina <2A - procedência'!X75 -> 1.392857143 | I75: ='CV Rotina <2A - procedência'!R75 -> 0.9642857143 | J75: ='CV Rotina <2A - procedência'!T75 -> 1.071428571 | K75: ='CV Rotina <2A - procedência'!V75 -> 1.321428571 | L75: ='CV Rotina <2A - procedência'!Z75 -> 1.285714286 | M75: 2 | N75: 8 | O75: 10 | P75: 4
A76: Metropolitana | B76: Viana | C76: ='CV Rotina <2A - procedência'!H76 -> 0.2625 | D76: ='CV Rotina <2A - procedência'!P76 -> 1 | E76: ='CV Rotina <2A - procedência'!J76 -> 1.025 | F76: ='CV Rotina <2A - procedência'!L76 -> 0.9875 | G76: ='CV Rotina <2A - procedência'!N76 -> 1.025 | H76: ='CV Rotina <2A - procedência'!X76 -> 1.0125 | I76: ='CV Rotina <2A - procedência'!R76 -> 1 | J76: ='CV Rotina <2A - procedência'!T76 -> 0.4625 | K76: ='CV Rotina <2A - procedência'!V76 -> 1.1125 | L76: ='CV Rotina <2A - procedência'!Z76 -> 0.4375 | M76: 1 | N76: 6 | O76: 7 | P76: 4
A77: Norte | B77: Vila Pavão | C77: ='CV Rotina <2A - procedência'!H77 -> 0.6666666667 | D77: ='CV Rotina <2A - procedência'!P77 -> 4.666666667 | E77: ='CV Rotina <2A - procedência'!J77 -> 5 | F77: ='CV Rotina <2A - procedência'!L77 -> 4.333333333 | G77: ='CV Rotina <2A - procedência'!N77 -> 4.666666667 | H77: ='CV Rotina <2A - procedência'!X77 -> 2 | I77: ='CV Rotina <2A - procedência'!R77 -> 5.666666667 | J77: ='CV Rotina <2A - procedência'!T77 -> 4 | K77: ='CV Rotina <2A - procedência'!V77 -> 2.333333333 | L77: ='CV Rotina <2A - procedência'!Z77 -> 5 | M77: 1 | N77: 8 | O77: 9 | P77: 4
A78: Central | B78: Vila Valério | C78: ='CV Rotina <2A - procedência'!H78 -> 0.05882352941 | D78: ='CV Rotina <2A - procedência'!P78 -> 1 | E78: ='CV Rotina <2A - procedência'!J78 -> 1.117647059 | F78: ='CV Rotina <2A - procedência'!L78 -> 1.235294118 | G78: ='CV Rotina <2A - procedência'!N78 -> 0.8823529412 | H78: ='CV Rotina <2A - procedência'!X78 -> 1.117647059 | I78: ='CV Rotina <2A - procedência'!R78 -> 0.8235294118 | J78: ='CV Rotina <2A - procedência'!T78 -> 0.7058823529 | K78: ='CV Rotina <2A - procedência'!V78 -> 1.058823529 | L78: ='CV Rotina <2A - procedência'!Z78 -> 1.058823529 | M78: 1 | N78: 5 | O78: 6 | P78: 3
A79: Metropolitana | B79: Vila Velha | C79: ='CV Rotina <2A - procedência'!H79 -> 0.8 | D79: ='CV Rotina <2A - procedência'!P79 -> 0.9591397849 | E79: ='CV Rotina <2A - procedência'!J79 -> 1.019354839 | F79: ='CV Rotina <2A - procedência'!L79 -> 1.004301075 | G79: ='CV Rotina <2A - procedência'!N79 -> 0.9462365591 | H79: ='CV Rotina <2A - procedência'!X79 -> 0.9892473118 | I79: ='CV Rotina <2A - procedência'!R79 -> 0.9913978495 | J79: ='CV Rotina <2A - procedência'!T79 -> 0.752688172 | K79: ='CV Rotina <2A - procedência'!V79 -> 1.066666667 | L79: ='CV Rotina <2A - procedência'!Z79 -> 1.04516129 | M79: 1 | N79: 6 | O79: 7 | P79: 3
A80: Metropolitana | B80: Vitória | C80: ='CV Rotina <2A - procedência'!H80 -> 1.754716981 | D80: ='CV Rotina <2A - procedência'!P80 -> 1.066037736 | E80: ='CV Rotina <2A - procedência'!J80 -> 1.273584906 | F80: ='CV Rotina <2A - procedência'!L80 -> 1.254716981 | G80: ='CV Rotina <2A - procedência'!N80 -> 0.927672956 | H80: ='CV Rotina <2A - procedência'!X80 -> 1.339622642 | I80: ='CV Rotina <2A - procedência'!R80 -> 1.100628931 | J80: ='CV Rotina <2A - procedência'!T80 -> 0.5817610063 | K80: ='CV Rotina <2A - procedência'!V80 -> 1.364779874 | L80: ='CV Rotina <2A - procedência'!Z80 -> 1.493710692 | M80: 2 | N80: 6 | O80: 8 | P80: 3
B82: Total Norte | C82: ='CV Rotina <2A - procedência'!H82 -> 0.7863436123 | D82: ='CV Rotina <2A - procedência'!P82 -> 1.044052863 | E82: ='CV Rotina <2A - procedência'!J82 -> 1.178414097 | F82: ='CV Rotina <2A - procedência'!L82 -> 1.151982379 | G82: ='CV Rotina <2A - procedência'!N82 -> 1.057268722 | H82: ='CV Rotina <2A - procedência'!X82 -> 0.9405286344 | I82: ='CV Rotina <2A - procedência'!R82 -> 1.050660793 | J82: ='CV Rotina <2A - procedência'!T82 -> 0.922907489 | K82: ='CV Rotina <2A - procedência'!V82 -> 0.8920704846 | L82: ='CV Rotina <2A - procedência'!Z82 -> 1.037444934 | M82: =COUNTIF(C82:D82,">=0,9") -> 1 | N82: =COUNTIFS(E82:L82,">=0,95") -> 5 | O82: =SUM(M82:N82) -> 6 | P82: =COUNTIF(E82:H82,">=0,95") -> 3
B83: Total Central | C83: ='CV Rotina <2A - procedência'!H83 -> 0.9982425308 | D83: ='CV Rotina <2A - procedência'!P83 -> 0.9894551845 | E83: ='CV Rotina <2A - procedência'!J83 -> 1.112478032 | F83: ='CV Rotina <2A - procedência'!L83 -> 1.114235501 | G83: ='CV Rotina <2A - procedência'!N83 -> 0.9789103691 | H83: ='CV Rotina <2A - procedência'!X83 -> 1.005272408 | I83: ='CV Rotina <2A - procedência'!R83 -> 1.130052724 | J83: ='CV Rotina <2A - procedência'!T83 -> 0.9613356766 | K83: ='CV Rotina <2A - procedência'!V83 -> 0.9912126538 | L83: ='CV Rotina <2A - procedência'!Z83 -> 0.8541300527 | M83: =COUNTIF(C83:D83,">=0,9") -> 2 | N83: =COUNTIFS(E83:L83,">=0,95") -> 7 | O83: =SUM(M83:N83) -> 9 | P83: =COUNTIF(E83:H83,">=0,95") -> 4
B84: Total Metropolitana | C84: ='CV Rotina <2A - procedência'!H84 -> 0.9773920065 | D84: ='CV Rotina <2A - procedência'!P84 -> 1.039563989 | E84: ='CV Rotina <2A - procedência'!J84 -> 1.054905127 | F84: ='CV Rotina <2A - procedência'!L84 -> 1.041178845 | G84: ='CV Rotina <2A - procedência'!N84 -> 1.008477998 | H84: ='CV Rotina <2A - procedência'!X84 -> 1.051675414 | I84: ='CV Rotina <2A - procedência'!R84 -> 1.045619701 | J84: ='CV Rotina <2A - procedência'!T84 -> 0.784416633 | K84: ='CV Rotina <2A - procedência'!V84 -> 1.162293096 | L84: ='CV Rotina <2A - procedência'!Z84 -> 1.056923698 | M84: =COUNTIF(C84:D84,">=0,9") -> 2 | N84: =COUNTIFS(E84:L84,">=0,95") -> 7 | O84: =SUM(M84:N84) -> 9 | P84: =COUNTIF(E84:H84,">=0,95") -> 4
B85: Total Sul | C85: ='CV Rotina <2A - procedência'!H85 -> 0.9479015919 | D85: ='CV Rotina <2A - procedência'!P85 -> 1.002894356 | E85: ='CV Rotina <2A - procedência'!J85 -> 1.098408104 | F85: ='CV Rotina <2A - procedência'!L85 -> 1.030390738 | G85: ='CV Rotina <2A - procedência'!N85 -> 0.981186686 | H85: ='CV Rotina <2A - procedência'!X85 -> 1.017366136 | I85: ='CV Rotina <2A - procedência'!R85 -> 1.041968162 | J85: ='CV Rotina <2A - procedência'!T85 -> 0.9493487699 | K85: ='CV Rotina <2A - procedência'!V85 -> 1.175108538 | L85: ='CV Rotina <2A - procedência'!Z85 -> 0.8408104197 | M85: =COUNTIF(C85:D85,">=0,9") -> 2 | N85: =COUNTIFS(E85:L85,">=0,95") -> 6 | O85: =SUM(M85:N85) -> 8 | P85: =COUNTIF(E85:H85,">=0,95") -> 4
B86: Total Espírito Santo | C86: ='CV Rotina <2A - procedência'!H86 -> 0.9546647578 | D86: ='CV Rotina <2A - procedência'!P86 -> 1.027201145 | E86: ='CV Rotina <2A - procedência'!J86 -> 1.083273682 | F86: ='CV Rotina <2A - procedência'!L86 -> 1.06132188 | G86: ='CV Rotina <2A - procedência'!N86 -> 1.005249344 | H86: ='CV Rotina <2A - procedência'!X86 -> 1.027678358 | I86: ='CV Rotina <2A - procedência'!R86 -> 1.057026963 | J86: ='CV Rotina <2A - procedência'!T86 -> 0.8506323073 | K86: ='CV Rotina <2A - procedência'!V86 -> 1.111906466 | L86: ='CV Rotina <2A - procedência'!Z86 -> 0.9916487712 | M86: =COUNTIF(C86:D86,">=0,9") -> 2 | N86: =COUNTIFS(E86:L86,">=0,95") -> 7 | O86: =SUM(M86:N86) -> 9 | P86: =COUNTIF(E86:H86,">=0,95") -> 4
A89: Fonte: SIPNI/DATASUS, em 09 de junho de 2023.*
A90: Vacina e Confia, em 12 de junho de 2023.**
A91: *Dados referentes às doses aplicadas pelas clínicas particulares de janeiro a maio de 2023
A92: **Dados referente às doses aplicadas no período de janeiro a maio de 2023
A93: Cobertura Calculada por município de vacinação
A94: 1 População proporcional extraída do MS/SVS/DASIS - Sistema de Informações sobre Nascidos Vivos - SINASC
A95: 2000 a 2021 – Estimativas preliminares elaboradas pelo Ministério da Saúde/SVS/DASNT/CGIAE
A96: Nota: Dados preliminares 2021

Sheet cálculos2 (hidden)
C1: 0.9 | E1: 0.95
A2: Regional | B2: Município | C2: Cobertura Vacinal BCG | D2: Cobertura Vacinal Rotavírus | E2: Cobertura Vacinal Pentavalente | F2: Cobertura Vacinal Poliomielite | G2: Cobertura Vacinal Pneumo 10 | H2: Cobertura Vacinal Tríplice Viral | I2: Cobertura Vacinal Meningo C | J2: Cobertura Vacinal Febre Amarela | K2: Cobertura Vacinal Hepatite A | L2: Cobertura Varicela | M2: META 90% | N2: META 95% | O2: ATINGIRAM META | P2: PQA-VS
A3: Metropolitana | B3: Afonso Cláudio | C3: ='CV Rotina <2A - residência'!H3 -> 0.78125 | D3: ='CV Rotina <2A - residência'!P3 -> 1.09375 | E3: ='CV Rotina <2A - residência'!J3 -> 1.15625 | F3: ='CV Rotina <2A - residência'!L3 -> 1.15625 | G3: ='CV Rotina <2A - residência'!N3 -> 1.0625 | H3: ='CV Rotina <2A - residência'!X3 -> 1.03125 | I3: ='CV Rotina <2A - residência'!R3 -> 0.96875 | J3: ='CV Rotina <2A - residência'!T3 -> 1 | K3: ='CV Rotina <2A - residência'!V3 -> 1.46875 | L3: ='CV Rotina <2A - residência'!Z3 -> 1.625 | M3: =COUNTIF(C3:D3,">=0,9") -> 1 | N3: =COUNTIFS(E3:L3,">=0,95") -> 8 | O3: =SUM(M3:N3) -> 9 | P3: =COUNTIF(E3:H3,">=0,95") -> 4
A4: Norte | B4: Água Doce do Norte | C4: ='CV Rotina <2A - residência'!H4 -> 0.5769230769 | D4: ='CV Rotina <2A - residência'!P4 -> 0.2692307692 | E4: ='CV Rotina <2A - residência'!J4 -> 0.6923076923 | F4: ='CV Rotina <2A - residência'!L4 -> 0.7307692308 | G4: ='CV Rotina <2A - residência'!N4 -> 0.3076923077 | H4: ='CV Rotina <2A - residência'!X4 -> 0.5769230769 | I4: ='CV Rotina <2A - residência'!R4 -> 0.8076923077 | J4: ='CV Rotina <2A - residência'!T4 -> 0.5769230769 | K4: ='CV Rotina <2A - residência'!V4 -> 0.5384615385 | L4: ='CV Rotina <2A - residência'!Z4 -> 0.3461538462 | M4: 0 | N4: 0 | O4: =SUM(M4:N4) -> 0 | P4: =COUNTIF(E4:H4,">=0,95") -> 0
A5: Central | B5: Águia Branca | C5: ='CV Rotina <2A - residência'!H5 -> 0.9090909091 | D5: ='CV Rotina <2A - residência'!P5 -> 0.5454545455 | E5: ='CV Rotina <2A - residência'!J5 -> 1.636363636 | F5: ='CV Rotina <2A - residência'!L5 -> 1.636363636 | G5: ='CV Rotina <2A - residência'!N5 -> 0.7272727273 | H5: ='CV Rotina <2A - residência'!X5 -> 1.454545455 | I5: ='CV Rotina <2A - residência'!R5 -> 1.363636364 | J5: ='CV Rotina <2A - residência'!T5 -> 2.090909091 | K5: ='CV Rotina <2A - residência'!V5 -> 1.636363636 | L5: ='CV Rotina <2A - residência'!Z5 -> 1.727272727 | M5: 1 | N5: 7 | O5: 8 | P5: 3
A6: Sul | B6: Alegre | C6: ='CV Rotina <2A - residência'!H6 -> 0.9047619048 | D6: ='CV Rotina <2A - residência'!P6 -> 0.9523809524 | E6: ='CV Rotina <2A - residência'!J6 -> 1.428571429 | F6: ='CV Rotina <2A - residência'!L6 -> 1.142857143 | G6: ='CV Rotina <2A - residência'!N6 -> 0.9523809524 | H6: ='CV Rotina <2A - residência'!X6 -> 1.333333333 | I6: ='CV Rotina <2A - residência'!R6 -> 1.285714286 | J6: ='CV Rotina <2A - residência'!T6 -> 1.095238095 | K6: ='CV Rotina <2A - residência'!V6 -> 1.619047619 | L6: ='CV Rotina <2A - residência'!Z6 -> 1.428571429 | M6: 2 | N6: 8 | O6: 10 | P6: 4
A7: Sul | B7: Alfredo Chaves | C7: ='CV Rotina <2A - residência'!H7 -> 0.5714285714 | D7: ='CV Rotina <2A - residência'!P7 -> 0.5 | E7: ='CV Rotina <2A - residência'!J7 -> 0.9285714286 | F7: ='CV Rotina <2A - residência'!L7 -> 0.8571428571 | G7: ='CV Rotina <2A - residência'!N7 -> 0.4285714286 | H7: ='CV Rotina <2A - residência'!X7 -> 1.142857143 | I7: ='CV Rotina <2A - residência'!R7 -> 0.7142857143 | J7: ='CV Rotina <2A - residência'!T7 -> 1 | K7: ='CV Rotina <2A - residência'!V7 -> 2 | L7: ='CV Rotina <2A - residência'!Z7 -> 1.714285714 | M7: 0 | N7: 4 | O7: 4 | P7: 1
A8: Central | B8: Alto Rio Novo | C8: ='CV Rotina <2A - residência'!H8 -> 0.6666666667 | D8: ='CV Rotina <2A - residência'!P8 -> 2 | E8: ='CV Rotina <2A - residência'!J8 -> 1.333333333 | F8: ='CV Rotina <2A - residência'!L8 -> 1.333333333 | G8: ='CV Rotina <2A - residência'!N8 -> 2 | H8: ='CV Rotina <2A - residência'!X8 -> 1.166666667 | I8: ='CV Rotina <2A - residência'!R8 -> 1.833333333 | J8: ='CV Rotina <2A - residência'!T8 -> 2.333333333 | K8: ='CV Rotina <2A - residência'!V8 -> 1.166666667 | L8: ='CV Rotina <2A - residência'!Z8 -> 2.166666667 | M8: 1 | N8: 8 | O8: 9 | P8: 4
A9: Sul | B9: Anchieta | C9: ='CV Rotina <2A - residência'!H9 -> 0.7941176471 | D9: ='CV Rotina <2A - residência'!P9 -> 1 | E9: ='CV Rotina <2A - residência'!J9 -> 1.088235294 | F9: ='CV Rotina <2A - residência'!L9 -> 0.9411764706 | G9: ='CV Rotina <2A - residência'!N9 -> 1.029411765 | H9: ='CV Rotina <2A - residência'!X9 -> 0.6764705882 | I9: ='CV Rotina <2A - residência'!R9 -> 1 | J9: ='CV Rotina <2A - residência'!T9 -> 1.029411765 | K9: ='CV Rotina <2A - residência'!V9 -> 1.205882353 | L9: ='CV Rotina <2A - residência'!Z9 -> 0.7647058824 | M9: 1 | N9: 5 | O9: 6 | P9: 2
A10: Sul | B10: Apiacá | C10: ='CV Rotina <2A - residência'!H10 -> 3.25 | D10: ='CV Rotina <2A - residência'!P10 -> 1 | E10: ='CV Rotina <2A - residência'!J10 -> 2 | F10: ='CV Rotina <2A - residência'!L10 -> 2 | G10: ='CV Rotina <2A - residência'!N10 -> 1 | H10: ='CV Rotina <2A - residência'!X10 -> 1.75 | I10: ='CV Rotina <2A - residência'!R10 -> 1 | J10: ='CV Rotina <2A - residência'!T10 -> 1.5 | K10: ='CV Rotina <2A - residência'!V10 -> 0.25 | L10: ='CV Rotina <2A - residência'!Z10 -> 0.5 | M10: 2 | N10: 6 | O10: 8 | P10: 4
A11: Metropolitana | B11: Aracruz | C11: ='CV Rotina <2A - residência'!H11 -> 1.20754717 | D11: ='CV Rotina <2A - residência'!P11 -> 1.141509434 | E11: ='CV Rotina <2A - residência'!J11 -> 1.216981132 | F11: ='CV Rotina <2A - residência'!L11 -> 1.20754717 | G11: ='CV Rotina <2A - residência'!N11 -> 1.094339623 | H11: ='CV Rotina <2A - residência'!X11 -> 1.349056604 | I11: ='CV Rotina <2A - residência'!R11 -> 1.150943396 | J11: ='CV Rotina <2A - residência'!T11 -> 1.047169811 | K11: ='CV Rotina <2A - residência'!V11 -> 1.481132075 | L11: ='CV Rotina <2A - residência'!Z11 -> 1.377358491 | M11: 2 | N11: 8 | O11: 10 | P11: 4
A12: Sul | B12: Atilio Vivacqua | C12: ='CV Rotina <2A - residência'!H12 -> 1 | D12: ='CV Rotina <2A - residência'!P12 -> 1.533333333 | E12: ='CV Rotina <2A - residência'!J12 -> 1.466666667 | F12: ='CV Rotina <2A - residência'!L12 -> 1.466666667 | G12: ='CV Rotina <2A - residência'!N12 -> 1.466666667 | H12: ='CV Rotina <2A - residência'!X12 -> 0.9333333333 | I12: ='CV Rotina <2A - residência'!R12 -> 1.2 | J12: ='CV Rotina <2A - residência'!T12 -> 0.7333333333 | K12: ='CV Rotina <2A - residência'!V12 -> 0.6666666667 | L12: ='CV Rotina <2A - residência'!Z12 -> 0.5333333333 | M12: 2 | N12: 4 | O12: 6 | P12: 3
A13: Central | B13: Baixo Guandu | C13: ='CV Rotina <2A - residência'!H13 -> 1.074074074 | D13: ='CV Rotina <2A - residência'!P13 -> 1.037037037 | E13: ='CV Rotina <2A - residência'!J13 -> 1.111111111 | F13: ='CV Rotina <2A - residência'!L13 -> 1.111111111 | G13: ='CV Rotina <2A - residência'!N13 -> 1 | H13: ='CV Rotina <2A - residência'!X13 -> 1.185185185 | I13: ='CV Rotina <2A - residência'!R13 -> 1.037037037 | J13: ='CV Rotina <2A - residência'!T13 -> 1.37037037 | K13: ='CV Rotina <2A - residência'!V13 -> 1.740740741 | L13: ='CV Rotina <2A - residência'!Z13 -> 1.148148148 | M13: 2 | N13: 8 | O13: 10 | P13: 4
A14: Norte | B14: Barra de São Francisco | C14: ='CV Rotina <2A - residência'!H14 -> 1.108695652 | D14: ='CV Rotina <2A - residência'!P14 -> 0.8913043478 | E14: ='CV Rotina <2A - residência'!J14 -> 1.347826087 | F14: ='CV Rotina <2A - residência'!L14 -> 1.369565217 | G14: ='CV Rotina <2A - residência'!N14 -> 0.9130434783 | H14: ='CV Rotina <2A - residência'!X14 -> 0.9130434783 | I14: ='CV Rotina <2A - residência'!R14 -> 0.8913043478 | J14: ='CV Rotina <2A - residência'!T14 -> 1.043478261 | K14: ='CV Rotina <2A - residência'!V14 -> 0.7608695652 | L14: ='CV Rotina <2A - residência'!Z14 -> 0.9782608696 | M14: 1 | N14: 4 | O14: 5 | P14: 2
A15: Norte | B15: Boa Esperança | C15: ='CV Rotina <2A - residência'!H15 -> 1.1875 | D15: ='CV Rotina <2A - residência'!P15 -> 1.1875 | E15: ='CV Rotina <2A - residência'!J15 -> 1.0625 | F15: ='CV Rotina <2A - residência'!L15 -> 1.0625 | G15: ='CV Rotina <2A - residência'!N15 -> 1.0625 | H15: ='CV Rotina <2A - residência'!X15 -> 1.125 | I15: ='CV Rotina <2A - residência'!R15 -> 1.3125 | J15: ='CV Rotina <2A - residência'!T15 -> 1 | K15: ='CV Rotina <2A - residência'!V15 -> 1.3125 | L15: ='CV Rotina <2A - residência'!Z15 -> 1.3125 | M15: 2 | N15: 8 | O15: 10 | P15: 4
A16: Sul | B16: Bom Jesus do Norte | C16: ='CV Rotina <2A - residência'!H16 -> 1.3 | D16: ='CV Rotina <2A - residência'!P16 -> 0.8 | E16: ='CV Rotina <2A - residência'!J16 -> 1.2 | F16: ='CV Rotina <2A - residência'!L16 -> 1.2 | G16: ='CV Rotina <2A - residência'!N16 -> 0.9 | H16: ='CV Rotina <2A - residência'!X16 -> 0.7 | I16: ='CV Rotina <2A - residência'!R16 -> 0.6 | J16: ='CV Rotina <2A - residência'!T16 -> 1.1 | K16: ='CV Rotina <2A - residência'!V16 -> 1 | L16: ='CV Rotina <2A - residência'!Z16 -> 0.2 | M16: 1 | N16: 4 | O16: 5 | P16: 2
A17: Metropolitana | B17: Brejetuba | C17: ='CV Rotina <2A - residência'!H17 -> 0.8636363636 | D17: ='CV Rotina <2A - residência'!P17 -> 0.9545454545 | E17: ='CV Rotina <2A - residência'!J17 -> 0.6818181818 | F17: ='CV Rotina <2A - residência'!L17 -> 0.6818181818 | G17: ='CV Rotina <2A - residência'!N17 -> 0.9090909091 | H17: ='CV Rotina <2A - residência'!X17 -> 1.090909091 | I17: ='CV Rotina <2A - residência'!R17 -> 0.7272727273 | J17: ='CV Rotina <2A - residência'!T17 -> 0.4545454545 | K17: ='CV Rotina <2A - residência'!V17 -> 0.5 | L17: ='CV Rotina <2A - residência'!Z17 -> 0.04545454545 | M17: 1 | N17: 1 | O17: 2 | P17: 1
A18: Sul | B18: Cachoeiro de Itapemirim | C18: ='CV Rotina <2A - residência'!H18 -> 1.130653266 | D18: ='CV Rotina <2A - residência'!P18 -> 0.9748743719 | E18: ='CV Rotina <2A - residência'!J18 -> 1.175879397 | F18: ='CV Rotina <2A - residência'!L18 -> 1.16080402 | G18: ='CV Rotina <2A - residência'!N18 -> 0.9648241206 | H18: ='CV Rotina <2A - residência'!X18 -> 1.170854271 | I18: ='CV Rotina <2A - residência'!R18 -> 1.110552764 | J18: ='CV Rotina <2A - residência'!T18 -> 0.8994974874 | K18: ='CV Rotina <2A - residência'!V18 -> 1.391959799 | L18: ='CV Rotina <2A - residência'!Z18 -> 1.075376884 | M18: 2 | N18: 7 | O18: 9 | P18: 4
A19: Metropolitana | B19: Cariacica | C19: ='CV Rotina <2A - residência'!H19 -> 1.075566751 | D19: ='CV Rotina <2A - residência'!P19 -> 1.156171285 | E19: ='CV Rotina <2A - residência'!J19 -> 1.120906801 | F19: ='CV Rotina <2A - residência'!L19 -> 1.100755668 | G19: ='CV Rotina <2A - residência'!N19 -> 1.171284635 | H19: ='CV Rotina <2A - residência'!X19 -> 1.125944584 | I19: ='CV Rotina <2A - residência'!R19 -> 1.118387909 | J19: ='CV Rotina <2A - residência'!T19 -> 0.8589420655 | K19: ='CV Rotina <2A - residência'!V19 -> 1.216624685 | L19: ='CV Rotina <2A - residência'!Z19 -> 0.9042821159 | M19: 2 | N19: 6 | O19: 8 | P19: 4
A20: Sul | B20: Castelo | C20: ='CV Rotina <2A - residência'!H20 -> 0.7179487179 | D20: ='CV Rotina <2A - residência'!P20 -> 0.8205128205 | E20: ='CV Rotina <2A - residência'!J20 -> 0.8205128205 | F20: ='CV Rotina <2A - residência'!L20 -> 0.8205128205 | G20: ='CV Rotina <2A - residência'!N20 -> 0.7948717949 | H20: ='CV Rotina <2A - residência'!X20 -> 0.9487179487 | I20: ='CV Rotina <2A - residência'!R20 -> 0.8974358974 | J20: ='CV Rotina <2A - residência'!T20 -> 0.9230769231 | K20: ='CV Rotina <2A - residência'!V20 -> 1.102564103 | L20: ='CV Rotina <2A - residência'!Z20 -> 0.4871794872 | M20: 0 | N20: 1 | O20: 1 | P20: 0
A21: Central | B21: Colatina | C21: ='CV Rotina <2A - residência'!H21 -> 0.8308823529 | D21: ='CV Rotina <2A - residência'!P21 -> 0.875 | E21: ='CV Rotina <2A - residência'!J21 -> 0.9705882353 | F21: ='CV Rotina <2A - residência'!L21 -> 0.9779411765 | G21: ='CV Rotina <2A - residência'!N21 -> 0.8088235294 | H21: ='CV Rotina <2A - residência'!X21 -> 0.9852941176 | I21: ='CV Rotina <2A - residência'!R21 -> 1.161764706 | J21: ='CV Rotina <2A - residência'!T21 -> 0.7720588235 | K21: ='CV Rotina <2A - residência'!V21 -> 0.8897058824 | L21: ='CV Rotina <2A - residência'!Z21 -> 0.75 | M21: 0 | N21: 4 | O21: 4 | P21: 3
A22: Norte | B22: Conceição da Barra | C22: ='CV Rotina <2A - residência'!H22 -> 1.24 | D22: ='CV Rotina <2A - residência'!P22 -> 1.04 | E22: ='CV Rotina <2A - residência'!J22 -> 1.48 | F22: ='CV Rotina <2A - residência'!L22 -> 1.48 | G22: ='CV Rotina <2A - residência'!N22 -> 1.16 | H22: ='CV Rotina <2A - residência'!X22 -> 1.8 | I22: ='CV Rotina <2A - residência'!R22 -> 1.6 | J22: ='CV Rotina <2A - residência'!T22 -> 1.48 | K22: ='CV Rotina <2A - residência'!V22 -> 1.16 | L22: ='CV Rotina <2A - residência'!Z22 -> 1.52 | M22: 2 | N22: 8 | O22: 10 | P22: 4
A23: Metropolitana | B23: Conceição do Castelo | C23: ='CV Rotina <2A - residência'!H23 -> 0.6315789474 | D23: ='CV Rotina <2A - residência'!P23 -> 0.7368421053 | E23: ='CV Rotina <2A - residência'!J23 -> 0.5263157895 | F23: ='CV Rotina <2A - residência'!L23 -> 0.5789473684 | G23: ='CV Rotina <2A - residência'!N23 -> 0.7894736842 | H23: ='CV Rotina <2A - residência'!X23 -> 0.5263157895 | I23: ='CV Rotina <2A - residência'!R23 -> 0.4736842105 | J23: ='CV Rotina <2A - residência'!T23 -> 0.5789473684 | K23: ='CV Rotina <2A - residência'!V23 -> 0.5263157895 | L23: ='CV Rotina <2A - residência'!Z23 -> 0.7368421053 | M23: 0 | N23: 0 | O23: 0 | P23: 0
A24: Sul | B24: Divino de São Lourenço | C24: ='CV Rotina <2A - residência'!H24 -> 0.375 | D24: ='CV Rotina <2A - residência'!P24 -> 0 | E24: ='CV Rotina <2A - residência'!J24 -> 0.5 | F24: ='CV Rotina <2A - residência'!L24 -> 0.5 | G24: ='CV Rotina <2A - residência'!N24 -> 0 | H24: ='CV Rotina <2A - residência'!X24 -> 1 | I24: ='CV Rotina <2A - residência'!R24 -> 0.625 | J24: ='CV Rotina <2A - residência'!T24 -> 0.875 | K24: ='CV Rotina <2A - residência'!V24 -> 1 | L24: ='CV Rotina <2A - residência'!Z24 -> 0.75 | M24: 0 | N24: 2 | O24: 2 | P24: 1
A25: Metropolitana | B25: Domingos Martins | C25: ='CV Rotina <2A - residência'!H25 -> 0.9117647059 | D25: ='CV Rotina <2A - residência'!P25 -> 1.205882353 | E25: ='CV Rotina <2A - residência'!J25 -> 1.147058824 | F25: ='CV Rotina <2A - residência'!L25 -> 1.147058824 | G25: ='CV Rotina <2A - residência'!N25 -> 1.117647059 | H25: ='CV Rotina <2A - residência'!X25 -> 1.029411765 | I25: ='CV Rotina <2A - residência'!R25 -> 1.147058824 | J25: ='CV Rotina <2A - residência'!T25 -> 0.8235294118 | K25: ='CV Rotina <2A - residência'!V25 -> 1.176470588 | L25: ='CV Rotina <2A - residência'!Z25 -> 1.352941176 | M25: 2 | N25: 7 | O25: 9 | P25: 4
A26: Sul | B26: Dores do Rio Preto | C26: ='CV Rotina <2A - residência'!H26 -> 0.4285714286 | D26: ='CV Rotina <2A - residência'!P26 -> 1.142857143 | E26: ='CV Rotina <2A - residência'!J26 -> 1.857142857 | F26: ='CV Rotina <2A - residência'!L26 -> 1.714285714 | G26: ='CV Rotina <2A - residência'!N26 -> 1 | H26: ='CV Rotina <2A - residência'!X26 -> 0.5714285714 | I26: ='CV Rotina <2A - residência'!R26 -> 0.4285714286 | J26: ='CV Rotina <2A - residência'!T26 -> 1.285714286 | K26: ='CV Rotina <2A - residência'!V26 -> 1.285714286 | L26: ='CV Rotina <2A - residência'!Z26 -> 0.7142857143 | M26: 1 | N26: 5 | O26: 6 | P26: 3
A27: Norte | B27: Ecoporanga | C27: ='CV Rotina <2A - residência'!H27 -> 0.8181818182 | D27: ='CV Rotina <2A - residência'!P27 -> 0.8181818182 | E27: ='CV Rotina <2A - residência'!J27 -> 1.318181818 | F27: ='CV Rotina <2A - residência'!L27 -> 1.272727273 | G27: ='CV Rotina <2A - residência'!N27 -> 0.8636363636 | H27: ='CV Rotina <2A - residência'!X27 -> 0.7727272727 | I27: ='CV Rotina <2A - residência'!R27 -> 0.9090909091 | J27: ='CV Rotina <2A - residência'!T27 -> 1 | K27: ='CV Rotina <2A - residência'!V27 -> 0.7272727273 | L27: ='CV Rotina <2A - residência'!Z27 -> 0.5454545455 | M27: 0 | N27: 3 | O27: 3 | P27: 2
A28: Metropolitana | B28: Fundão | C28: ='CV Rotina <2A - residência'!H28 -> 1.181818182 | D28: ='CV Rotina <2A - residência'!P28 -> 0.9090909091 | E28: ='CV Rotina <2A - residência'!J28 -> 1.136363636 | F28: ='CV Rotina <2A - residência'!L28 -> 1.136363636 | G28: ='CV Rotina <2A - residência'!N28 -> 0.9090909091 | H28: ='CV Rotina <2A - residência'!X28 -> 0.7727272727 | I28: ='CV Rotina <2A - residência'!R28 -> 0.6818181818 | J28: ='CV Rotina <2A - residência'!T28 -> 0.6818181818 | K28: ='CV Rotina <2A - residência'!V28 -> 0.7727272727 | L28: ='CV Rotina <2A - residência'!Z28 -> 0.7272727273 | M28: 2 | N28: 2 | O28: 4 | P28: 2
A29: Central | B29: Governador Lindenberg | C29: ='CV Rotina <2A - residência'!H29 -> 0.8333333333 | D29: ='CV Rotina <2A - residência'!P29 -> 0.8333333333 | E29: ='CV Rotina <2A - residência'!J29 -> 1.083333333 | F29: ='CV Rotina <2A - residência'!L29 -> 1.083333333 | G29: ='CV Rotina <2A - residência'!N29 -> 0.75 | H29: ='CV Rotina <2A - residência'!X29 -> 1.083333333 | I29: ='CV Rotina <2A - residência'!R29 -> 0.6666666667 | J29: ='CV Rotina <2A - residência'!T29 -> 0.75 | K29: ='CV Rotina <2A - residência'!V29 -> 0.9166666667 | L29: ='CV Rotina <2A - residência'!Z29 -> 0.3333333333 | M29: 0 | N29: 3 | O29: 3 | P29: 3
A30: Sul | B30: Guaçuí | C30: ='CV Rotina <2A - residência'!H30 -> 0.5945945946 | D30: ='CV Rotina <2A - residência'!P30 -> 0.8918918919 | E30: ='CV Rotina <2A - residência'!J30 -> 0.8648648649 | F30: ='CV Rotina <2A - residência'!L30 -> 0.8648648649 | G30: ='CV Rotina <2A - residência'!N30 -> 0.8648648649 | H30: ='CV Rotina <2A - residência'!X30 -> 1.027027027 | I30: ='CV Rotina <2A - residência'!R30 -> 1 | J30: ='CV Rotina <2A - residência'!T30 -> 0.9459459459 | K30: ='CV Rotina <2A - residência'!V30 -> 0.9189189189 | L30: ='CV Rotina <2A - residência'!Z30 -> 0.4864864865 | M30: 0 | N30: 2 | O30: 2 | P30: 1
A31: Metropolitana | B31: Guarapari | C31: ='CV Rotina <2A - residência'!H31 -> 1.090909091 | D31: ='CV Rotina <2A - residência'!P31 -> 1.227272727 | E31: ='CV Rotina <2A - residência'!J31 -> 1.053030303 | F31: ='CV Rotina <2A - residência'!L31 -> 1.053030303 | G31: ='CV Rotina <2A - residência'!N31 -> 1.257575758 | H31: ='CV Rotina <2A - residência'!X31 -> 0.9242424242 | I31: ='CV Rotina <2A - residência'!R31 -> 1.03030303 | J31: ='CV Rotina <2A - residência'!T31 -> 0.8409090909 | K31: ='CV Rotina <2A - residência'!V31 -> 1.356060606 | L31: ='CV Rotina <2A - residência'!Z31 -> 1.257575758 | M31: 2 | N31: 6 | O31: 8 | P31: 3
A32: Metropolitana | B32: Ibatiba | C32: ='CV Rotina <2A - residência'!H32 -> 0.935483871 | D32: ='CV Rotina <2A - residência'!P32 -> 1.258064516 | E32: ='CV Rotina <2A - residência'!J32 -> 1.064516129 | F32: ='CV Rotina <2A - residência'!L32 -> 1.096774194 | G32: ='CV Rotina <2A - residência'!N32 -> 1.290322581 | H32: ='CV Rotina <2A - residência'!X32 -> 0.7419354839 | I32: ='CV Rotina <2A - residência'!R32 -> 1.387096774 | J32: ='CV Rotina <2A - residência'!T32 -> 0.8064516129 | K32: ='CV Rotina <2A - residência'!V32 -> 1.290322581 | L32: ='CV Rotina <2A - residência'!Z32 -> 1.032258065 | M32: 2 | N32: 6 | O32: 8 | P32: 3
A33: Metropolitana | B33: Ibiraçu | C33: ='CV Rotina <2A - residência'!H33 -> 0.4705882353 | D33: ='CV Rotina <2A - residência'!P33 -> 0.8823529412 | E33: ='CV Rotina <2A - residência'!J33 -> 0.7058823529 | F33: ='CV Rotina <2A - residência'!L33 -> 0.7058823529 | G33: ='CV Rotina <2A - residência'!N33 -> 0.8235294118 | H33: ='CV Rotina <2A - residência'!X33 -> 0.3529411765 | I33: ='CV Rotina <2A - residência'!R33 -> 0.8235294118 | J33: ='CV Rotina <2A - residência'!T33 -> 0.8235294118 | K33: ='CV Rotina <2A - residência'!V33 -> 0.8235294118 | L33: ='CV Rotina <2A - residência'!Z33 -> 0.7058823529 | M33: 0 | N33: 0 | O33: 0 | P33: 0
A34: Sul | B34: Ibitirama | C34: ='CV Rotina <2A - residência'!H34 -> 0.7692307692 | D34: ='CV Rotina <2A - residência'!P34 -> 2.153846154 | E34: ='CV Rotina <2A - residência'!J34 -> 1.153846154 | F34: ='CV Rotina <2A - residência'!L34 -> 0.8461538462 | G34: ='CV Rotina <2A - residência'!N34 -> 2 | H34: ='CV Rotina <2A - residência'!X34 -> 1 | I34: ='CV Rotina <2A - residência'!R34 -> 1.230769231 | J34: ='CV Rotina <2A - residência'!T34 -> 1 | K34: ='CV Rotina <2A - residência'!V34 -> 0.8461538462 | L34: ='CV Rotina <2A - residência'!Z34 -> 0.9230769231 | M34: 1 | N34: 5 | O34: 6 | P34: 3
